{"text_format":"1","workbook":"xlsx","n_sheets":18,"sheets":["Inicio","Productos de Crédito","TD_Productos de Crédito","Fondos de Capital","TD_Fondos de Capital","Incubadoras","TD_Incubadoras","Crowdfunding","TD_Crowdfunding","Normativa de Apoyo","TD_Normativa de Apoyo","Glosario","Matriz Productos de Crédito","Matriz_Fondos de Capital","Matriz_Incubadoras","Matriz_Crowdfunding","Matriz_Normativa de Apoyo","Observaciones"],"not_rendered":{"charts":0,"images":26,"macros":1,"external_links":0,"defined_names":18,"comments":2,"pivot_tables":73},"unopened":[],"bounds":{"document_bytes":16777216,"sheet_cells":100000,"rows_first":2000,"rows_last":500,"rows_between":2000,"halvings":0,"cell_chars":16384,"cell_head_chars":4096},"cells_cut":0,"cells_raw":0,"read":"whole","date_system":"1900"}

{"sheet":"Inicio","index":0,"n_rows":2,"n_cols":4,"rows_kept":2,"cut":false,"hidden":false,"merged":[[1,3,1,11]]}
[]
[null,null,null,"Mecanismos de financiamiento y apoyo para MIPYMEs en el \nDistrito Metropolitano de Quito"]

{"sheet":"Productos de Crédito","index":1,"n_rows":42,"n_cols":9,"rows_kept":42,"cut":false,"hidden":false,"merged":[[0,0,0,7],[12,0,12,9],[41,4,47,4],[41,6,47,6],[41,8,47,8],[25,4,31,4],[25,6,31,6],[25,8,31,8],[17,4,23,4],[17,6,23,6],[17,8,23,8],[33,4,39,4],[33,6,39,6],[33,8,39,8],[14,0,14,9]]}
["INSTRUCCIONES:\n• Para encontrar los diferentes productos de crédito disponibles, primero elige el tipo de institución.\n• A continuación elige la institución financiera entre las opciones filtradas.\n• Finalmente, selecciona un productos de crédito entre los ofrecidos y encuentra su descipción en la parte inferior.",null,null,null,null,null,null,null,"¡Recuerda!\nPara elegir otro producto de crédito,\ndebes borrar todos los filtros.\nPara borrar todos los filtros, haz clic ➡️"]
[]
[]
[]
[]
[]
[]
[]
[]
[]
[]
[]
["Productos de Crédito para MIPYMEs en el Distrito Metropolitano de Quito"]
[]
[{"$f":"IF(OR('TD_Productos de Crédito'!$E$2=0,'TD_Productos de Crédito'!$E$2=\"(en blanco)\"),\" \",'TD_Productos de Crédito'!$E$2)","v":" "}]
[]
[]
[null,null,null,null,{"$f":"IF('TD_Productos de Crédito'!$K$2=0,0,\"CARACTERÍSTICAS Y BENEFICIOS\n\n\"&'TD_Productos de Crédito'!$K$2)","v":0},null,{"$f":"IF('TD_Productos de Crédito'!$N$2=0,\"En esta sección encontrará información sobre los productos crediticios para MIPYMES que ofrecen las instituciones financieras con presencia en el Distrito Metropolitano de Quito. \",\"SEGMENTO OBJETIVO\n\n\"&'TD_Productos de Crédito'!$N$2)","v":"En esta sección encontrará información sobre los productos crediticios para MIPYMES que ofrecen las instituciones financieras con presencia en el Distrito Metropolitano de Quito. "},null,{"$f":"IF('TD_Productos de Crédito'!$Q$2=0,0,IF('TD_Productos de Crédito'!$Q$2=\"(en blanco)\",\"PERFIL DE BENEFICIARIO\n\nNo hay un perfil definido\",\"PERFIL DE BENEFICIARIO\n\n\"&'TD_Productos de Crédito'!$Q$2))","v":0}]
[]
[]
[]
[]
[]
[]
[]
[null,null,null,null,{"$f":"IF('TD_Productos de Crédito'!$T$2=0,0,IF('TD_Productos de Crédito'!$T$2=\"(en blanco)\",\"DESTINO DEL CRÉDITO\n\nNo hay una definición sobre el destino del crédito\",\"DESTINO DEL CRÉDITO\n\n\"&'TD_Productos de Crédito'!$T$2))","v":0},null,{"$f":"IF('TD_Productos de Crédito'!$W$2=0,0,IF('TD_Productos de Crédito'!$W$2=\"(en blanco)\",\"REQUISITOS\n\nNo hay una definición sobre los requisitos\",\"REQUISITOS\n\n\"&'TD_Productos de Crédito'!$W$2))","v":0},null,{"$f":"IF('TD_Productos de Crédito'!$Z$2=0,0,IF('TD_Productos de Crédito'!$Z$2=\"(en blanco)\",\"GARANTÍAS\n\nNo hay garantías definidas\",\"GARANTÍAS\n\n\"&'TD_Productos de Crédito'!$Z$2))","v":0}]
[]
[]
[]
[]
[]
[]
[]
[{"$f":"IF(OR(A35<>\"\",A36<>\"\",A37<>\"\",A38<>\"\",A39<>\"\",A40<>\"\"),\"Información de Contacto\",\"\")","v":""},null,null,null,{"$f":"IF('TD_Productos de Crédito'!$AC$2=0,0,IF('TD_Productos de Crédito'!$AC$2=\"(en blanco\",\"MONTO MÁXIMO\n\nNo se ha definido un monto máximo\",IF('TD_Productos de Crédito'!$AC$2>1000000,\"MONTO MÁXIMO\n\nUSD \"&'TD_Productos de Crédito'!AC2/1000000&\" millones\",IF('TD_Productos de Crédito'!$AC$2=1000000,\"MONTO MÁXIMO\n\nUSD \"&'TD_Productos de Crédito'!AC2/1000000&\" millón\",IF('TD_Productos de Crédito'!$AC$2>=1000,\"MONTO MÁXIMO\n\nUSD \"&'TD_Productos de Crédito'!AC2/1000&\" mil\",\"MONTO MÁXIMO\n\nUSD \"&'TD_Productos de Crédito'!AC2)))))","v":0},null,{"$f":"IF('TD_Productos de Crédito'!$AF$2=0,0,IF('TD_Productos de Crédito'!$AF$2=\"(en blanco)\",\"PLAZO MÁXIMO\n\nNo se ha definido un plazo máximo\",\"PLAZO MÁXIMO\n\n\"&'TD_Productos de Crédito'!$AF$2&\" días\"))","v":0},null,{"$f":"IF('TD_Productos de Crédito'!$AI$2=0,0,IF('TD_Productos de Crédito'!$AI$2=\"(en blanco)\",\"TASA DE INTERÉS ANUAL\n\nNo se cuenta con información sobre la tasa de interés\",\"TASA DE INTERÉS ANUAL\n\n\"&ROUND('TD_Productos de Crédito'!$AI$2*100,2)&\" %\"))","v":0}]
[{"$f":"IF(OR('TD_Productos de Crédito'!AU2=0,'TD_Productos de Crédito'!AU2=\"(en blanco)\"),\"\",'TD_Productos de Crédito'!AU2)","v":""}]
[{"$f":"IF(OR('TD_Productos de Crédito'!AX2=0,'TD_Productos de Crédito'!AX2=\"(en blanco)\"),\"\",'TD_Productos de Crédito'!AX2)","v":""}]
[{"$f":"IF(OR('TD_Productos de Crédito'!BA2=0,'TD_Productos de Crédito'!BA2=\"(en blanco)\"),\"\",'TD_Productos de Crédito'!BA2)","v":""}]
[{"$f":"IF(OR('TD_Productos de Crédito'!BD2=0,'TD_Productos de Crédito'!BD2=\"(en blanco)\"),\"\",'TD_Productos de Crédito'!BD2)","v":""}]
[{"$f":"IF(OR('TD_Productos de Crédito'!BG2=0,'TD_Productos de Crédito'!BG2=\"(en blanco)\"),\"\",'TD_Productos de Crédito'!BG2)","v":""}]
[{"$f":"IF(OR('TD_Productos de Crédito'!BJ2=0,'TD_Productos de Crédito'!BJ2=\"(en blanco)\"),\"\",'TD_Productos de Crédito'!BJ2)","v":""}]
[]
[null,null,null,null,{"$f":"IF('TD_Productos de Crédito'!$AL$2=0,0,IF('TD_Productos de Crédito'!$AL$2=\"(en blanco)\",\"PERÍODO DE AMORTIZACIÓN\n\nNo se ha definido un período de amortización\",\"PERÍODO DE AMORTIZACIÓN\n\n\"&'TD_Productos de Crédito'!$AL$2))","v":0},null,{"$f":"IF('TD_Productos de Crédito'!$AO$2=0,0,IF('TD_Productos de Crédito'!$AO$2=\"(en blanco)\",\"PERÍODO DE GRACIA\n\nNo se ha definido un período de gracia\",\"PERÍODO DE GRACIA\n\n\"&'TD_Productos de Crédito'!$AO$2&\" días\"))","v":0},null,{"$f":"IF('TD_Productos de Crédito'!$AR$2=0,0,IF('TD_Productos de Crédito'!$AR$2=\"(en blanco)\",0,\"OTRAS OBSERVACIONES O REQUISITOS\n\n\"&'TD_Productos de Crédito'!$AR$2))","v":0}]

{"sheet":"TD_Productos de Crédito","index":2,"n_rows":212,"n_cols":62,"rows_kept":212,"cut":false,"hidden":true,"merged":[]}
[null,{"$f":"IF(B2<>1,\"Seleccione una Institución\",\"Limpiar Filtro\")","v":"Seleccione una Institución"},null,null,null,null,{"$f":"IF(AND(B2=1,G2<>1),\"Seleccione un Producto\",IF(AND(B2<>1,G2<>1),\"\",\"Para seleccionar una nueva Institución Limpiar este Filtro\"))","v":""}]
[null,{"$f":"COUNTA($B$4:$B$100)","v":40},null,{"$f":"COUNTA($B$4:$B$100)","v":40},{"$f":"IF(AND(D2=1,D4=\"\"),\"(en blanco)\",IF(D2<>1,0,D4))","v":0},null,{"$f":"COUNTA($G$4:$G$100)","v":97},{"$f":"IF(AND(G2=1,G4=\"\"),\"(en blanco)\",IF(G2<>1,0,G4))","v":0},null,{"$f":"COUNTA($G$4:$G$100)","v":97},{"$f":"IF(AND(J2=1,J4=\"\"),\"(en blanco)\",IF(J2<>1,0,J4))","v":0},null,{"$f":"COUNTA($G$4:$G$100)","v":97},{"$f":"IF(AND(M2=1,M4=\"\"),\"(en blanco)\",IF(M2<>1,0,M4))","v":0},null,{"$f":"COUNTA($G$4:$G$100)","v":97},{"$f":"IF(AND(P2=1,P4=\"\"),\"(en blanco)\",IF(P2<>1,0,P4))","v":0},null,{"$f":"COUNTA($G$4:$G$100)","v":97},{"$f":"IF(AND(S2=1,S4=\"\"),\"(en blanco)\",IF(S2<>1,0,S4))","v":0},null,{"$f":"COUNTA($G$4:$G$100)","v":97},{"$f":"IF(AND(V2=1,V4=\"\"),\"(en blanco)\",IF(V2<>1,0,V4))","v":0},null,{"$f":"COUNTA($G$4:$G$100)","v":97},{"$f":"IF(AND(Y2=1,Y4=\"\"),\"(en blanco)\",IF(Y2<>1,0,Y4))","v":0},null,{"$f":"COUNTA($G$4:$G$100)","v":97},{"$f":"IF(AND(AB2=1,AB4=\"\"),\"(en blanco)\",IF(AB2<>1,0,AB4))","v":0},null,{"$f":"COUNTA($G$4:$G$100)","v":97},{"$f":"IF(AND(AE2=1,AE4=\"\"),\"(en blanco)\",IF(AE2<>1,0,AE4))","v":0},null,{"$f":"COUNTA($G$4:$G$100)","v":97},{"$f":"IF(AND(AH2=1,AH4=\"\"),\"(en blanco)\",IF(AH2<>1,0,AH4))","v":0},null,{"$f":"COUNTA($G$4:$G$100)","v":97},{"$f":"IF(AND(AK2=1,AK4=\"\"),\"(en blanco)\",IF(AK2<>1,0,AK4))","v":0},null,{"$f":"COUNTA($G$4:$G$100)","v":97},{"$f":"IF(AND(AN2=1,AN4=\"\"),\"(en blanco)\",IF(AN2<>1,0,AN4))","v":0},null,{"$f":"COUNTA($G$4:$G$100)","v":97},{"$f":"IF(AND(AQ2=1,AQ4=\"\"),\"(en blanco)\",IF(AQ2<>1,0,AQ4))","v":0},null,{"$f":"COUNTA($G$4:$G$100)","v":97},{"$f":"IF(AND(AT2=1,AT4=\"\"),\"(en blanco)\",IF(AT2<>1,0,AT4))","v":0},null,{"$f":"COUNTA($G$4:$G$100)","v":97},{"$f":"IF(AND(AW2=1,AW4=\"\"),\"(en blanco)\",IF(AW2<>1,0,AW4))","v":0},null,{"$f":"COUNTA($G$4:$G$100)","v":97},{"$f":"IF(AND(AZ2=1,AZ4=\"\"),\"(en blanco)\",IF(AZ2<>1,0,AZ4))","v":0},null,{"$f":"COUNTA($G$4:$G$100)","v":97},{"$f":"IF(AND(BC2=1,BC4=\"\"),\"(en blanco)\",IF(BC2<>1,0,BC4))","v":0},null,{"$f":"COUNTA($G$4:$G$100)","v":97},{"$f":"IF(AND(BF2=1,BF4=\"\"),\"(en blanco)\",IF(BF2<>1,0,BF4))","v":0},null,{"$f":"COUNTA($G$4:$G$100)","v":97},{"$f":"IF(AND(BI2=1,BI4=\"\"),\"(en blanco)\",IF(BI2<>1,0,BI4))","v":0}]
[null,"Etiquetas de fila",null,"Etiquetas de fila",null,null,"Etiquetas de fila",null,null,"Etiquetas de fila",null,null,"Etiquetas de fila",null,null,"Etiquetas de fila",null,null,"Etiquetas de fila",null,null,"Etiquetas de fila",null,null,"Etiquetas de fila",null,null,"Suma de Monto máximo (USD)",null,null,"Suma de Plazo máximo (días)",null,null,"Suma de Tasa de interés ",null,null,"Etiquetas de fila",null,null,"Suma de Período de Gracia (días)",null,null,"Etiquetas de fila",null,null,"Etiquetas de fila",null,null,"Etiquetas de fila",null,null,"Etiquetas de fila",null,null,"Etiquetas de fila",null,null,"Etiquetas de fila",null,null,"Etiquetas de fila"]
[null,"23 DE JULIO",null,"23 DE JULIO",null,null,"Amba Yá",null,null,"Dedicados a actividades agrícolas y ganaderas",null,null,"4 Medianas Empresas: Ventas < = USD 5 millones",null,null,"Constar en el listado del MIESS",null,null," Activos Fijos,  Capital de Trabajo,  Otro",null,null," Solicitud de crédito,  Copia de cédula o RUC,  Certificado de votación,  Declaraciones de Impuestos,  Planilla de servicios básicos,  Flujo de efectivo,  Flujo de caja proyectado,  Balances",null,null," Hipotecaria",null,null,67559200,null,null,554295,null,null,43.405399999999936,null,null," Mensual",null,null,13680,null,null,"El beneficiario debe registrar su actividad productiva. Las mujeres beneficiarias del MIES deben estar registradas en un programa del Ministerio de Inclusión Económica y Social. ",null,null,"23 DE JULIO",null,null,"http://www.markacreativaec.com/CoopLDV/creditos/",null,null,null,null,null,null,null,null,997600766]
[null,"29 DE OCTUBRE",null,"29 DE OCTUBRE",null,null,"Credi reactivación",null,null,"Destinado a beneficiarios de programas de inclusión en los componentes del Bono de Desarrollo Humano, promoción del trabajo y empleabilidad.",null,null," Microempresa: Ventas < = USD 100 mil",null,null,"Edad 21 - 75. No aplica para socios con cartera de crédito castigada vigente",null,null," Activos Fijos,  Capital de Trabajo",null,null," Copia de cédula o RUC,  Certificado de votación,  Planilla de servicios básicos,  Otros",null,null," Personal",null,null,null,null,null,null,null,null,null,null,null," Mensual,  Trimestral,  Semestral",null,null,null,null,null,"La tasa es la preferencial",null,null,"29 DE OCTUBRE",null,null,"https://alianzadelvalle.fin.ec/",null,null,": Mireya González ",null,null,"Director Negocios Microempresa",null,null,998040436,null,null," mgonzalez@maquita.fin.ec"]
[null,"ALIANZA DEL VALLE LTDA.",null,"ALIANZA DEL VALLE LTDA.",null,null,"CrediComercial",null,null,"Destinado a personas naturales para el financiamiento de actividades de producciòn, comercio o servicios, con el fin de contribuir con la reactivaciòn económica del país, generar nuevas fuentes de empleo y mejorar la calidad de vida de las familias ecuatorianas",null,null," Pequeñas Empresas: Ventas < = USD 1 millón",null,null,"Edad: 18 - 75 ",null,null," Activos Fijos",null,null," Copia de cédula o RUC,  Reporte de Buró",null,null," Sin garante",null,null,null,null,null,null,null,null,null,null,null," Mensual,  Al vencimiento",null,null,null,null,null,"Otra garantia: certificado de valor. Monto minimo: $500",null,null,"ALIANZA DEL VALLE LTDA.",null,null,"https://coopminga.com/",null,null,"Byron Cofre",null,null,"Jefe Comercial",null,null,998400468,null,null,"clarco@14demarzo.fin.ec"]
[null,"AMBATO LTDA",null,"AMBATO LTDA",null,null,"Crediconfianza",null,null,"Destinado para capital de trabajo y adquisición de activos",null,null,"  Emprendedores: negocios con menos de un año,  Microempresa: Ventas < = USD 100 mil",null,null,"El cliente no podrá tener más de 75 años a la fecha de vencimiento de la operación",null,null," Financiamiento de pasivos (deudas)",null,null," Copia de cédula o RUC,  Declaraciones de Impuestos,  Solicitud de crédito,  Balances",null,null," Hipotecaria,   Prendaria,   Autoliquidable",null,null,null,null,null,null,null,null,null,null,null," Mensual,  Trimestral,  Semestral,   Otro",null,null,null,null,null,"Requisitos: Copia de facturas de compra o referencia Comercial. Copia de matrícula de vehículo (en caso de poseer). Copia del predio urbano actualizado (en caso de poseer bien inmueble). Si el cliente es ganadero, se adiciona la copia de la CONEFA. Tener antigüedad mínima de un año en actividad Comercial o de servicios. No se especifican las garantias.",null,null,"AMBATO LTDA",null,null,"https://coopsanjose.fin.ec/",null,null,"Cristian Larco",null,null,"Jefe de Negocios",null,null,null,null,null,"fvillavicencio@cooprogreso.fin.ec"]
[null,"ANDALUCIA",null,"ANDALUCIA",null,null,"CrediPymes",null,null,"Es destinado para capital de trabajo, adquisición de activos, y adquisición de servicios.",null,null," Microempresa: Ventas < = USD 100 mil,   Emprendedores: negocios con menos de un año",null,null,"Edad minima 21 años. Estabilidad laboral minima de un año",null,null," Capital de Trabajo,  Financiamiento de pasivos (deudas)",null,null," Solicitud de crédito",null,null," Hipotecaria,  Quirografaria,   Prendaria,   Autoliquidable",null,null,null,null,null,null,null,null,null,null,null," Mensual,  Trimestral,  Semestral,  Al vencimiento",null,null,null,null,null,"Requisitos adicionales  (en caso de aplicar): Original y copia de la cédula del cónyuge y garante. Original y copia del certificado de votación del cónyuge y el garante.",null,null,"ANDALUCIA",null,null,"https://copedromoncayo.fin.ec/web20/",null,null,"Fernando Villavicencio",null,null,"Coordinador del crédito",null,null," +593 2 3950600 ext.2767 ",null,null,"narauz@bancodesarrollo.fin.ec"]
[null,"ATUNTAQUI",null,"ATUNTAQUI",null,null,"Crédito ain garante",null,null,"Financia la adquisición de inventarios, materia prima, pago de planillas, cuentas por cobrar, capital de trabajo u otros",null,null,"  Emprendedores: negocios con menos de un año",null,null,"Personas naturales obligadas a llevar contabilidad o a personas jurídicas. Edad minima 21 años.Estabilidad laboral minima de un año",null,null," Activos Fijos,  Capital de Trabajo,  Financiamiento de pasivos (deudas)",null,null," Copia de cédula o RUC,  Planilla de servicios básicos,  Declaraciones de Impuestos",null,null," Hipotecaria,  Quirografaria,  Personal,   Prendaria,   Autoliquidable",null,null,null,null,null,null,null,null,null,null,null," Mensual,  Bimensual,  Trimestral,  Semestral,  Anual,  Al vencimiento",null,null,null,null,null,"Requisitos adicionales (en caso de aplicar): Original y copia de la cédula del cónyuge. Original y copia del certificado de votación del cónyuge.",null,null,"ATUNTAQUI",null,null,"https://finca.ec/",null,null,"Luis Duchi",null,null,null,null,null,"(03) 2252 536 ext 23",null,null,"alexander.pinta@andalucia.fin.ec"]
[null,"BANCO DE LOJA",null,"BANCO DE LOJA",null,null,"Crédito Desarrollo Humano",null,null,"Financiamiento capital de trabajo y activos fijos para pequeños y medianos empresarios",null,null," Microempresa: Ventas < = USD 100 mil,  Pequeñas Empresas: Ventas < = USD 1 millón",null,null,"Persona natural. Edad 18 - 75",null,null," Financiamiento en general",null,null," Solicitud de crédito,  Copia de cédula o RUC,  Planilla de servicios básicos",null,null," Quirografaria",null,null,null,null,null,null,null,null,null,null,null," Mensual,  Bimensual,  Trimestral,  Semestral",null,null,null,null,null,"Requisitos adicionales (persona natural): Copia de cédula y de certificado de votación del cónyuge (si aplica). Documentos que respaldan Garantía Real (AVALUO). Certificado de ingreso. Copia de matrícula de vehículo (si aplica). Copia de legalización de unión libre si aplica. Justificación de pensión de Jubilado si aplica. Copia de disolución de la sociedad conyugal si aplica.  la obligación. Detalle de las cuentas por cobrar y pagar.",null,null,"BANCO CODESARROLLO",null,null,"https://mushucruna.fin.ec/",null,null,"Nathaly Aráuz ",null,null,null,null,null,"02-2900-109 ext 2017   0984770032"]
[null,"BANECUADOR",null,"BANECUADOR",null,null,"Crédito digital Acum. Ampliada",null,null,"Financiamiento para inversión en bienes de capital, activos fijos o capital de trabajo",null,null," Microempresa: Ventas < = USD 100 mil,  Microempresa: Ventas < = USD 100 mil",null,null,"Persona jurídica. Edad 18 - 75",null,null," Activos Fijos,  Financiamiento en general",null,null," Copia de cédula o RUC,  Planilla de servicios básicos",null,null," Personal,  Hipotecaria,   Prendaria,   Autoliquidable",null,null,null,null,null,null,null,null,null,null,null," Al vencimiento",null,null,null,null,null,"Requisitos adicionales (persona jurídica): Copia de cédula y de certificado de votación del cónyuge (si aplica). Documentos que respaldan Garantía Real (AVALUO). Nombramiento del Representante Legal. Autorización del directorio para contraer ",null,null,"BANCO DE GUAYAQUIL",null,null,"https://www.14demarzo.fin.ec/",null,null,"Santiago Lopez",null,null,null,null,null,"0983415394 – 0995003614 – 5001312 ext.:142"]
[null,"BANCO CODESARROLLO",null,"BANCO CODESARROLLO",null,null,"Crédito digital Acum. Simple",null,null,"Ideal para capital de operaciones y de inversión en pequeña escala, destinados para producción, comercialización de productos y servicios, cuya fuente principal de pago constituye la venta de los productos o servicios de dichas actividades.",null,null," Pequeñas Empresas: Ventas < = USD 1 millón, 4 Medianas Empresas: Ventas < = USD 5 millones",null,null,"Persona natural o jurídica. Edad 18 - 75",null,null," Capital de Trabajo",null,null," Solicitud de crédito,  Balances,  Copia de cédula o RUC,  Estatutos",null,null," Personal,  Hipotecaria",null,null,null,null,null,null,null,null,null,null,null," Mensual,  Bimensual,  Trimestral,  Semestral,   Otro",null,null,null,null,null,"Requisitos adicionales (persona natural y jurídica): Copia de cédula y de certificado de votación del cónyuge (si aplica). Documentos que respaldan Garantía Real (AVALUO). Requisitos adicionales (persona natural): Certificado de ingreso. Copia de matrícula de vehículo (si aplica). Copia de legalización de unión libre si aplica. Justificación de pensión de Jubilado si aplica. Copia de disolución de la sociedad conyugal si aplica.  Requisitos adicionales (persona jurídica): Nombramiento del Representante Legal. Autorización del directorio para contraer la obligación. Detalle de las cuentas por cobrar y pagar.",null,null,"BANCO DE LOJA",null,null,"https://www.29deoctubre.fin.ec/",null,null,"Alexander Pinta",null,null,null,null,null,959076636]
[null,"BANCO DE GUAYAQUIL",null,"BANCO DE GUAYAQUIL",null,null,"Crédito digital Minorista",null,null,"Incluye seguro de desgravamen, se pueden realizar abonos al capital. Cuotas de pago preferenciales",null,null," Pequeñas Empresas: Ventas < = USD 1 millón, 4 Medianas Empresas: Ventas < = USD 5 millones,  Pequeñas Empresas: Ventas < = USD 1 millón, 4 Medianas Empresas: Ventas < = USD 5 millones",null,null,"Edad entre 22 y 75 años, residir en zonas establecidas por la cooperativa, tener califiación AAA. No constar en las listas del CONSEP,",null,null," Capital de Trabajo,  Otro",null,null," Solicitud de crédito,  Copia de cédula o RUC,  Planilla de servicios básicos,  Certificado de votación,  Declaraciones de Impuestos",null,null," No especificada",null,null,null,null,null,null,null,null,null,null,null," Mensual,  Bimensual,  Trimestral,  Semestral,  Anual",null,null,null,null,null,"Requisitos adicionales (persona natural y jurídica): Copia de cédula y de certificado de votación del cónyuge (si aplica). Certificado de ingreso. Copia de matrícula de vehículo (si aplica). Copia de legalización de unión libre si aplica. Justificación de pensión de Jubilado si aplica. Copia de disolución de la sociedad conyugal si aplica. Documentos que respaldan Garantía Real (AVALUO). Requisitos adicionales (persona jurídica): Nombramiento del Representante Legal. Autorización del directorio para contraer la obligación. Detalle de las cuentas por cobrar y pagar.",null,null,"BANCO DEL PACIFICO",null,null,"https://www.andalucia.fin.ec/"]
[null,"BANCO DEL PACIFICO",null,"BANCO DEL PACIFICO",null,null,"Crédito sostenible",null,null,"Destinado a financiar actividades de producción y/o comercialización en pequeña escala. El tipo de garantia depende del monto del crédito. Beneficios: seguro de desgravamen para titular y cónyuge. Transferencias interbancarias. Retiro de dinero a nivel nacional, en la red Banred. Depósitos, retiros y pagos en Servipagos.",null,null," Microempresa: Ventas < = USD 100 mil,  Pequeñas Empresas: Ventas < = USD 1 millón, 4 Medianas Empresas: Ventas < = USD 5 millones",null,null,"Edad entre 22 y 75 años, residir en zonas establecidas por la cooperativa, tener califiación AAA. No constar en las listas del CONSEP. El negocio debe estar en funcionamiento mínimo un año.",null,null," Financiamiento en general,  Otro",null,null," Copia de cédula o RUC,  Certificado de votación,  Planilla de servicios básicos,  Declaraciones de Impuestos",null,null," Hipotecaria,  Personal,   Prendaria",null,null,null,null,null,null,null,null,null,null,null," Mensual,  Bimensual,  Trimestral,  Semestral,  Anual,   Otro",null,null,null,null,null,"Requisitos adicionales: Copia de cédula y certificado de votación de cónyuge y garante (si aplica). Planilla de servicios básicos del garante. En el caso de no contar con RUC o RISE, se tomará en cuenta el levantamiento de información del negocio y domicilio para respaldar su antigüedad y estabilidad. Se podrán considerar alguno de estos documentos: facturas de compras, certificados Comerciales (proveedores de insumos), certificados de CONEFA o Agrocalidad, estado de cuentas en Instituciones Financieras, etc.",null,null,"BANCO PICHINCHA",null,null,"https://www.asis.fin.ec/"]
[null,"BANCO PICHINCHA",null,"BANCO PICHINCHA",null,null,"Micrecrédito agrícola",null,null,"Destinado a financiar actividades de producción y/o comercialización en pequeña escala. Beneficios: Seguro de desgravamen para titular y cónyuge. Transferencias interbancarias. Retiro de dinero a nivel nacional, en la red Banred. Depósitos, retiros y pagos en Servipagos.",null,null,"  Emprendedores: negocios con menos de un año,  Microempresa: Ventas < = USD 100 mil,  Pequeñas Empresas: Ventas < = USD 1 millón, 4 Medianas Empresas: Ventas < = USD 5 millones",null,null,"El negocio debe estar en funcionamiento mínimo un año.",null,null," Otro",null,null," Solicitud de crédito,  Certificado de votación,  Planilla de servicios básicos,  Declaraciones de Impuestos",null,null," Hipotecaria,  Quirografaria,   Prendaria",null,null,null,null,null,null,null,null,null,null,null," Mensual,   Otro",null,null,null,null,null,"Para socios nuevos se realiza una visita  para levantamiento de información y análisis de capacidad de pago. Para socios antiguos se pide el estados de cuentas de al menos los 3 ultimos meses. Se requiere verificación telefónica del negocio para socios nuevos y antiguos.",null,null,"BANCO SOLIDARIO",null,null,"https://www.atuntaqui.fin.ec/"]
[null,"BANCO SOLIDARIO",null,"BANCO SOLIDARIO",null,null,"Micro Consumo",null,null,"Es el otorgado a personas naturales obligadas a llevar contabilidad o a personas jurídicas que registren ventas anuales superiores a USD 100.000,00, destinado a la compra de activos fijos o capital de trabajo. Beneficios: Seguro de desgravamen para titular y cónyuge. Transferencias interbancarias. Retiro de dinero a nivel nacional, en la red Banred. Depósitos, retiros y pagos en Servipagos.",null,null,null,null,null,"Persona natural o jurídica",null,null,null,null,null," Solicitud de crédito,  Copia de cédula o RUC,  Planilla de servicios básicos,  Certificado de votación",null,null," Quirografaria,  Hipotecaria,   Prendaria,  Otro",null,null,null,null,null,null,null,null,null,null,null," De acuerdo al ciclo del negocio",null,null,null,null,null,"Certificado de formar parte de la cooperativa.  Acuerdo de depósito. Levantamiento de información negocio y domicilio",null,null,"BANECUADOR",null,null,"https://www.bancodeloja.fin.ec/"]
[null,"CACPECO",null,"CACPECO",null,null,"Micro express",null,null,"Destinado para capital de trabajo, Activo Fijo tangible muebles, Activo Fijo tangible inmuebles, Activo Fijo intangible, excepto vehículos livianos de combustible fósil, financiamiento de pasivosBeneficios: Seguro de desgravamen mensual.",null,null,null,null,null,"Pertenecer al sector agrícola y ganadero",null,null,null,null,null," Solicitud de crédito,  Copia de cédula o RUC,  Certificado de votación,  Planilla de servicios básicos",null,null," Hipotecaria,  Quirografaria,   Prendaria,  Título valor",null,null,null,null,null,null,null,null,null,null,null,null,null,null,null,null,null,"En el caso de no contar con RUC o RISE, se tomará en cuenta el levantamiento de información del negocio y domicilio para respaldar su antigüedad y estabilidad. Se podrán considerar alguno de estos documentos: facturas de compras, certificados Comerciales (proveedores de insumos), certificados de CONEFA o Agrocalidad, estado de cuentas en Instituciones Financieras, etc.",null,null,"CACPECO",null,null,"https://www.bancodelpacifico.com/empresas/inicio"]
[null,"COOPROGRESO",null,"COOPROGRESO",null,null,"Micro transporte",null,null,"Adquisición y comercialización de vehículos livianos de combustible fósil incluyendo los que son para fines productivos y comerciales. Beneficios: Seguro de desgravamen. Seguro por desempleo. Seguro por enfermedades graves",null,null,null,null,null,"Persona natural o jurídica, que destine el crédito a financiar actividades de producción, transformación, servicios o comercialización en pequeña escala, cuya fuente principal de pago constituye el producto de las ventas o ingresos generados por dichas actividades. Pueden ser productores individuales y organizaciones de productores, dedicados a actividades agrícolas - ganadera",null,null,null,null,null," Copia de cédula o RUC,  Planilla de servicios básicos,  Balances",null,null," Hipotecaria,   Prendaria",null,null,null,null,null,null,null,null,null,null,null,null,null,null,null,null,null,"Requisito opcional: copia de matrícula. Se podrá otorgar sin garante siempre y cuando el nivel de endeudamiento del negocio no supere el 100% y en casos de socios VIP en créditos con montos de hasta $25 000.",null,null,"COOPROGRESO",null,null,"https://www.bancodesarrollo.fin.ec/"]
[null,"ESPOIR",null,"ESPOIR",null,null,"Microcrédito",null,null,"Créditos dirigidos a pequeñas y medianas empresas, para capital de trabajo, activo fijo tangible inmuebles, activos fijos intangible, excepto vehículos livianos de combustible fósil, financiamiento de pasivos. Beneficios: Seguro de desgravamen mensual.",null,null,null,null,null,"Persona natural o jurídica, que destine el crédito a financiar actividades de producción, transformación, servicios o comercialización en pequeña escala",null,null,null,null,null," Copia de cédula o RUC,  Planilla de servicios básicos,  Certificado de votación",null,null," Hipotecaria,  Personal",null,null,null,null,null,null,null,null,null,null,null,null,null,null,null,null,null,"Presentar certificado agrícola o certificado de vacunas. Se puede aplicar garantía CONAFIPS (micro). Se podrá otorgar sin garante siempre y cuando el nivel de endeudamiento del negocio no supere el 100% ",null,null,"ESPOIR",null,null,"https://www.bancoguayaquil.com/"]
[null,"FERNANDO DAQUILEMA",null,"FERNANDO DAQUILEMA",null,null,"Microcrédito Agricola y ganadero",null,null,"Enfocado en socios microempresarios con necesidades de consolidar deudas o adquirir bienes de consumo",null,null,null,null,null," El cliente debe presentar un certificado de la actividad económica, en la que especifique que esta apegado a las condiciones al producto crediecologico, como son al cambio climático o finanzas climáticas",null,null,null,null,null," Copia de cédula o RUC,  Planilla de servicios básicos,  Copia de cédula o RUC",null,null," Sin garante,  Hipotecaria",null,null,null,null,null,null,null,null,null,null,null,null,null,null,null,null,null,"Requisitos adicionales: Copia del listado de accionistas, Consejo Directivo o Comité Ejecutivo. Certificado de registro de organizaciones políticas y copia de resolución del CNE*. Copia del certificado del nombramiento del representante legal.",null,null,"FERNANDO DAQUILEMA",null,null,"https://www.bancoprocredit.com.ec/tarjeta-banco-procredit-ecuador/"]
[null,"FINCA",null,"FINCA",null,null,"Microcrédito Emprendedor",null,null,"Dirigido a microempresarios que han demostrado un excelente historial y comportamiento crediticio en la Cooperativa. Incluye seguros por enfermedades graves (opcional) y desgravamen flat.",null,null,null,null,null,"Para organizaciones  OPEPS y EFL",null,null,null,null,null," Copia de cédula o RUC,  Certificado de votación,  Estatutos,  Balances,  Declaraciones de Impuestos,  Planilla de servicios básicos",null,null," Personal,  Sin garante",null,null,null,null,null,null,null,null,null,null,null,null,null,null,null,null,null,"Requisitos adicionales: Nómina de la Directiva, Consejo de Administración, socios o accionistas, Consejo Directivo o Comité Ejecutivo. Certificado de obligaciones y existencia legal. Copia certificada del nombramiento del representante legal. Garantia: DPF - Mínimo 100%",null,null,"FINCA",null,null,"https://www.banco-solidario.com/"]
[null,"JARDIN AZUAYO",null,"JARDIN AZUAYO",null,null,"Microcrédito Familiar",null,null,"Financiamiento de buses, camiones, volquetas, cabezales nuevos (marcas: Mercedes Benz, Hino, Volvo, Volkswagen, Nissan, Ford y Hyundai). Entrada 20% incluida IVA – Financiamiento 80% incluido IVA (chasis y carrocería). Incluye seguro vehicular por todo el periodo del crédito y desgravamen mensual.",null,null,null,null,null,"Para Organizaciones de la Economía Popular y Solidaria (OEPS)",null,null,null,null,null," Copia de cédula o RUC,  Declaraciones de Impuestos,  Balances",null,null,"  Prendaria,  Hipotecaria,  Otro,  Personal",null,null,null,null,null,null,null,null,null,null,null,null,null,null,null,null,null,"Garantía sobre endoso de pagaré o Garantías Bancarias y fondos pignorados. Requisitos adicionales: Anexo de cuentas por cobrar, Anexo de inventarios, Detalle de deudas bancarias, Cuentas por cobrar y pagar de los accionistas,Nómina de directivos",null,null,"JARDIN AZUAYO",null,null,"https://www.banecuador.fin.ec/"]
[null,"JEP",null,"JEP",null,null,"Microcrédito Inversión",null,null,"Beneficios: Seguro de desgravamen mensual > $5 000. Seguro de desgravamen flat < $5 000. Seguro por enfermedades graves",null,null,null,null,null,"Para organizaciones de la EFL",null,null,null,null,null," Copia de cédula o RUC,  Escrituras de propiedades",null,null,"  Prendaria,  Hipotecaria,  Otro",null,null,null,null,null,null,null,null,null,null,null,null,null,null,null,null,null,"Requisitos adicionales: Nómina de la Directiva, Consejo de Administración, socios o accionistas, Consejo Directivo o Comité Ejecutivo, Certificado de obligaciones y existencia legal. Copia certificada del nombramiento del representante legal. Las planillas de servicios basicos deben ser de la empresa y del representante legal",null,null,"JEP",null,null,"https://www.cacmu.fin.ec/web/inicio/"]
[null,"KULLKI WASI",null,"KULLKI WASI",null,null,"Microcrédito Minorista",null,null,"Aplica para microcréditos nuevos y renovaciones. El financiamiento de encaje esta incluido en el monto solicitado.",null,null,null,null,null,"Clientes del Banco con calificación interna A o AA y al menos dos créditos cancelados en la institución",null,null,null,null,null," Copia de cédula o RUC,  Certificado de votación,  Planilla de servicios básicos",null,null," Hipotecaria,  Quirografaria,   Prendaria,  Sin garante",null,null,null,null,null,null,null,null,null,null,null,null,null,null,null,null,null,"La amortizaciòn puede ser a plazo fijo. No especifican los requisitos.",null,null,"KULLKI WASI",null,null,"https://www.cacpeco.com/"]
[null,"LUZ DEL VALLE",null,"LUZ DEL VALLE",null,null,"Productivo PYMES",null,null,"Beneficios: La cuotas se ajusten a los ingresos. Se puede prestar hasta 10 veces el valor en la cuenta de ahorros o financian el encaje.",null,null,null,null,null,"Para organizaciones  OEPS y EFL",null,null,null,null,null," Copia de cédula o RUC,  Certificado de votación,  Escrituras de propiedades,  Declaraciones de Impuestos,  Planilla de servicios básicos",null,null," Sin garante,  Personal",null,null,null,null,null,null,null,null,null,null,null,null,null,null,null,null,null,"Requisitos adicionales: copia de nombramientos de los representantes legales. Certificado de estar al día en las obligaciones, Nomina de accionistas. Estado de situación personal de los principales accionistas. Se podrá requerir documentación adicional dependiendo del caso, así como también documentación del bien que se dejará en garantía. La garantia hipotecaria aplica para montos mayores a $25 000",null,null,"LUZ DEL VALLE",null,null,"https://www.coac-sanfra.com/"]
[null,"MAQUITA CUSHUNCHIC",null,"MAQUITA CUSHUNCHIC",null,null,"Microcrédito 23 1",null,null,"Financiamiento a actividades de producción y/o comercialización en pequeña escala",null,null,null,null,null,"Otorgado personas naturales o jurídicas con un nivel de ventas de 100.000 a 1.000.000 de de la Economía Popular y Solidaria (OEPS)",null,null,null,null,null," Copia de cédula o RUC,  Certificado de votación,  Declaraciones de Impuestos,  Reporte de Buró",null,null," Garantía solidaria",null,null,null,null,null,null,null,null,null,null,null,null,null,null,null,null,null,"Requisitos adicionales: Documento soporte de destino Ecológico: estudio técnico y proforma del equipo. Carta compromiso del cliente. Copia certificada con dos años de vigencia de poder especial ante notario o cónsul de cónyuge en el extranjero. \nDeclaración juramentada o información sumaria.\nGuía de remisión – transporte sin afiliación.\nCopia de matrícula de vehículo, si aplica. Seguro agrícola, si aplica.",null,null,"MAQUITA CUSHUNCHIC",null,null,"https://www.coop23dejulio.fin.ec/"]
[null,"MINGA",null,"MINGA",null,null,"Microcrédito 23 2",null,null,"Para organizaciones, grupos y empresas campesinas populares solidarias o individuales que requieran financiar actividades productivas y compra de tierras.",null,null,null,null,null,"Otorgado personas naturales o jurídicas con un nivel de ventas de 100.000 a 1.000.000 de de la EFL.",null,null,null,null,null," Solicitud de crédito,  Copia de cédula o RUC",null,null," Sin garantía",null,null,null,null,null,null,null,null,null,null,null,null,null,null,null,null,null,"Requisitos adicionales: Documento soporte de destino Ecológico: estudio técnico y proforma del equipo. Carta compromiso del cliente. Copia de cédula y nombramiento del Representante Legal inscrito en el Registro Mercantil. Certificado de cumplimiento de la Superintendencia de Compañías. Certificado de cumplimiento de obligaciones patronales con el IESS. En caso de que la empresa no cuente con empleados se requiere una declaración juramentada. Nómina de socios y/o accionistas. Acta de Junta General u órgano competente autorizando la contratación del crédito. Referencias bancarias. Dos referencias comerciales (en caso de importaciones adjuntar copias de facturas).",null,null,"MINGA",null,null,"https://www.coopad.fin.ec/"]
[null,"MUJERES UNIDAS",null,"MUJERES UNIDAS",null,null,"Productivo PYMES 23 1",null,null,"Diseñado para organizaciones, grupos y empresas campesinas populares solidarias o individuales que requieran financiar actividades productivas y compra de tierras. Clientes con convenios con asociacione. ",null,null,null,null,null,"Personas jurídicas de la OEPS, cuya fuente de pago constituye las ventas o ingresos generados por dichas actividades.",null,null,null,null,null," Solicitud de crédito,  Copia de cédula o RUC,  Certificado de votación,  Planilla de servicios básicos,  Justificar ingresos,  Justificar patrimonio",null,null," Hipotecaria,   Prendaria,  Personal",null,null,null,null,null,null,null,null,null,null,null,null,null,null,null,null,null,"Requisitos adicionales: Copia de cédula y nombramiento del Representante Legal inscrito en el Registro Mercantil. Certificado de cumplimiento de la Superintendencia de Compañías.Certificado de cumplimiento de obligaciones patronales con el IESS. En caso de que la empresa no cuente con empleados se requiere una declaración juramentada.Nómina de socios y/o accionistas. Acta de Junta General u órgano competente autorizando la contratación del crédito. Referencias bancarias. Dos referencias comerciales (en caso de importaciones adjuntar copias de facturas).",null,null,"MUJERES UNIDAS",null,null,"https://www.coopdaquilema.com/"]
[null,"MUSHUC RUNA",null,"MUSHUC RUNA",null,null,"Productivo PYMES 23 2",null,null,"Diseñado para organizaciones, grupos y empresas campesinas populares solidarias o individuales que requieran financiar actividades productivas y compra de tierras. ",null,null,null,null,null,"Personas jurídicas de la EFL, cuya fuente de pago constituye las ventas o ingresos generados por dichas actividades.",null,null,null,null,null," Solicitud de crédito,  Copia de cédula o RUC,  Certificado de votación,  Declaraciones de Impuestos,  Planilla de servicios básicos,  Copia de escritura de constitución,  Estatutos,  Flujo de efectivo,  Flujo de caja proyectado,  Balances,  Otros",null,null," Personal,   Prendaria,  Hipotecaria",null,null,null,null,null,null,null,null,null,null,null,null,null,null,null,null,null,"Requisitos adicionales: Copia certificada con dos años de vigencia de poder especial ante notario o cónsul de cónyuge en el extranjero.  Declaración juramentada o información sumaria. Guía de remisión – transporte sin afiliación. Copia de matrícula de vehículo, si aplica. Seguro agrícola, si aplica.* Todos los créditos cuentan con un seguro de desgravamen para deudor y codeudor.* Servicio exequial. *",null,null,"MUSHUC RUNA",null,null,"https://www.cooperativaambato.fin.ec/"]
[null,"OSCUS",null,"OSCUS",null,null,"Productivo PYMES 23 3",null,null,"Destinado a incentivar buenas prácticas ambientales en relación a recuperación de suelos, energía alternativa, protección de bosques, agroecología, soberanía alimentaria, alimentos orgánicos.",null,null,null,null,null,"Tener RUC activo desde hace 3 años",null,null,null,null,null," Solicitud de crédito,  Copia de cédula o RUC,  Certificado de votación,  Planilla de servicios básicos,  Reporte de Buró,  Balances,  Flujo de caja proyectado,  Otros,  Justificar patrimonio",null,null," Quirografaria,  Sin garante",null,null,null,null,null,null,null,null,null,null,null,null,null,null,null,null,null,"Requisito adicional: Antigüedad del negocio de por lo menos 6 meses en el mismo sector o demostrar un mercado",null,null,"OSCUS",null,null,"https://www.cooprio.fin.ec/info/index.php/es/"]
[null,"PABLO MUÑOZ VEGA",null,"PABLO MUÑOZ VEGA",null,null,"Crédito Comercial Autocooperativo 1",null,null,"Crédito dirigido a Estructuras Locales, Organizaciones de la Economía Popular Solidaria y personas jurídicas.",null,null,null,null,null,"Empresas con ventas entre $1.000.000 y  $5.000.000 anuales",null,null,null,null,null," Solicitud de crédito,  Copia de cédula o RUC,  Certificado de votación,  Planilla de servicios básicos,  Declaraciones de Impuestos,  Justificar patrimonio",null,null," Hipotecaria,  Quirografaria,  Sin garante",null,null,null,null,null,null,null,null,null,null,null,null,null,null,null,null,null,"La tasa de interés es anual. El beneficiario debe registrar su actividad productiva. Las mujeres beneficiarias del MIES deben estar registradas en un programa del Ministerio de Inclusión Económica y Social. ",null,null,"PABLO MUÑOZ VEGA",null,null,"https://www.cooprogreso.fin.ec/"]
[null,"PEDRO MONCAYO",null,"PEDRO MONCAYO",null,null,"Crédito Comercial Autocooperativo 2",null,null,"Crédito para clientes del banco con calificación A o AA. Con al menos 2 créditos cancelados en la institución. ",null,null,null,null,null,"Empresas con ventas entre $100.000 y  $1.000.000 anuales",null,null,null,null,null," Solicitud de crédito,  Copia de cédula o RUC,  Certificado de votación,  Planilla de servicios básicos,  Justificar patrimonio,  Reporte de Buró",null,null," Garantía solidaria / grupal",null,null,null,null,null,null,null,null,null,null,null,null,null,null,null,null,null,"Otra garantia: certificado de valor. Monto minimo: $500. Requisito: copia certificada actualizada de la existencia legal de la asociación",null,null,"PEDRO MONCAYO",null,null,"https://www.cooptulcan.fin.ec/"]
[null,"PILAHUIN TIO",null,"PILAHUIN TIO",null,null,"Crédito Comercial PYMES 1",null,null,"Promueve el crecimiento sustentable de las Finanzas Populares en el país, impulsando el desarrollo local y fortalecimiento de las Estructuras Financieras locales.",null,null,null,null,null,"Microempresas con ventas <= USD 100 mil",null,null,null,null,null," Copia de cédula o RUC,  Certificado de votación,  Planilla de servicios básicos,  Declaraciones de Impuestos,  Justificar ingresos",null,null," Hipotecaria,  Sin garante,  Personal",null,null,null,null,null,null,null,null,null,null,null,null,null,null,null,null,null,"Otra garantia: certificado de valor. Monto minimo: $5 000. Requisito: copia certificada actualizada de la existencia legal de la asociación",null,null,"PILAHUIN TIO",null,null,"https://www.cpmv.fin.ec/"]
[null,"POLICIA NACIONAL",null,"POLICIA NACIONAL",null,null,"Crédito Comercial PYMES 2",null,null,"Actividades productivas, compra, legalización, titularización de tierras para la producción agrícola, pecuaria, forestal, conservación de recursos naturales.",null,null,null,null,null,"Microempresas con ventas <= USD 20 mil",null,null,null,null,null," Copia de cédula o RUC,  Estatutos,  Planilla de servicios básicos,  Otros,  Estados financieros",null,null," Personal,  Hipotecaria,   Prendaria",null,null,null,null,null,null,null,null,null,null,null,null,null,null,null,null,null,"Se requiere documento CCMA.",null,null,"POLICIA NACIONAL",null,null,"https://www.cpn.fin.ec/"]
[null,"PREVISION AHORRO Y DESARROLLO COOPAD LTDA.",null,"PREVISION AHORRO Y DESARROLLO COOPAD LTDA.",null,null,"Crédito Comercial PYMES 3",null,null,"Crédito destinado a la compra de bienes de capital, terrenos, const. infraestructura y compra de derechos propiedad industrial. Incluye seguro de desgravamen y cesantía",null,null,null,null,null,"Microempresas con ventas <= USD 5 mil",null,null,null,null,null," Copia de cédula o RUC,  Planilla de servicios básicos,  Estatutos,  Estados financieros",null,null," Personal,  Hipotecaria,   Prendaria,  Quirografaria,   Autoliquidable",null,null,null,null,null,null,null,null,null,null,null,null,null,null,null,null,null,"Otra garantia: certificado de valor. Monto minimo: $5 000.",null,null,"PREVISION AHORRO Y DESARROLLO COOPAD LTDA.",null,null,"https://www.espoir.org.ec/index.html"]
[null,"PROCREDIT",null,"PROCREDIT",null,null,"Crédito Productivo PYMES 1",null,null,"La solución financiera ideal para tu negocio. Incluye seguro de desgravamen, se pueden realizar abonos al capital. Cuotas de pago preferenciales",null,null,null,null,null,"Crédito dirigido a personas naturales y jurídicas, clientes del Banco.",null,null,null,null,null," Solicitud de crédito,  Copia de cédula o RUC,  Planilla de servicios básicos,  Declaraciones de Impuestos,  Otros",null,null," Personal,  Hipotecaria,   Prendaria,  Garantía solidaria / grupal",null,null,null,null,null,null,null,null,null,null,null,null,null,null,null,null,null,"La garantía es con la firma del titular.",null,null,"PROCREDIT",null,null,"https://www.jardinazuayo.fin.ec/"]
[null,"RIOBAMBA",null,"RIOBAMBA",null,null,"Crédito Productivo PYMES 2",null,null,"Dirigido a pequeñas y medianas empresas (con facturación en ventas anuales demostrables desde $100,000 hasta $1,000,000).",null,null,null,null,null,"Persona natural. Al menos un año de experiencia en el negocio. Estabilidad minima de local de 6 meses.",null,null,null,null,null," Copia de cédula o RUC,  Otros,  Solicitud de crédito",null,null," Personal,   Autoliquidable,  Garantía solidaria / grupal",null,null,null,null,null,null,null,null,null,null,null,null,null,null,null,null,null,"Requisito adicional: Cheques debidamente llenados entregados para el pago parcial de la obligación, ya sea del mismo socio o de sus proveedores. ",null,null,"RIOBAMBA",null,null,"https://www.jep.coop/"]
[null,"SAN FRANCISCO",null,"SAN FRANCISCO",null,null,"Microcrédito Acum. Ampliada",null,null,"Crédito ecológico para adquirir o reemplazar equipos que protege el medio ambiente. Financiamiento de materias primas, insumos, equipos y máquinas con destino ecológico como: eficiencia energética, sistemas de riego que optimicen agua, buenas prácticas en la agricultura.",null,null,null,null,null,"Persona natural",null,null,null,null,null," Copia de cédula o RUC,  Otros,  Copia de cédula o RUC,  Otros,  Solicitud de crédito",null,null," Sin garante,  Personal,   Prendaria,  Hipotecaria",null,null,null,null,null,null,null,null,null,null,null,null,null,null,null,null,null,"Requisito adicional: Visita del asesor para comprobar el negocio",null,null,"SAN FRANCISCO",null,null,"https://www.kullkiwasi.com.ec/"]
[null,"SAN FRANCISCO DE ASIS",null,"SAN FRANCISCO DE ASIS",null,null,"Microcrédito Acum. Simple",null,null,"Financiamiento de capital de trabajo y activo fijo para actividades productivas, que incorporan prácticas sostenibles. Aplica para: Cambio o reemplazo de equipos que ahorran energía. Proyectos que incorporan energía renovable (solar-eólica) y ahorro de agua. Empresas con certificaciones sostenibles (Global Gap, ISO 50001, Rainforest, etc.)",null,null,null,null,null,"Edad: 21 -70 años. Nacionalidad ecuatoriana o extranjera con residencia legal y tener un negocio con antigüedad de por lo menos 6 meses de establecida la microempresa en el mismo sector o demostrar un mercado establecido por más 6 meses ",null,null,null,null,null," Estatutos,  Copia de cédula o RUC,  Declaraciones de Impuestos,  Solicitud de crédito,  Estados financieros,  Flujo de caja proyectado,  Justificar patrimonio,  Otros",null,null," Otro",null,null,null,null,null,null,null,null,null,null,null,null,null,null,null,null,null,"Requisitos adicionales: Bienes del deudor y garante (pagos del predio, matrícula del vehículo y/o título de propiedad). La amortización puede ser semanal, quincenal.",null,null,"SAN FRANCISCO DE ASIS",null,null,"https://www.maquita.fin.ec/"]
[null,"SAN JOSE ",null,"SAN JOSE ",null,null,"CrediProductivo",null,null,"Crédito productivo para financiar activos fijos, la operación con capital de trabajo o ampliación deL negocio.",null,null,null,null,null,"El beneficiario debe registrar su actividad productiva. El cliente no podrá tener más de 75 años a la fecha de vencimiento de la operación. ",null,null,null,null,null," Solicitud de crédito,  Copia de cédula o RUC,  Balances,  Declaraciones de Impuestos,  Flujo de caja proyectado,  Justificar ingresos,  Justificar patrimonio",null,null," Hipotecaria,  Quirografaria",null,null,null,null,null,null,null,null,null,null,null,null,null,null,null,null,null,"El grupo debe ser maximo de 20 personas. La tasa de interés es la efectiva anual.",null,null,"SAN JOSE ",null,null,"https://www.oscus.coop/"]
[null,"TEXTIL 14 DE MARZO",null,"TEXTIL 14 DE MARZO",null,null,"MicroCrédito al instante",null,null," Financiamiento para adquirir materias primas, insumos, maquinaria, vehículos de trabajo o local comercial.",null,null,null,null,null,"Asociaciones y organizaciones comunitarias no financieras, legalmente constituidas y registradas bajo la institución correspondiente (SEPS, MAG u otra) que posean y trabajen en terrenos de propiedad comunitaria",null,null,null,null,null," Solicitud de crédito,  Copia de cédula o RUC,  Balances,  Flujo de caja proyectado,  Declaraciones de Impuestos,  Justificar patrimonio,  Justificar ingresos",null,null," Quirografaria,  Hipotecaria",null,null,null,null,null,null,null,null,null,null,null,null,null,null,null,null,null,"Los montos dependen de la capacidad de pago. Requisitos: ser socios y tener cuenta de ahorro en la Cooperativa. No se especifica el tipo de garantìa ni los otros requisitos para acceder al crédito.",null,null,"TEXTIL 14 DE MARZO",null,null,"https://www.pichincha.com/portal/inicio"]
[null,"TULCAN LTDA",null,"TULCAN LTDA",null,null,"CrediDesarrollo Acum. Ampliada 1",null,null,"Financiamiento para capital de trabajo y activo fijo para impulsar proyectos y hacerlos crecer.",null,null,null,null,null,"Agricultores no asociados, mienbros de una organización y asociación calficadas por el MAG",null,null,null,null,null," Solicitud de crédito,  Copia de cédula o RUC,  Planilla de servicios básicos,  Certificado de votación,  Otros",null,null," Hipotecaria,  Con garante",null,null,null,null,null,null,null,null,null,null,null,null,null,null,null,null,null,"Pago puede ser cuatrimestral.",null,null,"TULCAN LTDA",null,null,"https://www.pilahuintio.ec/"]
[null,"VIRGEN DEL CISNE",null,"VIRGEN DEL CISNE",null,null,"CrediDesarrollo Acum. Ampliada 2",null,null,"Crédito destinado a satisfacer necesidades de financiamiento a clientes que poseen una microempresa, cuya actividad económica sea de comercio, producción o servicios.  ",null,null,null,null,null,"Autorización de la autoridad competente definiendo el lugar geográfico o el sector productivo para el que aplica",null,null,null,null,null," Copia de cédula o RUC,  Certificado de votación,  Planilla de servicios básicos,  Justificar ingresos,  Justificar patrimonio",null,null,"  Prendaria,  Hipotecaria",null,null,null,null,null,null,null,null,null,null,null,null,null,null,null,null,null,"Tasa de interés nominal",null,null,"VIRGEN DEL CISNE",null,null,"https://www.virgendelcisne.fin.ec/"]
[null,null,null,null,null,null,"CrediDesarrollo Acum. Ampliada 3",null,null,"Crédito para actividades de producción",null,null,null,null,null,"Debe tener cetificado emitido por el MAG",null,null,null,null,null," Copia de cédula o RUC,  Certificado de votación,  Planilla de servicios básicos,  Justificar ingresos",null,null," Hipotecaria,  Personal,  Sin garante",null,null,null,null,null,null,null,null,null,null,null,null,null,null,null,null,null,"Tasa de interés promedio"]
[null,null,null,null,null,null,"CrediDesarrollo Acum. Simple 1",null,null,"Crédito para comercio y servicios",null,null,null,null,null,"Personas naturales, jurídicas o a grupos de prestatarios con garantía solidaria. Negocios de al menos un año.",null,null,null,null,null," Copia de cédula o RUC,  Certificado de votación,  Planilla de servicios básicos,  Justificar ingresos,  Escrituras de propiedades",null,null," Con garante",null,null,null,null,null,null,null,null,null,null,null,null,null,null,null,null,null,"Pago puede ser semanal."]
[null,null,null,null,null,null,"CrediDesarrollo Acum. Simple 2",null,null,"Crédito para pequeñas y medianas empresas asociaciones y organizaciones no financieras.",null,null,null,null,null,"Debe estar legalmente inscrita y operar al menos un año continuo.",null,null,null,null,null," Copia de cédula o RUC,  Certificado de votación,  Planilla de servicios básicos,  Justificar ingresos,  Justificar patrimonio,  Flujo de caja proyectado",null,null," Personal,  Sin garante,  Hipotecaria",null,null,null,null,null,null,null,null,null,null,null,null,null,null,null,null,null,"Requisitos adicionales: Croquis del domicilio. Plan de negocio. Copia de matricula del vehículo. Certificado de matricula en la universidad o de ser egresado. "]
[null,null,null,null,null,null,"CrediDesarrollo Acum. Simple 3",null,null,"Destinado para labores agrícolas y productivas en maíz, arroz, caf{e y cacao",null,null,null,null,null,"Edad: 18 - 70 años. Formar parte de un grupo y tener una actividad económica minimo de 6 meses",null,null,null,null,null," Copia de cédula o RUC,  Planilla de servicios básicos,  Reporte de Buró,  Otros,  Facturas",null,null,null,null,null,null,null,null,null,null,null,null,null,null,null,null,null,null,null,null,"Requisitos adicionales: Croquis del domicilio y negocio (en caso de tener). Copia de matricula del vehículo (en caso de tener). "]
[null,null,null,null,null,null,"CrediDesarrollo Minorista 1",null,null,"Crédito para pequeñas y medianas empresas, cuyas ventas en el último año sean superiores a $100.000",null,null,null,null,null,"Edad: 23 - 75 años",null,null,null,null,null," Copia de cédula o RUC,  Planilla de servicios básicos,  Justificar ingresos,  Declaraciones de Impuestos,  Facturas",null,null,null,null,null,null,null,null,null,null,null,null,null,null,null,null,null,null,null,null,"Requisitos adicionales: Croquis del domicilio. Plan de inversión.  Matricula de vehiculo. encuesta Yapu para créditos agricolas. La garantia depende del monto: hasta $10 000 con impuesto predial sin garante. Hasta $15 000 un garante con pago de impueto predial. Hasta $20 000 garante y titular con impuesto predial. A partir de $20 0001 garantía hipotecaria"]
[null,null,null,null,null,null,"CrediDesarrollo Minorista 2",null,null,"Crédotp para mujeres cuya actividad agroproductivas sean huertos familiares o granjas",null,null,null,null,null,"Edad: 23 - 75 años. Tener RUC al menos un año",null,null,null,null,null," Copia de cédula o RUC,  Certificado de votación,  Planilla de servicios básicos,  Justificar ingresos,  Escrituras de propiedades,  Foto del socio",null,null,null,null,null,null,null,null,null,null,null,null,null,null,null,null,null,null,null,null,"Garantia grupal. Requisito adicional: detalle de la inversión"]
[null,null,null,null,null,null,"CrediDesarrollo Minorista 3",null,null,"Crédito para el sector productivo en pequeña escala de los sectores de comercio, servicios profesionales, servicios de transporte, turismo, industria y manufactura, exportación, construcción, comunicaciones, agricultura, ganadería y otras actividades con ventas anuales menores a $300.000.",null,null,null,null,null,"Negocio con al menos 1 año de antigüedad.",null,null,null,null,null," Copia de cédula o RUC,  Certificado de votación,  Foto del socio,  Justificar ingresos,  Planilla de servicios básicos",null,null,null,null,null,null,null,null,null,null,null,null,null,null,null,null,null,null,null,null,"Requisito adicionales de acuerdo a la actividad económica. Empleados Formales: Certificado de trabajo o mecanizado del IESS, ultimo rol de pagos o impresión del rol y certificado de la pagina web de la organización.\nEmpleados Informales: Certificado de trabajo en el que se incluya el ingreso percibido, tiempo de trabajo y cargo. Adjuntar copia de cédula de quien emite el certificado.\nPensionistas: Último rol de pagos y en caso de recibir el deposito en la cooperativa copia de libreta o estado de cuenta.\nComerciantes, Servicios o Producción Formales: Copia o impresión de RUC, RIMPE o Patente, y las tres ultimas declaraciones del IVA.\nComerciantes, Servicios o Producción Informales: Copia de los documentos (facturas, guías de movilización, notas de venta entre otros) que acrediten el movimiento y permita determinar el flujo.\nTransportistas: Copia de RUC o RIMPE, certificado de ser socio activo de la operadora de transporte y copia de la matricula del vehículo como propietario.\nComercio Producción y Crianza de Animales: Documento que abalice la existencia y el movimiento del negocio, certificado de Agrocalidad o CONEFA.\nAgricultura: Original o copia de facturas de compra de insumos o certificado comercial de la casa agrícola.\nArriendos: Copia simple de contrato, copia de pago de impuesto predial y fotografías del inmueble arrendado.\nProfesionales de la Construcción: Copia de RUC y tres ultimas declaraciones del IVA o copia de contratos de obra legalizados o copia de facturas de prestación de servicios. La tasa de interés es la efectiva."]
[null,null,null,null,null,null,"CrediEcológico",null,null,"Crédito destinado a financiar necesidades de capital de trabajo o activos fijos de microempresarios en pequeña escala",null,null,null,null,null,"Ser socio de la Cooperativa y tener experiencia en actividad agropecuaria, mínimo de 1 año.",null,null,null,null,null," Solicitud de crédito,  Otros",null,null,null,null,null,null,null,null,null,null,null,null,null,null,null,null,null,null,null,null,"Destinado para capital de inversión"]
[null,null,null,null,null,null,"CrediEfectivo Empresarial",null,null,"Puede ser empleado para capital de trabajo, es exclusivo para microempresarios que necesitan liquidez inmediata, que cuenten con un excelente comportamiento crediticio, y no mantengan historial por cheques protestados en el Sistema Financiero.",null,null,null,null,null,"Ser socio de la Cooperativa y poseer un puesto fijo en los mercados populares, con funcionamiento mínimo de 6 meses.",null,null,null,null,null," Copia de cédula o RUC,  Planilla de servicios básicos,  Justificar ingresos",null,null,null,null,null,null,null,null,null,null,null,null,null,null,null,null,null,null,null,null,"Requisitos adicionales: Plan de negocio"]
[null,null,null,null,null,null,"CrediEfectivo PYMES 1",null,null,"Diseñado para apoyar y financiar inversiones que disminuyan consumo de energía, promuevan producción más limpia y el cuidado de nuestro planeta.",null,null,null,null,null,"Ser socio de la Cooperativa y que la microempresa o negocio tenga un mínimo de 12 meses de funcionamiento.",null,null,null,null,null," Copia de cédula o RUC,  Certificado de votación,  Planilla de servicios básicos,  Justificar ingresos,  Declaraciones de Impuestos",null,null,null,null,null,null,null,null,null,null,null,null,null,null,null,null,null,null,null,null,"Requisitos adicionales: Perfil de inversión (mayor a $50.000). En caso de tener bienes, copia de predio(s), y matrícula del vehículo. Escritura del inmueble, certificado de gravamen del Registro de Propiedad, impuesto al predio, cédula y papeleta de votación de dueño(s) del inmueble (crédito hipotecario).\n"]
[null,null,null,null,null,null,"CrediEfectivo PYMES 2",null,null,"Destinado a personas naturales o jurídicas obligadas a llevar contabilidad, que realicen diversas actividades productivas y de comercialización a mediana escala",null,null,null,null,null,"Ser mayor de edad y tener un negocio de minimo un año",null,null,null,null,null," Copia de cédula o RUC,  Certificado de votación,  Planilla de servicios básicos,  Declaraciones de Impuestos,  Estados financieros",null,null,null,null,null,null,null,null,null,null,null,null,null,null,null,null,null,null,null,null,"Tasa de interés efectiva"]
[null,null,null,null,null,null,"CrediEmergente Acum. Ampliada",null,null,"Crédito enfocado al desarrollo de la mujer y mejora del núcleo familiar a través de la entrega de pequeños créditos acompañados con el servicio de educación financiera. ",null,null,null,null,null,"Edad minima 21 años, negocio funcionando minimo un año",null,null,null,null,null," Copia de cédula o RUC,  Certificado de votación,  Planilla de servicios básicos,  Declaraciones de Impuestos,  Justificar patrimonio",null,null,null,null,null,null,null,null,null,null,null,null,null,null,null,null,null,null,null,null,"Los requisitos son para precalificar para el crédito, no se especifican otros requisitos"]
[null,null,null,null,null,null,"CrediEmergente Acum. Simple",null,null,"Para capital de operaciones y de inversión en pequeña escala destinados para producción, comercialización o servicios. ",null,null,null,null,null,"Para quienes son socios, mínimo a partir de un mes y con un ahorro promedio de un mes.  El socio debe mantener en la cuenta una base de ahorros igual al 5% de monto a solicitar.",null,null,null,null,null," Solicitud de crédito,  Copia de cédula o RUC,  Planilla de servicios básicos,  Declaraciones de Impuestos,  Reporte de Buró,  Justificar ingresos,  Justificar patrimonio",null,null,null,null,null,null,null,null,null,null,null,null,null,null,null,null,null,null,null,null,"Requisitos adicionales: Ser socio activo. Informe del asesor jurídico. Avaluo del bien por el perito avaluador. Instrumentación de la hipoteca a favor de la cooperativa. Certificado de no afectación por obras futuras "]
[null,null,null,null,null,null,"CrediEmergente Minorista",null,null,"Para satisfacer necesidades de capital, para el desarrollo de los clientes y sus negocios.",null,null,null,null,null,"No requiere ahorro previo",null,null,null,null,null," Solicitud de crédito,  Copia de cédula o RUC,  Certificado de votación,  Planilla de servicios básicos,  Justificar patrimonio,  Justificar ingresos,  Declaraciones de Impuestos,  Estados financieros",null,null,null,null,null,null,null,null,null,null,null,null,null,null,null,null,null,null,null,null,"Requisitos adicionales: Ser socio activo. Copias de cédulas y certificados de votación de garantes"]
[null,null,null,null,null,null,"CrediFinanciero Empresarial",null,null,"Dirigido a micro, pequeños y medianos empresarios, que se dediquen a la actividad agropecuario.",null,null,null,null,null,"Personas naturales o jurídicas",null,null,null,null,null," Solicitud de crédito,  Copia de cédula o RUC,  Certificado de votación,  Planilla de servicios básicos,  Justificar patrimonio,  Justificar ingresos",null,null,null,null,null,null,null,null,null,null,null,null,null,null,null,null,null,null,null,null,"Requisitos adicionales: Copia de matrícula de vehículo y licencia de conducir. En caso de crédito hipotecarios se debe presentar también: Escrituro de propiedades. Certificado del Registro de la Propiedad actualizado. Certificado de no estar afectado por el plan regulador. Promesa notariada de compra – venta del inmueble, en caso de no hipotecar el bien a adquirir. Presupuesto de obra y cronograma de trabajo (en construcción de vivienda)"]
[null,null,null,null,null,null,"CrediFinanciero PYMES 1",null,null,"Dirigido para nuestros socios comerciantes en los diferentes mercados populares del país para capital de trabajo, incremento y ampliación del negocio.",null,null,null,null,null,"Microempresas con ventas anuales <= USD 100 mil.",null,null,null,null,null," Solicitud de crédito,  Copia de cédula o RUC,  Certificado de votación,  Planilla de servicios básicos,  Justificar ingresos,  Justificar patrimonio,  Estados financieros,  Declaraciones de Impuestos",null,null,null,null,null,null,null,null,null,null,null,null,null,null,null,null,null,null,null,null,"Requisitos adicionales: Copia de matrícula de vehículo y licencia de conducir. Impresión de la evaluación de adaptación a cambio climático YAPU. En caso de crédito hipotecarios se debe presentar también: Escrituro de propiedades. Certificado del Registro de la Propiedad actualizado. Certificado de no estar afectado por el plan regulador. Promesa notariada de compra – venta del inmueble, en caso de no hipotecar el bien a adquirir. Presupuesto de obra y cronograma de trabajo (en construcción de vivienda)"]
[null,null,null,null,null,null,"CrediFinanciero PYMES 2",null,null,"Dirigido a microempresarios que cuenten con unidades de producción, comercio y servicios; para iniciar y/o ampliar su negocio.",null,null,null,null,null,"Microempresas con ventas anuales <= USD 20 mil.",null,null,null,null,null," Solicitud de crédito,  Copia de cédula o RUC,  Certificado de votación,  Planilla de servicios básicos,  Escrituras de propiedades,  Declaraciones de Impuestos,  Justificar ingresos",null,null,null,null,null,null,null,null,null,null,null,null,null,null,null,null,null,null,null,null,"Requisito adicional: Proforma del vehículo a comprar y licencia de conducir. "]
[null,null,null,null,null,null,"Microjurídico 1",null,null,"Crédito a corto plazo dirigido a un grupo de al menos 5 participantes, quienes deben ser microempresarios con negocios individuales. Con ventas menores a $ 20 000.",null,null,null,null,null,"Microempresas con ventas anuales <= USD 5 mil.",null,null,null,null,null," Solicitud de crédito,  Copia de cédula o RUC,  Certificado de votación,  Planilla de servicios básicos,  Declaraciones de Impuestos,  Justificar ingresos",null,null,null,null,null,null,null,null,null,null,null,null,null,null,null,null,null,null,null,null,"Requisitos adicionales: Copia de matrícula de vehículo y licencia de conducir. En caso de crédito hipotecarios se debe presentar también: Escrituro de propiedades. Certificado del Registro de la Propiedad actualizado. Certificado de no estar afectado por el plan regulador. Promesa notariada de compra – venta del inmueble, en caso de no hipotecar el bien a adquirir. Presupuesto de obra y cronograma de trabajo (en construcción de vivienda). Otros destinos del crédito: Materia Prima. Productos para Comercialización. Insumos. Mantenimiento de Equipo y Máquinas. Adecuaciones del Negocio. Maquinaria y Equipos."]
[null,null,null,null,null,null,"Microjurídico 2",null,null,"Crédito a corto plazo dirigido a un grupo de al menos 5 participantes, quienes deben ser microempresarios con negocios individuales. Con ventas menores a $ 5 000.",null,null,null,null,null,"Microempresario A, AA y AAA ",null,null,null,null,null," Solicitud de crédito,  Copia de cédula o RUC,  Certificado de votación,  Planilla de servicios básicos,  Declaraciones de Impuestos,  Otros,  Facturas",null,null,null,null,null,null,null,null,null,null,null,null,null,null,null,null,null,null,null,null,"Requisitos adicionales:  Proforma o justificativo del destino de crédito (firmada por el socio)"]
[null,null,null,null,null,null,"Crédito PYME",null,null,"Crédito a corto plazo dirigido a un grupo de al menos 5 participantes, quienes deben ser microempresarios con negocios individuales. Con ventas menores a $100 000.",null,null,null,null,null,"Actividad con más de dos años de estabilidad, sin problemas en el buro de crédito. ",null,null,null,null,null," Copia de cédula o RUC,  Declaraciones de Impuestos,  Escrituras de propiedades,  Justificar ingresos",null,null,null,null,null,null,null,null,null,null,null,null,null,null,null,null,null,null,null,null,"Requisitos adicionales: Justificativo de la adquisición que va a realizar(proforma o fotografías). Formulario de inteligencia agrícola de ser el caso. Datos para la transferencia interbancaria"]
[null,null,null,null,null,null,"Crédito Pyme Pacífico",null,null,"Crédito a corto o mediano plazo otorgado a un microempresario con ventas menores a $100 000",null,null,null,null,null,"Estudiante o egresado de la Universidad. Mercado objetivo: Actividades agrícolas, pecuarias, comercio, servicios, turismo comunitario, artesanías",null,null,null,null,null," Copia de cédula o RUC,  Certificado de votación,  Planilla de servicios básicos,  Declaraciones de Impuestos,  Justificar patrimonio,  Facturas",null,null,null,null,null,null,null,null,null,null,null,null,null,null,null,null,null,null,null,null,"Requisitos adicionales:  Proforma o justificativo del destino de crédito (firmada por el socio). Se requiere 1 garantes para montos de hasta $30 000 y 2 garantes para montos de hasta $50 000"]
[null,null,null,null,null,null,"Biocrédito Microcrédito 1",null,null,"Crédito a corto o mediano plazo otorgado a un microempresario con ventas menores a $20 000",null,null,null,null,null,"Mercado objetivo: Actividades agrícolas, pecuarias, comercio, servicios, turismo comunitario, artesanías",null,null,null,null,null," Copia de cédula o RUC,  Reporte de Buró,  Declaraciones de Impuestos,  Justificar ingresos,  Justificar patrimonio",null,null,null,null,null,null,null,null,null,null,null,null,null,null,null,null,null,null,null,null,"Requisitos adicionales:  Proforma o justificativo del destino de crédito (firmada por el socio)."]
[null,null,null,null,null,null,"Biocrédito Microcrédito 2",null,null,"Crédito a corto o mediano plazo otorgado a un microempresario con ventas menores a $5 000",null,null,null,null,null,"Personas naturales obligadas a llevar contabilidad o personas jurídicas",null,null,null,null,null," Copia de cédula o RUC,  Planilla de servicios básicos,  Declaraciones de Impuestos,  Foto del socio,  Declaraciones de Impuestos"]
[null,null,null,null,null,null,"Biocrédito Productivo PYMES",null,null,"Crédito para socios que mantengan una cuenta de ahorros en la Cooperativa. ",null,null,null,null,null,"Ventas <= USD 100 mil.",null,null,null,null,null," Copia de cédula o RUC,  Planilla de servicios básicos,  Declaraciones de Impuestos,  Foto del socio,  Escrituras de propiedades,  Certificado de votación",null,null,null,null,null,null,null,null,null,null,null,null,null,null,null,null,null,null,null,null," Todo el proceso es en línea"]
[null,null,null,null,null,null,"Productivo PYMES 1",null,null,"Crédito que no requiere de ahorro previo.",null,null,null,null,null,"Ventas <= USD 20 mil.",null,null,null,null,null," Foto del socio,  Copia de cédula o RUC,  Certificado de votación,  Planilla de servicios básicos,  Justificar ingresos,  Justificar patrimonio,  Declaraciones de Impuestos,  Otros",null,null,null,null,null,null,null,null,null,null,null,null,null,null,null,null,null,null,null,null,"Garantia CFN: La Corporación Financiera Nacional B.P. es una banca de desarrollo de Ecuador, institución financiera pública, cuya misión consiste en impulsar el desarrollo de los sectores productivos y estratégicos, a través de múltiples servicios financieros y no financieros alineados a las políticas públicas.   Todo el proceso es en línea"]
[null,null,null,null,null,null,"Productivo PYMES 2",null,null,"Dirigido a personas naturales o jurídicas que desean financiar diversas actividades productivas y/o comercio a una menor escala, con ingresos por ventas que están directamente relacionados con la actividad productiva y/o de comercialización de bienes y servicios.",null,null,null,null,null,"Ventas <= USD 5 mil.",null,null,null,null,null," Foto del socio,  Copia de cédula o RUC,  Certificado de votación,  Planilla de servicios básicos,  Justificar ingresos,  Justificar patrimonio,  Otros",null,null,null,null,null,null,null,null,null,null,null,null,null,null,null,null,null,null,null,null,"Garantia CFN: La Corporación Financiera Nacional B.P. es una banca de desarrollo de Ecuador, institución financiera pública, cuya misión consiste en impulsar el desarrollo de los sectores productivos y estratégicos, a través de múltiples servicios financieros y no financieros alineados a las políticas públicas. Todo el proceso es en línea"]
[null,null,null,null,null,null,"Microcrédito Simple",null,null,"Financiar actividades productivas, de comercialización o de servicio cuya fuente principal de pago constituyen las ventas del producto o ingresos generados por dichas actividades.",null,null,null,null,null,"Solicitantes de crédito que registren ventas anuales iguales o inferiores a USD 5,000.00.",null,null,null,null,null," Solicitud de crédito,  Copia de cédula o RUC,  Certificado de votación,  Planilla de servicios básicos,  Declaraciones de Impuestos,  Facturas,  Justificar patrimonio",null,null,null,null,null,null,null,null,null,null,null,null,null,null,null,null,null,null,null,null,"El encaje es de 10 %. Todo el proceso es en línea"]
[null,null,null,null,null,null,"Mujer Comercial 1",null,null,"Crédito entregado de manera inmediata en base al certificado y monto del depósito a plazo fijo que el socio mantiene en la cooperativa, este crédito puede ser entregado como consumo o microcrédito según el destino del mismo.",null,null,null,null,null,"Solicitantes de crédito que registren ventas anuales iguales o inferiores a USD 20,000.00.",null,null,null,null,null," Solicitud de crédito,  Copia de cédula o RUC,  Certificado de votación,  Justificar ingresos,  Declaraciones de Impuestos,  Planilla de servicios básicos",null,null,null,null,null,null,null,null,null,null,null,null,null,null,null,null,null,null,null,null,"Requisitos adicionales: Contratos de arrendamiento (en caso de percibir arriendos). No específica el destino del créditoEl encaje es de 10 %.El crédito es aprobado en 3 días."]
[null,null,null,null,null,null,"Mujer Comercial 2",null,null,"Para solventar necesidades de adquisición de vehículos de trabajo con un financiamiento de hasta el 80% en la adquisición de vehículos nuevos o seminuevos y sin base.",null,null,null,null,null,"Solicitantes de crédito que registren ventas anuales iguales o inferiores a USD 100,000.00.",null,null,null,null,null," Solicitud de crédito,  Copia de cédula o RUC,  Certificado de votación,  Justificar ingresos,  Planilla de servicios básicos,  Declaraciones de Impuestos,  Escrituras de propiedades",null,null,null,null,null,null,null,null,null,null,null,null,null,null,null,null,null,null,null,null,"Incluye la adquisición de servicios. No se especifica el tipo de garantia. No especifican otros requisitos.El crédito es aprobado en 2 días."]
[null,null,null,null,null,null,"Mujer Comercial 3",null,null,"Crédito dirigido a microempresarios, con el objetivo de apoyar el crecimiento y reactivación de la economía.",null,null,null,null,null,"Debe tener RUC",null,null,null,null,null," Solicitud de crédito,  Copia de cédula o RUC,  Certificado de votación,  Planilla de servicios básicos,  Justificar ingresos,  Foto del socio",null,null,null,null,null,null,null,null,null,null,null,null,null,null,null,null,null,null,null,null,"Requisitos adicionales: Croquis domicilio y negocio, RIMPE En caso de aplicar: Permisos de funcionamiento, Copia de matrícula de vehículo, Copia de Pago de Imp. PredialEl encaje es de 3 %."]
[null,null,null,null,null,null,"Mujer Microcrédito",null,null,"Se otorga a personas naturales o jurídicas obligadas a llevar contabilidad, y que mantienen al día las obligaciones societarias, laborales y financieras.",null,null,null,null,null,"Ser persona natural o jurídica del segmento PYMES.",null,null,null,null,null," Solicitud de crédito,  Copia de cédula o RUC,  Certificado de votación,  Planilla de servicios básicos,  Foto del socio,  Escrituras de propiedades,  Declaraciones de Impuestos",null,null,null,null,null,null,null,null,null,null,null,null,null,null,null,null,null,null,null,null,"Requisitos adicionales: Croquis domicilio y negocio, RIMPE En caso de aplicar: Permisos de funcionamiento, Copia de matrícula de vehículo, Copia de Pago de Imp. Predial"]
[null,null,null,null,null,null,"Crédito 1x30 1",null,null,"Crédito otorgado a los socios. El uso de los recursos pueden ser utilizados en capital de trabajo, compra de activos del negocio, compra de vehículo de trabajo, entre otros.",null,null,null,null,null,"Socio de la CPN, con minimo un año de experiencia en su actividad económica",null,null,null,null,null," Solicitud de crédito,  Copia de cédula o RUC,  Certificado de votación,  Justificar ingresos,  Escrituras de propiedades,  Declaraciones de Impuestos,  Foto del socio",null,null,null,null,null,null,null,null,null,null,null,null,null,null,null,null,null,null,null,null,"Otros requisitos: 3 últimos estados de las cuentas corrientes y tarjetas de crédito y matrícula de vehículo (si aplica).El crédito es aprobado en 2 días. Un alto porcentaje del proceso es en línea"]
[null,null,null,null,null,null,"Crédito 1x30 2",null,null,"Crédito rápido y sin encaje ",null,null,null,null,null,"Personas mayores de edad sean naturales o jurídicas cuya fuente de pago sea sus ventas o ingresos por su actividad económica es decir productores, comerciantes, industriales o con empresas de servicios.",null,null,null,null,null," Solicitud de crédito,  Copia de cédula o RUC,  Certificado de votación,  Justificar ingresos,  Escrituras de propiedades,  Declaraciones de Impuestos",null,null,null,null,null,null,null,null,null,null,null,null,null,null,null,null,null,null,null,null,"Sin garantia o sobre firmas, según previa evaluación. Ahorro obligatorio: 25 a 1 o sin encaje, previa calificación.El crédito es aprobado en 2 días."]
[null,null,null,null,null,null,"Crédito Asociaciones 1",null,null,"Créditos otorgados a personas naturales quienes destinan sus recursos a actividades productivas, es decir dedicadas a financiar actividades en pequeña escala, de producción, Comercialización o servicios, cuya fuente principal de pago lo constituye el producto de las ventas o ingresos generados por dichas actividades.",null,null,null,null,null,"El negocio debe tener al menos 1 año con RUC o RISE. Un patrimonio mayor o igual a $80.000, No tener atrasos registrados en la Central de Riesgo en los últimos 12 meses.\nEstar al día en obligaciones tributarias. Tener una ganancia disponible de mínimo $1.000 mensuales.",null,null,null,null,null,null,null,null,null,null,null,null,null,null,null,null,null,null,null,null,null,null,null,null,null,null,"No especifican plazo maximo.El crédito es aprobado en 15 días."]
[null,null,null,null,null,null,"Crédito Asociaciones 2",null,null,"Microcrédito para estudiantes, egresados de la Universidad o Instituto ",null,null,null,null,null,"Personas naturales o jurídicas, que llevan contabilidad",null,null,null,null,null,null,null,null,null,null,null,null,null,null,null,null,null,null,null,null,null,null,null,null,null,null,"Requisitos adicionales (en caso de ser necesario): Copia del predio urbano, rural, matricula de vehiculo.El crédito es aprobado en 2 días."]
[null,null,null,null,null,null,"Crédito Asociaciones 3",null,null,"Es Crédito destinado  para actividades  producctivas de gupos migrantes   venezolanos colombianos  o  grupos vulnerables en  Ecuador  ",null,null,null,null,null,"Ser mayor de 21 años, RUC activo mínimo 1 año. Microempresas con ventas <= USD 100 mil",null,null,null,null,null,null,null,null,null,null,null,null,null,null,null,null,null,null,null,null,null,null,null,null,null,null,"La tasa de interés es la efectiva anual.El crédito es aprobado en 5 días."]
[null,null,null,null,null,null,"Crédito Asociaciones 4",null,null,"Microcrédito destinado a segmento comercial para capital de trabajo e inversión.",null,null,null,null,null,"Ser mayor de 21 años, RUC activo mínimo 1 año. Microempresas con ventas <= USD 20 mil",null,null,null,null,null,null,null,null,null,null,null,null,null,null,null,null,null,null,null,null,null,null,null,null,null,null,"Requisitos adicionales: en caso de tener presentar copias de contratos de arrendamiento y de la matrícula del vehículoEl crédito es aprobado en 2 días. Un alto porcentaje del proceso es en línea"]
[null,null,null,null,null,null,"Crédito Asociaciones 5",null,null,"Microcrédito destinado al sector productivo agrícola, pecuario, Comercial, de servicios, turismo comunitario y de artesanías; para cubrir necesidades de capital de trabajo e inversión y/o inversión en animales mayores / menores. ",null,null,null,null,null,"Ser mayor de 21 años, RUC activo mínimo 1 año. Microempresas con ventas <= USD 5 mil",null,null,null,null,null,null,null,null,null,null,null,null,null,null,null,null,null,null,null,null,null,null,null,null,null,null,"Requisitos adicionales: Croquis del domicilio. Plan de negocio. Copia de matricula del vehículo. Certificado de matricula en la universidad o de ser egresado. El encaje es de 8 %."]
[null,null,null,null,null,null,"Crédito Asociaciones 6",null,null,"Microcrédito destinado para todos los segmentos de Créditos.",null,null,null,null,null,"Persona natural. Edad minima 18 años. Negocio aperturado minimo 1 año, que pueda sustentar ingresos.",null,null,null,null,null,null,null,null,null,null,null,null,null,null,null,null,null,null,null,null,null,null,null,null,null,null,"Requisitos adicionales: Croquis del negocio. Copia de matricula del vehículo (en caso de tener). Detalle de inversión. Certificado de gravámenes Registro de la propiedad y mercantilEl encaje es de 8 %."]
[null,null,null,null,null,null,"Crédito CCMA 1",null,null,"Crédito con fondos de Congregación De Hermanas Misioneras De San Carlos Borromeo Scalabriniana, destinado según convenio a extranjeros y ecuatorianos en situación de vulnerabilidad, dedicados a actividades agrícola, pecuarias, comercio, servicios, turismo comunitario y artesanías",null,null,null,null,null,"Pertenecer al sector agropecuario",null,null,null,null,null,null,null,null,null,null,null,null,null,null,null,null,null,null,null,null,null,null,null,null,null,null,"Requisitos adicionales: Croquis del domicilio.Detalle de la inversión. Copia de matricula del vehículo. Visa de refugiado.El encaje es de 8 %."]
[null,null,null,null,null,null,"Crédito CCMA 2",null,null,"Microcrédito destinado a autoconsumo y Comercialización.",null,null,null,null,null,"Grupos organizados y asociaciones.",null,null,null,null,null,null,null,null,null,null,null,null,null,null,null,null,null,null,null,null,null,null,null,null,null,null,"Requisitos adicionales: Croquis del domicilio.Detalle de la inversión. Copia de matricula del vehículo. Visa de refugiado. Cubre también inversión animales mayores o  Inversión animales menores. Consumo.El encaje es de 8 %."]
[null,null,null,null,null,null,"Crédito Emergencia 1",null,null,"Microcrédito destinado a la compra de productos tecnológicos (sectores vulnersables) en los sectores de comercio, servicios, turismo comunitario, artesanías, agroindustrial y consumo.",null,null,null,null,null,"Tener experiencia del negocio o trabajo por lo menos 6 meses",null,null,null,null,null,null,null,null,null,null,null,null,null,null,null,null,null,null,null,null,null,null,null,null,null,null,"Se necesita el certificado de depósito a plazo original.El crédito es aprobado en 1 días."]
[null,null,null,null,null,null,"Crédito Emergencia 2",null,null,"Otorgados a personas naturales obligadas a llevar contabilidad o a personas jurídicas que registren ventas anuales superiores a $ 100.000 hasta $ 1’000.000",null,null,null,null,null,"Edad: 18 - 79. Financiamiento destinado para Personas Naturales cuyo nivel de ventas no superen los $100.000 al año, destinado a financiar actividades de producción, comercialización y/o servicios en pequeña escala y cuya fuente de pago está constituido por el producto de las ventas o ingresos de dichas actividades",null,null,null,null,null,null,null,null,null,null,null,null,null,null,null,null,null,null,null,null,null,null,null,null,null,null,"Tener una cuenta en la cooperativa.El crédito es aprobado en 1 días."]
[null,null,null,null,null,null,"Crédito Microempresa general 1",null,null,"Crédito destinado para financiar actividades de producción.",null,null,null,null,null,null,null,null,null,null,null,null,null,null,null,null,null,null,null,null,null,null,null,null,null,null,null,null,null,null,null,null,"El crédito es aprobado en 1 días."]
[null,null,null,null,null,null,"Crédito Microempresa general 2",null,null,"Para solventar necesidades de adquisición de vehículos de trabajo. Se podrá financiar todo tipo de vehículos nuevos y usados hasta tres años. Financia hasta el 80% del valor del vehículo.",null,null,null,null,null,null,null,null,null,null,null,null,null,null,null,null,null,null,null,null,null,null,null,null,null,null,null,null,null,null,null,null,"El encaje es de 5 %."]
[null,null,null,null,null,null,"Crédito Microempresa general 3",null,null,"Financiamiento para diversas actividades productivas, de comercialización o prestación de servicios a pequeña, mediana y gran escala.",null,null,null,null,null,null,null,null,null,null,null,null,null,null,null,null,null,null,null,null,null,null,null,null,null,null,null,null,null,null,null,null,"Requisitos adicionales: Apertura de cuenta de ahorros. Copia de la escritura del bien a hipotecar y certificado de gravámenes actualizados, copia de la cédula de los dueños del Predio  (en caso de ser hipotecario). El crédito es aprobado en 2 días."]
[null,null,null,null,null,null,"Crédito Microempresa general 4",null,null,"Financiamiento inmediato",null,null,null,null,null,null,null,null,null,null,null,null,null,null,null,null,null,null,null,null,null,null,null,null,null,null,null,null,null,null,null,null,"Requisitos adicionales: Copia de matrícula de vehículo. Todas las operaciones se firmara titular y conyugueEl crédito es aprobado en 3 días."]
[null,null,null,null,null,null,"Crédito PYME general 1",null,null,"Financiamiento inmediato "]
[null,null,null,null,null,null,"Crédito PYME general 2",null,null,"Financiamos adquisición de bienes, servicios, actividad productiva o comercialización. Crédito inmediato en relación del Certificado de Depósito a Plazo."]
[null,null,null,null,null,null,"Súper Mujer Rural 1",null,null,"Financiamos adquisición de bienes, servicios, actividad productiva o comercialización. Crédito inmediato sobre el saldo en la cuenta de ahorros."]
[null,null,null,null,null,null,"Súper Mujer Rural 2",null,null,"Destinada a satisfacer las necesidades de financiamiento de los Socios de manera inmediata, ágil, segura y de fácil aplicación."]
[null,null,null,null,null,null,"Microempresarial",null,null,"Son otorgados a personas naturales o jurídicas para el financiamiento de actividades de producción y comercialización, con ingresos por ventas u otros conceptos redituables anuales, directamente relacionados con la actividad productiva y/o de comercialización y cuya fuente de pago provenga de dicha actividad."]
[null,null,null,null,null,null,"Crédito Efectivo",null,null,"Crédito SIN GARANTE a una tasa de interés desde el 14% anual."]
[null,null,null,null,null,null,"Eco CACPECO",null,null,"Microcrédito orientado a impulsar y desarrollar a pequeños y medianos emprendedores, con tasas preferenciales y competitivas en el sector."]
[null,null,null,null,null,null,"Comercial 3",null,null,"Financiamiento en pequeña escala de capital para impulsar el desarrollo de proyectos productivos (Capital de trabajo, emprendimientos, comercios, artesanos, industrias, agricultura y ganadería, otras actividades) de los pequeños, medianos y grandes empresarios en los distintos sectores de la economía mejorando esencialmente la calidad de vida de las personas."]
[null,null,null,null,null,null,"Comercial 4",null,null,"Utilízalo para: financiar el crecimiento de tu empresa."]
[null,null,null,null,null,null,"Comercial 1",null,null,"Utilízalo para: Invertir en el futuro de tu negocio y mejorar tus productos y servicios. ."]
[null,null,null,null,null,null,"Comercial 2",null,null,"Puedes utilizarlo para mejorar o ampliar tu negocio a través de la adquisición de activos o invertir en capital de trabajo."]
[null,null,null,null,null,null,"Comunal Acum. Ampliada",null,null,"Crédito dirigido a adquisición de bienes, servicios, materia prima, para financiamiento de actividades a pequeña escala de comercialización, producción o servicios."]
[null,null,null,null,null,null,"Comunal Acum. Simple",null,null,"Crédito para persona jurídica o persona natural con un negocio que declara ventas anuales menores a $100.000."]
[null,null,null,null,null,null,"Comunal Minorista",null,null,"Créditos para actividades productivas cuyo nivel de ventas superen los $ 100.000 anuales; están dirigidos a financiar proyectos de inversión, activos fijo, capital de trabajo, etc., a plazos flexibles de acuerdo al monto solicitado."]
[null,null,null,null,null,null,"Microagil Acum. Simple y Ampliada",null,null,"Financiamiento a actividades de producción y/o comercialización en pequeña escala. Puede ser destinado para cualquier necesidad del socio."]
[null,null,null,null,null,null,"Microagil Minorista",null,null,"Financiamiento a actividades de producción y/o comercialización en pequeña escala."]
[null,null,null,null,null,null,"Microcrédito Progreso Acum. Simple y Ampliada",null,null,"Créditos destinados a microempresarios cuyo nivel de ventas anuales sea inferior a $ 100.000 y deseen acceder a financiamiento para compra de activos fijos y capital de trabajo"]
[null,null,null,null,null,null,"Microcrédito Progreso Minorista",null,null,"Es el otorgado a una persona natural o jurídica con un nivel de ventas anuales inferior o igual a USD 100,000.00, o a un grupo de prestatarios con garantía solidaria, destinado a financiar actividades de producción y/o comercialización en pequeña escala, cuya fuente principal de pago la constituye el producto de las ventas o ingresos generados por dichas actividades, verificados adecuadamente por las entidades del Sistema Financiero Nacional."]
[null,null,null,null,null,null,"Crédito Individual Minorista",null,null,"Crédito otorgado a la microempresa, personas con actividades económicas independientes de producción, comercio o servicios con ventas menores a $100.000 dólares al año, siendo su principal fuente de pago las ventas de dichas actividades."]
[null,null,null,null,null,null,"Crédito Individual Empresarial",null,null,"Microcrédito agrícola ganadero"]
[null,null,null,null,null,null,"CrediMovil",null,null,"Crédito está orientado al sector Agropecuario con soluciones climáticas como riego por goteo, invernaderos, huertos familiares etc."]
[null,null,null,null,null,null,"FINCA Comunal 1",null,null,"Microcrédito para capital de trabajo y activos fijos."]
[null,null,null,null,null,null,"FINCA Comunal 2",null,null,"Microcrédito para la compra de taxi."]
[null,null,null,null,null,null,"FINCA Comunal 3",null,null,"Microcrédito para vehículos de trabajo nuevos"]
[null,null,null,null,null,null,"FINCA Individual 1",null,null,"Créditos dirigidos a microempresarios directos y/o bajo convenio."]
[null,null,null,null,null,null,"FINCA Individual 2",null,null,"Actividad productiva en pequeña escala."]
[null,null,null,null,null,null,"FINCA Individual 3",null,null,"Actividad productiva en pequeña escala de personas naturales o jurídicas."]
[null,null,null,null,null,null,"Microcrédito 1",null,null,"Destinado a la reactivación del negocio"]
[null,null,null,null,null,null,"Microcrédito 2",null,null,"Crédito para la mujer emprendedora que desea activar la economía del país con sus actividades productivas o de comercio."]
[null,null,null,null,null,null,"MicroJEP Acum. Ampliada AAA",null,null,"Crédito destinado paro actividades agropecuarias, adquisición de activos fijos y  capital de trabajo."]
[null,null,null,null,null,null,"MicroJEP AAA",null,null,"Crédito destinado poro la adquisición de activos fijos o capital de trabajo que fomente lo producción agropecuario y artesanal. "]
[null,null,null,null,null,null,"MicroJEP AA",null,null,"Crédito destinado para cubrir todos los requerimientos financieros de actividades productivas, comercialización o servicio."]
[null,null,null,null,null,null,"MicroJEP A",null,null,"Orientado para cubrir necesidades de financiamiento cuya aprobación de crédito es de forma inmediata, aplica para socios cuyo comportamiento de pago optima en función del Score del buró de crédito"]
[null,null,null,null,null,null,"MicroJEP (Analista sin información, analista y rechazo)",null,null,"Orientado para cubrir necesidades de financiamiento de oportunidad. El plazo máximo de este tipo de crédito es desde los 6 meses hasta 12 meses"]
[null,null,null,null,null,null,"Credi Efectivo Productivo (Microcrédito Acum. Ampliada)"]
[null,null,null,null,null,null,"Credi Efectivo Productivo (Microcrédito Acum. Simple)"]
[null,null,null,null,null,null,"Microcrédito Automotriz Acum. Ampliada"]
[null,null,null,null,null,null,"Credi Efectivo Productivo (Microcrédito Minorista)"]
[null,null,null,null,null,null,"Crédito CONAFIPS 1"]
[null,null,null,null,null,null,"Crédito CONAFIPS 2"]
[null,null,null,null,null,null,"Crédito Productivo"]
[null,null,null,null,null,null,"CACMUEMPRENDE Ampliado"]
[null,null,null,null,null,null,"CACMUEMPRENDE Minorista"]
[null,null,null,null,null,null,"CACMUEMPRENDE Simple"]
[null,null,null,null,null,null,"CONVENIO  MIGRANTES IAF"]
[null,null,null,null,null,null,"Crédito Comercial"]
[null,null,null,null,null,null,"Finanzas Populares 1"]
[null,null,null,null,null,null,"Finanzas Populares 2"]
[null,null,null,null,null,null,"Finanzas Populares 3"]
[null,null,null,null,null,null,"MICRO FINCA Minorista"]
[null,null,null,null,null,null,"MICRO FINCA Simple"]
[null,null,null,null,null,null,"MICRO MISION ESCALABRINIANA"]
[null,null,null,null,null,null,"MICRO SOBERANIA ALIMENTARIA Minorista"]
[null,null,null,null,null,null,"MICRO SOBERANIA ALIMENTARIA Simple"]
[null,null,null,null,null,null,"MICRO TECNOLÓGICO (SECTORES VULNERABLES KIVA) Minorista"]
[null,null,null,null,null,null,"MICRO TECNOLÓGICO (SECTORES VULNERABLES KIVA) Simple"]
[null,null,null,null,null,null,"MicroCrédito Ampliado"]
[null,null,null,null,null,null,"Comercial Productivo PYMES"]
[null,null,null,null,null,null,"AUTOSCUS 1"]
[null,null,null,null,null,null,"AUTOSCUS 2"]
[null,null,null,null,null,null,"Credi Oscus 1"]
[null,null,null,null,null,null,"Credi Oscus 2"]
[null,null,null,null,null,null,"Facilito 1"]
[null,null,null,null,null,null,"Facilito 2"]
[null,null,null,null,null,null,"Menor a la inverión"]
[null,null,null,null,null,null,"Menor al ahorro"]
[null,null,null,null,null,null,"Sobregiro"]
[null,null,null,null,null,null,"Crédito Institucional MiPymes"]
[null,null,null,null,null,null,"Micro. Ampliado"]
[null,null,null,null,null,null,"Micro. Minorista"]
[null,null,null,null,null,null,"Micro. Simple"]
[null,null,null,null,null,null,"Crédito empresarial 1"]
[null,null,null,null,null,null,"Crédito empresarial 2"]
[null,null,null,null,null,null,"Crédito PYME 1"]
[null,null,null,null,null,null,"Crédito PYME 2"]
[null,null,null,null,null,null,"Crédito en linea 1"]
[null,null,null,null,null,null,"Crédito en linea 2"]
[null,null,null,null,null,null,"Crédito en linea 3"]
[null,null,null,null,null,null,"Crédito en linea 4"]
[null,null,null,null,null,null,"Crédito en linea 5"]
[null,null,null,null,null,null,"Créditos Comerciales o Productivos"]
[null,null,null,null,null,null,"Micro BanEcuador Acum. Ampliada"]
[null,null,null,null,null,null,"Micro BanEcuador Acum. Ampliada 1"]
[null,null,null,null,null,null,"Micro BanEcuador Acum. Simple"]
[null,null,null,null,null,null,"Micro BanEcuador Acum. Simple 1"]
[null,null,null,null,null,null,"Micro BanEcuador Minorista"]
[null,null,null,null,null,null,"Micro BanEcuador Minorista 1"]
[null,null,null,null,null,null,"Micro Crédito Inversión Acum. Ampliada"]
[null,null,null,null,null,null,"Micro Crédito Inversión Acum. Simple"]
[null,null,null,null,null,null,"Micro Crédito Inversión Minorista"]
[null,null,null,null,null,null,"Micro Familiar"]
[null,null,null,null,null,null,"Microcrédito Acum. Ampliada 1"]
[null,null,null,null,null,null,"Microcrédito Acum. Ampliada 2"]
[null,null,null,null,null,null,"Microcrédito Acum. Simple 1"]
[null,null,null,null,null,null,"Microcrédito Acum. Simple 2"]
[null,null,null,null,null,null,"Microcrédito Minorista 1"]
[null,null,null,null,null,null,"Microcrédito Minorista 2"]
[null,null,null,null,null,null,"Credi Productivo"]
[null,null,null,null,null,null,"Ecocredit"]
[null,null,null,null,null,null,"Mi negocio"]
[null,null,null,null,null,null,"Mi taxi"]
[null,null,null,null,null,null,"Mi vehículo trabajador"]
[null,null,null,null,null,null,"Micro Crece 1"]
[null,null,null,null,null,null,"Micro Crece 2"]
[null,null,null,null,null,null,"Micro Productivo"]
[null,null,null,null,null,null,"Micro Emprendedora"]
[null,null,null,null,null,null,"Microcrédito Agricola y ganadero 1"]
[null,null,null,null,null,null,"Microcrédito Agricola y ganadero 2"]
[null,null,null,null,null,null,"Microcrédito Productivo"]
[null,null,null,null,null,null,"Microcrédito Virgen del Cisne Acum. Ampliada 1"]
[null,null,null,null,null,null,"Microcrédito Virgen del Cisne Acum. Ampliada 2"]
[null,null,null,null,null,null,"Microcrédito Virgen del Cisne Acum. Ampliada 3"]
[null,null,null,null,null,null,"Microcrédito Virgen del Cisne Acum. Simple 1"]
[null,null,null,null,null,null,"Microcrédito Virgen del Cisne Acum. Simple 2"]
[null,null,null,null,null,null,"Microcrédito Virgen del Cisne Acum. Simple 3"]
[null,null,null,null,null,null,"Microcrédito Virgen del Cisne Minorista 1"]
[null,null,null,null,null,null,"Microcrédito Virgen del Cisne Minorista 2"]
[null,null,null,null,null,null,"Microcrédito Virgen del Cisne Minorista 3"]
[null,null,null,null,null,null,"Microcrédito Express"]
[null,null,null,null,null,null,"Microcrédito Único"]
[null,null,null,null,null,null,"Microcrédito Volta"]
[null,null,null,null,null,null,"Agropecuario"]

{"sheet":"Fondos de Capital","index":3,"n_rows":39,"n_cols":9,"rows_kept":39,"cut":false,"hidden":false,"merged":[[0,0,0,6],[15,4,18,4],[15,6,18,6],[15,8,18,8],[11,0,11,9],[13,0,13,9],[20,4,36,4],[20,6,36,6],[20,8,36,8],[38,4,41,4],[38,6,41,6],[38,8,41,8]]}
["INSTRUCCIONES:\n• Para encontrar los diferentes Fondos de Capital disponibles, elige una de las opciones disponibles y descubre su descripción en la parte inferior.",null,null,null,null,null,null,null,"¡Recuerda! Para elegir otros fondos de\ncapital, debes borrar todos los filtros.\nPara hacerlo, haz clic ➡️"]
[]
[]
[]
[]
[]
[]
[]
[]
[]
[]
["Fondos de Capital en el Distrito Metropolitano de Quito"]
[]
[{"$f":"IF(OR('TD_Fondos de Capital'!$K$2=0,'TD_Fondos de Capital'!$K$2=\"(en blanco)\"),\" \",'TD_Fondos de Capital'!$K$2)","v":" "}]
[]
[null,null,null,null,{"$f":"IF('TD_Fondos de Capital'!$H$2=0,0,'TD_Fondos de Capital'!$H$2)","v":0},null,{"$f":"IF('TD_Fondos de Capital'!$E$2=0,\"En esta sección encontrará información sobre los Fondos de Capital Semilla, Capital de Riesgo e Inversionistas Ángeles en el Distrito Metropolitano de Quito\",\"TIPO DE FINANCIAMIENTO\n\n\"&'TD_Fondos de Capital'!$E$2)","v":"En esta sección encontrará información sobre los Fondos de Capital Semilla, Capital de Riesgo e Inversionistas Ángeles en el Distrito Metropolitano de Quito"},null,{"$f":"IF('TD_Fondos de Capital'!$N$2=0,0,\"SECTORES PRIORIZADOS\n\n\"&'TD_Fondos de Capital'!$N$2)","v":0}]
[]
[]
[]
[]
[null,null,null,null,{"$f":"IF('TD_Fondos de Capital'!$Q$2=0,0,\"FASE DE INVERSIÓN\n\n\"&'TD_Fondos de Capital'!$Q$2)","v":0},null,{"$f":"IF('TD_Fondos de Capital'!$T$2=0,0,\"ENFOQUE DE IMPACTO\n\n\"&'TD_Fondos de Capital'!$T$2)","v":0},null,{"$f":"IF('TD_Fondos de Capital'!$AF$2=0,0,\"REQUISITOS: \n\n\"&'TD_Fondos de Capital'!$AF$2)","v":0}]
[]
[]
[]
[]
[]
[]
[]
[{"$f":"IF(OR(A31<>\"\",A32<>\"\",A33<>\"\",A34<>\"\",A35<>\"\",A36<>\"\"),\"Información de Contacto\",\"\")","v":""}]
[]
[{"$f":"IF(OR('TD_Fondos de Capital'!AL2=0,'TD_Fondos de Capital'!AL2=\"(en blanco)\"),\"\",'TD_Fondos de Capital'!AL2)","v":""}]
[{"$f":"IF(OR('TD_Fondos de Capital'!AO2=0,'TD_Fondos de Capital'!AO2=\"(en blanco)\"),\"\",'TD_Fondos de Capital'!AO2)","v":""}]
[{"$f":"IF(OR('TD_Fondos de Capital'!AR2=0,'TD_Fondos de Capital'!AR2=\"(en blanco)\"),\"\",'TD_Fondos de Capital'!AR2)","v":""}]
[{"$f":"IF(OR('TD_Fondos de Capital'!AU2=0,'TD_Fondos de Capital'!AU2=\"(en blanco)\"),\"\",'TD_Fondos de Capital'!AU2)","v":""}]
[{"$f":"IF(OR('TD_Fondos de Capital'!AX2=0,'TD_Fondos de Capital'!AX2=\"(en blanco)\"),\"\",'TD_Fondos de Capital'!AX2)","v":""}]
[{"$f":"IF(OR('TD_Fondos de Capital'!BA2=0,'TD_Fondos de Capital'!BA2=\"(en blanco)\"),\"\",'TD_Fondos de Capital'!BA2)","v":""}]
[]
[]
[null,null,null,null,{"$f":"IF('TD_Fondos de Capital'!$Z$2=0,0,\"MONTO MÍNIMO\n\n\"&'TD_Fondos de Capital'!$Z$2&\" mil dólares\")","v":0},null,{"$f":"IF('TD_Fondos de Capital'!$AC$2=0,0,\"MONTO MÁXIMO\n\n\"&'TD_Fondos de Capital'!$AC$2&\" mil dólares\")","v":0},null,{"$f":"IF('TD_Fondos de Capital'!$AI$2=0,0,\"LINK PARA APLICACIÓN\n\n\"&'TD_Fondos de Capital'!$AI$2)","v":0}]

{"sheet":"TD_Fondos de Capital","index":4,"n_rows":11,"n_cols":53,"rows_kept":11,"cut":false,"hidden":true,"merged":[]}
[null,{"$f":"IF(B2<>1,\"Seleccione un Fondo\",\"Limpiar Filtro\")","v":"Seleccione un Fondo"}]
[null,{"$f":"COUNTA($B$4:$B$11)","v":8},null,{"$f":"COUNTA($B$4:$B$11)","v":8},{"$f":"IF(D2=1,D4,0)","v":0},null,{"$f":"COUNTA($B$4:$B$11)","v":8},{"$f":"IF(G2=1,G4,0)","v":0},null,{"$f":"COUNTA($B$4:$B$11)","v":8},{"$f":"IF(J2=1,J4,0)","v":0},null,{"$f":"COUNTA($B$4:$B$11)","v":8},{"$f":"IF(M2=1,M4,0)","v":0},null,{"$f":"COUNTA($B$4:$B$11)","v":8},{"$f":"IF(P2=1,P4,0)","v":0},null,{"$f":"COUNTA($B$4:$B$11)","v":8},{"$f":"IF(S2=1,S4,0)","v":0},null,null,null,null,{"$f":"COUNTA($B$4:$B$11)","v":8},{"$f":"IF(Y2=1,Y4/1000,0)","v":0},null,{"$f":"COUNTA($B$4:$B$11)","v":8},{"$f":"IF(AB2=1,AB4/1000,0)","v":0},null,{"$f":"COUNTA($B$4:$B$11)","v":8},{"$f":"IF(AE2=1,AE4,0)","v":0},null,{"$f":"COUNTA($B$4:$B$11)","v":8},{"$f":"IF(AH2=1,AH4,0)","v":0},null,{"$f":"COUNTA($B$4:$B$11)","v":8},{"$f":"IF(AK2=1,AK4,0)","v":0},null,{"$f":"COUNTA($B$4:$B$11)","v":8},{"$f":"IF(AN2=1,AN4,0)","v":0},null,{"$f":"COUNTA($B$4:$B$11)","v":8},{"$f":"IF(AQ2=1,AQ4,0)","v":0},null,{"$f":"COUNTA($B$4:$B$11)","v":8},{"$f":"IF(AT2=1,AT4,0)","v":0},null,{"$f":"COUNTA($B$4:$B$11)","v":8},{"$f":"IF(AW2=1,AW4,0)","v":0},null,{"$f":"COUNTA($B$4:$B$11)","v":8},{"$f":"IF(AZ2=1,AZ4,0)","v":0}]
[null," Fondos de Capital",null," Fondos de Capital",null,null," Fondos de Capital",null,null," Fondos de Capital",null,null," Fondos de Capital",null,null," Fondos de Capital",null,null," Fondos de Capital",null,null,null,null,null,"Suma de Ticket mínimo (USD)",null,null,"Suma de Ticket máximo (USD)",null,null," Fondos de Capital",null,null," Fondos de Capital",null,null," Fondos de Capital",null,null," Fondos de Capital",null,null," Fondos de Capital",null,null," Fondos de Capital",null,null," Fondos de Capital",null,null," Fondos de Capital"]
[null,"BUENTRIP",null,"Inversionistas Ángeles",null,null,"El Programa BANCO DE IDEAS apoya a emprendimientos y empresas innovadoras, mediante convocatorias que pretenden identificar los mejores proyectos que acceden a financiamiento de capital semilla o capital de riesgo.",null,null,"Banco de Ideas",null,null,"Depende de las convocatorias pero deben ser proyectos con un potencial innovador.",null,null,"Etapa temprana, Primeras ventas",null,null,"Emprendimientos Innovadores",null,null,null,null,null,403000,null,null,3300000,null,null,"Demostrar que son empresas en edad temprana que generan impacto.",null,null,"http://www.bancodeideas.gob.ec/site/index",null,null,"Daniela Peralvo",null,null,0,null,null,"(593) 94 306216 ",null,null,"corinne.lebrun@creasecuador.com",null,null,0,null,null,0]
[null,"CONQUITO",null,"Inversionistas Ángeles, Capital de Riesgo",null,null,"IMPAQTO Capital  es un fondo que utiliza capital flexible para impulsar el crecimiento de startups de impacto de etapa temprana cuyas necesidades de financiamiento no están siendo servidas por el mercado, y así abordar la brecha en el acceso a capital del “missing middle”.",null,null,"BUENTRIP VENTURES",null,null,"FinTech, Logística, infraestructura de comercio electrónico, Plataformas, HealthTech y EdTech",null,null,"Empresas en marcha, Crecimiento y escalabilidad",null,null,"Pymes Innovadoras",null,null,null,null,null,null,null,null,null,null,null,"Las empresas deben evidenciar cierto nivel de madurez, con un nivel ventas consolidado y que tenga potencial de crecimiento",null,null,"https://creasecuador.com/files/INFORMACION_SOLICITANTE_FIDEICOMISO_CREAS_ECUADOR.xlsx",null,null,"Fernando Rivera",null,null,"Directora",null,null,"(593) 99 141 9044",null,null,"danielaperalvo@gmail.com\njustin@impaqto.net",null,null,"http://www.bancodeideas.gob.ec/",null,null,"Avenida República de El Salvador 406 y Moscú"]
[null,"CREAS ECUADOR",null,"Capital de Riesgo",null,null,"Ofrecen asesoría y estructuración de inversiones y son un gestor de fondos de Venture Capital",null,null,"FONDO \"GROWTH VENTURES\"",null,null,"Retail, fintech y tecnologia ",null,null,"Etapa temprana, Primeras ventas, Empresas en marcha, Crecimiento y escalabilidad",null,null,"Impacto ambiental, Impacto social",null,null,null,null,null,null,null,null,null,null,null,"1. Generar ventas de por lo menos $30.000 anual.\n2. Producto/servicio ya disponible en el mercado. (No en etapa de prototipo).\n3. Haber superado la etapa de búsqueda/necesidad de capital semilla.\n4. Aportar directamente a uno o varios Objetivos de Desarrollo Sostenible.\n5. Valor agregado definido frente a su competencia.\n6. Debe ser escalable.\n7. Debe estar en la capacidad de triplicar en 5 años el valor actual de su empresa.\n8. Debe contar con una valoración actual de su negocio para presentar sus propuestas al club de inversionistas",null,null,"https://fonquito.ec/",null,null,"Gabriel Bermeo",null,null,"General Partner ",null,null,"(593) 99 252 5955",null,null,"gbermeo@senescyt.gob.ec",null,null,"https://conquito.org.ec/",null,null,"Maldonado Oe1-172 y Jaime del Castillo, Quito - Ecuador"]
[null,"HUMBOLT FAMILY OFFICE",null,"Capital Semilla",null,null,"BuenTrip Ventures es una firma de capital de riesgo que aprovecha su posición como uno de los principales constructores de ecosistemas en América Latina para identificar, asesorar e invertir en nuevas empresas basadas en software que están transformando la economía de la región.",null,null,"FONDO \"STARTUPS\"",null,null,"Emprendimientos que hayan generado sus primeras ventas y estén siendo aceptados por el mercado.",null,null,"Prototipo, Puesta en marcha",null,null,"Empresas innovadoras",null,null,null,null,null,null,null,null,null,null,null,"1. Facturar más de 1 millón de USD en ventas anual.\n2. Tener el producto/servicio validado a nivel nacional.\n3. Tener definido su comprador, canales de distribución y oportunidades de crecimiento en su mercado actual.\n4. Tener claro los mercados internacionales en donde va a empezar/reforzar su comercialización.\n5. Aportar directamente a uno o varios Objetivos de Desarrollo Sostenible.\n6. Debe tener valor agregado definido frente a su competencia.\n7. Debe poder ser escalable.\n8. Debe estar en la capacidad de triplicar en 5 años el valor actual de su empresa.\n9. Deben contar con una valoración actual de su negocio para presentar sus propuestas al club de inversionistas.",null,null,"https://startupsventures.com/aplicacion/",null,null,"Kevin Eduardo Reinoso",null,null,"Managing Partner",null,null,"(593) 99 488 6178",null,null,"kreinoso@startupsventures.com",null,null,"https://creasecuador.com/",null,null,"Whymper E7-37 y Alpallana Quito - Ecuador"]
[null,"IMPAQTO",null,"Capital Semilla, Capital de Riesgo",null,null,"El fideicomiso \"STARTUPS\" es un fondo de inversión con un capital de 300.000 USD, que busca impulsar el desarrollo y crecimiento de emprendimientos nacientes en el Ecuador.",null,null,"IMPAQTO Capital",null,null,"Pymes que hayan logrado ventas por más de 1 millón de USD y tengan productos validados a nivel nacional y definidos los mercados internacionales a los que se quieren llegar.",null,null,"Idea, Prototipo, Puesta en marcha",null,null,"Innovación tecnológica",null,null,null,null,null,null,null,null,null,null,null,"1. La Empresa deberá ser una Persona Jurídica, catalogada como Sociedad Anónima S.A. o Sociedad por Acciones Simplificada S.A.S.\n2. En caso de que la inversión sea en una compañía extranjera, esta deberá estar constituida al amparo de la ley vigente en su país de procedencia.\n3. Deberá estar dispuesta a abrir capital accionario para inversión de capital.\n4. Deberá poder demostrar un impacto positivo ambiental y/o social escalable en el país, y comprometerse a medir de manera trimestral dicho impacto.\n5. Deberá tener y proveer información financiera confiable y que pueda ser respaldada y verificada por CREAS ECUADOR.\n6. Deberá estar al día en sus obligaciones: Tributarias, Seguridad Social, laboral, ambiental (si aplica), etc. \n7. En caso de las compañías extranjeras deberán cumplir con las obligaciones según la legislación vigente en su país de constitución.",null,null,"https://startupsventures.com/aplicacion-growth/",null,null,"Thierry Benoit",null,null,"Coordinador y analista de inversiones",null,null,"(593) 99 648529 / 0996486529",null,null,"thierry@hfo.ec",null,null,"https://www.buentriphub.com/",null,null,"Av. 6 de Diciembre N31-1104 y Whymper. Edificio Torres Tenerife. Primer piso"]
[null,"SENESCYT",null,null,null,null,"El fideicomiso \"GROWTH VENTURES\" es un fondo de inversión con un capital de 1 000.000 USD, busca impulsar el crecimiento e internacionalización de PYMES en el Ecuador.",null,null,"(en blanco)",null,null,"Agroindustria y Alimentos, Salud y Bienestar, Educación, Empleo Formal y Desarrollo Económico y Cleantech. \n\nAdemás, el fondo aplica la perspectiva de género para promover la equidad en todos los pasos de la inversión.",null,null,null,null,null,"Impacto social, Impacto ambiental",null,null,null,null,null,null,null,null,null,null,null,"1. Los emprendedores cuentan con una solución innovadora que es difícil de replicar.\n\n2. Tienen un equipo de fundadores dedicado a tiempo completo y que demuestra fortaleza en diferentes habilidades de negocio (tecnología, gestión comercial, expertise en el segmento de mercado).\n\n3. Han comprobado que el mercado para su solución les permitirá crecer rápidamente y que existe demanda para su solución.\n\n4. Los founders se comprometen con BuenTrip Ventures a ceder 5% de participación accionaria de la startup. Este porcentaje deberá corresponder a una empresa constituida en EEUU.",null,null,"https://www.buentrip.vc/",null,null,"Corinne Lebrun",null,null,"Responsable de Emprendimiento",null,null,"(593) 992680759 / 2 250 5660",null,null,"vjuna@conquito.org.ec",null,null,"https://www.impaqtocapital.com/",null,null,"(en blanco)"]
[null,"STARTUPS VENTURES - \"STARTUPS\"",null,null,null,null,"Primer fondo de inversión de impacto ecuatoriano. Busca invertir en empresas que tengan un impacto social o ambiental positivo en el país.\n\nEl Fondo de Inversión de Impacto CREAS ECUADOR nace con un objetivo: apoyar el cumplimiento de la agenda de la ONU 2030 sobre el Desarrollo Sostenible, con sus 17 Objetivos de Desarrollo Sostenible para dejar un mejor planeta a generaciones futuras. ",null,null,"FONQUITO",null,null,"Emprendimientos o empresas pequeñas (con ventas de hasta USD 1 millón) que tengan por enfoque el resolver un problema ambiental o social.\n\nEl monto de inversión deberá representar hasta un máximo del 49% del valor total del capital accionario de la Empresa.",null,null,null,null,null,"Impacto social, Impacto ambiental, generación de empleo",null,null,null,null,null,null,null,null,null,null,null,"1. Propuestas de emprendimiento productivo con enfoque social y/o ambiental que resuelvan una problemática de mercado y que permitan a su vez generar un impacto social, cultural y/o ambiental identificada en la comunidad donde se desarrolla la organización, asociación o el colectivo.\n\n2. Los emprendedores deben tene RUC o RIMPE, los emprendedores deben estar docimiliados en el pais, y constar en el Registro Nacional de Emprendedores. Los proyectos y/o emprendimientos deberán ser ejecutados en el DMQ, sin que pueda limitar su alcance a nivel nacional o internacional.",null,null,"https://www.impaqtocapital.com/",null,null,"Verónica Juna ",null,null,null,null,null,"(593) 2 6055550",null,null,"info@buentriphub.com",null,null,"https://startupsventures.com/"]
[null,"STARTUPS VENTURES - \"GROWTH VENTURES\"",null,null,null,null,"FONQUITO es el Fondo  creado con el objetivo de inyectar recursos en el aparato productivo, mediante la adjudicación de capital semilla a emprendimientos con potencial de crecimiento.\n\nEl Programa FONQUITO realiza varias convocatorias en el transcurso del año.",null,null,null,null,null,"Innovación gastronómica: alimentos frescos, procesados y bebidas, Confecciones, textiles y calzado, Salud, bienestar y belleza, Agricultura y ambiente, Cultura, deportes y turismo, Educación, Finanzas, Tecnología, Economía Circular.\n\nLa priorización se define en función de cada convocatoria.",null,null,null,null,null,null,null,null,null,null,null,null,null,null,null,null,null,"1. Registrar el proyecto en el banco de ideas.\n2. Aplicar a las convocatorias\n3. Si el proyecto tiene un factor innovador y una calificación favorable, recibirá capital y asesoramiento presencial.",null,null,"tierri@hfo.ec"]

{"sheet":"Incubadoras","index":5,"n_rows":35,"n_cols":9,"rows_kept":35,"cut":false,"hidden":false,"merged":[[0,0,0,6],[0,8,0,9],[22,4,33,4],[22,6,33,6],[22,8,33,8],[13,0,13,9],[11,0,11,9],[15,4,20,4],[15,6,20,6],[15,8,20,8]]}
["INSTRUCCIONES:\n• Para encontrar las diferentes Incubadoras y Aceleradoras disponibles, elige una de las opciones disponibles y descubre su descripción en la parte inferior.",null,null,null,null,null,null,null,"¡Recuerda! Para elegir otra incubadora o aceleradora, debes borrar todos los filtros.\nPara hacerlo, haz clic ➡️"]
[]
[]
[]
[]
[]
[]
[]
[]
[]
[]
["Incubadoras y Aceleradoras en el Distrito Metropolitano de Quito"]
[]
[{"$f":"IF(OR(TD_Incubadoras!$K$2=0,TD_Incubadoras!$K$2=\"(en blanco)\"),\" \",TD_Incubadoras!$K$2)","v":" "}]
[]
[null,null,null,null,{"$f":"IF(TD_Incubadoras!$H$2=0,0,TD_Incubadoras!$H$2)","v":0},null,{"$f":"IF(TD_Incubadoras!$E$2=0,\"En esta sección encontrará información sobre los programas de Incubación y aceleración para emprendimiento y MIPYMES en el Distrito Metropilitano de Quito\",\"TIPO DE SERVICIO\n\n\"&TD_Incubadoras!$E$2)","v":"En esta sección encontrará información sobre los programas de Incubación y aceleración para emprendimiento y MIPYMES en el Distrito Metropilitano de Quito"},null,{"$f":"IF(TD_Incubadoras!$N$2=0,0,\"SECTORES PRIORIZADOS\n\n\"&TD_Incubadoras!$N$2)","v":0}]
[]
[]
[]
[]
[]
[]
[null,null,null,null,{"$f":"IF(TD_Incubadoras!$Q$2=0,0,\"REQUISITOS: \n\n\"&TD_Incubadoras!$Q$2)","v":0},null,{"$f":"IF(TD_Incubadoras!$T$2=0,0,\"SERVICIOS: \n\n\"&TD_Incubadoras!$T$2)","v":0},null,{"$f":"IF(TD_Incubadoras!$W$2=0,0,\"LINK PARA APLICACIÓN\n\n\"&TD_Incubadoras!$W$2)","v":0}]
[]
[]
[]
[]
[]
[{"$f":"IF(OR(A30<>\"\",A31<>\"\",A32<>\"\",A33<>\"\",A34<>\"\",A35<>\"\"),\"Información de Contacto\",\"\")","v":""}]
[{"$f":"IF(OR(TD_Incubadoras!Z2=0,TD_Incubadoras!Z2=\"(en blanco)\"),\"\",TD_Incubadoras!Z2)","v":""}]
[{"$f":"IF(OR(TD_Incubadoras!AC2=0,TD_Incubadoras!AC2=\"(en blanco)\"),\"\",TD_Incubadoras!AC2)","v":""}]
[{"$f":"IF(OR(TD_Incubadoras!AF2=0,TD_Incubadoras!AF2=\"(en blanco)\"),\"\",TD_Incubadoras!AF2)","v":""}]
[{"$f":"IF(OR(TD_Incubadoras!AI2=0,TD_Incubadoras!AI2=\"(en blanco)\"),\"\",TD_Incubadoras!AI2)","v":""}]
[{"$f":"IF(OR(TD_Incubadoras!AL2=0,TD_Incubadoras!AL2=\"(en blanco)\"),\"\",TD_Incubadoras!AL2)","v":""}]
[{"$f":"IF(OR(TD_Incubadoras!AO2=0,TD_Incubadoras!AO2=\"(en blanco)\"),\"\",TD_Incubadoras!AO2)","v":""}]

{"sheet":"TD_Incubadoras","index":6,"n_rows":17,"n_cols":41,"rows_kept":17,"cut":false,"hidden":true,"merged":[]}
[null,{"$f":"IF(B2<>1,\"Seleccione una Incubadora\",\"Limpiar Filtro\")","v":"Seleccione una Incubadora"}]
[null,{"$f":"COUNTA($B$4:$B$17)","v":14},null,{"$f":"COUNTA($B$4:$B$10)","v":7},{"$f":"IF(D2=1,D4,0)","v":0},null,{"$f":"COUNTA($B$4:$B$10)","v":7},{"$f":"IF(G2=1,G4,0)","v":0},null,{"$f":"COUNTA($B$4:$B$10)","v":7},{"$f":"IF(J2=1,J4,0)","v":0},null,{"$f":"COUNTA($B$4:$B$10)","v":7},{"$f":"IF(M2=1,M4,0)","v":0},null,{"$f":"COUNTA($B$4:$B$10)","v":7},{"$f":"IF(P2=1,P4,0)","v":0},null,{"$f":"COUNTA($B$4:$B$10)","v":7},{"$f":"IF(S2=1,S4,0)","v":0},null,{"$f":"COUNTA($B$4:$B$10)","v":7},{"$f":"IF(V2=1,V4,0)","v":0},null,{"$f":"COUNTA($B$4:$B$10)","v":7},{"$f":"IF(Y2=1,Y4,0)","v":0},null,{"$f":"COUNTA($B$4:$B$10)","v":7},{"$f":"IF(AB2=1,AB4,0)","v":0},null,{"$f":"COUNTA($B$4:$B$10)","v":7},{"$f":"IF(AE2=1,AE4,0)","v":0},null,{"$f":"COUNTA($B$4:$B$10)","v":7},{"$f":"IF(AH2=1,AH4,0)","v":0},null,{"$f":"COUNTA($B$4:$B$10)","v":7},{"$f":"IF(AK2=1,AK4,0)","v":0},null,{"$f":"COUNTA($B$4:$B$10)","v":7},{"$f":"IF(AN2=1,AN4,0)","v":0}]
[null,"Etiquetas de fila",null,"Etiquetas de fila",null,null,"Etiquetas de fila",null,null,"Etiquetas de fila",null,null,"Etiquetas de fila",null,null,"Etiquetas de fila",null,null,"Etiquetas de fila",null,null,"Etiquetas de fila",null,null,"Etiquetas de fila",null,null,"Etiquetas de fila",null,null,"Etiquetas de fila",null,null,"Etiquetas de fila",null,null,"Etiquetas de fila",null,null,"Etiquetas de fila"]
[null,"BIOLEGAL",null,"Aceleradora",null,null,"Aceleran el crecimiento de startups de base tecnológica brindando espacios para desarrollar sus proyectos, acompañamiento de mentores de altísimo nivel, acceso a fuentes de inversión y visibilidad dentro del ecosistema.",null,null,"BIOLEGAL",null,null," Emprendedores que se encuentran en una etapa inicial de generación de ideas.\n Emprendedores que estén en una etapa avanzada de puesta en marcha.\nEmpresarios y personas que busquen mejorar su capacidad emprendedora",null,null," MIPYMES turísticas que presenten proyectos turísticos innovadores para expandir su mercado objetivo y que tengan más de 36 meses en el mercado.\n\nDiferenciación respecto al existente en el mercado ecuatoriano, o que sustituyan a un servicio con otro de mejor calidad.\n\nSatisfacer necesidades del turista actual y potencial, garantizando el efectivo ejercicio de los derechos de las personas, las comunidades, los pueblos, las nacionalidades y de la naturaleza.",null,null,"6 meses de acompañamiento\nEquity free\nMetodología de aceleración enfocado: acceso a capital, crecimento, escalamiento\nMentorías con ejecutivos de alto nivel\nAsesorías con el equipo Endeavor\nDemo Day con los fondos más importantes de LATAM\nTalleres estratégicos\nConexiones directas con corporaciones\nEcosistemas de emprendedores y networking",null,null,"https://conquito.org.ec/emprendimiento-e-innovacion/",null,null," Ernesto Kruger",null,null,"CEO fundador",null,null,0,null,null,"academico@ifpo.es",null,null,"http://www.krugerlabs.com/",null,null,"AV. Eloy Alfaro N35-144 y Portugal (a 100 metros al norte de la iglesia de Fátima) "]
[null,"BuenTrip Hub",null,"Aceleradora, Capital de Riesgo",null,null,"Apoya a emprendimientos relacionados con proyectos geológicos y energéticos, en la fase de preincubación ",null,null,"BuenTrip Hub",null,null,"Alojamiento, Servicio de alimentos y bebidas, Transportación, cuando se dedica principalmente al turismo, Operación, Intermediación, agencias de servicios turísticos y organizadoras de eventos y congresos, Hipódromos y parques de atracciones estables, Tecnología aplicada a las actividades turísticas",null,null,"De cualquier sector con potencial de crecimiento y aceleración.",null,null,"Asesoría técnica, legal, financiera y apoyo para acceder a fuentes de financiamiento e inversión",null,null,"https://conquito.org.ec/servicios-emprendimiento/",null,null,"Alexander Vinueza",null,null,"Coordinadora de Mentorías",null,null,"(593) 24521394\n(593) 984254986\n(593) 995639443",null,null,"avasconez@workingup.com.ec",null,null,"https://conquito.org.ec/",null,null,"Av. Gran Colombia y Briceño"]
[null,"CONQUITO: EMPRETEC",null,"Incubadora",null,null,"Desarrolla actividades que permiten fortalecer e incentivar el emprendimiento de los ciudadanos del Distrito Metropolitano de Quito, a través de talleres técnicos para la puesta en marcha y fortalecimiento de emprendimientos, basado en herramientas útiles, prácticas y necesarias para su desarrollo.",null,null,"CONQUITO: EMPRETEC",null,null,"Cosméticos, Alimentos y Bebidas, Artesanías, Artículos de bazar, Servicios para la Industria (incluye software)",null,null,"Demostrar un crecimiento financiero y operacional acelerado en el último año\nMercados en crecimiento\nCapaz de innovar y diferenciar de los competidores\nModelo de negocio escalable",null,null,"Durante el Taller se trabajan diversos módulos tendientes a que el participante logre:\n\nIdentificar o mejorar sus oportunidades empresariales.\nEntender su propio comportamiento en relación con la asunción de riesgos calculados.\nApreciar la importancia de los comportamientos de persistencia y cumplimiento.\nEntender la relación existente entre la calidad y la eficiencia, \nAprender a buscar información.\nEvaluar su planeamiento actual y sus capacidades para la solución de problemas.\nAumentar su capacidad de persuasión.\nPlanificar estrategias de negocios efectivas y sacar provecho de las iniciativas.\nAdaptarse a cambios rápidos y a las incertidumbres del mercado",null,null,"https://endeavor.org.ec/scaleup/",null,null,"Andrés Vásconez",null,null,"Directora",null,null,"(593) 3999333",null,null,"danielaperalvo@gmail.com\njustin@impaqto.net",null,null,"https://endeavor.org.ec/",null,null,"Avenida República de El Salvador 406 y Moscú"]
[null,"CONQUITO: Talleres para el desarrollo de Emprendimientos",null,null,null,null,"Emprende Turismo es una iniciativa que apoya, capacita y acompaña en cada una de las etapas para el desarrollo de los emprendimientos turísticos.",null,null,"CONQUITO: Talleres para el desarrollo de Emprendimientos",null,null,"Cualquier sector",null,null,"El programa comienza enfocándose en el emprendedor individualmente, sobre la base de un formulario de inscripción y de entrevistas focalizadas, previas a la realización del Taller.\n\nEl taller se desarrolla durante 6 jornadas intensivas. Resulta muy importante para el éxito del Taller que los participantes puedan concentrarse en las prácticas y reflexiones a que los lleva esta capacitación.",null,null,"Herramientas para un correcto desarrollo de la idea del emprendimiento.\n10 talleres de capacitación a emprendedores que se encuentran en proceso de desarrollar su idea de negocio, emprendimientos que sean rentables, sostenibles y con proyección de crecimiento.\nTrabaja con emprendedores que inician su emprendimiento o aún no han conseguido conectar con el mercado, de manera efectiva. \nApoya a emprendimientos que ya se encuentran en etapa de comercialización y que necesitan expandirse o crecer.\nOfrecen espacios de coworking",null,null,"https://ipc.org.ec/",null,null,"CARLOS ANDRES CAMPANA DIAZ",null,null,"General Manager",null,null,"(593) 94 306216 ",null,null,"ernesto@krugercorporation.com",null,null,"https://ipc.org.ec/",null,null,"Edificio K+, Arizaga Luque N34-206"]
[null,"ENDEAVOR: ScaleUp",null,null,null,null,"Empretec es un programa internacional de la Organización de Naciones Unidas, que ha sido concebido y diseñado para identificar, formar y apoyar a emprendedores, el mismo que se encuentra administrado por la Secretaría de la UNCTAD (Conferencia de las Naciones Unidas para el Comercio y Desarrollo) en Ginebra (Suiza).\n\nConsiste en un Taller de formación intensivo. En Ecuador, CONQUITO es la entidad contraparte.",null,null,"ENDEAVOR: ScaleUp",null,null,"Emprendedores",null,null,"Emprendedores del DMQ que se registren a través de las redes sociales de CONQUITO.",null,null,"Ideación\nEl taller de ideación está diseñado con el objetivo de brindar a los usuarios, una herramienta sencilla y práctica para introducir a la persona emprendedora al mundo del emprendimiento y principalmente fomentar la creatividad  para la generación de ideas de negocios.\n\nModelo de negocios\nEl Modelo de Negocios es una herramienta que permite a una empresa o persona definir la forma en la que crea, entrega y captura valor para el cliente. Utiliza el Modelo de Negocio Canvas, con el objetivo de visualizar de manera gráfica su idea de negocio, a través de actividades teórico-prácticas que les permitirán estructurar sobre un lienzo los aspectos estratégicos que definen un modelo de negocio.",null,null,"https://servicios.turismo.gob.ec/emprende-2022",null,null,"Daniela Peralvo",null,null,"Gerente General",null,null,"(593) 986732147\n(593) 2 394 8760",null,null,"fomentoturistico2020@gmail.com",null,null,"https://servicios.turismo.gob.ec/emprende-2022",null,null,"Edificio Metropolitan, Av. Naciones Unidas 70507, Quito 170102"]
[null,"FUNDACIÓN IPC",null,null,null,null,"Es el resultado de la articulación público privada, entre el Ministerio de Producción, Comercio Exterior, Inversiones y Pesca y empresas nacionales especializadas en gestión y desarrollo de emprendimientos y competencias conductuales corporativas para emprendedores\n\nEl programa busca promover una actividad productiva nueva e innovadora, como parte sustancial de la reactivación económica del país.",null,null,"FUNDACIÓN IPC",null,null,"Empresas tecnológicas o habilitadas por tecnología.",null,null,"Emprendimientos en etapa de idea, prototipado o puesta en marcha",null,null,"Incubación de empresas\nConstrucción de plan de negocios\nDefinición de propuesta de valor\nDefinición de hoja de ruta\nAsesoría en opciones de financiamiento\nOfrecen espacios de coworking",null,null,"https://sites.google.com/view/apoyoemprendimiento/programas/programa-de-apoyo-al-emprendedor?authuser=0\n\nhttps://ecuadoremprendedor.ec/",null,null,"Fernando Rivera",null,null,"Managing Director",null,null,"(593) 99 141 9044",null,null,"glopezl@producción.gob.ec",null,null,"https://workingup.com.ec/",null,null,"Las Malvas E15-142 (INIGEMM-IIGE), Los Perales (ec170503)"]
[null,"IMPAQTO Lab",null,null,null,null,"IMPAQTO Lab es nuestra aceleradora para emprendimientos de triple impacto ubicados en América Latina. Contamos con el aval de Google for Startups.",null,null,"IMPAQTO Lab",null,null,"FinTech, Logística, infraestructura de comercio electrónico, Plataformas, HealthTech y EdTech",null,null,"Emprendimientos en etapa de idea, prototipado o puesta en marcha.\n\nEl emprendedor debe contactarse a través del correo electrónico para postular con su proyecto y un comité evalúa si está alineado con los objetivos del Instituto.",null,null,"PROCESO DE ACELERACIÓN para 60 emprendimientos seleccionados \nquienes recibirán:\n\n13 Sesiones de capacitación y acompañamiento \n2 Sesiones de mentoría para fortalecimiento empresarial.\nElaboración de un video promocional para los 10 ganadores de la convocatoria Emprende Turismo 2022 en la categoría En Marcha.\nOtros premios de las organizaciones aliadas a la convocatoria Emprende Turismo 2022 y que serán publicadas en la página de la institución. ",null,null,"https://workingup.com.ec/servicios/",null,null,"Juan Ramon Garcia",null,null,"Managing Partner",null,null,"(593) 99 3420176 / 2 292 3600",null,null,"info.ecuador@endeavor.org",null,null,"https://www.bio-legal.com/",null,null,"Maldonado Oe1-172 y Jaime del Castillo, Quito - Ecuador"]
[null,"INSTITUTO DE INVESTIGACION GEOLOGICO Y ENERGETICO",null,null,null,null,"KrugerLabs es la aceleradora de negocios digitales de Kruger que busca ampliar el ecosistema emprendedor digital y facilitar el financiamiento para startups de Latinoamérica. ",null,null,"INSTITUTO DE INVESTIGACION GEOLOGICO Y ENERGETICO",null,null,"Fintech, Retail, Insure Tech, Blockchain, VR/AR, Cybersecurity, entre otros",null,null,"Empresas que tengan un prototipo o PMV, que cuenten con al menos 1 año en operación, con clientes identificados y un modelo de negocio establecido y con potencial de crecimiento.",null,null,"Proceso de GESTIÓN DE INNOVACIÓN para 60 emprendimientos seleccionados quienes recibirán:\n\n13 Sesiones de capacitación y acompañamiento \n2 Sesiones de mentoría para fortalecimiento empresarial.\nElaboración de un video promocional para los 10 ganadores de la convocatoria Emprende Turismo 2022 categoría Consolidación.\nFortalecimiento de la gestión comercial de la empresa.\nOtros premios de las instituciones aliadas que serán publicadas en la página de la institución. ",null,null,"https://www.bio-legal.com/",null,null,"María Fernanda Dávalos",null,null,"(en blanco)",null,null,"(593) 99 823 2323",null,null,"info@bio-legal.com\nalejandra.villacis@bio-legal.net",null,null,"https://www.buentriphub.com/",null,null,"Nayón, calle Quito E6-02 y Luis Cordero"]
[null,"KRUGER LABS: Aceleración de Startups",null,null,null,null,"Proporcionan mentoría, asesoría legal, técnica y apoyo ante entidades públicas para el acceso a financiamiento.",null,null,"KRUGER LABS: Aceleración de Startups",null,null,"Geología y Energía",null,null,"Iniciativas de negocios turísticos innovadores en fase de ideación, exploración, gestación, prototipado, y/o producto mínimo viable.\n\nDiferenciación respecto al existente en el mercado ecuatoriano, o que sustituyan a un servicio con otro de mejor calidad.\n\nSatisfacer necesidades del turista actual y potencial, garantizando el efectivo  ejercicio de los derechos de las personas, las comunidades, los pueblos, las nacionalidades y de la naturaleza. ",null,null,"Proceso de incubación para 60 emprendimientos seleccionados quienes recibirán:\n\n13 Sesiones de capacitación y acompañamiento \n2 Sesiones de mentoría para fortalecimiento empresarial.\nElaboración de un video promocional para los 3 ganadores de la convocatoria Emprende Turismo 2022. \nOtros premios de las organizaciones aliadas a la convocatoria Emprende Turismo 2022 y que serán publicadas en la página de la institución. ",null,null,"https://www.buentriphub.com/elprograma",null,null,"Michelle Silva",null,null,"Responsable de Emprendimiento",null,null,"(593) 990757778 / 22976100",null,null,"laboratorio.incubacion@geoenergia.gob.ec",null,null,"https://www.geoenergia.gob.ec/portafolio-de-servicios/",null,null,"Plataforma Gubernamental Financiera. Amazonas entre Unión Nacional de Periodistas y Alfonso Pereira"]
[null,"MINTUR: Emprende Turismo  Consolidación",null,null,null,null,"ScaleUp impulsa a las principales y más relevantes verticales tecnológicas, para conjuntamente potenciar la transformación digital, el desarrollo económico y el ecosistema de emprendimiento en el Ecuador.",null,null,"MINTUR: Emprende Turismo  Consolidación",null,null,"Trabajan con todos los sectores. Han apoyado proyectos de tecnología, agrícolas, restaurantes, entre otros.",null,null,"MIPYMES innovadores, que resuelvan problemáticas del sector turístico, que hayan superado su etapa de gestación, generado sus primeras ventas y se encuentren en etapa de comercialización o expansión y deberán tener hasta 36 meses de operación.\n\nDiferenciación respecto al existente en el mercado ecuatoriano, o que sustituyan a un servicio con otro de mejor calidad.\n\nSatisfacer necesidades del turista actual y potencial, garantizando el efectivo ejercicio de los derechos de las personas, las comunidades, los pueblos, las nacionalidades y de la naturaleza.",null,null,"Programa virtual intensivo de 15 semanas, en el cual los emprendedores\nasisten a sesiones regulares de capacitación, conexión y aprendizaje lideradas por Google Experts y facilitadores internacionales. \nReciben apoyo y acompañamiento personalizado desde nuestra red de más de 60 mentores de alto nivel de América Latina, EE. UU. y Europa.\nSe conectan con inversionistas de impacto y otros actores del ecosistema de emprendimiento social regional.\nAcceden a beneficios exclusivos de nuestra red de aliados, como Google, Amazon Web Services, Hubspot, IBM y Trust Law.\nForman parte de una comunidad potente de egresados (alumni) a nivel regional.\nSe realizan convocatorias dos veces al año para seleccionar a nuevos emprendimientos para IMPAQTO Lab.\nOfrecen espacios de coworking",null,null,"https://www.impaqto.net/lab",null,null,"Rosi Prado de Holguin",null,null,null,null,null,"(593) 992701953 / 25152502",null,null,"vjuna@conquito.org.ec",null,null,"https://www.impaqtocapital.com/",null,null,"San Ignacio N27-127 y González Suárez"]
[null,"MINTUR: Emprende Turismo  Idea - Proyecto:",null,null,null,null,"Workingup es una incubadora de empresas y un espacio de coworking que potencia a los emprendedores ecuatorianos",null,null,"MINTUR: Emprende Turismo  Idea - Proyecto:",null,null,"Emprendimiento de cualquier sector, pero en función del enfoque de posibles financiadores hay interés en energía renovable, tratamiento de aguas, agro industria, educación, entre otros.",null,null,"Modelos de negocio innovadores en growth stage que tengan un prototipo validado en el mercado y se encuentren experimentando primeros niveles de ventas.",null,null,"Valoración certificada\nApertura de cartera\nPresentación a fondos\nMentoría de arquitectura\nAcceso a la nube de servicios\nEntrevista con expertos en la industria\nHoras de asesoría legal y contable\nWorkshop de innovación\nExposición a potenciales inversores\nOfrecen espacios de coworking",null,null,"https://www.krugerlabs.com/aplicacion/",null,null,"Verónica Juna ",null,null,null,null,null,"(593) 2 6055550",null,null,"info@buentriphub.com",null,null,"https://www.produccion.gob.ec/",null,null,"(en blanco)"]
[null,"MINTUR: Emprende Turismo  Puesta en Marcha",null,null,null,null,"Es una aceleradora que apoya a empresas con potencial de crecimiento a través de asistencia técnica, legal, financiera y en la búsqueda de acceso a financiamiento",null,null,"MINTUR: Emprende Turismo  Puesta en Marcha",null,null,null,null,null,"Proyectos productivos, con valor agregado y que estén orientados a mercados de exportación.",null,null,"Al terminar el progrrama BuenTrip Ventures invertirá $50,000.00 en tu startup.\nHabrás perfeccionado tu pitch de inversión y toolkit con herramientas para levantar capital. \nPodrás presentar en nuestro Demo Day frente a fondos de venture capital e inversionistas ángeles activos de la región. \nPasarás a formar parte de la comunidad de Alumni BuenTrip y podrás apoyarte en otros founders. \nRecibirás guía de cómo constituirte en EEUU y tener la estructura apropiada para levantar capital.\nHabrás ampliado tu red con más de 20 mentores. \nTendrás acceso a una librería de recursos para que sigas aprendiendo. \nTendrás acceso a todos los perks de BuenTrip, incluyendo perks de AWS, Microsoft, Hubspot y otros. \nPodrás ser considerado para que BuenTrip Ventures haga una inversión adicional en tu startup de hasta $150,000. \nPasarás a formar parte del portafolio de BuenTrip Ventures, donde compartirás con sus 35+ founders oportunidades y conocimiento.\nOfrecen espacios de coworking",null,null,"laboratorio.incubacion@geoenergia.gob.ec"]
[null,"MIPRO: Programa de apoyo al Emprendedor",null,null,null,null,null,null,null,"MIPRO: Programa de apoyo al Emprendedor",null,null,null,null,null,"Ser una startup de software B2B.\n\n Tener un producto funcional y en validación temprana.\n\nTener un equipo a tiempo completo\n\nTener una visión regional o global.",null,null,"Asesoría técnica, legal, financiera y orientación para postular a fondos internacionales.\nEn las instalaciones de coworking los proyectos aceptados pueden utilizar las instalaciones y equipos para el prototipado."]
[null,"WORKINGUP",null,null,null,null,null,null,null,"WORKINGUP",null,null,null,null,null,"Startups con Impacto social o ambiental"]

{"sheet":"Crowdfunding","index":7,"n_rows":28,"n_cols":9,"rows_kept":28,"cut":false,"hidden":false,"merged":[[0,0,0,6],[0,8,0,9],[20,4,36,4],[20,6,36,6],[20,8,36,8],[10,0,10,9],[12,0,12,9],[14,4,18,4],[14,6,18,6],[14,8,18,8]]}
["INSTRUCCIONES:\n• Para encontrar los diferentes Crowdfunding disponibles, elige una de las opciones disponibles y descubre su descripción en la parte inferior.",null,null,null,null,null,null,null,"¡Recuerda! Para elegir otro Crowdfunding,\ndebes borrar todos los filtros.\nPara hacerlo, haz clic ➡️"]
[]
[]
[]
[]
[]
[]
[]
[]
[]
["Plataformas de Crowdfunding en el Distrito Metropolitano de Quito"]
[]
[{"$f":"IF(OR(TD_Crowdfunding!$B$2>1,TD_Crowdfunding!$B$4=\"(en blanco)\"),\" \",TD_Crowdfunding!$B$4)","v":" "}]
[]
[null,null,null,null,{"$f":"IF(TD_Crowdfunding!$E$2=0,0,TD_Crowdfunding!$E$2)","v":0},null,{"$f":"IF(TD_Crowdfunding!$H$2=0,\"En esta sección encontrará información sobre las Plataformas de Crowdfunding a través de las cuales los emprendedores pueden publicar sus iniciativas para conectar con inversores, donantes o consumidores.\",\"PROYECTOS QUE PUBLICAN:\n \n\"&TD_Crowdfunding!$H$2)","v":"En esta sección encontrará información sobre las Plataformas de Crowdfunding a través de las cuales los emprendedores pueden publicar sus iniciativas para conectar con inversores, donantes o consumidores."},null,{"$f":"IF(TD_Crowdfunding!$K$2=0,0,\"BENEFICIOS: \n\n\"&TD_Crowdfunding!$K$2)","v":0}]
[]
[]
[]
[]
[]
[{"$f":"IF(OR(A23<>\"\",A24<>\"\",A25<>\"\",A26<>\"\",A27<>\"\",A28<>\"\"),\"Información de Contacto\",\"\")","v":""},null,null,null,{"$f":"IF(TD_Crowdfunding!$N$2=0,0,\"COMISIONES: \n\n\"&TD_Crowdfunding!$N$2)","v":0},null,{"$f":"IF(TD_Crowdfunding!$Q$2=0,0,\"RESTRICCIONES: \n\n\"&TD_Crowdfunding!$Q$2)","v":0},null,{"$f":"IF(TD_Crowdfunding!$T$2=0,0,\"LINK DE LA PLATAFORMA\n\n\"&TD_Crowdfunding!$T$2)","v":0}]
[]
[{"$f":"IF(OR(TD_Crowdfunding!W2=0,TD_Crowdfunding!W2=\"(en blanco)\"),\"\",TD_Crowdfunding!W2)","v":""}]
[{"$f":"IF(OR(TD_Crowdfunding!Z2=0,TD_Crowdfunding!Z2=\"(en blanco)\"),\"\",TD_Crowdfunding!Z2)","v":""}]
[{"$f":"IF(OR(TD_Crowdfunding!AC2=0,TD_Crowdfunding!AC2=\"(en blanco)\"),\"\",TD_Crowdfunding!AC2)","v":""}]
[{"$f":"IF(OR(TD_Crowdfunding!AF2=0,TD_Crowdfunding!AF2=\"(en blanco)\"),\"\",TD_Crowdfunding!AF2)","v":""}]
[{"$f":"IF(OR(TD_Crowdfunding!AI2=0,TD_Crowdfunding!AI2=\"(en blanco)\"),\"\",TD_Crowdfunding!AI2)","v":""}]
[{"$f":"IF(OR(TD_Crowdfunding!AL2=0,TD_Crowdfunding!AL2=\"(en blanco)\"),\"\",TD_Crowdfunding!AL2)","v":""}]

{"sheet":"TD_Crowdfunding","index":8,"n_rows":5,"n_cols":38,"rows_kept":5,"cut":false,"hidden":true,"merged":[]}
[null,{"$f":"IF(B2<>1,\"Seleccione una Plataforma\",\"Limpiar Filtro\")","v":"Seleccione una Plataforma"}]
[null,{"$f":"COUNTA($B$4:$B$5)","v":2},null,{"$f":"COUNTA($B$4:$B$10)","v":2},{"$f":"IF(D2=1,D4,0)","v":0},null,{"$f":"COUNTA($B$4:$B$10)","v":2},{"$f":"IF(G2=1,G4,0)","v":0},null,{"$f":"COUNTA($B$4:$B$10)","v":2},{"$f":"IF(J2=1,J4,0)","v":0},null,{"$f":"COUNTA($B$4:$B$10)","v":2},{"$f":"IF(M2=1,M4,0)","v":0},null,{"$f":"COUNTA($B$4:$B$10)","v":2},{"$f":"IF(P2=1,P4,0)","v":0},null,{"$f":"COUNTA($B$4:$B$10)","v":2},{"$f":"IF(S2=1,S4,0)","v":0},null,{"$f":"COUNTA($B$4:$B$10)","v":2},{"$f":"IF(V2=1,V4,0)","v":0},null,{"$f":"COUNTA($B$4:$B$10)","v":2},{"$f":"IF(Y2=1,Y4,0)","v":0},null,{"$f":"COUNTA($B$4:$B$10)","v":2},{"$f":"IF(AB2=1,AB4,0)","v":0},null,{"$f":"COUNTA($B$4:$B$10)","v":2},{"$f":"IF(AE2=1,AE4,0)","v":0},null,{"$f":"COUNTA($B$4:$B$10)","v":2},{"$f":"IF(AH2=1,AH4,0)","v":0},null,{"$f":"COUNTA($B$4:$B$10)","v":2},{"$f":"IF(AK2=1,AK4,0)","v":0}]
[null,"Etiquetas de fila",null,"Etiquetas de fila",null,null,"Etiquetas de fila",null,null,"Etiquetas de fila",null,null,"Etiquetas de fila",null,null,"Etiquetas de fila",null,null,"Etiquetas de fila",null,null,"Etiquetas de fila",null,null,"Etiquetas de fila",null,null,"Etiquetas de fila",null,null,"Etiquetas de fila",null,null,"Etiquetas de fila",null,null,"Etiquetas de fila"]
[null,"GreenCrowds",null,"Greencrowds es una estrategia de financiamiento colaborativo del Programa de Pequeñas Donaciones (PPD/FMAM/PNUD) por su compromiso con la conservación. \n\nTrabaja para generar redes de colaboración y financiación para iniciativas comprometidas con la conservación de la naturaleza y los Objetivos de Desarrollo Sostenibles (ODS)",null,null,"Arte y Música\nDeportes\nEmprendimientos\nEstudios\nEventos \nProyectos Sociales\nSalud",null,null,"Editar su campaña a medida que la misma avanza que permite modificar la estrategia de promoción.\nRevisar el perfil de las personas que han realizado aportes\nObtener una base de datos con los correos electrónicos de la comunidad que te apoyó. \nManejar de forma ordenada la entrega de incentivos. \nComunicar a través de video, foto o texto con los aportantes.\nRecibir comentarios de la comunidad que apoya.\nCompartir las campaña en la principales redes sociales.  \nAsesoría gratuita para configurar las campañas de manera que pueda tener mayores probabilidades de éxito. \nAsesoría para configurar las recompensas de manera que pueda atraer los aportes de una gran audiencia.\nSistema de mensajería interna que te permite resolver dudas al instante.",null,null,"Las campañas se quedan con el monto obtenido, sin tener en cuenta si han logrado alcanzar el objetivo marcado o no. De ese monto levantado, GreenCrowds, descuenta el 5% se haya cumplido o no la meta. \n\nTodas las contribuciones a las campañas se agrupan en cuentas bancarias de la Alianza para el Emprendimiento y la Innovación (CEIE) en Ecuador y se transfieren directamente a las cuentas bancarias del Autor de la campaña propuesta por individuales o asociaciones comunitarias de Ecuador. \n\nLa transferencia se realizará una vez haya finalizado el periodo de la campaña.\n\nLa campaña acepta pagar una tasa inicial de $150 por la asistencia técnica en relación a su campaña publicada en la plataforma de GreenCrowds.",null,null,"1. Contenido o donaciones que suplanten la identidad de otra persona, entidad u organización.\n2. Contenido impreciso, falso y/o engañoso.\n3. Contenido o fondos que procedan de la infracción de la regulación de marcas, secretos comerciales, patentes, derechos de autor o cualquier otro derecho de propiedad de cualquier otra persona, entidad o acuerdo contractual.\n4. Contenido abusivo, racista, de acoso, difamatorio, amenazante, profano, explícitamente sexual, con enlaces a contenido para adultos, excesivamente violento, vulgar, obsceno o contrario a los principios y valores de las Naciones Unidas.\n5. Fondos que provienen de fuentes ilegales.\n6. Contenido que involucre pirámides financieras, mensajes en cadena, spam, publicidad no solicitada o no autorizada, lotería, juegos de azar, sorteos y otros contenidos similares.\n7. Uso de malware, virus o cualquier tipo de código o acción potencialmente perjudicial que pudiera interferir con las operaciones de los Servicios.\n8. Contenido que promueva cualquier servicio o producto ilegal.\n9. Contenido que promueva o respalde conductas criminales.",null,null,"https://www.hazvaca.com/",null,null,"Emmanuel Lepoutre",null,null,"CEO fundador",null,null,"(593) 2 3824 240 ext. 3102 / 0999 102535",null,null,"emmanuel@hazvaca.com",null,null,"https://www.hazvaca.com/",null,null,"Centro Corporativo Ekopark. Vía Nayón y Av. Simón Bolívar"]
[null,"HAZVACA CROWDFUNDING DEL ECUADOR S.A.",null,"Hazvaca Crowdfunding del Ecuador es una plataforma de financiamiento colectivo,  legalmente constituida en Ecuador. ",null,null,"Aquellos relacionados con: \n\nConservación de la naturaleza, Poner fin a la pobreza, Seguridad alimentaria, Garantizar una vida sana, Educación inclusiva, Igualdad entre los géneros, Disponibilidad de agua y saneamiento, Energía asequible, segura, sostenible y moderna para todos, Crecimiento económico sostenido, inclusivo y sostenible, Construir infraestructura resiliente, \nReducir la desigualdad en y entre los países, Asentamientos humanos sean inclusivos, seguros, resilientes y sostenibles, Consumo y producción sostenibles, Cambio climático y sus efectos, \nConservación de los océanos, Uso sostenible de los ecosistemas terrestres, Sociedades pacíficas e inclusivas para el desarrollo sostenible\nAlianza mundial para el desarrollo sostenible.",null,null,"Asesoría personalizada\nComparten una guía con el paso a paso, para que estructuren bien las campañas, Asisten en el proceso comunicacional, y brindan acceso a redes de aliados estratégicos.\nGreenCrowds ofrece un servicio de crowdfunding para el Programa de Pequeñas Donaciones del GEF-PNUD. \nLos usuarios registrados recaudan dinero de “contribuidores” que proporcionan apoyo financiero para ayudar a las campañas de los usuarios. \nEmplean metodologías y seguridad tecnológica, como encriptación, copia de seguridad de datos, protección por contraseña y otras medidas razonables para ayudar a proteger la información personal.\nUtiliza servicios seguros como Stripe y PayPal.",null,null,"Vacas Públicas\n\nSi tu vaca o campaña logra reunir entre  $0 - $10K = 15%\nSi tu vaca o campaña logra reunir entre $10K – $20K = 14%\nSi tu vaca o campaña logra reunir entre $20K – $30K = 13%\nSi tu vaca o campaña logra reunir más de $30K = 12%\nSi logras conseguir tu meta te hacemos un descuento de 3 puntos porcentuales a los valores antes descritos.\n\nVacas Privadas\n\n 4% del valor reunido en el evento + 0,30 cvos. por transacción",null,null,"1. No  permite la inclusión de incentivos  por valores totales superiores a USD 1000.\n2. El creador de un proyecto no podrá ofrecer en su proyecto como incentivo ningún tipo de bebida alcohólica, drogas, medicinas, estupefacientes, esquemas de apuestas, loterías, rifas, armas de fuego, vaporizadores, pipas, dividendos, ganancias futuras, comisiones o acciones de empresas.\n3. HAZVACA en ningún caso será responsable de dichas donaciones o el destino que estas pudieran tener. El beneficiario de las donaciones será el único responsable en destinar las donaciones para el objeto previsto de acuerdo a lo establecido en proyecto publicado en el portal web.\n4. El Usuario se obliga a no crear eventos que promocionen la violencia, estupefacientes, terrorismo, contenido de adultos, trata de blancas y/o cualquier actividad que atente a lo moral y los valores universales. \n5. HAZVACA se reserva el derecho de rechazar y eliminar cualquier vaca, campaña o causa que estime atente contra los principios, valores y moral de la compañía. ",null,null,"www.greencrowds.org",null,null,"(en blanco)",null,null,"(en blanco)",null,null,"(593) 997536619 / 22896025   ",null,null,"info@greencrowds.org",null,null,"www.greencrowds.org",null,null,"DENTRO DEL CLUB JACARANDA, Lote No 25"]

{"sheet":"Normativa de Apoyo","index":9,"n_rows":28,"n_cols":6,"rows_kept":28,"cut":false,"hidden":false,"merged":[[19,4,19,5],[21,4,21,5],[23,4,23,5],[25,4,25,5],[0,5,0,6],[10,1,10,6],[12,1,12,6],[0,2,0,4],[15,4,15,5],[17,4,17,5]]}
[null,null,"INSTRUCCIONES:\n• Para encontrar las diferentes Normativas disponibles, elige una de las opciones disponibles y descubre su descripción en la parte inferior.",null,null,"¡Recuerda! Para elegir otra Normativa, debes borrar todos los filtros.\nPara hacerlo, haz clic ➡️"]
[]
[]
[]
[]
[]
[]
[]
[]
[]
[null,"Normativa de Apoyo a Emprendimientos y  MIPYMEs"]
[]
[null,{"$f":"IF(OR('TD_Normativa de Apoyo'!$E$2=0,'TD_Normativa de Apoyo'!$E$2=\"(en blanco)\"),\" \",'TD_Normativa de Apoyo'!$E$2)","v":" "}]
[]
[]
["Artículos",{"$f":"IF('TD_Normativa de Apoyo'!H2<>0,A16,IF('TD_Normativa de Apoyo'!K2<>0,A18,IF('TD_Normativa de Apoyo'!N2<>0,A20,IF('TD_Normativa de Apoyo'!Q2<>0,A22,IF('TD_Normativa de Apoyo'!T2<>0,A24,IF('TD_Normativa de Apoyo'!W2<>0,A26,\"\"))))))","v":""},{"$f":"IF(B16=C15,B18,B16)","v":""},{"$f":"IF('TD_Normativa de Apoyo'!H2<>0,'TD_Normativa de Apoyo'!H2,IF('TD_Normativa de Apoyo'!K2<>0,'TD_Normativa de Apoyo'!K2,IF('TD_Normativa de Apoyo'!N2<>0,'TD_Normativa de Apoyo'!N2,IF('TD_Normativa de Apoyo'!Q2<>0,'TD_Normativa de Apoyo'!Q2,IF('TD_Normativa de Apoyo'!T2<>0,'TD_Normativa de Apoyo'!T2,IF('TD_Normativa de Apoyo'!W2<>0,'TD_Normativa de Apoyo'!W2,\"\"))))))","v":""},{"$f":"IF(D16=E15,D18,D16)","v":""}]
[]
["Beneficiarios",{"$f":"IF('TD_Normativa de Apoyo'!K2<>0,A18,IF('TD_Normativa de Apoyo'!N2<>0,A20,IF('TD_Normativa de Apoyo'!Q2<>0,A22,IF('TD_Normativa de Apoyo'!T2<>0,A24,IF('TD_Normativa de Apoyo'!W2<>0,A26,\"\")))))","v":""},{"$f":"IF(B18=C16,B20,B18)","v":""},{"$f":"IF('TD_Normativa de Apoyo'!K2<>0,'TD_Normativa de Apoyo'!K2,IF('TD_Normativa de Apoyo'!N2<>0,'TD_Normativa de Apoyo'!N2,IF('TD_Normativa de Apoyo'!Q2<>0,'TD_Normativa de Apoyo'!Q2,IF('TD_Normativa de Apoyo'!T2<>0,'TD_Normativa de Apoyo'!T2,IF('TD_Normativa de Apoyo'!W2<>0,'TD_Normativa de Apoyo'!W2,\"\")))))","v":""},{"$f":"IF(D18=E16,D20,D18)","v":""}]
[]
["Consideraciones Generales",{"$f":"IF('TD_Normativa de Apoyo'!N2<>0,A20,IF('TD_Normativa de Apoyo'!Q2<>0,A22,IF('TD_Normativa de Apoyo'!T2<>0,A24,IF('TD_Normativa de Apoyo'!W2<>0,A26,\"\"))))","v":""},{"$f":"IF(B20=C18,B22,B20)","v":""},{"$f":"IF('TD_Normativa de Apoyo'!N2<>0,'TD_Normativa de Apoyo'!N2,IF('TD_Normativa de Apoyo'!Q2<>0,'TD_Normativa de Apoyo'!Q2,IF('TD_Normativa de Apoyo'!T2<>0,'TD_Normativa de Apoyo'!T2,IF('TD_Normativa de Apoyo'!W2<>0,'TD_Normativa de Apoyo'!W2,\"\"))))","v":""},{"$f":"IF(D20=E18,D22,D20)","v":""}]
[]
["Beneficios Tributarios",{"$f":"IF('TD_Normativa de Apoyo'!Q2<>0,A22,IF('TD_Normativa de Apoyo'!T2<>0,A24,IF('TD_Normativa de Apoyo'!W2<>0,A26,\"\")))","v":""},{"$f":"IF(B22=C20,B24,B22)","v":""},{"$f":"IF('TD_Normativa de Apoyo'!Q2<>0,'TD_Normativa de Apoyo'!Q2,IF('TD_Normativa de Apoyo'!T2<>0,'TD_Normativa de Apoyo'!T2,IF('TD_Normativa de Apoyo'!W2<>0,'TD_Normativa de Apoyo'!W2,\"\")))","v":""},{"$f":"IF(D22=E20,D24,D22)","v":""}]
[]
["Beneficios Laborales",{"$f":"IF('TD_Normativa de Apoyo'!T2<>0,A24,IF('TD_Normativa de Apoyo'!W2<>0,A26,\"\"))","v":""},{"$f":"IF(B24=C22,B26,B24)","v":""},{"$f":"IF('TD_Normativa de Apoyo'!T2<>0,'TD_Normativa de Apoyo'!T2,IF('TD_Normativa de Apoyo'!W2<>0,'TD_Normativa de Apoyo'!W2,\"\"))","v":""},{"$f":"IF(D24=E22,D26,D24)","v":""}]
[]
["Beneficios Empresariales",{"$f":"IF('TD_Normativa de Apoyo'!W2<>0,A26,\"\")","v":""},{"$f":"IF(B26=C24,B27,B26)","v":""},{"$f":"IF('TD_Normativa de Apoyo'!W2<>0,'TD_Normativa de Apoyo'!W2,\"\")","v":""},{"$f":"IF(D26=E24,D27,D26)","v":""}]
[null,{"$f":"\"\"","v":""},null,{"$f":"\"\"","v":""}]
[null,null,null,{"$f":"\"\"","v":""}]

{"sheet":"TD_Normativa de Apoyo","index":10,"n_rows":9,"n_cols":23,"rows_kept":9,"cut":false,"hidden":true,"merged":[]}
[null,{"$f":"IF(B2<>1,\"Seleccione una Norma\",\"Limpiar Filtro\")","v":"Seleccione una Norma"}]
[null,{"$f":"COUNTA($B$4:$B$100)","v":5},null,{"$f":"COUNTA($B$4:$B$100)","v":5},{"$f":"IF(AND(D2=1,OR(D4=\"\",D4=\"(en blanco)\")),0,IF(D2<>1,0,D4))","v":0},null,{"$f":"COUNTA($B$4:$B$100)","v":5},{"$f":"IF(AND(G2=1,OR(G4=\"\",G4=\"(en blanco)\")),0,IF(G2<>1,0,G4&\".\n\n\"&G5))","v":0},null,{"$f":"COUNTA($B$4:$B$100)","v":5},{"$f":"IF(AND(J2=1,OR(J4=\"\",J4=\"(en blanco)\")),0,IF(J2<>1,0,J4&\".\n\n\"&J5))","v":0},null,{"$f":"COUNTA($B$4:$B$100)","v":5},{"$f":"IF(AND(M2=1,OR(M4=\"\",M4=\"(en blanco)\")),0,IF(M2<>1,0,M4&\".\n\n\"&M5))","v":0},null,{"$f":"COUNTA($B$4:$B$100)","v":5},{"$f":"IF(AND(P2=1,OR(P4=\"\",P4=\"(en blanco)\")),0,IF(P2<>1,0,P4&\".\n\n\"&P5))","v":0},null,{"$f":"COUNTA($B$4:$B$100)","v":5},{"$f":"IF(AND(S2=1,OR(S4=\"\",S4=\"(en blanco)\")),0,IF(S2<>1,0,S4&\".\n\n\"&S5))","v":0},null,{"$f":"COUNTA($B$4:$B$100)","v":5},{"$f":"IF(AND(V2=1,OR(V4=\"\",V4=\"(en blanco)\")),0,IF(V2<>1,0,V4&\".\n\n\"&V5))","v":0}]
[null,"Etiquetas de fila",null,"Etiquetas de fila",null,null,"Etiquetas de fila",null,null,"Etiquetas de fila",null,null,"Etiquetas de fila",null,null,"Etiquetas de fila",null,null,"Etiquetas de fila",null,null,"Etiquetas de fila"]
[null,"CÓDIGO ORGÁNICO DE LA PRODUCCIÓN, COMERCIO E INVERSIONES",null,"CÓDIGO ORGÁNICO DE LA PRODUCCIÓN, COMERCIO E INVERSIONES",null,null,"Art. 106",null,null,"Emprendedor",null,null,"•\tMicro empresa: Es aquella unidad productiva que tiene entre 1 a 9 trabajadores y un valor de ventas o ingresos brutos anuales iguales o menores de trescientos mil (US $300.000,00) dólares de los Estados Unidos de América;\n\n•\tPequeña empresa: Es aquella unidad de producción que tiene de 10 a 49 trabajadores y un valor de ventas o ingresos brutos anuales entre trescientos mil uno (US $300.001.00) y un millón (US $ 1.000.000,00) de dólares de los Estados Unidos de América; y,\n\n•\tMediana empresa: Es aquella unidad de producción que tiene de 50 a 199 trabajadores y un valor de ventas o ingresos brutos anuales entre un millón uno (USD 1.000.001,00) y cinco millones (USD 5.000.000,00) de dólares de los Estados Unidos de América.",null,null,"1. Los emprendimientos turísticos de MIPYMES, de turismo comunitario y/o asociativo, tendrán una exoneración de impuesto a la renta por 20 años. \n\n*Si bien este incentivo están en la norma, al no existir norma de regulación podrían las administraciones tributarias no aplicarla.\n\n2. Quienes estuvieren autorizados por la Autoridad Nacional de turismo podrán ingresar al país mercancías para el turismo con suspensión total o parcial del pago de los derechos e impuestos a la importación y recargos, con excepción de la depreciación normal originada por el uso que se haya hecho de las mismas, para ser reexportadas en un plazo determinado sin experimentar modificación alguna, conforme lo estipula el reglamento.\n\n",null,null,"1. Se establecerá un procedimiento abreviado para el otorgamiento de autorizaciones laborales y migratorias para las personas extranjeras no radicadas en el país, que deseen realizar actividades laborales, científicas y de movilidad académica, que cuenten con título profesional, de al menos maestría, o su equivalente, y experiencia relevante en áreas del conocimiento. Las personas residentes en el extranjero podrán participar en los concursos de méritos y oposición para el ingreso a la carrera del investigador científico y del profesor investigador universitario, desde el país de residencia. ",null,null,"1.  El Estado constituirá fondos de capital de riesgo con el aporte de recursos públicos para financiar las diferentes etapas del proceso de innovación, desde los ámbitos de la investigación y conocimiento, y productivo. Las inversiones y asignaciones de dichos fondos de capital de riesgo serán efectuadas en proyectos de investigación, incubación y productivos específicos, preferentemente de carácter innovador, que deberán ser temporales y previamente pactadas.\n\n2. Oblicación del Estado de pactar arbitraje nacional o internacional para resolver disputas generadas a través de contratos de inversión.\n\n3. Las instituciones públicas estarán obligadas a aplicar el principio de inclusión de MIPYMES en sus adquisiciones.\n\n"]
[null,"CÓDIGO ORGÁNICO DE LA ECONOMÍA SOCIAL DE LOS CONOCIMIENTOS, CREATIVIDAD E INNOVACIÓN",null,"CÓDIGO ORGÁNICO DE LA ECONOMÍA SOCIAL DE LOS CONOCIMIENTOS, CREATIVIDAD E INNOVACIÓN",null,null,"Artículo 10, numeral 24, segúndo artículo Innumerado a continuación del Art. 37.3, Artículo 76",null,null,"Emprendedor, MIPYMES",null,null,"1. Define  a las MIPYMES:\nMIPYMES: Toda persona natural o jurídica que, como una unidad productiva, ejerce una actividad de producción, comercio y/o servicios, y que cumple con el número de trabajadores y valor bruto de las ventas anuales, señalados para cada categoría previstas en su reglamento.\n\n2. Se crea el Registro Único de las MIPYMES que permite identificar y categorizar a las empresas.\n\n",null,null,"Los incentivos tributarios vigentes para el talento humano son:\n\n1. Deducción del 100% adicional para el cálculo de la base imponible del impuesto a la renta, de los gastos realizados por concepto de sueldos de los tutores designados para la formación dual, por parte de los sujetos debidamente acreditados por las autoridades competentes registradas ante la Secretaría de Educación Superior, Ciencia, Tecnología e Innovación, como entidades receptoras según el caso. El monto máximo de deducción adicional será hasta el valor correspondiente a tres coma cinco remuneraciones básicas unificadas por cada tutor.\n\nLos incentivos tributarios vigentes para la investigación responsable son:\n\n1. Los sujetos pasivos que reinviertan sus utilidades, en el Ecuador, en proyectos o programas de investigación científica responsable o de desarrollo tecnológico acreditados por la Secretaría de Educación Superior, Ciencia, Tecnología e Innovación tendrán una reducción porcentual del 10% en programas o proyectos calificados como prioritarios por los entes rectores y, del 8% en el resto de programas y proyectos.\n\n2. Exoneración de tributos al comercio exterior en la importación de equipos e insumos a ser utilizados en el desarrollo de programas, proyectos y actividades de investigación científica. Las categorías de bienes exonerados serán determinados por la Secretaría de Educación Superior, Ciencia, Tecnología e Innovación.\n\nLos incentivos tributarios vigentes para la innovación social son:\n\n1. Exoneración de tributos al comercio exterior en la importación de equipos e insumos a ser utilizados en el desarrollo de emprendimientos innovadores en espacios de innovación acreditados.\n\n\n\n",null,null,"Posibilidad de celebrar contratos de trabajo especiales de jornada completa o parcial, cuya duración será de un año, dentro del cual se podrá acordar un período de prueba de hasta noventa (90) días en la primera contratación y podrán ser renovado de común acuerdo por las partes hasta por el plazo en el cual este vigente la certificación del RNE. Se regula este tipo de contratación en el Acuerdo No. MDT-2020-222 (DIRECTRICES QUE REGULEN EL CONTRATO DE EMPRENDIMIENTO) emitido por el Ministerio de Trabajo.",null,null,"1. Acceso a una Guía Nacional de Emprendimiento, con información de aspectos macro económicos, de mercados internacionales, legales, tributarios, sectoriales, laborales, societarios y financieros del ecosistema emprendedor, además de un directorio de las oficinas comerciales del Ecuador en el mundo, con información para exportar productos y servicios.\n\n2. Promoción de bienes y servicios nacional e internacional por el Ministerio encargado del comercio exterior.\n\n3. Facilitación de instalación e infraestructura para emprendedores en espacios de propiedad estatal.\n\n4. Concesión de liquidez al establecerse que las facturas emitidas por emprendedores inscritos a otras sociedades, deben de ser pagadas con un plazo máximo de 30 días, y partir del día 31 pueden generar intereses por el saldo impago, a la tasa activa legal establecida por el Banco Central del Ecuador. Para facturas emitidas a entidades públicas sujetas al sistema de gestión financiera de la Administración Central, el plazo para el pago será de 90 días contados desde que se genere el Comprobante Único de Registro -CUR- o después de suscrita el acta de entrega-recepción, para entidades no sujetas a dicho sistema.\n\n5. Priorización de emprendimientos en frontera, los cuales se regularán bajo el régimen de atención preferencial.\n\n6. Capacitaciones dirigidas por la Secretaría Técnica de Capacitación y Formación Profesional y Servicio Ecuatoriano de Capacitación Profesional en asistencia técnica con la finalidad de fortalecer conocimientos, mejora capacidades productivas y fomentar la innovación.\n\n7.\tAcceso a los servicios financieros, créditos públicos y a los fondos de inversión públicos, que se detallarán en la Guía Nacional de Emprendimiento. \n\n8.\tInversión Estatal y Privada, la cual se podría entregar como “Capital semilla” o “Capital Riesgo”, o \"Inversión Angel\", según las siguientes definiciones:\n\nCapital semilla \nSe otorgará a proyectos de emprendimiento que no hayan superado todavía los veinticuatro (24) meses de vida. \n-Puede ser entregado mediante recursos no reembolsables, aporte de capital, notas convertibles en acciones, compra de acciones o participaciones y otros derechos de acuerdo al esquema societario y legal del emprendedor; \n-Se otorgará a proyectos de emprendimiento que no hayan superado todavía los veinticuatro (24) meses de vida.\n-La realización de inversiones o donaciones con recursos públicos no modificará la naturaleza jurídica de los actores beneficiarios del financiamiento, aun cuando la participación de los fondos de capital semilla sea superior al 50% del monto total invertido o de las acciones o participaciones del mismo; sin embargo, si como resultado del programa o proyecto se pone en marcha un emprendimiento innovador que produjera ganancias económicas, el Estado participará entre el 5% y el 10% de la titularidad y beneficios económicos de dicho emprendimiento. \n-Si es una inversión pública requerirá de la emisión de un análisis de viabilidad del proyecto por parte de la entidad que realizare la inversión.\n\nCapital de Riesgo \n-No constituye endeudamiento bancario tradicional. \n-La realización de inversiones o donaciones con recursos públicos no modificará la naturaleza jurídica de los actores beneficiarios del financiamiento, aun cuando la participación de los fondos de capital de riesgo sea superior al 50% del monto total invertido o de las acciones o participaciones del mismo; sin embargo, la inversión requerirá de la emisión de un análisis de viabilidad del proyecto por parte de la entidad que realizare la inversión. \n-Si la inversión proviene del sector privado, podrá estar compuesto por recursos que mayoritariamente sean inversiones de capital, pero también se podrán realizar préstamos en condiciones libremente pactadas, con o sin interés, y reembolsables en función de condiciones de equilibrio o rentabilidad.\n\nInversión Ángel \n-Se considera al aporte de capital y/o conocimientos técnicos por parte de personas naturales, jurídicas o fideicomisos, a emprendedores.\nLa inversión ángel puede ser como:\n-Capital semilla: Emprendedores que quieran poner en marcha un proyecto empresarial \n-Capital de inicio: Empresas que se encuentran en el inicio de su actividad.\n-Capital de desarrollo: Investigadores que se encuentren en el proceso de desarrollo de un prototipo de producto o servicio con beneficio comercial.\n-La inversión realizada no podrá superar el 49% del capital societario a favor del inversionista y el control de la sociedad debe mantenerse en manos del emprendedor fundador.  \n\n9.\tLos emprendedores podrán proponer como garantía para las operaciones de crédito de emprendimientos sus activos intangibles, debiendo ser valorados por compañías especializadas en valoración de activos intangibles.\n\n10. Facultad de todo emprendedor, que sea una persona jurídica bajo control de una Superintendencia, y que tuviere obligaciones incumplidas con terceros no relacionados, de acogerse al procedimiento administrativo de concurso de acreedores, para facilitar un acuerdo con los mismos, a fin de reestructurar el emprendimiento, con el fin de poder aplicar la protección financiera concursal y buscar una salida financiera y comercial para su operación, pudiendo acordar con acreedores modificar sus acreencias por capitales de inversión."]
[null,"LEY DE RÉGIMEN TRIBUTARIO INTERNO",null,"LEY DE RÉGIMEN TRIBUTARIO INTERNO",null,null,"Artículos 10, 53, 55, dos artículos agregados a continuación del 55, 56",null,null,"MIPYMES",null,null,"1.\tDefine lo que se entiende por emprendimiento e innovación:\n\nEmprendimiento: Es un proyecto con antigüedad menor a cinco años que requiere recursos para cubrir una necesidad o aprovechar una oportunidad y que necesita ser organizado y desarrollado, tiene riesgos y su finalidad es generar utilidad, empleo y desarrollo. \n\nInnovación: Es el proceso creativo mediante el cual se genera un nuevo producto, diseño, proceso, servicio, método u organización, o añade valor a los existentes.\n \n2. Crea el Consejo Nacional para el Emprendimiento e Innovación – CONEIN, como organismo permanente estratégico para promover y fomentar el emprendimiento, la innovación y la competitividad sistémica del país.\n\n3. Se crea el Registro Nacional de Emprendimiento RNE para que puedan registrarse los emprendimientos realizados por personas personas naturales o jurídicas, con antigüedad menor a cinco años contados desde el año 2020, que tenga menos de 49 trabajadores y ventas menores a US$ 1.000.000, con el fin de beneficiarse de los incentivos previstos en esta normativa.\n\n4. Promueve la cultura emprendedora implementando nuevas modalidades societarias y de financiamiento para fortalecer el ecosistema emprendedor, como:\n\n- Las sociedades por acciones simplificadas\n- Fondos Colaborativos o Crowdfunding\n- Sociedades de beneficio e interés colectivo\n\n",null,null,"(en blanco)",null,null,"Promueve el trabajo productivo digno a través de la creación del Salario Digno que debe ser pagado son sociedades y personas naturales obligadas a llevar contabilidad.",null,null,"Los incentivos para el talento humano son:\n1.\tLíneas de crédito preferente para el fortalecimiento del talento humano. \n2.El Ministerio Sectorial encargado de la Cultura, formulará programas de financiamiento para el desarrollo y promoción artística y cultural. \n3. Quienes se conviertan en proveedores del Estado y realicen gastos destinados a formación de cuarto nivel de su personal ecuatoriano o sean entidades receptoras en programas académicos de formación dual, contraten becarios de programas públicos de becas por al menos un año o realicen pasantías de educación superior, recibirán puntajes adicionales en los procesos de contratación establecidos en la Ley Orgánica del Sistema Nacional de Contratación Pública.\n\nLos incentivos para la investigación responsable son:\n1. Se crearán y gestionarán programas o proyectos de financiamiento para la ejecución de proyectos de investigación responsable y desarrollo tecnológico, de conformidad con las necesidades y planificación nacional. Estos fondos no son de carácter reembolsable.\n2. Las instituciones públicas encargadas de regular las tarifas de los servicios de telecomunicaciones, establecerán en los espacios de generación de conocimiento tarifas preferenciales para los actores del Sistema que desarrollen actividades en dichos espacios.\n3. Se crea un Programa Nacional de Reconocimientos a la Investigación Científica Responsable, a través de premios, distinciones, y otros reconocimientos el cual tendrá por objetivo incentivar la investigación y desarrollo tecnológico vinculados al incremento de la productividad, la diversificación productiva y la satisfacción de necesidades.\n\nLos incentivos para la innovación social son:\n1. \tEl Estado creará programas de financiamiento de capital semilla y capital de riesgo para el desarrollo de la innovación social. Si como resultado del programa o proyecto para el fomento de la innovación social se pone en marcha un emprendimiento innovador que produjera ganancias económicas, el Estado participará entre el 5% y el 10% de la titularidad y beneficios económicos de dicho emprendimiento.\n2. Acreditación de los actores del Sistema Nacional de Ciencia, Tecnología, Innovación y Saberes Ancestrales para la emisión de valores negociables en el mercado de valores.\n3. Los actores del Sistema Nacional de Ciencia, Tecnología, Innovación y Saberes Ancestrales que realicen actividades de innovación social, para la constitución o aumento de capital de compañías anónimas, podrán hacerlo mediante la suscripción pública de acciones a través de oferta pública en el mercado de valores.\n4. Registro sanitario simplificado para nuevos productos.\n5. Los emprendimientos que hayan nacido de un espacio de innovación acreditado y que sean proveedores del Estado recibirán puntajes adicionales en los procesos de contratación pública."]
[null,"LEY ORGÁNICA DE EMPRENDIMIENTO E INNOVACIÓN ",null,"LEY ORGÁNICA DE EMPRENDIMIENTO E INNOVACIÓN ",null,null,"Artículos 3, 6, 12-17, 19, 24-27,30, 32, 44, 46 y Disposiciones Reformatorias Octava y Novena",null,null,null,null,null,"Los proyectos que consten dentro del Registro Nacional de Emprendimiento -RNE- se sujeterían a los incentivos de este Código, siempre que realicen actividades en las siguientes áreas:\n\n- el fortalecimiento del talento humano, \n- la investigación responsable y \n- la innovación social.",null,null,"Beneficios para MIPYMES:\n\n1. Las sociedades que tengan la condición de micro y pequeñas empresas tendrá una rebaja de 3 puntos porcentuales en la tarifa de impuesto a la renta (aplicarían tarifa del 22% y no del 25%).\n\n2. Los sujetos pasivos que adquieran bienes o servicios a organizaciones de la economía popular y solidaria -incluidos los artesanos que sean parte de dicha forma de organización económica- que se encuentren dentro de los rangos para ser consideradas como microempresas, podrán aplicar una deducción adicional de hasta 10% respecto del valor de tales bienes o servicios, para determinar su Impuesto a la Renta.\n\n3. Existen consideraciones especiales para micro y pequeñas empresas respecto al impuesto a los consumos especiales, como exoneradas en ciertos productos o rebajas en las tarifas, si se cumplieren ciertas condiciones.\n",null,null,"(en blanco)",null,null,"(en blanco)"]
[null,"REGLAMENTO DE INVERSIONES DEL CÓDIGO ORGÁNICO DE LA PRODUCCIÓN, COMERCIO E INVERSIONES",null,"REGLAMENTO DE INVERSIONES DEL CÓDIGO ORGÁNICO DE LA PRODUCCIÓN, COMERCIO E INVERSIONES",null,null,"Artículos del 604 al 627",null,null,null,null,null,"(en blanco)",null,null,"Beneficios para Emprendedores:\n\n1. Se establece el régimen RIMPE, para el pago del impuesto a la renta, a los emprendedores y negocios populares, el cual es un régimen simplificado y especial, considerando lo siguiente:\n\n- Se sujetan al RIMPE los sujetos pasivos personas naturales y jurídicas con ingresos brutos anuales superiores a cero y hasta US$ 300.000,00 al 31 de diciembre del año anterior. Dentro de este régimen, constituyen negocios populares aquellos sujetos pasivos, personas naturales, con ingresos brutos existentes de hasta US$ 20.000,00 en el ejercicio económico del año inmediatamente anterior.\n\n- No podrían sujetarse a este régimen, quienes realicen actividades previstas en el artículo 97.4 de la Ley de Régimen Tributario Interno, como: servicios profesionales, mandatos y representaciones, transporte, actividades agropecuarias, comercializadora de combustibles, relación de dependencia, quienes perciban exclusivamente rentas de capital, financiero, economía popular y solidaria.\n\n2. Los sujetos pasivos dentro del régimen RIMPE pagarán el Impuesto a la Renta sobre los ingresos y no sobre la utilidad que perciban, una tarifa que va del 0 al 2%.\n\n3. Realizan declaraciones semestrales de IVA y de retenciones de impuestos.\n"]
[null,null,null,null,null,null,"Capítulo V\nRÉGIMEN SIMPLIFICADO PARA EMPRENDEDORES Y NEGOCIOS POPULARES - RIMPE \nArtículos 97.1 - 97.9"]

{"sheet":"Glosario","index":11,"n_rows":26,"n_cols":4,"rows_kept":26,"cut":false,"hidden":false,"merged":[[0,0,0,6]]}
["Glosario"]
[]
[]
[null,"Aceleradoras",null,"Son organizaciones que ayudan a impulsar ideas y startups en fases tempranas para acelerar su crecimiento y prepararse adecuadamente para poder dirigirse a inversores con una idea de negocio probada. El objetivo principal de una aceleradora de empresas es conseguir en un plazo limitado de tiempo un crecimiento y avances que en el mercado normal, tendrían una duración mucho más larga."]
[]
[null,"Capital de riesgo",null,"Es la inversión que consiste en la participación en el capital social de un emprendimiento. El aportante invierte en un proyecto convirtiéndose en socio­accionista del emprendimiento financiado y de esta manera participa de modo directo en los riesgos y resultados. "]
[]
[null,"Capital semilla",null,"Es la inversión de recursos en la fase inicial de un proyecto, desde su concepción hasta el desarrollo de un proyecto innovador. "]
[]
[null,"Cultura emprendedora",null,"Es el conjunto de cualidades, conocimientos y habilidades necesarias que posee una persona para gestionar un emprendimiento."]
[]
[null,"Ecosistema emprendedor",null,"Es todo el entorno que facilita, incluye y fomenta el desarrollo de empresas y proyectos en un lugar determinado."]
[]
[null,"Emprendedor",null,"Son personas naturales o jurídicas que persiguen un beneficio, trabajando individual o colectivamente. Pueden ser definidos como individuos que innovan, identifican y crean oportunidades, desarrollan un proyecto y organizan los recursos necesarios para aprovecharlo."]
[]
[null,"Emprendimiento",null,"Es un proyecto con antigüedad menor a cinco años que requiere recursos para cubrir una necesidad o aprovechar una oportunidad y que necesita ser organizado y desarrollado, tiene riesgos y su finalidad es generar utilidad, empleo y desarrollo."]
[]
[null,"Incubadoras",null,"Son organizaciones que dan apoyo a los negocios en sus etapas iniciales con el fin de que se desarrollen, se fortalezcan y crezcan. Pueden ofrecer también un espacio físico, que incluye los servicios básicos y en algunos casos fomentan el contacto con inversionistas potenciales."]
[]
[null,"Innovación",null,"Es el proceso creativo mediante el cual se genera un nuevo producto, diseño, proceso, servicio, método u organización, o añade valor a los existentes."]
[]
[null,"Inversionistas Ángeles",null,"Son personas que invierten dinero propio en startups  y empresas con alto potencial de crecimiento. Su forma de trabajo consiste en aportar capital en empresas en etapa de formación o consolidación justamente y, ofrecer su experiencia para apoyar a quienes están liderando los proyectos que están financiando"]
[]
[null,"Plataformas de fondos colaborativos o “crowdfunding”",null,"Son sociedades mercantiles cuyo objeto social es la búsqueda de financiamiento de proyectos a través plataformas desarrolladas sobre la base de nuevas tecnologías, que ponen en contacto a promotores de proyectos que demandan fondos con inversores u ofertantes de fondos que buscan en la inversión un rendimiento o la compra de un bien o servicio."]
[]
[null,"Fuente:",null,"Ley Orgánica de Emprendimiento e Innovación"]

{"sheet":"Matriz Productos de Crédito","index":12,"n_rows":258,"n_cols":27,"rows_kept":258,"cut":false,"hidden":true,"merged":[[0,1,0,26]]}
[null,"Matriz de Productos crediticios ofertados por entidades financieras para MIPYMEs"]
[null,null,null,null,null,null,null,null,null,null,1,1,1,1,1,1,1,null,null,null,1]
[null,"RUC","Tipo de Institución","Institución Financiera","Denominación del Producto","Características y beneficios del producto","Segmento objetivo","Perfil del Beneficiario","Destino del crédito","Tipo de proyectos a financiar","Requisitos para instrumentación de crédito","Garantías","Monto máximo (USD)","Plazo máximo (días)","Tasa de interés ","Período de amortización","Período de Gracia (días)","Encaje","Tiempo estimado de aprobación y desembolso del crédito (horas)","El trámite de solicitud, aprobación y desembolso es en línea?","Otras Observaciones","Razón Social ","Página web","Nombre persona de contacto","Cargo persona de contacto","Teléfonos de contacto","Correo electrónico"]
[null,"1790093204001","Cooperativas de Ahorro y Crédito","23 DE JULIO","Microcrédito 23 1","Destinado a financiar actividades de producción y/o comercialización en pequeña escala. El tipo de garantia depende del monto del crédito. Beneficios: seguro de desgravamen para titular y cónyuge. Transferencias interbancarias. Retiro de dinero a nivel nacional, en la red Banred. Depósitos, retiros y pagos en Servipagos."," Microempresa: Ventas < = USD 100 mil","Edad minima 21 años. Estabilidad laboral minima de un año"," Activos Fijos,  Capital de Trabajo,  Otro",null," Solicitud de crédito,  Copia de cédula o RUC,  Certificado de votación,  Planilla de servicios básicos,  Justificar ingresos,  Justificar patrimonio"," Hipotecaria",40000,1440,0.20599999999999999," Mensual",null,null,null,null,"Requisitos adicionales  (en caso de aplicar): Original y copia de la cédula del cónyuge y garante. Original y copia del certificado de votación del cónyuge y el garante.","23 DE JULIO","https://www.coop23dejulio.fin.ec/","","","",""]
[null,"1790093204001","Cooperativas de Ahorro y Crédito","23 DE JULIO","Microcrédito 23 2","Destinado a financiar actividades de producción y/o comercialización en pequeña escala. Beneficios: Seguro de desgravamen para titular y cónyuge. Transferencias interbancarias. Retiro de dinero a nivel nacional, en la red Banred. Depósitos, retiros y pagos en Servipagos."," Microempresa: Ventas < = USD 100 mil","Edad minima 21 años. Estabilidad laboral minima de un año"," Activos Fijos,  Capital de Trabajo,  Otro",null," Solicitud de crédito,  Copia de cédula o RUC,  Certificado de votación,  Planilla de servicios básicos,  Justificar ingresos,  Justificar patrimonio"," Personal",30000,1440,0.20599999999999999," Mensual",null,null,null,null,"Requisitos adicionales  (en caso de aplicar): Original y copia de la cédula del cónyuge y garante. Original y copia del certificado de votación del cónyuge y el garante.","23 DE JULIO","https://www.coop23dejulio.fin.ec/","","","",""]
[null,"1790093204001","Cooperativas de Ahorro y Crédito","23 DE JULIO","Microcrédito 23 2","Destinado a financiar actividades de producción y/o comercialización en pequeña escala. Beneficios: Seguro de desgravamen para titular y cónyuge. Transferencias interbancarias. Retiro de dinero a nivel nacional, en la red Banred. Depósitos, retiros y pagos en Servipagos."," Microempresa: Ventas < = USD 100 mil","Edad minima 21 años. Estabilidad laboral minima de un año"," Activos Fijos,  Capital de Trabajo,  Otro",null," Solicitud de crédito,  Copia de cédula o RUC,  Certificado de votación,  Planilla de servicios básicos,  Justificar ingresos,  Justificar patrimonio"," Sin garante",20000,1440,0.20599999999999999," Mensual",null,null,null,null,"Requisitos adicionales (en caso de aplicar): Original y copia de la cédula del cónyuge. Original y copia del certificado de votación del cónyuge.","23 DE JULIO","https://www.coop23dejulio.fin.ec/","","","",""]
[null,"1790093204001","Cooperativas de Ahorro y Crédito","23 DE JULIO","Productivo PYMES 23 1","Es el otorgado a personas naturales obligadas a llevar contabilidad o a personas jurídicas que registren ventas anuales superiores a USD 100.000,00, destinado a la compra de activos fijos o capital de trabajo. Beneficios: Seguro de desgravamen para titular y cónyuge. Transferencias interbancarias. Retiro de dinero a nivel nacional, en la red Banred. Depósitos, retiros y pagos en Servipagos."," Pequeñas Empresas: Ventas < = USD 1 millón, 4 Medianas Empresas: Ventas < = USD 5 millones","Personas naturales obligadas a llevar contabilidad o a personas jurídicas. Edad minima 21 años.Estabilidad laboral minima de un año"," Activos Fijos,  Capital de Trabajo",null," Solicitud de crédito,  Copia de cédula o RUC,  Certificado de votación,  Planilla de servicios básicos,  Justificar ingresos,  Justificar patrimonio"," Hipotecaria",160000,1800,0.1096," Mensual",null,null,null,null,"Requisitos adicionales  (en caso de aplicar): Original y copia de la cédula del cónyuge y garante. Original y copia del certificado de votación del cónyuge y el garante.","23 DE JULIO","https://www.coop23dejulio.fin.ec/","","","",""]
[null,"1790093204001","Cooperativas de Ahorro y Crédito","23 DE JULIO","Productivo PYMES 23 2","Es el otorgado a personas naturales obligadas a llevar contabilidad o a personas jurídicas que registren ventas anuales superiores a USD 100.000,00, destinado a la compra de activos fijos o capital de trabajo. Beneficios: Seguro de desgravamen para titular y cónyuge. Transferencias interbancarias. Retiro de dinero a nivel nacional, en la red Banred. Depósitos, retiros y pagos en Servipagos."," Pequeñas Empresas: Ventas < = USD 1 millón, 4 Medianas Empresas: Ventas < = USD 5 millones","Personas naturales obligadas a llevar contabilidad o a personas jurídicas. Edad minima 21 años.Estabilidad laboral minima de un año"," Activos Fijos,  Capital de Trabajo",null," Solicitud de crédito,  Copia de cédula o RUC,  Certificado de votación,  Planilla de servicios básicos,  Justificar ingresos,  Justificar patrimonio"," Personal",30000,1800,0.1096," Mensual",null,null,null,null,"Requisitos adicionales  (en caso de aplicar): Original y copia de la cédula del cónyuge y garante. Original y copia del certificado de votación del cónyuge y el garante.","23 DE JULIO","https://www.coop23dejulio.fin.ec/","","","",""]
[null,"1790093204001","Cooperativas de Ahorro y Crédito","23 DE JULIO","Productivo PYMES 23 3","Es el otorgado a personas naturales obligadas a llevar contabilidad o a personas jurídicas que registren ventas anuales superiores a USD 100.000,00, destinado a la compra de activos fijos o capital de trabajo. Beneficios: Seguro de desgravamen para titular y cónyuge. Transferencias interbancarias. Retiro de dinero a nivel nacional, en la red Banred. Depósitos, retiros y pagos en Servipagos."," Pequeñas Empresas: Ventas < = USD 1 millón, 4 Medianas Empresas: Ventas < = USD 5 millones","Personas naturales obligadas a llevar contabilidad o a personas jurídicas. Edad minima 21 años.Estabilidad laboral minima de un año"," Activos Fijos,  Capital de Trabajo",null," Solicitud de crédito,  Copia de cédula o RUC,  Certificado de votación,  Planilla de servicios básicos,  Justificar ingresos,  Justificar patrimonio"," Sin garante",20000,1800,0.1096," Mensual",null,null,null,null,"Requisitos adicionales (en caso de aplicar): Original y copia de la cédula del cónyuge. Original y copia del certificado de votación del cónyuge.","23 DE JULIO","https://www.coop23dejulio.fin.ec/","","","",""]
[null,"1790567699001","Cooperativas de Ahorro y Crédito","29 DE OCTUBRE","Crédito Comercial Autocooperativo 1","Destinado para capital de trabajo, Activo Fijo tangible muebles, Activo Fijo tangible inmuebles, Activo Fijo intangible, excepto vehículos livianos de combustible fósil, financiamiento de pasivosBeneficios: Seguro de desgravamen mensual."," Pequeñas Empresas: Ventas < = USD 1 millón, 4 Medianas Empresas: Ventas < = USD 5 millones","Persona natural. Edad 18 - 75"," Activos Fijos,  Capital de Trabajo",null," Solicitud de crédito,  Copia de cédula o RUC,  Certificado de votación,  Declaraciones de Impuestos,  Planilla de servicios básicos,  Flujo de efectivo,  Flujo de caja proyectado,  Balances"," Hipotecaria,   Prendaria,   Autoliquidable",100000,1800,0.1069," Mensual",null,null,null,null,"Requisitos adicionales (persona natural): Copia de cédula y de certificado de votación del cónyuge (si aplica). Documentos que respaldan Garantía Real (AVALUO). Certificado de ingreso. Copia de matrícula de vehículo (si aplica). Copia de legalización de unión libre si aplica. Justificación de pensión de Jubilado si aplica. Copia de disolución de la sociedad conyugal si aplica.  la obligación. Detalle de las cuentas por cobrar y pagar.","29 DE OCTUBRE","https://www.29deoctubre.fin.ec/","","","",""]
[null,"1790567699001","Cooperativas de Ahorro y Crédito","29 DE OCTUBRE","Crédito Comercial Autocooperativo 2","Destinado para capital de trabajo, Activo Fijo tangible muebles, Activo Fijo tangible inmuebles, Activo Fijo intangible, excepto vehículos livianos de combustible fósil, financiamiento de pasivosBeneficios: Seguro de desgravamen mensual."," Pequeñas Empresas: Ventas < = USD 1 millón, 4 Medianas Empresas: Ventas < = USD 5 millones","Persona jurídica. Edad 18 - 75"," Activos Fijos,  Capital de Trabajo",null," Solicitud de crédito,  Copia de cédula o RUC,  Certificado de votación,  Declaraciones de Impuestos,  Planilla de servicios básicos,  Copia de escritura de constitución,  Estatutos,  Flujo de efectivo,  Flujo de caja proyectado,  Balances,  Otros"," Hipotecaria,   Prendaria,   Autoliquidable",100000,1440,0.1069," Mensual",null,null,null,null,"Requisitos adicionales (persona jurídica): Copia de cédula y de certificado de votación del cónyuge (si aplica). Documentos que respaldan Garantía Real (AVALUO). Nombramiento del Representante Legal. Autorización del directorio para contraer ","29 DE OCTUBRE","https://www.29deoctubre.fin.ec/","","","",""]
[null,"1790567699001","Cooperativas de Ahorro y Crédito","29 DE OCTUBRE","Crédito Comercial PYMES 1","Adquisición y comercialización de vehículos livianos de combustible fósil incluyendo los que son para fines productivos y comerciales. Beneficios: Seguro de desgravamen. Seguro por desempleo. Seguro por enfermedades graves"," Pequeñas Empresas: Ventas < = USD 1 millón, 4 Medianas Empresas: Ventas < = USD 5 millones","Persona natural o jurídica. Edad 18 - 75"," Activos Fijos",null," Solicitud de crédito,  Copia de cédula o RUC,  Certificado de votación,  Declaraciones de Impuestos,  Planilla de servicios básicos,  Copia de escritura de constitución,  Estatutos,  Flujo de efectivo,  Flujo de caja proyectado,  Balances,  Otros"," Hipotecaria,  Quirografaria,   Prendaria,   Autoliquidable",300000,1800,0.1069," Mensual",null,null,null,null,"Requisitos adicionales (persona natural y jurídica): Copia de cédula y de certificado de votación del cónyuge (si aplica). Documentos que respaldan Garantía Real (AVALUO). Requisitos adicionales (persona natural): Certificado de ingreso. Copia de matrícula de vehículo (si aplica). Copia de legalización de unión libre si aplica. Justificación de pensión de Jubilado si aplica. Copia de disolución de la sociedad conyugal si aplica.  Requisitos adicionales (persona jurídica): Nombramiento del Representante Legal. Autorización del directorio para contraer la obligación. Detalle de las cuentas por cobrar y pagar.","29 DE OCTUBRE","https://www.29deoctubre.fin.ec/","","","",""]
[null,"1790567699001","Cooperativas de Ahorro y Crédito","29 DE OCTUBRE","Crédito Comercial PYMES 2","Adquisición y comercialización de vehículos livianos de combustible fósil incluyendo los que son para fines productivos y comerciales. Beneficios: Seguro de desgravamen. Seguro por desempleo. Seguro por enfermedades graves"," Pequeñas Empresas: Ventas < = USD 1 millón, 4 Medianas Empresas: Ventas < = USD 5 millones","Persona natural o jurídica. Edad 18 - 75"," Activos Fijos",null," Solicitud de crédito,  Copia de cédula o RUC,  Certificado de votación,  Declaraciones de Impuestos,  Planilla de servicios básicos,  Copia de escritura de constitución,  Estatutos,  Flujo de efectivo,  Flujo de caja proyectado,  Balances,  Otros"," Hipotecaria,  Quirografaria,   Prendaria,   Autoliquidable",300000,1440,0.1069," Mensual",null,null,null,null,"Requisitos adicionales (persona natural y jurídica): Copia de cédula y de certificado de votación del cónyuge (si aplica). Certificado de ingreso. Copia de matrícula de vehículo (si aplica). Copia de legalización de unión libre si aplica. Justificación de pensión de Jubilado si aplica. Copia de disolución de la sociedad conyugal si aplica. Documentos que respaldan Garantía Real (AVALUO). Requisitos adicionales (persona jurídica): Nombramiento del Representante Legal. Autorización del directorio para contraer la obligación. Detalle de las cuentas por cobrar y pagar.","29 DE OCTUBRE","https://www.29deoctubre.fin.ec/","","","",""]
[null,"1790567699001","Cooperativas de Ahorro y Crédito","29 DE OCTUBRE","Crédito Comercial PYMES 3","Adquisición y comercialización de vehículos livianos de combustible fósil incluyendo los que son para fines productivos y comerciales. Beneficios: Seguro de desgravamen. Seguro por desempleo. Seguro por enfermedades graves"," Pequeñas Empresas: Ventas < = USD 1 millón, 4 Medianas Empresas: Ventas < = USD 5 millones","Persona natural o jurídica. Edad 18 - 75"," Financiamiento de pasivos (deudas)",null," Solicitud de crédito,  Copia de cédula o RUC,  Certificado de votación,  Declaraciones de Impuestos,  Planilla de servicios básicos,  Copia de escritura de constitución,  Estatutos,  Flujo de efectivo,  Flujo de caja proyectado,  Balances,  Otros"," Hipotecaria,  Quirografaria,   Prendaria,   Autoliquidable",75000,360,0.1069," Mensual",null,null,null,null,"Requisitos adicionales (persona natural y jurídica): Copia de cédula y de certificado de votación del cónyuge (si aplica). Certificado de ingreso. Copia de matrícula de vehículo (si aplica). Copia de legalización de unión libre si aplica. Justificación de pensión de Jubilado si aplica. Copia de disolución de la sociedad conyugal si aplica. Documentos que respaldan Garantía Real (AVALUO). Requisitos adicionales (persona jurídica): Nombramiento del Representante Legal. Autorización del directorio para contraer la obligación. Detalle de las cuentas por cobrar y pagar.","29 DE OCTUBRE","https://www.29deoctubre.fin.ec/","","","",""]
[null,"1790567699001","Cooperativas de Ahorro y Crédito","29 DE OCTUBRE","Crédito Productivo PYMES 1","Créditos dirigidos a pequeñas y medianas empresas, para capital de trabajo, activo fijo tangible inmuebles, activos fijos intangible, excepto vehículos livianos de combustible fósil, financiamiento de pasivos. Beneficios: Seguro de desgravamen mensual."," Pequeñas Empresas: Ventas < = USD 1 millón, 4 Medianas Empresas: Ventas < = USD 5 millones","Persona natural o jurídica. Edad 18 - 75"," Activos Fijos",null," Solicitud de crédito,  Copia de cédula o RUC,  Certificado de votación,  Declaraciones de Impuestos,  Planilla de servicios básicos,  Copia de escritura de constitución,  Estatutos,  Flujo de efectivo,  Flujo de caja proyectado,  Balances,  Otros"," Hipotecaria,  Quirografaria,   Prendaria,   Autoliquidable",300000,1800,0.1069," Mensual",null,null,null,null,"Requisitos adicionales (persona natural y jurídica): Copia de cédula y de certificado de votación del cónyuge (si aplica). Certificado de ingreso. Copia de matrícula de vehículo (si aplica). Copia de legalización de unión libre si aplica. Justificación de pensión de Jubilado si aplica. Copia de disolución de la sociedad conyugal si aplica. Documentos que respaldan Garantía Real (AVALUO). Requisitos adicionales (persona jurídica): Nombramiento del Representante Legal. Autorización del directorio para contraer la obligación. Detalle de las cuentas por cobrar y pagar.","29 DE OCTUBRE","https://www.29deoctubre.fin.ec/","","","",""]
[null,"1790567699001","Cooperativas de Ahorro y Crédito","29 DE OCTUBRE","Crédito Productivo PYMES 2","Créditos dirigidos a pequeñas y medianas empresas, para capital de trabajo, activo fijo tangible inmuebles, activos fijos intangible, excepto vehículos livianos de combustible fósil, financiamiento de pasivos. Beneficios: Seguro de desgravamen mensual."," Pequeñas Empresas: Ventas < = USD 1 millón, 4 Medianas Empresas: Ventas < = USD 5 millones","Persona natural o jurídica. Edad 18 - 75"," Capital de Trabajo,  Financiamiento de pasivos (deudas)",null," Solicitud de crédito,  Copia de cédula o RUC,  Certificado de votación,  Declaraciones de Impuestos,  Planilla de servicios básicos,  Copia de escritura de constitución,  Estatutos,  Flujo de efectivo,  Flujo de caja proyectado,  Balances,  Otros"," Hipotecaria,  Quirografaria,   Prendaria,   Autoliquidable",100000,1440,0.1069," Mensual",null,null,null,null,"Requisitos adicionales (persona natural y jurídica): Copia de cédula y de certificado de votación del cónyuge (si aplica). Certificado de ingreso. Copia de matrícula de vehículo (si aplica). Copia de legalización de unión libre si aplica. Justificación de pensión de Jubilado si aplica. Copia de disolución de la sociedad conyugal si aplica. Documentos que respaldan Garantía Real (AVALUO). Requisitos adicionales (persona jurídica): Nombramiento del Representante Legal. Autorización del directorio para contraer la obligación. Detalle de las cuentas por cobrar y pagar.","29 DE OCTUBRE","https://www.29deoctubre.fin.ec/","","","",""]
[null,"1790567699001","Cooperativas de Ahorro y Crédito","29 DE OCTUBRE","Micro Consumo","Enfocado en socios microempresarios con necesidades de consolidar deudas o adquirir bienes de consumo"," Microempresa: Ventas < = USD 100 mil","Edad: 18 - 75 "," Financiamiento de pasivos (deudas)",null," Solicitud de crédito,  Copia de cédula o RUC,  Certificado de votación,  Planilla de servicios básicos,  Reporte de Buró,  Balances,  Flujo de caja proyectado,  Otros,  Justificar patrimonio"," Hipotecaria,  Quirografaria,  Personal,   Prendaria,   Autoliquidable",50000,2520,0.187," Mensual",null,null,null,null,"Requisitos adicionales: Copia de cédula y certificado de votación de cónyuge y garante (si aplica). Planilla de servicios básicos del garante. En el caso de no contar con RUC o RISE, se tomará en cuenta el levantamiento de información del negocio y domicilio para respaldar su antigüedad y estabilidad. Se podrán considerar alguno de estos documentos: facturas de compras, certificados Comerciales (proveedores de insumos), certificados de CONEFA o Agrocalidad, estado de cuentas en Instituciones Financieras, etc.","29 DE OCTUBRE","https://www.29deoctubre.fin.ec/","","","",""]
[null,"1790567699001","Cooperativas de Ahorro y Crédito","29 DE OCTUBRE","Micro express","Dirigido a microempresarios que han demostrado un excelente historial y comportamiento crediticio en la Cooperativa. Incluye seguros por enfermedades graves (opcional) y desgravamen flat."," Microempresa: Ventas < = USD 100 mil","Edad: 18 - 75 "," Activos Fijos,  Capital de Trabajo,  Financiamiento de pasivos (deudas)",null," Copia de cédula o RUC,  Certificado de votación,  Planilla de servicios básicos,  Otros"," Quirografaria",3000,360,0.2006," Mensual",null,null,null,null,"Para socios nuevos se realiza una visita  para levantamiento de información y análisis de capacidad de pago. Para socios antiguos se pide el estados de cuentas de al menos los 3 ultimos meses. Se requiere verificación telefónica del negocio para socios nuevos y antiguos.","29 DE OCTUBRE","https://www.29deoctubre.fin.ec/","","","",""]
[null,"1790567699001","Cooperativas de Ahorro y Crédito","29 DE OCTUBRE","Micro transporte","Financiamiento de buses, camiones, volquetas, cabezales nuevos (marcas: Mercedes Benz, Hino, Volvo, Volkswagen, Nissan, Ford y Hyundai). Entrada 20% incluida IVA – Financiamiento 80% incluido IVA (chasis y carrocería). Incluye seguro vehicular por todo el periodo del crédito y desgravamen mensual."," Microempresa: Ventas < = USD 100 mil","Edad 21 - 75. No aplica para socios con cartera de crédito castigada vigente"," Activos Fijos",null," Solicitud de crédito,  Copia de cédula o RUC,  Certificado de votación,  Planilla de servicios básicos,  Declaraciones de Impuestos,  Justificar patrimonio"," Personal,  Hipotecaria,   Prendaria,   Autoliquidable",180000,2160,0.13500000000000001," Mensual",90,null,null,null,"Certificado de formar parte de la cooperativa.  Acuerdo de depósito. Levantamiento de información negocio y domicilio","29 DE OCTUBRE","https://www.29deoctubre.fin.ec/","","","",""]
[null,"1790567699001","Cooperativas de Ahorro y Crédito","29 DE OCTUBRE","Microcrédito Acum. Ampliada","Beneficios: Seguro de desgravamen mensual > $5 000. Seguro de desgravamen flat < $5 000. Seguro por enfermedades graves"," Microempresa: Ventas < = USD 100 mil","Edad: 18 - 75 "," Activos Fijos,  Capital de Trabajo",null," Solicitud de crédito,  Copia de cédula o RUC,  Certificado de votación,  Planilla de servicios básicos,  Justificar patrimonio,  Reporte de Buró"," Hipotecaria,  Quirografaria,  Personal,   Prendaria,   Autoliquidable",50000,2520,0.2006," Mensual",null,null,null,null,"En el caso de no contar con RUC o RISE, se tomará en cuenta el levantamiento de información del negocio y domicilio para respaldar su antigüedad y estabilidad. Se podrán considerar alguno de estos documentos: facturas de compras, certificados Comerciales (proveedores de insumos), certificados de CONEFA o Agrocalidad, estado de cuentas en Instituciones Financieras, etc.","29 DE OCTUBRE","https://www.29deoctubre.fin.ec/","","","",""]
[null,"1790567699001","Cooperativas de Ahorro y Crédito","29 DE OCTUBRE","Microcrédito Acum. Simple","Beneficios: Seguro de desgravamen mensual > $5 000. Seguro de desgravamen flat < $5 000. Seguro por enfermedades graves"," Microempresa: Ventas < = USD 100 mil","Edad: 18 - 75 "," Activos Fijos,  Capital de Trabajo",null," Solicitud de crédito,  Copia de cédula o RUC,  Certificado de votación,  Planilla de servicios básicos,  Justificar patrimonio,  Reporte de Buró"," Hipotecaria,  Quirografaria,  Personal,   Prendaria,   Autoliquidable",10000,1440,0.224," Mensual",null,null,null,null,"En el caso de no contar con RUC o RISE, se tomará en cuenta el levantamiento de información del negocio y domicilio para respaldar su antigüedad y estabilidad. Se podrán considerar alguno de estos documentos: facturas de compras, certificados Comerciales (proveedores de insumos), certificados de CONEFA o Agrocalidad, estado de cuentas en Instituciones Financieras, etc.","29 DE OCTUBRE","https://www.29deoctubre.fin.ec/","","","",""]
[null,"1790567699001","Cooperativas de Ahorro y Crédito","29 DE OCTUBRE","Microcrédito Minorista","Beneficios: Seguro de desgravamen mensual > $5 000. Seguro de desgravamen flat < $5 000. Seguro por enfermedades graves"," Microempresa: Ventas < = USD 100 mil","Edad: 18 - 75 "," Activos Fijos,  Capital de Trabajo",null," Solicitud de crédito,  Copia de cédula o RUC,  Certificado de votación,  Planilla de servicios básicos,  Justificar patrimonio,  Reporte de Buró"," Hipotecaria,  Quirografaria,  Personal,   Prendaria,   Autoliquidable",1000,360,0.25," Mensual",null,null,null,null,"En el caso de no contar con RUC o RISE, se tomará en cuenta el levantamiento de información del negocio y domicilio para respaldar su antigüedad y estabilidad. Se podrán considerar alguno de estos documentos: facturas de compras, certificados Comerciales (proveedores de insumos), certificados de CONEFA o Agrocalidad, estado de cuentas en Instituciones Financieras, etc.","29 DE OCTUBRE","https://www.29deoctubre.fin.ec/","","","",""]
[null,"1790501469001","Cooperativas de Ahorro y Crédito","ALIANZA DEL VALLE LTDA.","Crédito digital Acum. Ampliada","Aplica para microcréditos nuevos y renovaciones. El financiamiento de encaje esta incluido en el monto solicitado."," Microempresa: Ventas < = USD 100 mil","Edad entre 22 y 75 años, residir en zonas establecidas por la cooperativa, tener califiación AAA. No constar en las listas del CONSEP,"," Financiamiento en general",null," Copia de cédula o RUC,  Reporte de Buró"," Sin garante",120000,2340,0.16800000000000001," Mensual",null,0.1,null," Todo el proceso es en línea","El encaje es de 10 %. Todo el proceso es en línea","ALIANZA DEL VALLE LTDA.","https://alianzadelvalle.fin.ec/","Luis Duchi","Jefe Comercial",998040436,""]
[null,"1790501469001","Cooperativas de Ahorro y Crédito","ALIANZA DEL VALLE LTDA.","Crédito digital Acum. Simple","Aplica para microcréditos nuevos y renovaciones. El financiamiento de encaje esta incluido en el monto solicitado."," Microempresa: Ventas < = USD 100 mil","Edad entre 22 y 75 años, residir en zonas establecidas por la cooperativa, tener califiación AAA. No constar en las listas del CONSEP,"," Financiamiento en general",null," Copia de cédula o RUC,  Reporte de Buró"," Sin garante",120000,2340,0.1875," Mensual",null,0.1,null," Todo el proceso es en línea","El encaje es de 10 %. Todo el proceso es en línea","ALIANZA DEL VALLE LTDA.","https://alianzadelvalle.fin.ec/","Luis Duchi","Jefe Comercial",998040436,""]
[null,"1790501469001","Cooperativas de Ahorro y Crédito","ALIANZA DEL VALLE LTDA.","Crédito digital Minorista","Aplica para microcréditos nuevos y renovaciones. El financiamiento de encaje esta incluido en el monto solicitado."," Microempresa: Ventas < = USD 100 mil","Edad entre 22 y 75 años, residir en zonas establecidas por la cooperativa, tener califiación AAA. No constar en las listas del CONSEP. El negocio debe estar en funcionamiento mínimo un año."," Financiamiento en general",null," Copia de cédula o RUC,  Reporte de Buró"," Sin garante",120000,2340,0.21," Mensual",null,0.1,null," Todo el proceso es en línea","El encaje es de 10 %. Todo el proceso es en línea","ALIANZA DEL VALLE LTDA.","https://alianzadelvalle.fin.ec/","Luis Duchi","Jefe Comercial",998040436,""]
[null,"1790501469001","Cooperativas de Ahorro y Crédito","ALIANZA DEL VALLE LTDA.","Microcrédito Acum. Ampliada","Beneficios: La cuotas se ajusten a los ingresos. Se puede prestar hasta 10 veces el valor en la cuenta de ahorros o financian el encaje."," Microempresa: Ventas < = USD 100 mil","El negocio debe estar en funcionamiento mínimo un año."," Financiamiento en general",null," Copia de cédula o RUC,  Declaraciones de Impuestos,  Solicitud de crédito,  Balances"," Personal,  Hipotecaria",120000,2340,0.16800000000000001," Mensual",null,0.1,3,null,"Requisitos adicionales: Contratos de arrendamiento (en caso de percibir arriendos). No específica el destino del créditoEl encaje es de 10 %.El crédito es aprobado en 3 días.","ALIANZA DEL VALLE LTDA.","https://alianzadelvalle.fin.ec/","Luis Duchi","Jefe Comercial",998040436,""]
[null,"1790501469001","Cooperativas de Ahorro y Crédito","ALIANZA DEL VALLE LTDA.","Microcrédito Acum. Simple","Beneficios: La cuotas se ajusten a los ingresos. Se puede prestar hasta 10 veces el valor en la cuenta de ahorros o financian el encaje."," Microempresa: Ventas < = USD 100 mil","El negocio debe estar en funcionamiento mínimo un año."," Financiamiento en general",null," Copia de cédula o RUC,  Declaraciones de Impuestos,  Solicitud de crédito,  Balances"," Personal,  Hipotecaria",120000,2340,0.1875," Mensual",null,0.1,3,null,"Requisitos adicionales: Contratos de arrendamiento (en caso de percibir arriendos). No específica el destino del créditoEl encaje es de 10 %.El crédito es aprobado en 3 días.","ALIANZA DEL VALLE LTDA.","https://alianzadelvalle.fin.ec/","Luis Duchi","Jefe Comercial",998040436,""]
[null,"1790501469001","Cooperativas de Ahorro y Crédito","ALIANZA DEL VALLE LTDA.","Microcrédito Minorista","Beneficios: La cuotas se ajusten a los ingresos. Se puede prestar hasta 10 veces el valor en la cuenta de ahorros o financian el encaje."," Microempresa: Ventas < = USD 100 mil","El negocio debe estar en funcionamiento mínimo un año."," Financiamiento en general",null," Copia de cédula o RUC,  Declaraciones de Impuestos,  Solicitud de crédito,  Balances"," Personal,  Hipotecaria",120000,2340,0.21," Mensual",null,0.1,3,null,"Requisitos adicionales: Contratos de arrendamiento (en caso de percibir arriendos). No específica el destino del créditoEl encaje es de 10 %.El crédito es aprobado en 3 días.","ALIANZA DEL VALLE LTDA.","https://alianzadelvalle.fin.ec/","Luis Duchi","Jefe Comercial",998040436,""]
[null,"1891709591001","Cooperativas de Ahorro y Crédito","AMBATO LTDA","Amba Yá","Es destinado para capital de trabajo, adquisición de activos, y adquisición de servicios."," Microempresa: Ventas < = USD 100 mil","Persona natural o jurídica"," Activos Fijos,  Capital de Trabajo,  Otro",null," Solicitud de crédito"," No especificada",150000,1800,0.13900000000000001," Mensual",null,null,2,null,"Incluye la adquisición de servicios. No se especifica el tipo de garantia. No especifican otros requisitos.El crédito es aprobado en 2 días.","AMBATO LTDA","https://www.cooperativaambato.fin.ec/","","","",""]
[null,"1891709591001","Cooperativas de Ahorro y Crédito","AMBATO LTDA","Credi reactivación","Es destinado para capital de trabajo, adquisición de activos, y adquisición de servicios."," Microempresa: Ventas < = USD 100 mil","Persona natural o jurídica"," Activos Fijos,  Capital de Trabajo,  Otro",null," Solicitud de crédito"," No especificada",100000,1080,0.14899999999999999," Mensual",null,null,2,null,"Incluye la adquisición de servicios. No se especifica el tipo de garantia. No especifican otros requisitos.El crédito es aprobado en 2 días.","AMBATO LTDA","https://www.cooperativaambato.fin.ec/","","","",""]
[null,"1891709591001","Cooperativas de Ahorro y Crédito","AMBATO LTDA","Crediconfianza","Es destinado para capital de trabajo, adquisición de activos, y adquisición de servicios."," Microempresa: Ventas < = USD 100 mil","Persona natural o jurídica"," Activos Fijos,  Capital de Trabajo,  Otro",null," Solicitud de crédito"," No especificada",150000,1800,0.16," Mensual",null,null,2,null,"Incluye la adquisición de servicios. No se especifica el tipo de garantia. No especifican otros requisitos.El crédito es aprobado en 2 días.","AMBATO LTDA","https://www.cooperativaambato.fin.ec/","","","",""]
[null,"1891709591001","Cooperativas de Ahorro y Crédito","AMBATO LTDA","Crédito ain garante","Es destinado para capital de trabajo, adquisición de activos, y adquisición de servicios."," Microempresa: Ventas < = USD 100 mil","Persona natural o jurídica"," Activos Fijos,  Capital de Trabajo,  Otro",null," Solicitud de crédito"," No especificada",30000,1080,0.18," Mensual",null,null,2,null,"Incluye la adquisición de servicios. No se especifica el tipo de garantia. No especifican otros requisitos.El crédito es aprobado en 2 días.","AMBATO LTDA","https://www.cooperativaambato.fin.ec/","","","",""]
[null,"1891709591001","Cooperativas de Ahorro y Crédito","AMBATO LTDA","Crédito sostenible","Es destinado para capital de trabajo, adquisición de activos, y adquisición de servicios."," Microempresa: Ventas < = USD 100 mil","Persona natural o jurídica"," Activos Fijos,  Capital de Trabajo,  Otro",null," Solicitud de crédito"," No especificada",150000,2880,0.16," Mensual",null,null,2,null,"Incluye la adquisición de servicios. No se especifica el tipo de garantia. No especifican otros requisitos.El crédito es aprobado en 2 días.","AMBATO LTDA","https://www.cooperativaambato.fin.ec/","","","",""]
[null,"1891709591001","Cooperativas de Ahorro y Crédito","AMBATO LTDA","Microcrédito Agricola y ganadero","Dedicados a actividades agrícolas y ganaderas"," Microempresa: Ventas < = USD 100 mil","Pertenecer al sector agrícola y ganadero"," Activos Fijos,  Capital de Trabajo,  Otro",null," Solicitud de crédito"," No especificada",10000,1080,0.184," Mensual",null,null,2,null,"Incluye la adquisición de servicios. No se especifica el tipo de garantia. No especifican otros requisitos.El crédito es aprobado en 2 días.","AMBATO LTDA","https://www.cooperativaambato.fin.ec/","","","",""]
[null,"1891709591001","Cooperativas de Ahorro y Crédito","AMBATO LTDA","Microcrédito Emprendedor","Es destinado para capital de trabajo, adquisición de activos, y adquisición de servicios."," Microempresa: Ventas < = USD 100 mil","Persona natural o jurídica"," Activos Fijos,  Capital de Trabajo,  Otro",null," Solicitud de crédito"," No especificada",10000,1800,0.19750000000000001," Mensual",null,null,2,null,"Incluye la adquisición de servicios. No se especifica el tipo de garantia. No especifican otros requisitos.El crédito es aprobado en 2 días.","AMBATO LTDA","https://www.cooperativaambato.fin.ec/","","","",""]
[null,"1891709591001","Cooperativas de Ahorro y Crédito","AMBATO LTDA","Microcrédito Familiar","Es destinado para capital de trabajo, adquisición de activos, y adquisición de servicios."," Microempresa: Ventas < = USD 100 mil","Persona natural o jurídica"," Activos Fijos,  Capital de Trabajo,  Otro",null," Solicitud de crédito"," No especificada",1000,540,0.21," Mensual",null,null,2,null,"Incluye la adquisición de servicios. No se especifica el tipo de garantia. No especifican otros requisitos.El crédito es aprobado en 2 días.","AMBATO LTDA","https://www.cooperativaambato.fin.ec/","","","",""]
[null,"1891709591001","Cooperativas de Ahorro y Crédito","AMBATO LTDA","Microcrédito Inversión","Es destinado para capital de trabajo, adquisición de activos, y adquisición de servicios."," Microempresa: Ventas < = USD 100 mil","Persona natural o jurídica"," Activos Fijos,  Capital de Trabajo,  Otro",null," Solicitud de crédito"," No especificada",150000,2880,0.1799," Mensual",null,null,2,null,"Incluye la adquisición de servicios. No se especifica el tipo de garantia. No especifican otros requisitos.El crédito es aprobado en 2 días.","AMBATO LTDA","https://www.cooperativaambato.fin.ec/","","","",""]
[null,"1891709591001","Cooperativas de Ahorro y Crédito","AMBATO LTDA","Productivo PYMES","Destinado para capital de trabajo y adquisición de activos"," Pequeñas Empresas: Ventas < = USD 1 millón, 4 Medianas Empresas: Ventas < = USD 5 millones","Persona natural o jurídica"," Activos Fijos,  Capital de Trabajo",null," Solicitud de crédito"," No especificada",250000,1080,0.107," Mensual",null,null,2,null,"Incluye la adquisición de servicios. No se especifica el tipo de garantia. No especifican otros requisitos.El crédito es aprobado en 2 días.","AMBATO LTDA","https://www.cooperativaambato.fin.ec/","","","",""]
[null,"1790325083001","Cooperativas de Ahorro y Crédito","ANDALUCIA","Microcrédito Acum. Ampliada","Financiamiento a actividades de producción y/o comercialización en pequeña escala"," Microempresa: Ventas < = USD 100 mil","Edad: 18 - 79. Financiamiento destinado para Personas Naturales cuyo nivel de ventas no superen los $100.000 al año, destinado a financiar actividades de producción, comercialización y/o servicios en pequeña escala y cuya fuente de pago está constituido por el producto de las ventas o ingresos de dichas actividades"," Activos Fijos,  Capital de Trabajo",null," Copia de cédula o RUC,  Planilla de servicios básicos,  Declaraciones de Impuestos"," Personal",60000,4320,0.19600000000000001," Mensual",null,0.03,null,null,"Requisitos adicionales: Croquis domicilio y negocio, RIMPE En caso de aplicar: Permisos de funcionamiento, Copia de matrícula de vehículo, Copia de Pago de Imp. PredialEl encaje es de 3 %.","ANDALUCIA","https://www.andalucia.fin.ec/","Alexander Pinta","Coordinador del crédito",959076636,"alexander.pinta@andalucia.fin.ec"]
[null,"1790325083001","Cooperativas de Ahorro y Crédito","ANDALUCIA","Microcrédito Acum. Simple","Financiamiento a actividades de producción y/o comercialización en pequeña escala"," Microempresa: Ventas < = USD 100 mil","Edad: 18 - 79. Financiamiento destinado para Personas Naturales cuyo nivel de ventas no superen los $100.000 al año, destinado a financiar actividades de producción, comercialización y/o servicios en pequeña escala y cuya fuente de pago está constituido por el producto de las ventas o ingresos de dichas actividades"," Activos Fijos,  Capital de Trabajo",null," Copia de cédula o RUC,  Planilla de servicios básicos,  Declaraciones de Impuestos"," Personal",60000,4320,0.218," Mensual",null,0.03,null,null,"Requisitos adicionales: Croquis domicilio y negocio, RIMPE En caso de aplicar: Permisos de funcionamiento, Copia de matrícula de vehículo, Copia de Pago de Imp. PredialEl encaje es de 3 %.","ANDALUCIA","https://www.andalucia.fin.ec/","Alexander Pinta","Coordinador del crédito",959076636,"alexander.pinta@andalucia.fin.ec"]
[null,"1790325083001","Cooperativas de Ahorro y Crédito","ANDALUCIA","Microcrédito Minorista","Financiamiento a actividades de producción y/o comercialización en pequeña escala"," Microempresa: Ventas < = USD 100 mil","Edad: 18 - 79. Financiamiento destinado para Personas Naturales cuyo nivel de ventas no superen los $100.000 al año, destinado a financiar actividades de producción, comercialización y/o servicios en pequeña escala y cuya fuente de pago está constituido por el producto de las ventas o ingresos de dichas actividades"," Activos Fijos,  Capital de Trabajo",null," Copia de cédula o RUC,  Planilla de servicios básicos,  Declaraciones de Impuestos"," Personal",60000,4320,0.2235," Mensual",null,0.03,null,null,"Requisitos adicionales: Croquis domicilio y negocio, RIMPE En caso de aplicar: Permisos de funcionamiento, Copia de matrícula de vehículo, Copia de Pago de Imp. PredialEl encaje es de 3 %.","ANDALUCIA","https://www.andalucia.fin.ec/","Alexander Pinta","Coordinador del crédito",959076636,"alexander.pinta@andalucia.fin.ec"]
[null,"1790325083001","Cooperativas de Ahorro y Crédito","ANDALUCIA","Microcrédito Acum. Ampliada","Financiamiento a actividades de producción y/o comercialización en pequeña escala"," Microempresa: Ventas < = USD 100 mil","Edad: 18 - 79. Financiamiento destinado para Personas Naturales cuyo nivel de ventas no superen los $100.000 al año, destinado a financiar actividades de producción, comercialización y/o servicios en pequeña escala y cuya fuente de pago está constituido por el producto de las ventas o ingresos de dichas actividades"," Activos Fijos,  Capital de Trabajo",null," Copia de cédula o RUC,  Planilla de servicios básicos,  Declaraciones de Impuestos"," Hipotecaria",120000,4320,0.19600000000000001," Mensual",null,0.03,null,null,"Requisitos adicionales: Croquis domicilio y negocio, RIMPE En caso de aplicar: Permisos de funcionamiento, Copia de matrícula de vehículo, Copia de Pago de Imp. PredialEl encaje es de 3 %.","ANDALUCIA","https://www.andalucia.fin.ec/","Alexander Pinta","Coordinador del crédito",959076636,"alexander.pinta@andalucia.fin.ec"]
[null,"1790325083001","Cooperativas de Ahorro y Crédito","ANDALUCIA","Microcrédito Acum. Simple","Financiamiento a actividades de producción y/o comercialización en pequeña escala"," Microempresa: Ventas < = USD 100 mil","Edad: 18 - 79. Financiamiento destinado para Personas Naturales cuyo nivel de ventas no superen los $100.000 al año, destinado a financiar actividades de producción, comercialización y/o servicios en pequeña escala y cuya fuente de pago está constituido por el producto de las ventas o ingresos de dichas actividades"," Activos Fijos,  Capital de Trabajo",null," Copia de cédula o RUC,  Planilla de servicios básicos,  Declaraciones de Impuestos"," Hipotecaria",120000,4320,0.218," Mensual",null,0.03,null,null,"Requisitos adicionales: Croquis domicilio y negocio, RIMPE En caso de aplicar: Permisos de funcionamiento, Copia de matrícula de vehículo, Copia de Pago de Imp. PredialEl encaje es de 3 %.","ANDALUCIA","https://www.andalucia.fin.ec/","Alexander Pinta","Coordinador del crédito",959076636,"alexander.pinta@andalucia.fin.ec"]
[null,"1790325083001","Cooperativas de Ahorro y Crédito","ANDALUCIA","Microcrédito Minorista","Financiamiento a actividades de producción y/o comercialización en pequeña escala"," Microempresa: Ventas < = USD 100 mil","Edad: 18 - 79. Financiamiento destinado para Personas Naturales cuyo nivel de ventas no superen los $100.000 al año, destinado a financiar actividades de producción, comercialización y/o servicios en pequeña escala y cuya fuente de pago está constituido por el producto de las ventas o ingresos de dichas actividades"," Activos Fijos,  Capital de Trabajo",null," Copia de cédula o RUC,  Planilla de servicios básicos,  Declaraciones de Impuestos"," Hipotecaria",120000,4320,0.2235," Mensual",null,0.03,null,null,"Requisitos adicionales: Croquis domicilio y negocio, RIMPE En caso de aplicar: Permisos de funcionamiento, Copia de matrícula de vehículo, Copia de Pago de Imp. PredialEl encaje es de 3 %.","ANDALUCIA","https://www.andalucia.fin.ec/","Alexander Pinta","Coordinador del crédito",959076636,"alexander.pinta@andalucia.fin.ec"]
[null,"1790325083001","Cooperativas de Ahorro y Crédito","ANDALUCIA","Microcrédito Express","Orientado para cubrir necesidades de financiamiento cuya aprobación de crédito es de forma inmediata, aplica para socios cuyo comportamiento de pago optima en función del Score del buró de crédito"," Microempresa: Ventas < = USD 100 mil","Edad: 18 - 79. Financiamiento destinado para Personas Naturales cuyo nivel de ventas no superen los $100.000 al año, destinado a financiar actividades de producción, comercialización y/o servicios en pequeña escala y cuya fuente de pago está constituido por el producto de las ventas o ingresos de dichas actividades"," Activos Fijos,  Capital de Trabajo",null," Copia de cédula o RUC,  Planilla de servicios básicos,  Declaraciones de Impuestos"," Personal",60000,4320,0.16," Mensual",null,0.03,null,null,"Requisitos adicionales: Croquis domicilio y negocio, RIMPE En caso de aplicar: Permisos de funcionamiento, Copia de matrícula de vehículo, Copia de Pago de Imp. PredialEl encaje es de 3 %.","ANDALUCIA","https://www.andalucia.fin.ec/","Alexander Pinta","Coordinador del crédito",959076636,"alexander.pinta@andalucia.fin.ec"]
[null,"1790325083001","Cooperativas de Ahorro y Crédito","ANDALUCIA","Microcrédito Único","Orientado para cubrir necesidades de financiamiento cuya aprobación de crédito es de forma inmediata, aplica para socios cuyo comportamiento de pago optima en función del Score del buró de crédito"," Microempresa: Ventas < = USD 100 mil","Edad: 18 - 79. Financiamiento destinado para Personas Naturales cuyo nivel de ventas no superen los $100.000 al año, destinado a financiar actividades de producción, comercialización y/o servicios en pequeña escala y cuya fuente de pago está constituido por el producto de las ventas o ingresos de dichas actividades"," Activos Fijos,  Capital de Trabajo",null," Copia de cédula o RUC,  Planilla de servicios básicos,  Declaraciones de Impuestos"," Personal",11000,4320,9.9900000000000003E-2," Mensual",null,null,null,null,"Requisitos adicionales: Croquis domicilio y negocio, RIMPE En caso de aplicar: Permisos de funcionamiento, Copia de matrícula de vehículo, Copia de Pago de Imp. Predial","ANDALUCIA","https://www.andalucia.fin.ec/","Alexander Pinta","Coordinador del crédito",959076636,"alexander.pinta@andalucia.fin.ec"]
[null,"1790325083001","Cooperativas de Ahorro y Crédito","ANDALUCIA","Microcrédito Volta","Orientado para cubrir necesidades de financiamiento de oportunidad. El plazo máximo de este tipo de crédito es desde los 6 meses hasta 12 meses"," Microempresa: Ventas < = USD 100 mil","Edad: 18 - 79. Financiamiento destinado para Personas Naturales cuyo nivel de ventas no superen los $100.000 al año, destinado a financiar actividades de producción, comercialización y/o servicios en pequeña escala y cuya fuente de pago está constituido por el producto de las ventas o ingresos de dichas actividades"," Activos Fijos,  Capital de Trabajo",null," Copia de cédula o RUC,  Planilla de servicios básicos,  Declaraciones de Impuestos"," Personal",8600,360,4.99E-2," Mensual",null,null,null,null,"Requisitos adicionales: Croquis domicilio y negocio, RIMPE En caso de aplicar: Permisos de funcionamiento, Copia de matrícula de vehículo, Copia de Pago de Imp. Predial","ANDALUCIA","https://www.andalucia.fin.ec/","Alexander Pinta","Coordinador del crédito",959076636,"alexander.pinta@andalucia.fin.ec"]
[null,"1090033456001","Cooperativas de Ahorro y Crédito","ATUNTAQUI","CrediProductivo","Ideal para capital de operaciones y de inversión en pequeña escala, destinados para producción, comercialización de productos y servicios, cuya fuente principal de pago constituye la venta de los productos o servicios de dichas actividades."," Microempresa: Ventas < = USD 100 mil","Persona natural o jurídica"," Activos Fijos,  Capital de Trabajo",null," Copia de cédula o RUC,  Certificado de votación,  Planilla de servicios básicos,  Declaraciones de Impuestos,  Justificar ingresos"," Hipotecaria,  Personal,   Prendaria",150000,4320,0.14990000000000001," Mensual",null,null,null,null,"Requisito opcional: copia de matrícula. Se podrá otorgar sin garante siempre y cuando el nivel de endeudamiento del negocio no supere el 100% y en casos de socios VIP en créditos con montos de hasta $25 000.","ATUNTAQUI","https://www.atuntaqui.fin.ec/","","","",""]
[null,"1090033456001","Cooperativas de Ahorro y Crédito","ATUNTAQUI","Micrecrédito agrícola","Ideal para capital de operaciones y de inversión en pequeña escala, destinados para producción, Comercialización de productos y servicios, cuya fuente principal de pago constituye la venta de los productos o servicios de dichas actividades."," Microempresa: Ventas < = USD 100 mil","Pertenecer al sector agrícola y ganadero"," Activos Fijos,  Capital de Trabajo",null," Copia de cédula o RUC,  Planilla de servicios básicos,  Declaraciones de Impuestos"," Personal,  Sin garante,  Hipotecaria",70000,2520,0.15989999999999999," Mensual,  Trimestral,  Semestral",null,null,null,null,"Presentar certificado agrícola o certificado de vacunas. Se puede aplicar garantía CONAFIPS (micro). Se podrá otorgar sin garante siempre y cuando el nivel de endeudamiento del negocio no supere el 100% ","ATUNTAQUI","https://www.atuntaqui.fin.ec/","","","",""]
[null,"1090033456001","Cooperativas de Ahorro y Crédito","ATUNTAQUI","MicroCrédito al instante","Ideal para capital de operaciones y de inversión en pequeña escala, destinados para producción, Comercialización de productos y servicios, cuya fuente principal de pago constituye la venta de los productos o servicios de dichas actividades."," Microempresa: Ventas < = USD 100 mil","Persona natural o jurídica"," Activos Fijos,  Capital de Trabajo",null," Copia de cédula o RUC,  Certificado de votación,  Planilla de servicios básicos,  Declaraciones de Impuestos,  Justificar ingresos"," Hipotecaria,  Personal,   Prendaria",60000,2160,0.1399," Mensual",null,null,null,null,"La tasa es la preferencial","ATUNTAQUI","https://www.atuntaqui.fin.ec/","","","",""]
[null,"0990247536001","Bancos Privados","BANCO CODESARROLLO","CrediDesarrollo Acum. Ampliada 1","Para organizaciones, grupos y empresas campesinas populares solidarias o individuales que requieran financiar actividades productivas y compra de tierras."," Microempresa: Ventas < = USD 100 mil","Persona natural o jurídica, que destine el crédito a financiar actividades de producción, transformación, servicios o comercialización en pequeña escala, cuya fuente principal de pago constituye el producto de las ventas o ingresos generados por dichas actividades. Pueden ser productores individuales y organizaciones de productores, dedicados a actividades agrícolas - ganadera"," Activos Fijos",null," Solicitud de crédito,  Copia de cédula o RUC,  Planilla de servicios básicos"," Hipotecaria,  Quirografaria,   Prendaria",80000,1800,0.14000000000000001," Mensual",null,null,null,null,"","BANCO CODESARROLLO","https://www.bancodesarrollo.fin.ec/","Nathaly Aráuz ","","02-2900-109 ext 2017   0984770032","narauz@bancodesarrollo.fin.ec"]
[null,"0990247536001","Bancos Privados","BANCO CODESARROLLO","CrediDesarrollo Acum. Ampliada 2","Diseñado para organizaciones, grupos y empresas campesinas populares solidarias o individuales que requieran financiar actividades productivas y compra de tierras. Clientes con convenios con asociacione. "," Microempresa: Ventas < = USD 100 mil","Persona natural o jurídica, que destine el crédito a financiar actividades de producción, transformación, servicios o comercialización en pequeña escala"," Activos Fijos,  Capital de Trabajo",null," Solicitud de crédito,  Copia de cédula o RUC,  Planilla de servicios básicos"," Hipotecaria,  Quirografaria,   Prendaria",80000,1800,0.16," Mensual",null,null,null,null,"","BANCO CODESARROLLO","https://www.bancodesarrollo.fin.ec/","Nathaly Aráuz ","","02-2900-109 ext 2017   0984770032","narauz@bancodesarrollo.fin.ec"]
[null,"0990247536001","Bancos Privados","BANCO CODESARROLLO","CrediDesarrollo Acum. Ampliada 3","Diseñado para organizaciones, grupos y empresas campesinas populares solidarias o individuales que requieran financiar actividades productivas y compra de tierras. "," Microempresa: Ventas < = USD 100 mil","Persona natural o jurídica, que destine el crédito a financiar actividades de producción, transformación, servicios o comercialización en pequeña escala"," Activos Fijos,  Capital de Trabajo,  Otro",null," Solicitud de crédito,  Copia de cédula o RUC,  Planilla de servicios básicos"," Hipotecaria,  Quirografaria,   Prendaria",80000,1800,0.2205," Mensual",null,null,null,null,"","BANCO CODESARROLLO","https://www.bancodesarrollo.fin.ec/","Nathaly Aráuz ","","02-2900-109 ext 2017   0984770032","narauz@bancodesarrollo.fin.ec"]
[null,"0990247536001","Bancos Privados","BANCO CODESARROLLO","CrediDesarrollo Acum. Simple 1","Para organizaciones, grupos y empresas campesinas populares solidarias o individuales que requieran financiar actividades productivas y compra de tierras."," Microempresa: Ventas < = USD 100 mil","Persona natural o jurídica, que destine el crédito a financiar actividades de producción, transformación, servicios o comercialización en pequeña escala, cuya fuente principal de pago constituye el producto de las ventas o ingresos generados por dichas actividades. Pueden ser productores individuales y organizaciones de productores, dedicados a actividades agrícolas - ganadera"," Activos Fijos",null," Solicitud de crédito,  Copia de cédula o RUC,  Planilla de servicios básicos"," Hipotecaria,  Quirografaria,   Prendaria",80000,1800,0.13," Mensual",null,null,null,null,"","BANCO CODESARROLLO","https://www.bancodesarrollo.fin.ec/","Nathaly Aráuz ","","02-2900-109 ext 2017   0984770032","narauz@bancodesarrollo.fin.ec"]
[null,"0990247536001","Bancos Privados","BANCO CODESARROLLO","CrediDesarrollo Acum. Simple 2","Diseñado para organizaciones, grupos y empresas campesinas populares solidarias o individuales que requieran financiar actividades productivas y compra de tierras. Clientes con convenios con asociacione. "," Microempresa: Ventas < = USD 100 mil","Persona natural o jurídica, que destine el crédito a financiar actividades de producción, transformación, servicios o comercialización en pequeña escala"," Activos Fijos,  Capital de Trabajo",null," Solicitud de crédito,  Copia de cédula o RUC,  Planilla de servicios básicos"," Hipotecaria,  Quirografaria,   Prendaria",80000,1800,0.15," Mensual",null,null,null,null,"","BANCO CODESARROLLO","https://www.bancodesarrollo.fin.ec/","Nathaly Aráuz ","","02-2900-109 ext 2017   0984770032","narauz@bancodesarrollo.fin.ec"]
[null,"0990247536001","Bancos Privados","BANCO CODESARROLLO","CrediDesarrollo Acum. Simple 3","Diseñado para organizaciones, grupos y empresas campesinas populares solidarias o individuales que requieran financiar actividades productivas y compra de tierras. "," Microempresa: Ventas < = USD 100 mil","Persona natural o jurídica, que destine el crédito a financiar actividades de producción, transformación, servicios o comercialización en pequeña escala"," Activos Fijos,  Capital de Trabajo,  Otro",null," Solicitud de crédito,  Copia de cédula o RUC,  Planilla de servicios básicos"," Hipotecaria,  Quirografaria,   Prendaria",80000,1800,0.22," Mensual",null,null,null,null,"","BANCO CODESARROLLO","https://www.bancodesarrollo.fin.ec/","Nathaly Aráuz ","","02-2900-109 ext 2017   0984770032","narauz@bancodesarrollo.fin.ec"]
[null,"0990247536001","Bancos Privados","BANCO CODESARROLLO","CrediDesarrollo Minorista 1","Para organizaciones, grupos y empresas campesinas populares solidarias o individuales que requieran financiar actividades productivas y compra de tierras."," Microempresa: Ventas < = USD 100 mil","Persona natural o jurídica, que destine el crédito a financiar actividades de producción, transformación, servicios o comercialización en pequeña escala, cuya fuente principal de pago constituye el producto de las ventas o ingresos generados por dichas actividades. Pueden ser productores individuales y organizaciones de productores, dedicados a actividades agrícolas - ganadera"," Activos Fijos",null," Solicitud de crédito,  Copia de cédula o RUC,  Planilla de servicios básicos"," Hipotecaria,  Quirografaria,   Prendaria",80000,1800,0.12," Mensual",null,null,null,null,"","BANCO CODESARROLLO","https://www.bancodesarrollo.fin.ec/","Nathaly Aráuz ","","02-2900-109 ext 2017   0984770032","narauz@bancodesarrollo.fin.ec"]
[null,"0990247536001","Bancos Privados","BANCO CODESARROLLO","CrediDesarrollo Minorista 2","Diseñado para organizaciones, grupos y empresas campesinas populares solidarias o individuales que requieran financiar actividades productivas y compra de tierras. Clientes con convenios con asociacione. "," Microempresa: Ventas < = USD 100 mil","Persona natural o jurídica, que destine el crédito a financiar actividades de producción, transformación, servicios o comercialización en pequeña escala"," Activos Fijos,  Capital de Trabajo",null," Solicitud de crédito,  Copia de cédula o RUC,  Planilla de servicios básicos"," Hipotecaria,  Quirografaria,   Prendaria",80000,1800,0.14000000000000001," Mensual",null,null,null,null,"","BANCO CODESARROLLO","https://www.bancodesarrollo.fin.ec/","Nathaly Aráuz ","","02-2900-109 ext 2017   0984770032","narauz@bancodesarrollo.fin.ec"]
[null,"0990247536001","Bancos Privados","BANCO CODESARROLLO","CrediDesarrollo Minorista 3","Diseñado para organizaciones, grupos y empresas campesinas populares solidarias o individuales que requieran financiar actividades productivas y compra de tierras. "," Microempresa: Ventas < = USD 100 mil","Persona natural o jurídica, que destine el crédito a financiar actividades de producción, transformación, servicios o comercialización en pequeña escala"," Activos Fijos,  Financiamiento en general",null," Solicitud de crédito,  Copia de cédula o RUC,  Planilla de servicios básicos"," Hipotecaria,  Quirografaria,   Prendaria",80000,1800,0.2," Mensual",null,null,null,null,"","BANCO CODESARROLLO","https://www.bancodesarrollo.fin.ec/","Nathaly Aráuz ","","02-2900-109 ext 2017   0984770032","narauz@bancodesarrollo.fin.ec"]
[null,"0990247536001","Bancos Privados","BANCO CODESARROLLO","CrediEcológico","Destinado a incentivar buenas prácticas ambientales en relación a recuperación de suelos, energía alternativa, protección de bosques, agroecología, soberanía alimentaria, alimentos orgánicos."," Microempresa: Ventas < = USD 100 mil"," El cliente debe presentar un certificado de la actividad económica, en la que especifique que esta apegado a las condiciones al producto crediecologico, como son al cambio climático o finanzas climáticas"," Activos Fijos,  Capital de Trabajo","8.       Innovación o Adaptación tecnológica, 9.       Mejoras en eficiencia energética y ambiental"," Copia de cédula o RUC,  Estatutos,  Planilla de servicios básicos,  Otros,  Estados financieros"," Hipotecaria,  Quirografaria,   Prendaria",80000,3060,0.1," Mensual",null,null,null,null,"Requisitos adicionales: Copia del listado de accionistas, Consejo Directivo o Comité Ejecutivo. Certificado de registro de organizaciones políticas y copia de resolución del CNE*. Copia del certificado del nombramiento del representante legal.","BANCO CODESARROLLO","https://www.bancodesarrollo.fin.ec/","Nathaly Aráuz ","","02-2900-109 ext 2017   0984770032","narauz@bancodesarrollo.fin.ec"]
[null,"0990247536001","Bancos Privados","BANCO CODESARROLLO","CrediEfectivo Empresarial","Crédito dirigido a Estructuras Locales, Organizaciones de la Economía Popular Solidaria y personas jurídicas.","4 Medianas Empresas: Ventas < = USD 5 millones","Para organizaciones  OPEPS y EFL"," Activos Fijos,  Capital de Trabajo",null," Copia de cédula o RUC,  Planilla de servicios básicos,  Estatutos,  Estados financieros"," Quirografaria,  Hipotecaria,   Prendaria,  Otro",1000000,1800,9.4500000000000001E-2," Mensual",null,null,null,null,"Requisitos adicionales: Nómina de la Directiva, Consejo de Administración, socios o accionistas, Consejo Directivo o Comité Ejecutivo. Certificado de obligaciones y existencia legal. Copia certificada del nombramiento del representante legal. Garantia: DPF - Mínimo 100%","BANCO CODESARROLLO","https://www.bancodesarrollo.fin.ec/","Nathaly Aráuz ","","02-2900-109 ext 2017   0984770032","narauz@bancodesarrollo.fin.ec"]
[null,"0990247536001","Bancos Privados","BANCO CODESARROLLO","CrediEfectivo PYMES 1","Crédito dirigido a Estructuras Locales, Organizaciones de la Economía Popular Solidaria y personas jurídicas."," Pequeñas Empresas: Ventas < = USD 1 millón","Para Organizaciones de la Economía Popular y Solidaria (OEPS)"," Activos Fijos,  Capital de Trabajo",null," Copia de cédula o RUC,  Planilla de servicios básicos,  Estatutos,  Estados financieros"," Quirografaria,  Hipotecaria,   Prendaria,  Otro",1000000,1800,0.107," Mensual",null,null,null,null,"Requisitos adicionales: Nómina de la Directiva, Consejo de Administración, socios o accionistas, Consejo Directivo o Comité Ejecutivo. Certificado de obligaciones y existencia legal. Copia certificada del nombramiento del representante legal. Garantia: DPF - Mínimo 100%","BANCO CODESARROLLO","https://www.bancodesarrollo.fin.ec/","Nathaly Aráuz ","","02-2900-109 ext 2017   0984770032","narauz@bancodesarrollo.fin.ec"]
[null,"0990247536001","Bancos Privados","BANCO CODESARROLLO","CrediEfectivo PYMES 2","Crédito dirigido a Estructuras Locales, Organizaciones de la Economía Popular Solidaria y personas jurídicas."," Pequeñas Empresas: Ventas < = USD 1 millón","Para organizaciones de la EFL"," Activos Fijos,  Capital de Trabajo",null," Copia de cédula o RUC,  Planilla de servicios básicos,  Estatutos,  Estados financieros"," Quirografaria,  Hipotecaria,   Prendaria,  Otro",1000000,1800,0.1045," Mensual",null,null,null,null,"Requisitos adicionales: Nómina de la Directiva, Consejo de Administración, socios o accionistas, Consejo Directivo o Comité Ejecutivo. Certificado de obligaciones y existencia legal. Copia certificada del nombramiento del representante legal. Garantia: DPF - Mínimo 100%","BANCO CODESARROLLO","https://www.bancodesarrollo.fin.ec/","Nathaly Aráuz ","","02-2900-109 ext 2017   0984770032","narauz@bancodesarrollo.fin.ec"]
[null,"0990247536001","Bancos Privados","BANCO CODESARROLLO","CrediEmergente Acum. Ampliada","Crédito para clientes del banco con calificación A o AA. Con al menos 2 créditos cancelados en la institución. "," Microempresa: Ventas < = USD 100 mil","Clientes del Banco con calificación interna A o AA y al menos dos créditos cancelados en la institución"," Capital de Trabajo",null," Copia de cédula o RUC,  Planilla de servicios básicos"," Hipotecaria,  Quirografaria,   Prendaria",3000,160,0.20050000000000001," Mensual",null,null,null,null,"","BANCO CODESARROLLO","https://www.bancodesarrollo.fin.ec/","Nathaly Aráuz ","","02-2900-109 ext 2017   0984770032","narauz@bancodesarrollo.fin.ec"]
[null,"0990247536001","Bancos Privados","BANCO CODESARROLLO","CrediEmergente Acum. Simple","Crédito para clientes del banco con calificación A o AA. Con al menos 2 créditos cancelados en la institución. "," Microempresa: Ventas < = USD 100 mil","Clientes del Banco con calificación interna A o AA y al menos dos créditos cancelados en la institución"," Capital de Trabajo",null," Copia de cédula o RUC,  Planilla de servicios básicos"," Hipotecaria,  Quirografaria,   Prendaria",3000,160,0.22," Mensual",null,null,null,null,"","BANCO CODESARROLLO","https://www.bancodesarrollo.fin.ec/","Nathaly Aráuz ","","02-2900-109 ext 2017   0984770032","narauz@bancodesarrollo.fin.ec"]
[null,"0990247536001","Bancos Privados","BANCO CODESARROLLO","CrediEmergente Minorista","Crédito para clientes del banco con calificación A o AA. Con al menos 2 créditos cancelados en la institución. "," Microempresa: Ventas < = USD 100 mil","Clientes del Banco con calificación interna A o AA y al menos dos créditos cancelados en la institución"," Capital de Trabajo",null," Copia de cédula o RUC,  Planilla de servicios básicos"," Hipotecaria,  Quirografaria,   Prendaria",3000,160,0.21," Mensual",null,null,null,null,"","BANCO CODESARROLLO","https://www.bancodesarrollo.fin.ec/","Nathaly Aráuz ","","02-2900-109 ext 2017   0984770032","narauz@bancodesarrollo.fin.ec"]
[null,"0990247536001","Bancos Privados","BANCO CODESARROLLO","CrediFinanciero Empresarial","Promueve el crecimiento sustentable de las Finanzas Populares en el país, impulsando el desarrollo local y fortalecimiento de las Estructuras Financieras locales.","4 Medianas Empresas: Ventas < = USD 5 millones","Para organizaciones  OEPS y EFL"," Activos Fijos,  Capital de Trabajo",null," Solicitud de crédito,  Balances,  Copia de cédula o RUC,  Estatutos"," Quirografaria,  Hipotecaria,   Prendaria,  Otro",1000000,1080,4.4999999999999997E-3," Mensual",null,null,null,null,"Garantía sobre endoso de pagaré o Garantías Bancarias y fondos pignorados. Requisitos adicionales: Anexo de cuentas por cobrar, Anexo de inventarios, Detalle de deudas bancarias, Cuentas por cobrar y pagar de los accionistas,Nómina de directivos","BANCO CODESARROLLO","https://www.bancodesarrollo.fin.ec/","Nathaly Aráuz ","","02-2900-109 ext 2017   0984770032","narauz@bancodesarrollo.fin.ec"]
[null,"0990247536001","Bancos Privados","BANCO CODESARROLLO","CrediFinanciero PYMES 1","Promueve el crecimiento sustentable de las Finanzas Populares en el país, impulsando el desarrollo local y fortalecimiento de las Estructuras Financieras locales."," Pequeñas Empresas: Ventas < = USD 1 millón","Otorgado personas naturales o jurídicas con un nivel de ventas de 100.000 a 1.000.000 de de la Economía Popular y Solidaria (OEPS)"," Activos Fijos,  Capital de Trabajo",null," Solicitud de crédito,  Balances,  Copia de cédula o RUC,  Estatutos"," Quirografaria,  Hipotecaria,   Prendaria,  Otro",1000000,1080,0.107," Mensual",null,null,null,null,"Garantía sobre endoso de pagaré o Garantías Bancarias y fondos pignorados. Requisitos adicionales: Anexo de cuentas por cobrar, Anexo de inventarios, Detalle de deudas bancarias, Cuentas por cobrar y pagar de los accionistas,Nómina de directivos","BANCO CODESARROLLO","https://www.bancodesarrollo.fin.ec/","Nathaly Aráuz ","","02-2900-109 ext 2017   0984770032","narauz@bancodesarrollo.fin.ec"]
[null,"0990247536001","Bancos Privados","BANCO CODESARROLLO","CrediFinanciero PYMES 2","Promueve el crecimiento sustentable de las Finanzas Populares en el país, impulsando el desarrollo local y fortalecimiento de las Estructuras Financieras locales."," Pequeñas Empresas: Ventas < = USD 1 millón","Otorgado personas naturales o jurídicas con un nivel de ventas de 100.000 a 1.000.000 de de la EFL."," Activos Fijos,  Capital de Trabajo",null," Solicitud de crédito,  Balances,  Copia de cédula o RUC,  Estatutos"," Quirografaria,  Hipotecaria,   Prendaria,  Otro",1000000,1080,0.1045," Mensual",null,null,null,null,"Garantía sobre endoso de pagaré o Garantías Bancarias y fondos pignorados. Requisitos adicionales: Anexo de cuentas por cobrar, Anexo de inventarios, Detalle de deudas bancarias, Cuentas por cobrar y pagar de los accionistas,Nómina de directivos","BANCO CODESARROLLO","https://www.bancodesarrollo.fin.ec/","Nathaly Aráuz ","","02-2900-109 ext 2017   0984770032","narauz@bancodesarrollo.fin.ec"]
[null,"0990247536001","Bancos Privados","BANCO CODESARROLLO","Microjurídico 1","Actividades productivas, compra, legalización, titularización de tierras para la producción agrícola, pecuaria, forestal, conservación de recursos naturales."," Microempresa: Ventas < = USD 100 mil","Personas jurídicas de la OEPS, cuya fuente de pago constituye las ventas o ingresos generados por dichas actividades."," Activos Fijos,  Capital de Trabajo",null," Copia de cédula o RUC,  Planilla de servicios básicos,  Estatutos,  Estados financieros"," Hipotecaria,  Quirografaria,   Prendaria",80000,1800,0.15," Mensual",null,null,null,null,"Requisitos adicionales: Nómina de la Directiva, Consejo de Administración, socios o accionistas, Consejo Directivo o Comité Ejecutivo, Certificado de obligaciones y existencia legal. Copia certificada del nombramiento del representante legal. Las planillas de servicios basicos deben ser de la empresa y del representante legal","BANCO CODESARROLLO","https://www.bancodesarrollo.fin.ec/","Nathaly Aráuz ","","02-2900-109 ext 2017   0984770032","narauz@bancodesarrollo.fin.ec"]
[null,"0990247536001","Bancos Privados","BANCO CODESARROLLO","Microjurídico 2","Actividades productivas, compra, legalización, titularización de tierras para la producción agrícola, pecuaria, forestal, conservación de recursos naturales."," Microempresa: Ventas < = USD 100 mil","Personas jurídicas de la EFL, cuya fuente de pago constituye las ventas o ingresos generados por dichas actividades."," Activos Fijos,  Capital de Trabajo",null," Copia de cédula o RUC,  Planilla de servicios básicos,  Estatutos,  Estados financieros"," Hipotecaria,  Quirografaria,   Prendaria",80000,1800,0.12," Mensual",null,null,null,null,"Requisitos adicionales: Nómina de la Directiva, Consejo de Administración, socios o accionistas, Consejo Directivo o Comité Ejecutivo, Certificado de obligaciones y existencia legal. Copia certificada del nombramiento del representante legal. Las planillas de servicios basicos deben ser de la empresa y del representante legal","BANCO CODESARROLLO","https://www.bancodesarrollo.fin.ec/","Nathaly Aráuz ","","02-2900-109 ext 2017   0984770032","narauz@bancodesarrollo.fin.ec"]
[null,"0990049459001","Bancos Privados","BANCO DE GUAYAQUIL","Crédito PYME","Crédito destinado a la compra de bienes de capital, terrenos, const. infraestructura y compra de derechos propiedad industrial. Incluye seguro de desgravamen y cesantía"," Pequeñas Empresas: Ventas < = USD 1 millón, 4 Medianas Empresas: Ventas < = USD 5 millones","Tener RUC activo desde hace 3 años"," Activos Fijos,  Capital de Trabajo",null," Solicitud de crédito,  Copia de cédula o RUC,  Planilla de servicios básicos,  Declaraciones de Impuestos,  Otros"," No especificada",40000,1080,0.11260000000000001," Mensual,  Al vencimiento",null,null,2," Un alto porcentaje del proceso es en línea","Otros requisitos: 3 últimos estados de las cuentas corrientes y tarjetas de crédito y matrícula de vehículo (si aplica).El crédito es aprobado en 2 días. Un alto porcentaje del proceso es en línea","BANCO DE GUAYAQUIL","https://www.bancoguayaquil.com/","","","",""]
[null,"1190002213001","Bancos Privados","BANCO DE LOJA","CrediComercial","Financia la adquisición de inventarios, materia prima, pago de planillas, cuentas por cobrar, capital de trabajo u otros","4 Medianas Empresas: Ventas < = USD 5 millones","Empresas con ventas entre $1.000.000 y  $5.000.000 anuales"," Activos Fijos,  Capital de Trabajo",null," Copia de cédula o RUC,  Otros,  Solicitud de crédito"," Hipotecaria,  Quirografaria,   Prendaria,  Título valor",1000000,1800,9.4700000000000006E-2," Mensual,  Trimestral,  Semestral,   Otro",null,null,null,null,"La amortizaciòn puede ser a plazo fijo. No especifican los requisitos.","BANCO DE LOJA","https://www.bancodeloja.fin.ec/","","","",""]
[null,"1190002213001","Bancos Privados","BANCO DE LOJA","CrediProductivo","Financiamiento para inversión en bienes de capital, activos fijos o capital de trabajo","4 Medianas Empresas: Ventas < = USD 5 millones","Empresas con ventas entre $1.000.000 y  $5.000.000 anuales"," Activos Fijos,  Capital de Trabajo",null," Copia de cédula o RUC,  Otros,  Copia de cédula o RUC,  Otros,  Solicitud de crédito"," Hipotecaria,  Quirografaria,   Prendaria,  Título valor",1000000,1800,9.4700000000000006E-2," Mensual,  Trimestral,  Semestral,   Otro",null,null,null,null,"La amortizaciòn puede ser a plazo fijo. No especifican los requisitos.","BANCO DE LOJA","https://www.bancodeloja.fin.ec/","","","",""]
[null,"1190002213001","Bancos Privados","BANCO DE LOJA","CrediPymes","Financiamiento capital de trabajo y activos fijos para pequeños y medianos empresarios"," Pequeñas Empresas: Ventas < = USD 1 millón","Empresas con ventas entre $100.000 y  $1.000.000 anuales"," Activos Fijos,  Capital de Trabajo",null," Copia de cédula o RUC,  Otros,  Solicitud de crédito"," Hipotecaria,  Quirografaria,   Prendaria,  Título valor",1000000,1800,0.1072," Mensual,  Trimestral,  Semestral,   Otro",null,null,null,null,"La amortizaciòn puede ser a plazo fijo. No especifican los requisitos.","BANCO DE LOJA","https://www.bancodeloja.fin.ec/","","","",""]
[null,"1190002213001","Bancos Privados","BANCO DE LOJA","Microcrédito Acum. Ampliada","La solución financiera ideal para tu negocio. Incluye seguro de desgravamen, se pueden realizar abonos al capital. Cuotas de pago preferenciales"," Microempresa: Ventas < = USD 100 mil","Microempresas con ventas <= USD 100 mil"," Activos Fijos,  Capital de Trabajo",null," Copia de cédula o RUC,  Otros,  Copia de cédula o RUC,  Otros,  Solicitud de crédito"," No especificada",50000,1080,0.185," Mensual",null,null,null,null,"Requisitos: Copia de facturas de compra o referencia Comercial. Copia de matrícula de vehículo (en caso de poseer). Copia del predio urbano actualizado (en caso de poseer bien inmueble). Si el cliente es ganadero, se adiciona la copia de la CONEFA. Tener antigüedad mínima de un año en actividad Comercial o de servicios. No se especifican las garantias.","BANCO DE LOJA","https://www.bancodeloja.fin.ec/","","","",""]
[null,"1190002213001","Bancos Privados","BANCO DE LOJA","Microcrédito Acum. Simple","Incluye seguro de desgravamen, se pueden realizar abonos al capital. Cuotas de pago preferenciales"," Microempresa: Ventas < = USD 100 mil","Microempresas con ventas <= USD 20 mil"," Activos Fijos,  Capital de Trabajo",null," Copia de cédula o RUC,  Otros,  Copia de cédula o RUC,  Otros,  Solicitud de crédito"," No especificada",50000,1080,0.20899999999999999," Mensual",null,null,null,null,"Requisitos: Copia de facturas de compra o referencia Comercial. Copia de matrícula de vehículo (en caso de poseer). Copia del predio urbano actualizado (en caso de poseer bien inmueble). Si el cliente es ganadero, se adiciona la copia de la CONEFA. Tener antigüedad mínima de un año en actividad Comercial o de servicios. No se especifican las garantias.","BANCO DE LOJA","https://www.bancodeloja.fin.ec/","","","",""]
[null,"1190002213001","Bancos Privados","BANCO DE LOJA","Microcrédito Minorista","Incluye seguro de desgravamen, se pueden realizar abonos al capital. Cuotas de pago preferenciales"," Microempresa: Ventas < = USD 100 mil","Microempresas con ventas <= USD 5 mil"," Activos Fijos,  Capital de Trabajo",null," Copia de cédula o RUC,  Otros,  Copia de cédula o RUC,  Otros,  Solicitud de crédito"," No especificada",50000,1080,0.25119999999999998," Mensual",null,null,null,null,"Requisitos: Copia de facturas de compra o referencia Comercial. Copia de matrícula de vehículo (en caso de poseer). Copia del predio urbano actualizado (en caso de poseer bien inmueble). Si el cliente es ganadero, se adiciona la copia de la CONEFA. Tener antigüedad mínima de un año en actividad Comercial o de servicios. No se especifican las garantias.","BANCO DE LOJA","https://www.bancodeloja.fin.ec/","","","",""]
[null,"0990005737001","Bancos Privados","BANCO DEL PACIFICO","Crédito Pyme Pacífico","Dirigido a pequeñas y medianas empresas (con facturación en ventas anuales demostrables desde $100,000 hasta $1,000,000)."," Pequeñas Empresas: Ventas < = USD 1 millón","Crédito dirigido a personas naturales y jurídicas, clientes del Banco."," Activos Fijos",null," Estatutos,  Copia de cédula o RUC,  Declaraciones de Impuestos,  Solicitud de crédito,  Estados financieros,  Flujo de caja proyectado,  Justificar patrimonio,  Otros"," Hipotecaria,   Prendaria",300000,1800,0.1075," Mensual",180,null,null,null,"Requisitos adicionales: copia de nombramientos de los representantes legales. Certificado de estar al día en las obligaciones, Nomina de accionistas. Estado de situación personal de los principales accionistas. Se podrá requerir documentación adicional dependiendo del caso, así como también documentación del bien que se dejará en garantía. La garantia hipotecaria aplica para montos mayores a $25 000","BANCO DEL PACIFICO","https://www.bancodelpacifico.com/empresas/inicio","","","",""]
[null,"0990005737001","Bancos Privados","BANCO DEL PACIFICO","Crédito Pyme Pacífico","Dirigido a pequeñas y medianas empresas (con facturación en ventas anuales demostrables desde $100,000 hasta $1,000,000)."," Pequeñas Empresas: Ventas < = USD 1 millón","Crédito dirigido a personas naturales y jurídicas, clientes del Banco."," Capital de Trabajo",null," Estatutos,  Copia de cédula o RUC,  Declaraciones de Impuestos,  Solicitud de crédito,  Estados financieros,  Flujo de caja proyectado,  Justificar patrimonio,  Otros"," Hipotecaria,   Prendaria",300000,720,0.1," Mensual",180,null,null,null,"Requisitos adicionales: copia de nombramientos de los representantes legales. Certificado de estar al día en las obligaciones, Nomina de accionistas. Estado de situación personal de los principales accionistas. Se podrá requerir documentación adicional dependiendo del caso, así como también documentación del bien que se dejará en garantía. La garantia hipotecaria aplica para montos mayores a $25 000","BANCO DEL PACIFICO","https://www.bancodelpacifico.com/empresas/inicio","","","",""]
[null,"1790010937001","Bancos Privados","BANCO PICHINCHA","Biocrédito Microcrédito 1","Crédito ecológico para adquirir o reemplazar equipos que protege el medio ambiente. Financiamiento de materias primas, insumos, equipos y máquinas con destino ecológico como: eficiencia energética, sistemas de riego que optimicen agua, buenas prácticas en la agricultura."," Microempresa: Ventas < = USD 100 mil","Persona natural. Al menos un año de experiencia en el negocio. Estabilidad minima de local de 6 meses."," Capital de Trabajo",null," Solicitud de crédito,  Copia de cédula o RUC,  Planilla de servicios básicos,  Certificado de votación,  Declaraciones de Impuestos"," Personal",25000,1080,0.21290000000000001," Mensual",90,null,null,null,"Requisitos adicionales: Documento soporte de destino Ecológico: estudio técnico y proforma del equipo. Carta compromiso del cliente. Copia certificada con dos años de vigencia de poder especial ante notario o cónsul de cónyuge en el extranjero. \nDeclaración juramentada o información sumaria.\nGuía de remisión – transporte sin afiliación.\nCopia de matrícula de vehículo, si aplica. Seguro agrícola, si aplica.","BANCO PICHINCHA","https://www.pichincha.com/portal/inicio","","","",""]
[null,"1790010937001","Bancos Privados","BANCO PICHINCHA","Biocrédito Microcrédito 2","Crédito ecológico para adquirir o reemplazar equipos que protege el medio ambiente. Financiamiento de materias primas, insumos, equipos y máquinas con destino ecológico como: eficiencia energética, sistemas de riego que optimicen agua, buenas prácticas en la agricultura."," Microempresa: Ventas < = USD 100 mil","Persona natural. Al menos un año de experiencia en el negocio. Estabilidad minima de local de 6 meses."," Activos Fijos",null," Solicitud de crédito,  Copia de cédula o RUC,  Planilla de servicios básicos,  Certificado de votación,  Declaraciones de Impuestos"," Personal",25000,1800,0.21290000000000001," Mensual",90,null,null,null,"Requisitos adicionales: Documento soporte de destino Ecológico: estudio técnico y proforma del equipo. Carta compromiso del cliente. Copia certificada con dos años de vigencia de poder especial ante notario o cónsul de cónyuge en el extranjero. \nDeclaración juramentada o información sumaria.\nGuía de remisión – transporte sin afiliación.\nCopia de matrícula de vehículo, si aplica. Seguro agrícola, si aplica.","BANCO PICHINCHA","https://www.pichincha.com/portal/inicio","","","",""]
[null,"1790010937001","Bancos Privados","BANCO PICHINCHA","Biocrédito Productivo PYMES","Financiamiento de capital de trabajo y activo fijo para actividades productivas, que incorporan prácticas sostenibles. Aplica para: Cambio o reemplazo de equipos que ahorran energía. Proyectos que incorporan energía renovable (solar-eólica) y ahorro de agua. Empresas con certificaciones sostenibles (Global Gap, ISO 50001, Rainforest, etc.)"," Pequeñas Empresas: Ventas < = USD 1 millón, 4 Medianas Empresas: Ventas < = USD 5 millones","Persona natural o jurídica"," Activos Fijos,  Capital de Trabajo",null," Solicitud de crédito,  Copia de cédula o RUC,  Balances,  Declaraciones de Impuestos,  Flujo de caja proyectado,  Justificar ingresos,  Justificar patrimonio"," Hipotecaria,  Personal",1000000,1800,0.1123," Mensual,  Trimestral,  Semestral,  Al vencimiento",null,null,null,null,"Requisitos adicionales: Documento soporte de destino Ecológico: estudio técnico y proforma del equipo. Carta compromiso del cliente. Copia de cédula y nombramiento del Representante Legal inscrito en el Registro Mercantil. Certificado de cumplimiento de la Superintendencia de Compañías. Certificado de cumplimiento de obligaciones patronales con el IESS. En caso de que la empresa no cuente con empleados se requiere una declaración juramentada. Nómina de socios y/o accionistas. Acta de Junta General u órgano competente autorizando la contratación del crédito. Referencias bancarias. Dos referencias comerciales (en caso de importaciones adjuntar copias de facturas).","BANCO PICHINCHA","https://www.pichincha.com/portal/inicio","","","",""]
[null,"1790010937001","Bancos Privados","BANCO PICHINCHA","Productivo PYMES 1","Crédito productivo para financiar activos fijos, la operación con capital de trabajo o ampliación deL negocio."," Pequeñas Empresas: Ventas < = USD 1 millón, 4 Medianas Empresas: Ventas < = USD 5 millones","Persona natural"," Activos Fijos",null," Solicitud de crédito,  Copia de cédula o RUC,  Balances,  Flujo de caja proyectado,  Declaraciones de Impuestos,  Justificar patrimonio,  Justificar ingresos"," Hipotecaria,  Personal",1000000,2520,0.1123," Mensual,  Trimestral,  Semestral,  Al vencimiento",null,null,null,null,"Requisitos adicionales: Copia de cédula y nombramiento del Representante Legal inscrito en el Registro Mercantil. Certificado de cumplimiento de la Superintendencia de Compañías.Certificado de cumplimiento de obligaciones patronales con el IESS. En caso de que la empresa no cuente con empleados se requiere una declaración juramentada.Nómina de socios y/o accionistas. Acta de Junta General u órgano competente autorizando la contratación del crédito. Referencias bancarias. Dos referencias comerciales (en caso de importaciones adjuntar copias de facturas).","BANCO PICHINCHA","https://www.pichincha.com/portal/inicio","","","",""]
[null,"1790010937001","Bancos Privados","BANCO PICHINCHA","Productivo PYMES 2","Crédito productivo para financiar activos fijos, la operación con capital de trabajo o ampliación deL negocio."," Pequeñas Empresas: Ventas < = USD 1 millón, 4 Medianas Empresas: Ventas < = USD 5 millones","Persona natural"," Capital de Trabajo",null," Solicitud de crédito,  Copia de cédula o RUC,  Balances,  Flujo de caja proyectado,  Declaraciones de Impuestos,  Justificar patrimonio,  Justificar ingresos"," Hipotecaria,  Personal",1000000,1080,0.1123," Mensual,  Trimestral,  Semestral,  Al vencimiento",null,null,null,null,"Requisitos adicionales: Copia de cédula y nombramiento del Representante Legal inscrito en el Registro Mercantil. Certificado de cumplimiento de la Superintendencia de Compañías.Certificado de cumplimiento de obligaciones patronales con el IESS. En caso de que la empresa no cuente con empleados se requiere una declaración juramentada.Nómina de socios y/o accionistas. Acta de Junta General u órgano competente autorizando la contratación del crédito. Referencias bancarias. Dos referencias comerciales (en caso de importaciones adjuntar copias de facturas).","BANCO PICHINCHA","https://www.pichincha.com/portal/inicio","","","",""]
[null,"1790010937001","Bancos Privados","BANCO PICHINCHA","Microcrédito Acum. Ampliada"," Financiamiento para adquirir materias primas, insumos, maquinaria, vehículos de trabajo o local comercial."," Microempresa: Ventas < = USD 100 mil","Persona natural. Al menos un año de experiencia en el negocio. Estabilidad minima de local de 6 meses."," Activos Fijos,  Capital de Trabajo",null," Copia de cédula o RUC,  Certificado de votación,  Planilla de servicios básicos,  Declaraciones de Impuestos"," Personal",150000,1080,0.21290000000000001," Mensual",null,null,null,null,"Requisitos adicionales: Copia certificada con dos años de vigencia de poder especial ante notario o cónsul de cónyuge en el extranjero.  Declaración juramentada o información sumaria. Guía de remisión – transporte sin afiliación. Copia de matrícula de vehículo, si aplica. Seguro agrícola, si aplica.* Todos los créditos cuentan con un seguro de desgravamen para deudor y codeudor.* Servicio exequial. *","BANCO PICHINCHA","https://www.pichincha.com/portal/inicio","","","",""]
[null,"1790010937001","Bancos Privados","BANCO PICHINCHA","Microcrédito Minorista"," Financiamiento para adquirir materias primas, insumos, maquinaria, vehículos de trabajo o local comercial."," Microempresa: Ventas < = USD 100 mil","Persona natural. Al menos un año de experiencia en el negocio. Estabilidad minima de local de 6 meses."," Activos Fijos,  Capital de Trabajo",null," Copia de cédula o RUC,  Certificado de votación,  Planilla de servicios básicos,  Declaraciones de Impuestos"," Personal",150000,1080,0.25330000000000003," Mensual",null,null,null,null,"Requisitos adicionales: Copia certificada con dos años de vigencia de poder especial ante notario o cónsul de cónyuge en el extranjero.  Declaración juramentada o información sumaria. Guía de remisión – transporte sin afiliación. Copia de matrícula de vehículo, si aplica. Seguro agrícola, si aplica.* Todos los créditos cuentan con un seguro de desgravamen para deudor y codeudor.* Servicio exequial. *","BANCO PICHINCHA","https://www.pichincha.com/portal/inicio","","","",""]
[null,"1790010937001","Bancos Privados","BANCO PICHINCHA","Microcrédito Simple"," Financiamiento para adquirir materias primas, insumos, maquinaria, vehículos de trabajo o local comercial."," Microempresa: Ventas < = USD 100 mil","Persona natural. Al menos un año de experiencia en el negocio. Estabilidad minima de local de 6 meses."," Activos Fijos,  Capital de Trabajo",null," Copia de cédula o RUC,  Certificado de votación,  Planilla de servicios básicos,  Declaraciones de Impuestos"," Personal",150000,1080,0.22919999999999999," Mensual",null,null,null,null,"Requisitos adicionales: Copia certificada con dos años de vigencia de poder especial ante notario o cónsul de cónyuge en el extranjero.  Declaración juramentada o información sumaria. Guía de remisión – transporte sin afiliación. Copia de matrícula de vehículo, si aplica. Seguro agrícola, si aplica.* Todos los créditos cuentan con un seguro de desgravamen para deudor y codeudor.* Servicio exequial. *","BANCO PICHINCHA","https://www.pichincha.com/portal/inicio","","","",""]
[null,"1790010937001","Bancos Privados","BANCO PICHINCHA","Mujer Comercial 1","Financiamiento para capital de trabajo y activo fijo para impulsar proyectos y hacerlos crecer."," Pequeñas Empresas: Ventas < = USD 1 millón, 4 Medianas Empresas: Ventas < = USD 5 millones","Persona natural o jurídica"," Activos Fijos",null," Solicitud de crédito,  Certificado de votación,  Planilla de servicios básicos,  Declaraciones de Impuestos"," Hipotecaria",1000000,2520,0.1072," Mensual",180,null,null,null,"Requisitos adicionales: Documento soporte de destino Ecológico: estudio técnico y proforma del equipo. Carta compromiso del cliente. Copia certificada con dos años de vigencia de poder especial ante notario o cónsul de cónyuge en el extranjero. \nDeclaración juramentada o información sumaria.\nGuía de remisión – transporte sin afiliación.\nCopia de matrícula de vehículo, si aplica. Seguro agrícola, si aplica.","BANCO PICHINCHA","https://www.pichincha.com/portal/inicio","","","",""]
[null,"1790010937001","Bancos Privados","BANCO PICHINCHA","Mujer Comercial 2","Financiamiento para capital de trabajo y activo fijo para impulsar proyectos y hacerlos crecer."," Pequeñas Empresas: Ventas < = USD 1 millón, 4 Medianas Empresas: Ventas < = USD 5 millones","Persona natural o jurídica"," Activos Fijos",null," Solicitud de crédito,  Certificado de votación,  Planilla de servicios básicos,  Declaraciones de Impuestos"," Personal",1000000,1440,0.1072," Mensual",180,null,null,null,"Requisitos adicionales: Documento soporte de destino Ecológico: estudio técnico y proforma del equipo. Carta compromiso del cliente. Copia certificada con dos años de vigencia de poder especial ante notario o cónsul de cónyuge en el extranjero. \nDeclaración juramentada o información sumaria.\nGuía de remisión – transporte sin afiliación.\nCopia de matrícula de vehículo, si aplica. Seguro agrícola, si aplica.","BANCO PICHINCHA","https://www.pichincha.com/portal/inicio","","","",""]
[null,"1790010937001","Bancos Privados","BANCO PICHINCHA","Mujer Comercial 3","Financiamiento para capital de trabajo y activo fijo para impulsar proyectos y hacerlos crecer."," Pequeñas Empresas: Ventas < = USD 1 millón, 4 Medianas Empresas: Ventas < = USD 5 millones","Persona natural o jurídica"," Capital de Trabajo",null," Solicitud de crédito,  Certificado de votación,  Planilla de servicios básicos,  Declaraciones de Impuestos"," Sin garante,  Hipotecaria",1000000,1080,0.1072," Mensual",180,null,null,null,"Requisitos adicionales: Documento soporte de destino Ecológico: estudio técnico y proforma del equipo. Carta compromiso del cliente. Copia certificada con dos años de vigencia de poder especial ante notario o cónsul de cónyuge en el extranjero. \nDeclaración juramentada o información sumaria.\nGuía de remisión – transporte sin afiliación.\nCopia de matrícula de vehículo, si aplica. Seguro agrícola, si aplica.","BANCO PICHINCHA","https://www.pichincha.com/portal/inicio","","","",""]
[null,"1790010937001","Bancos Privados","BANCO PICHINCHA","Mujer Microcrédito"," Financiamiento para adquirir materias primas, insumos, maquinaria, vehículos de trabajo o local comercial."," Microempresa: Ventas < = USD 100 mil","Persona natural. Al menos un año de experiencia en el negocio. Estabilidad minima de local de 6 meses."," Activos Fijos,  Capital de Trabajo",null," Solicitud de crédito,  Certificado de votación,  Planilla de servicios básicos,  Declaraciones de Impuestos"," Personal",150000,1080,0.21290000000000001," Mensual",null,null,null,null,"Requisitos adicionales: Documento soporte de destino Ecológico: estudio técnico y proforma del equipo. Carta compromiso del cliente. Copia certificada con dos años de vigencia de poder especial ante notario o cónsul de cónyuge en el extranjero. \nDeclaración juramentada o información sumaria.\nGuía de remisión – transporte sin afiliación.\nCopia de matrícula de vehículo, si aplica. Seguro agrícola, si aplica.","BANCO PICHINCHA","https://www.pichincha.com/portal/inicio","","","",""]
[null,"1791109384001","Bancos Privados","BANCO SOLIDARIO","Microcrédito","Crédito destinado a satisfacer necesidades de financiamiento a clientes que poseen una microempresa, cuya actividad económica sea de comercio, producción o servicios.  ","  Emprendedores: negocios con menos de un año,  Microempresa: Ventas < = USD 100 mil","Edad: 21 -70 años. Nacionalidad ecuatoriana o extranjera con residencia legal y tener un negocio con antigüedad de por lo menos 6 meses de establecida la microempresa en el mismo sector o demostrar un mercado establecido por más 6 meses "," Financiamiento en general",null," Copia de cédula o RUC,  Planilla de servicios básicos"," Personal,  Sin garante",20000,1440,0.2127," Mensual",null,null,null,null,"Requisito adicional: Antigüedad del negocio de por lo menos 6 meses en el mismo sector o demostrar un mercado","BANCO SOLIDARIO","https://www.banco-solidario.com/","Santiago Lopez","Director Negocios Microempresa"," +593 2 3950600 ext.2767 ",""]
[null,"1768183520001","Bancos Públicos","BANECUADOR","Crédito 1x30 1","Destinado a personas naturales para el financiamiento de actividades de producciòn, comercio o servicios, con el fin de contribuir con la reactivaciòn económica del país, generar nuevas fuentes de empleo y mejorar la calidad de vida de las familias ecuatorianas"," Microempresa: Ventas < = USD 100 mil,   Emprendedores: negocios con menos de un año","El beneficiario debe registrar su actividad productiva. El cliente no podrá tener más de 75 años a la fecha de vencimiento de la operación. "," Activos Fijos,  Capital de Trabajo",null," Solicitud de crédito,  Copia de cédula o RUC,  Planilla de servicios básicos,  Certificado de votación,  Otros"," Sin garante",3000,10800,0.01," Mensual,  Bimensual,  Trimestral,  Semestral,  Anual,  Al vencimiento",null,null,null,null,"El beneficiario debe registrar su actividad productiva. Las mujeres beneficiarias del MIES deben estar registradas en un programa del Ministerio de Inclusión Económica y Social. ","BANECUADOR","https://www.banecuador.fin.ec/","","","",""]
[null,"1768183520001","Bancos Públicos","BANECUADOR","Crédito 1x30 2","Destinado a personas naturales para el financiamiento de actividades de producciòn, comercio o servicios, con el fin de contribuir con la reactivaciòn económica del país, generar nuevas fuentes de empleo y mejorar la calidad de vida de las familias ecuatorianas"," Microempresa: Ventas < = USD 100 mil,   Emprendedores: negocios con menos de un año","El cliente no podrá tener más de 75 años a la fecha de vencimiento de la operación"," Activos Fijos,  Capital de Trabajo",null," Solicitud de crédito,  Copia de cédula o RUC,  Planilla de servicios básicos,  Certificado de votación,  Otros"," Personal",5000,10800,0.01," Mensual,  Bimensual,  Trimestral,  Semestral,  Anual,  Al vencimiento",null,null,null,null,"La tasa de interés es anual. El beneficiario debe registrar su actividad productiva. Las mujeres beneficiarias del MIES deben estar registradas en un programa del Ministerio de Inclusión Económica y Social. ","BANECUADOR","https://www.banecuador.fin.ec/","","","",""]
[null,"1768183520001","Bancos Públicos","BANECUADOR","Crédito Asociaciones 1","Crédito para actividades de producción"," Microempresa: Ventas < = USD 100 mil","Asociaciones y organizaciones comunitarias no financieras, legalmente constituidas y registradas bajo la institución correspondiente (SEPS, MAG u otra) que posean y trabajen en terrenos de propiedad comunitaria"," Activos Fijos",null," Solicitud de crédito,  Copia de cédula o RUC,  Planilla de servicios básicos,  Certificado de votación","  Prendaria,  Hipotecaria,  Otro,  Personal",59100,3600,0.1225," Mensual,  Bimensual,  Trimestral,  Semestral,  Anual,  Al vencimiento",1080,null,null,null,"Otra garantia: certificado de valor. Monto minimo: $500. Requisito: copia certificada actualizada de la existencia legal de la asociación","BANECUADOR","https://www.banecuador.fin.ec/","","","",""]
[null,"1768183520001","Bancos Públicos","BANECUADOR","Crédito Asociaciones 2","Crédito para comercio y servicios"," Microempresa: Ventas < = USD 100 mil","Asociaciones y organizaciones comunitarias no financieras, legalmente constituidas y registradas bajo la institución correspondiente (SEPS, MAG u otra) que posean y trabajen en terrenos de propiedad comunitaria"," Activos Fijos",null," Solicitud de crédito,  Copia de cédula o RUC,  Planilla de servicios básicos,  Certificado de votación","  Prendaria,  Hipotecaria,  Otro,  Personal",59100,3600,0.153," Mensual,  Bimensual,  Trimestral,  Semestral,  Anual,  Al vencimiento",1080,null,null,null,"Otra garantia: certificado de valor. Monto minimo: $500. Requisito: copia certificada actualizada de la existencia legal de la asociación","BANECUADOR","https://www.banecuador.fin.ec/","","","",""]
[null,"1768183520001","Bancos Públicos","BANECUADOR","Crédito Asociaciones 3","Crédito para pequeñas y medianas empresas asociaciones y organizaciones no financieras."," Pequeñas Empresas: Ventas < = USD 1 millón, 4 Medianas Empresas: Ventas < = USD 5 millones,  Pequeñas Empresas: Ventas < = USD 1 millón, 4 Medianas Empresas: Ventas < = USD 5 millones","Asociaciones y organizaciones comunitarias no financieras, legalmente constituidas y registradas bajo la institución correspondiente (SEPS, MAG u otra) que posean y trabajen en terrenos de propiedad comunitaria"," Activos Fijos",null," Solicitud de crédito,  Copia de cédula o RUC,  Planilla de servicios básicos,  Certificado de votación","  Prendaria,  Hipotecaria,  Otro,  Personal",3000000,3600,9.7600000000000006E-2," Mensual,  Bimensual,  Trimestral,  Semestral,  Anual,  Al vencimiento",1080,null,null,null,"Otra garantia: certificado de valor. Monto minimo: $5 000. Requisito: copia certificada actualizada de la existencia legal de la asociación","BANECUADOR","https://www.banecuador.fin.ec/","","","",""]
[null,"1768183520001","Bancos Públicos","BANECUADOR","Crédito Asociaciones 4","Crédito para actividades de producción"," Microempresa: Ventas < = USD 100 mil","Asociaciones y organizaciones comunitarias no financieras, legalmente constituidas y registradas bajo la institución correspondiente (SEPS, MAG u otra) que posean y trabajen en terrenos de propiedad comunitaria"," Capital de Trabajo",null," Solicitud de crédito,  Copia de cédula o RUC,  Planilla de servicios básicos,  Certificado de votación","  Prendaria,  Hipotecaria,  Otro,  Personal",59100,1080,0.1225," Mensual,  Bimensual,  Trimestral,  Semestral,  Anual,  Al vencimiento",360,null,null,null,"Otra garantia: certificado de valor. Monto minimo: $500. Requisito: copia certificada actualizada de la existencia legal de la asociación","BANECUADOR","https://www.banecuador.fin.ec/","","","",""]
[null,"1768183520001","Bancos Públicos","BANECUADOR","Crédito Asociaciones 5","Crédito para comercio y servicios"," Microempresa: Ventas < = USD 100 mil","Asociaciones y organizaciones comunitarias no financieras, legalmente constituidas y registradas bajo la institución correspondiente (SEPS, MAG u otra) que posean y trabajen en terrenos de propiedad comunitaria"," Capital de Trabajo",null," Solicitud de crédito,  Copia de cédula o RUC,  Planilla de servicios básicos,  Certificado de votación","  Prendaria,  Hipotecaria,  Otro,  Personal",59100,1080,0.153," Mensual,  Bimensual,  Trimestral,  Semestral,  Anual,  Al vencimiento",360,null,null,null,"Otra garantia: certificado de valor. Monto minimo: $500. Requisito: copia certificada actualizada de la existencia legal de la asociación","BANECUADOR","https://www.banecuador.fin.ec/","","","",""]
[null,"1768183520001","Bancos Públicos","BANECUADOR","Crédito Asociaciones 6","Crédito para pequeñas y medianas empresas asociaciones y organizaciones no financieras."," Pequeñas Empresas: Ventas < = USD 1 millón, 4 Medianas Empresas: Ventas < = USD 5 millones,  Pequeñas Empresas: Ventas < = USD 1 millón, 4 Medianas Empresas: Ventas < = USD 5 millones","Asociaciones y organizaciones comunitarias no financieras, legalmente constituidas y registradas bajo la institución correspondiente (SEPS, MAG u otra) que posean y trabajen en terrenos de propiedad comunitaria"," Capital de Trabajo",null," Solicitud de crédito,  Copia de cédula o RUC,  Planilla de servicios básicos,  Certificado de votación","  Prendaria,  Hipotecaria,  Otro,  Personal",3000000,1080,9.7600000000000006E-2," Mensual,  Bimensual,  Trimestral,  Semestral,  Anual,  Al vencimiento",360,null,null,null,"Otra garantia: certificado de valor. Monto minimo: $5 000. Requisito: copia certificada actualizada de la existencia legal de la asociación","BANECUADOR","https://www.banecuador.fin.ec/","","","",""]
[null,"1768183520001","Bancos Públicos","BANECUADOR","Crédito CCMA 1","Destinado para labores agrícolas y productivas en maíz, arroz, caf{e y cacao","  Emprendedores: negocios con menos de un año,  Microempresa: Ventas < = USD 100 mil","Agricultores no asociados, mienbros de una organización y asociación calficadas por el MAG"," Activos Fijos",null," Solicitud de crédito,  Copia de cédula o RUC,  Planilla de servicios básicos,  Certificado de votación,  Otros","  Prendaria,  Hipotecaria,  Otro",7000,2520,0.1225," Mensual,  Bimensual,  Trimestral,  Semestral,  Anual,  Al vencimiento",1080,null,null,null,"Se requiere documento CCMA.","BANECUADOR","https://www.banecuador.fin.ec/","","","",""]
[null,"1768183520001","Bancos Públicos","BANECUADOR","Crédito CCMA 2","Destinado para labores agrícolas y productivas en maíz, arroz, caf{e y cacao","  Emprendedores: negocios con menos de un año,  Microempresa: Ventas < = USD 100 mil","Agricultores no asociados, mienbros de una organización y asociación calficadas por el MAG"," Capital de Trabajo",null," Solicitud de crédito,  Copia de cédula o RUC,  Planilla de servicios básicos,  Certificado de votación,  Otros","  Prendaria,  Hipotecaria,  Otro",7000,1080,0.1225," Mensual,  Bimensual,  Trimestral,  Semestral,  Anual,  Al vencimiento",360,null,null,null,"Se requiere documento CCMA.","BANECUADOR","https://www.banecuador.fin.ec/","","","",""]
[null,"1768183520001","Bancos Públicos","BANECUADOR","Crédito Desarrollo Humano","Destinado a beneficiarios de programas de inclusión en los componentes del Bono de Desarrollo Humano, promoción del trabajo y empleabilidad.","  Emprendedores: negocios con menos de un año","Constar en el listado del MIESS"," Activos Fijos,  Capital de Trabajo",null," Copia de cédula o RUC,  Planilla de servicios básicos"," No especificada",1200,720,7.0000000000000007E-2," Mensual,  Bimensual,  Trimestral,  Semestral,  Anual,  Al vencimiento",null,null,null,null,"","BANECUADOR","https://www.banecuador.fin.ec/","","","",""]
[null,"1768183520001","Bancos Públicos","BANECUADOR","Crédito Emergencia 1","Crédito para actividades de producción"," Microempresa: Ventas < = USD 100 mil,   Emprendedores: negocios con menos de un año","Autorización de la autoridad competente definiendo el lugar geográfico o el sector productivo para el que aplica"," Capital de Trabajo",null," Copia de cédula o RUC,  Planilla de servicios básicos","  Prendaria,  Hipotecaria,  Otro",10000,1080,0.1225," Mensual,  Bimensual,  Trimestral,  Semestral,  Anual,  Al vencimiento",360,null,null,null,"","BANECUADOR","https://www.banecuador.fin.ec/","","","",""]
[null,"1768183520001","Bancos Públicos","BANECUADOR","Crédito Emergencia 2","Crédito para comercio y servicios"," Microempresa: Ventas < = USD 100 mil,   Emprendedores: negocios con menos de un año","Autorización de la autoridad competente definiendo el lugar geográfico o el sector productivo para el que aplica"," Capital de Trabajo",null," Copia de cédula o RUC,  Planilla de servicios básicos","  Prendaria,  Hipotecaria,  Otro",10000,1080,0.153," Mensual,  Bimensual,  Trimestral,  Semestral,  Anual,  Al vencimiento",360,null,null,null,"","BANECUADOR","https://www.banecuador.fin.ec/","","","",""]
[null,"1768183520001","Bancos Públicos","BANECUADOR","Crédito Microempresa general 1","Crédito para actividades de producción"," Microempresa: Ventas < = USD 100 mil","Persona natural o jurídica"," Activos Fijos",null," Solicitud de crédito,  Copia de cédula o RUC,  Planilla de servicios básicos,  Certificado de votación","  Prendaria,  Hipotecaria,  Otro",59100,3600,0.1225," Mensual,  Bimensual,  Trimestral,  Semestral,  Anual,  Al vencimiento",1080,null,null,null,"Otra garantia: certificado de valor. Monto minimo: $500","BANECUADOR","https://www.banecuador.fin.ec/","","","",""]
[null,"1768183520001","Bancos Públicos","BANECUADOR","Crédito Microempresa general 2","Crédito para comercio y servicios"," Microempresa: Ventas < = USD 100 mil","Persona natural o jurídica"," Activos Fijos",null," Solicitud de crédito,  Copia de cédula o RUC,  Planilla de servicios básicos,  Certificado de votación","  Prendaria,  Hipotecaria,  Otro",59100,3600,0.153," Mensual,  Bimensual,  Trimestral,  Semestral,  Anual,  Al vencimiento",1080,null,null,null,"Otra garantia: certificado de valor. Monto minimo: $500","BANECUADOR","https://www.banecuador.fin.ec/","","","",""]
[null,"1768183520001","Bancos Públicos","BANECUADOR","Crédito Microempresa general 3","Crédito para actividades de producción"," Microempresa: Ventas < = USD 100 mil","Persona natural o jurídica"," Capital de Trabajo",null," Solicitud de crédito,  Copia de cédula o RUC,  Planilla de servicios básicos,  Certificado de votación","  Prendaria,  Hipotecaria,  Otro",59100,1080,0.1225," Mensual,  Bimensual,  Trimestral,  Semestral,  Anual,  Al vencimiento",360,null,null,null,"Otra garantia: certificado de valor. Monto minimo: $500","BANECUADOR","https://www.banecuador.fin.ec/","","","",""]
[null,"1768183520001","Bancos Públicos","BANECUADOR","Crédito Microempresa general 4","Crédito para comercio y servicios"," Microempresa: Ventas < = USD 100 mil","Persona natural o jurídica"," Capital de Trabajo",null," Solicitud de crédito,  Copia de cédula o RUC,  Planilla de servicios básicos,  Certificado de votación","  Prendaria,  Hipotecaria,  Otro",59100,1080,0.153," Mensual,  Bimensual,  Trimestral,  Semestral,  Anual,  Al vencimiento",360,null,null,null,"Otra garantia: certificado de valor. Monto minimo: $500","BANECUADOR","https://www.banecuador.fin.ec/","","","",""]
[null,"1768183520001","Bancos Públicos","BANECUADOR","Crédito PYME general 1","Crédito para pequeñas y medianas empresas, cuyas ventas en el último año sean superiores a $100.000"," Pequeñas Empresas: Ventas < = USD 1 millón, 4 Medianas Empresas: Ventas < = USD 5 millones","Persona natural o jurídica"," Activos Fijos",null," Solicitud de crédito,  Copia de cédula o RUC,  Planilla de servicios básicos,  Certificado de votación","  Prendaria,  Hipotecaria,  Otro",500000,3600,9.7600000000000006E-2," Mensual,  Bimensual,  Trimestral,  Semestral,  Anual,  Al vencimiento",null,null,null,null,"Otra garantia: certificado de valor. Monto minimo: $5 000.","BANECUADOR","https://www.banecuador.fin.ec/","","","",""]
[null,"1768183520001","Bancos Públicos","BANECUADOR","Crédito PYME general 2","Crédito para pequeñas y medianas empresas, cuyas ventas en el último año sean superiores a $100.000"," Pequeñas Empresas: Ventas < = USD 1 millón, 4 Medianas Empresas: Ventas < = USD 5 millones","Persona natural o jurídica"," Capital de Trabajo",null," Solicitud de crédito,  Copia de cédula o RUC,  Planilla de servicios básicos,  Certificado de votación","  Prendaria,  Hipotecaria,  Otro",500000,1080,9.7600000000000006E-2," Mensual,  Bimensual,  Trimestral,  Semestral,  Anual,  Al vencimiento",null,null,null,null,"Otra garantia: certificado de valor. Monto minimo: $5 000.","BANECUADOR","https://www.banecuador.fin.ec/","","","",""]
[null,"1768183520001","Bancos Públicos","BANECUADOR","Súper Mujer Rural 1","Crédotp para mujeres cuya actividad agroproductivas sean huertos familiares o granjas","  Emprendedores: negocios con menos de un año,  Microempresa: Ventas < = USD 100 mil","Debe tener cetificado emitido por el MAG"," Activos Fijos",null," Solicitud de crédito,  Copia de cédula o RUC,  Certificado de votación,  Planilla de servicios básicos"," Personal",10000,1800,0.1225," Mensual,  Bimensual,  Trimestral,  Semestral,  Anual,  Al vencimiento",720,null,null,null,"La garantía es con la firma del titular.","BANECUADOR","https://www.banecuador.fin.ec/","","","",""]
[null,"1768183520001","Bancos Públicos","BANECUADOR","Súper Mujer Rural 2","Crédotp para mujeres cuya actividad agroproductivas sean huertos familiares o granjas","  Emprendedores: negocios con menos de un año,  Microempresa: Ventas < = USD 100 mil","Debe tener cetificado emitido por el MAG"," Capital de Trabajo",null," Solicitud de crédito,  Copia de cédula o RUC,  Certificado de votación,  Planilla de servicios básicos"," Personal",10000,1090,0.1225," Mensual,  Bimensual,  Trimestral,  Semestral,  Anual,  Al vencimiento",360,null,null,null,"La garantía es con la firma del titular.","BANECUADOR","https://www.banecuador.fin.ec/","","","",""]
[null,"0590052000001","Cooperativas de Ahorro y Crédito","CACPECO","Microcrédito Minorista","Crédito para el sector productivo en pequeña escala de los sectores de comercio, servicios profesionales, servicios de transporte, turismo, industria y manufactura, exportación, construcción, comunicaciones, agricultura, ganadería y otras actividades con ventas anuales menores a $300.000."," Microempresa: Ventas < = USD 100 mil","Personas naturales, jurídicas o a grupos de prestatarios con garantía solidaria. Negocios de al menos un año."," Financiamiento en general",null," Copia de cédula o RUC,  Certificado de votación,  Planilla de servicios básicos,  Justificar ingresos,  Justificar patrimonio"," Hipotecaria,  Quirografaria,   Prendaria,  Sin garante",180000,2520,0.187," Mensual,  Bimensual,  Trimestral,  Semestral",null,null,null,null,"","CACPECO","https://www.cacpeco.com/","","","",""]
[null,"0590052000001","Cooperativas de Ahorro y Crédito","CACPECO","Microcrédito Acum. Simple","Crédito para el sector productivo en pequeña escala de los sectores de comercio, servicios profesionales, servicios de transporte, turismo, industria y manufactura, exportación, construcción, comunicaciones, agricultura, ganadería y otras actividades con ventas anuales menores a $300.000."," Microempresa: Ventas < = USD 100 mil","Personas naturales, jurídicas o a grupos de prestatarios con garantía solidaria. Negocios de al menos un año."," Financiamiento en general",null," Copia de cédula o RUC,  Certificado de votación,  Planilla de servicios básicos,  Justificar ingresos,  Justificar patrimonio"," Hipotecaria,  Quirografaria,   Prendaria,  Sin garante",180000,2520,0.17299999999999999," Mensual,  Bimensual,  Trimestral,  Semestral",null,null,null,null,"","CACPECO","https://www.cacpeco.com/","","","",""]
[null,"0590052000001","Cooperativas de Ahorro y Crédito","CACPECO","Microcrédito Acum. Ampliada","Crédito para el sector productivo en pequeña escala de los sectores de comercio, servicios profesionales, servicios de transporte, turismo, industria y manufactura, exportación, construcción, comunicaciones, agricultura, ganadería y otras actividades con ventas anuales menores a $300.000."," Microempresa: Ventas < = USD 100 mil","Personas naturales, jurídicas o a grupos de prestatarios con garantía solidaria. Negocios de al menos un año."," Financiamiento en general",null," Copia de cédula o RUC,  Certificado de votación,  Planilla de servicios básicos,  Justificar ingresos,  Justificar patrimonio"," Hipotecaria,  Quirografaria,   Prendaria,  Sin garante",180000,2520,0.16200000000000001," Mensual,  Bimensual,  Trimestral,  Semestral",null,null,null,null,"","CACPECO","https://www.cacpeco.com/","","","",""]
[null,"0590052000001","Cooperativas de Ahorro y Crédito","CACPECO","Microempresarial","Crédito destinado a financiar necesidades de capital de trabajo o activos fijos de microempresarios en pequeña escala","  Emprendedores: negocios con menos de un año,  Microempresa: Ventas < = USD 100 mil","Persona natural o jurídica"," Activos Fijos,  Capital de Trabajo",null," Copia de cédula o RUC,  Certificado de votación,  Planilla de servicios básicos,  Justificar ingresos,  Justificar patrimonio"," Sin garante,  Personal",10000,1080,0.15890000000000001," Mensual,  Bimensual,  Trimestral,  Semestral",null,null,2,null,"Sin garantia o sobre firmas, según previa evaluación. Ahorro obligatorio: 25 a 1 o sin encaje, previa calificación.El crédito es aprobado en 2 días.","CACPECO","https://www.cacpeco.com/","","","",""]
[null,"0590052000001","Cooperativas de Ahorro y Crédito","CACPECO","Crédito Efectivo","Puede ser empleado para capital de trabajo, es exclusivo para microempresarios que necesitan liquidez inmediata, que cuenten con un excelente comportamiento crediticio, y no mantengan historial por cheques protestados en el Sistema Financiero."," Microempresa: Ventas < = USD 100 mil","Persona natural o jurídica"," Capital de Trabajo",null," Copia de cédula o RUC,  Certificado de votación,  Planilla de servicios básicos,  Justificar ingresos"," Sin garante",15000,1080,0.15890000000000001," Al vencimiento",null,null,null,null,"Requisito adicional: Cheques debidamente llenados entregados para el pago parcial de la obligación, ya sea del mismo socio o de sus proveedores. ","CACPECO","https://www.cacpeco.com/","","","",""]
[null,"0590052000001","Cooperativas de Ahorro y Crédito","CACPECO","Eco CACPECO","Diseñado para apoyar y financiar inversiones que disminuyan consumo de energía, promuevan producción más limpia y el cuidado de nuestro planeta."," Microempresa: Ventas < = USD 100 mil,  Pequeñas Empresas: Ventas < = USD 1 millón, 4 Medianas Empresas: Ventas < = USD 5 millones","Persona natural o jurídica"," Financiamiento en general",null," Copia de cédula o RUC,  Certificado de votación,  Planilla de servicios básicos,  Justificar ingresos,  Escrituras de propiedades"," No especificada",180000,2520,0.15890000000000001," Mensual,  Bimensual,  Trimestral,  Semestral",null,null,15,null,"No especifican plazo maximo.El crédito es aprobado en 15 días.","CACPECO","https://www.cacpeco.com/","","","",""]
[null,"0590052000001","Cooperativas de Ahorro y Crédito","CACPECO","Comercial 3","Destinado a personas naturales o jurídicas obligadas a llevar contabilidad, que realicen diversas actividades productivas y de comercialización a mediana escala"," Pequeñas Empresas: Ventas < = USD 1 millón, 4 Medianas Empresas: Ventas < = USD 5 millones","Debe estar legalmente inscrita y operar al menos un año continuo."," Activos Fijos",null," Copia de cédula o RUC,  Certificado de votación,  Planilla de servicios básicos,  Justificar ingresos,  Justificar patrimonio,  Flujo de caja proyectado"," Hipotecaria,   Prendaria",900000,2520,9.8900000000000002E-2," Mensual,  Bimensual,  Trimestral,  Semestral",360,null,null,null,"","CACPECO","https://www.cacpeco.com/","","","",""]
[null,"0590052000001","Cooperativas de Ahorro y Crédito","CACPECO","Comercial 4","Destinado a personas naturales o jurídicas obligadas a llevar contabilidad, que realicen diversas actividades productivas y de comercialización a mediana escala"," Pequeñas Empresas: Ventas < = USD 1 millón, 4 Medianas Empresas: Ventas < = USD 5 millones","Debe estar legalmente inscrita y operar al menos un año continuo."," Capital de Trabajo",null," Copia de cédula o RUC,  Certificado de votación,  Planilla de servicios básicos,  Justificar ingresos,  Justificar patrimonio,  Flujo de caja proyectado"," Hipotecaria,   Prendaria",900000,1080,9.8900000000000002E-2," Mensual,  Bimensual,  Trimestral,  Semestral",360,null,null,null,"","CACPECO","https://www.cacpeco.com/","","","",""]
[null,"0590052000001","Cooperativas de Ahorro y Crédito","CACPECO","Comercial 1","Destinado a personas naturales o jurídicas obligadas a llevar contabilidad, que realicen diversas actividades productivas y de comercialización a mediana escala"," Pequeñas Empresas: Ventas < = USD 1 millón, 4 Medianas Empresas: Ventas < = USD 5 millones","Debe estar legalmente inscrita y operar al menos un año continuo."," Activos Fijos",null," Copia de cédula o RUC,  Certificado de votación,  Planilla de servicios básicos,  Justificar ingresos,  Justificar patrimonio,  Flujo de caja proyectado"," Hipotecaria,   Prendaria",900000,2520,0.1124," Mensual,  Bimensual,  Trimestral,  Semestral",360,null,null,null,"","CACPECO","https://www.cacpeco.com/","","","",""]
[null,"0590052000001","Cooperativas de Ahorro y Crédito","CACPECO","Comercial 2","Destinado a personas naturales o jurídicas obligadas a llevar contabilidad, que realicen diversas actividades productivas y de comercialización a mediana escala"," Pequeñas Empresas: Ventas < = USD 1 millón, 4 Medianas Empresas: Ventas < = USD 5 millones","Debe estar legalmente inscrita y operar al menos un año continuo."," Capital de Trabajo",null," Copia de cédula o RUC,  Certificado de votación,  Planilla de servicios básicos,  Justificar ingresos,  Justificar patrimonio,  Flujo de caja proyectado"," Hipotecaria,   Prendaria",900000,1080,0.1124," Mensual,  Bimensual,  Trimestral,  Semestral",360,null,null,null,"","CACPECO","https://www.cacpeco.com/","","","",""]
[null,"1790451801001","Cooperativas de Ahorro y Crédito","COOPROGRESO","Comunal Acum. Ampliada","Crédito enfocado al desarrollo de la mujer y mejora del núcleo familiar a través de la entrega de pequeños créditos acompañados con el servicio de educación financiera. "," Microempresa: Ventas < = USD 100 mil","Edad: 18 - 70 años. Formar parte de un grupo y tener una actividad económica minimo de 6 meses"," Activos Fijos,  Capital de Trabajo",null," Copia de cédula o RUC,  Planilla de servicios básicos"," Garantía solidaria",4000,360,0.22," Mensual",null,null,null,null,"","COOPROGRESO","https://www.cooprogreso.fin.ec/","Fernando Villavicencio","",997600766,"fvillavicencio@cooprogreso.fin.ec"]
[null,"1790451801001","Cooperativas de Ahorro y Crédito","COOPROGRESO","Comunal Acum. Simple","Crédito enfocado al desarrollo de la mujer y mejora del núcleo familiar a través de la entrega de pequeños créditos acompañados con el servicio de educación financiera. "," Microempresa: Ventas < = USD 100 mil","Edad: 18 - 70 años. Formar parte de un grupo y tener una actividad económica minimo de 6 meses"," Activos Fijos,  Capital de Trabajo",null," Copia de cédula o RUC,  Planilla de servicios básicos"," Garantía solidaria",4000,360,0.2485," Mensual",null,null,null,null,"","COOPROGRESO","https://www.cooprogreso.fin.ec/","Fernando Villavicencio","",997600766,"fvillavicencio@cooprogreso.fin.ec"]
[null,"1790451801001","Cooperativas de Ahorro y Crédito","COOPROGRESO","Comunal Minorista","Crédito enfocado al desarrollo de la mujer y mejora del núcleo familiar a través de la entrega de pequeños créditos acompañados con el servicio de educación financiera. "," Microempresa: Ventas < = USD 100 mil","Edad: 18 - 70 años. Formar parte de un grupo y tener una actividad económica minimo de 6 meses"," Activos Fijos,  Capital de Trabajo",null," Copia de cédula o RUC,  Planilla de servicios básicos"," Garantía solidaria",4000,360,0.28199999999999997," Mensual",null,null,null,null,"","COOPROGRESO","https://www.cooprogreso.fin.ec/","Fernando Villavicencio","",997600766,"fvillavicencio@cooprogreso.fin.ec"]
[null,"1790451801001","Cooperativas de Ahorro y Crédito","COOPROGRESO","Microagil Acum. Simple y Ampliada","Para capital de operaciones y de inversión en pequeña escala destinados para producción, comercialización o servicios. "," Microempresa: Ventas < = USD 100 mil","Edad: 23 - 75 años"," Activos Fijos,  Capital de Trabajo",null," Copia de cédula o RUC,  Planilla de servicios básicos,  Reporte de Buró,  Otros,  Facturas"," Sin garantía",30000,1080,0.20499999999999999," Mensual",null,null,null,null,"","COOPROGRESO","https://www.cooprogreso.fin.ec/","Fernando Villavicencio","",997600766,"fvillavicencio@cooprogreso.fin.ec"]
[null,"1790451801001","Cooperativas de Ahorro y Crédito","COOPROGRESO","Microagil Minorista","Para capital de operaciones y de inversión en pequeña escala destinados para producción, comercialización o servicios. "," Microempresa: Ventas < = USD 100 mil","Edad: 23 - 75 años"," Activos Fijos,  Capital de Trabajo",null," Copia de cédula o RUC,  Planilla de servicios básicos,  Reporte de Buró,  Otros,  Facturas"," Sin garantía",30000,1080,0.26579999999999998," Mensual",null,null,null,null,"","COOPROGRESO","https://www.cooprogreso.fin.ec/","Fernando Villavicencio","",997600766,"fvillavicencio@cooprogreso.fin.ec"]
[null,"1790451801001","Cooperativas de Ahorro y Crédito","COOPROGRESO","Microcrédito Progreso Acum. Simple y Ampliada","Para capital de operaciones y de inversión en pequeña escala destinados para producción, comercialización o servicios. "," Microempresa: Ventas < = USD 100 mil","Edad: 23 - 75 años. Tener RUC al menos un año"," Activos Fijos,  Capital de Trabajo,  Financiamiento de pasivos (deudas)",null," Copia de cédula o RUC,  Planilla de servicios básicos,  Reporte de Buró,  Otros,  Facturas"," Hipotecaria,   Prendaria,  Personal",120000,2520,0.20499999999999999," Mensual",null,null,null,null,"Requisito adicional: Visita del asesor para comprobar el negocio","COOPROGRESO","https://www.cooprogreso.fin.ec/","Fernando Villavicencio","",997600766,"fvillavicencio@cooprogreso.fin.ec"]
[null,"1790451801001","Cooperativas de Ahorro y Crédito","COOPROGRESO","Microcrédito Progreso Minorista","Para capital de operaciones y de inversión en pequeña escala destinados para producción, comercialización o servicios. "," Microempresa: Ventas < = USD 100 mil","Edad: 23 - 75 años. Tener RUC al menos un año"," Activos Fijos,  Capital de Trabajo,  Financiamiento de pasivos (deudas)",null," Copia de cédula o RUC,  Planilla de servicios básicos,  Reporte de Buró,  Otros,  Facturas"," Hipotecaria,   Prendaria,  Personal",120000,2520,0.26579999999999998," Mensual",null,null,null,null,"Requisito adicional: Visita del asesor para comprobar el negocio","COOPROGRESO","https://www.cooprogreso.fin.ec/","Fernando Villavicencio","",997600766,"fvillavicencio@cooprogreso.fin.ec"]
[null,"1791789806001","ONG","ESPOIR","Crédito Individual Minorista","Para satisfacer necesidades de capital, para el desarrollo de los clientes y sus negocios.","  Emprendedores: negocios con menos de un año,  Microempresa: Ventas < = USD 100 mil","Negocio con al menos 1 año de antigüedad."," Activos Fijos,  Capital de Trabajo",null," Copia de cédula o RUC,  Planilla de servicios básicos,  Justificar ingresos,  Declaraciones de Impuestos,  Facturas"," Personal",10000,1260,0.22120000000000001," Mensual",null,null,2,null,"Requisitos adicionales (en caso de ser necesario): Copia del predio urbano, rural, matricula de vehiculo.El crédito es aprobado en 2 días.","ESPOIR","https://www.espoir.org.ec/index.html","","","",""]
[null,"1791789806001","ONG","ESPOIR","Crédito Individual Empresarial","Para satisfacer necesidades de capital, para el desarrollo de los clientes y sus negocios.","  Emprendedores: negocios con menos de un año,  Microempresa: Ventas < = USD 100 mil,  Pequeñas Empresas: Ventas < = USD 1 millón, 4 Medianas Empresas: Ventas < = USD 5 millones","Negocio con al menos 1 año de antigüedad."," Activos Fijos,  Capital de Trabajo",null," Copia de cédula o RUC,  Planilla de servicios básicos,  Justificar ingresos,  Declaraciones de Impuestos,  Facturas"," Personal,   Prendaria,  Hipotecaria",21000,1440,0.1981," Mensual",null,null,2,null,"Requisitos adicionales (en caso de ser necesario): Copia del predio urbano, rural, matricula de vehiculo.El crédito es aprobado en 2 días.","ESPOIR","https://www.espoir.org.ec/index.html","","","",""]
[null,"0691706710001","Cooperativas de Ahorro y Crédito","FERNANDO DAQUILEMA","Agropecuario","Dirigido a micro, pequeños y medianos empresarios, que se dediquen a la actividad agropecuario."," Microempresa: Ventas < = USD 100 mil,  Pequeñas Empresas: Ventas < = USD 1 millón, 4 Medianas Empresas: Ventas < = USD 5 millones","Ser socio de la Cooperativa y tener experiencia en actividad agropecuaria, mínimo de 1 año."," Financiamiento en general",null," Copia de cédula o RUC,  Certificado de votación,  Planilla de servicios básicos,  Justificar ingresos,  Escrituras de propiedades,  Foto del socio"," Quirografaria,  Sin garante",50000,1800,0.15," Mensual,  Bimensual,  Trimestral,  Semestral,   Otro",180,null,null,null,"Requisitos adicionales: Bienes del deudor y garante (pagos del predio, matrícula del vehículo y/o título de propiedad). La amortización puede ser semanal, quincenal.","FERNANDO DAQUILEMA","https://www.coopdaquilema.com/","","","",""]
[null,"0691706710001","Cooperativas de Ahorro y Crédito","FERNANDO DAQUILEMA","CrediMovil","Dirigido para nuestros socios comerciantes en los diferentes mercados populares del país para capital de trabajo, incremento y ampliación del negocio."," Microempresa: Ventas < = USD 100 mil,  Pequeñas Empresas: Ventas < = USD 1 millón","Ser socio de la Cooperativa y poseer un puesto fijo en los mercados populares, con funcionamiento mínimo de 6 meses."," Activos Fijos,  Capital de Trabajo",null," Copia de cédula o RUC,  Certificado de votación,  Foto del socio,  Justificar ingresos,  Planilla de servicios básicos"," Personal,  Sin garante",25000,1440,0.17499999999999999," Mensual,  Bimensual,  Trimestral,  Semestral,   Otro",null,null,null,null,"Requisitos adicionales: Bienes del deudor y garante (pagos del predio, matrícula del vehículo y/o título de propiedad). La amortización puede ser semanal, quincenal.","FERNANDO DAQUILEMA","https://www.coopdaquilema.com/","","","",""]
[null,"0691706710001","Cooperativas de Ahorro y Crédito","FERNANDO DAQUILEMA","Microcrédito","Dirigido a microempresarios que cuenten con unidades de producción, comercio y servicios; para iniciar y/o ampliar su negocio."," Microempresa: Ventas < = USD 100 mil","Ser socio de la Cooperativa y que la microempresa o negocio tenga un mínimo de 12 meses de funcionamiento."," Financiamiento en general",null," Copia de cédula o RUC,  Certificado de votación,  Planilla de servicios básicos,  Justificar ingresos,  Escrituras de propiedades,  Foto del socio"," Hipotecaria,  Quirografaria,  Sin garante",60000,2520,0.17499999999999999," Mensual,  Bimensual,  Trimestral,  Semestral,   Otro",null,null,null,null,"","FERNANDO DAQUILEMA","https://www.coopdaquilema.com/","","","",""]
[null,"0990077185001","Cooperativas de Ahorro y Crédito","FINCA","FINCA Comunal 1","Crédito a corto plazo dirigido a un grupo de al menos 5 participantes, quienes deben ser microempresarios con negocios individuales. Con ventas menores a $ 20 000.","  Emprendedores: negocios con menos de un año,  Microempresa: Ventas < = USD 100 mil","Ser mayor de edad y tener un negocio de minimo un año"," Capital de Trabajo",null," Copia de cédula o RUC,  Planilla de servicios básicos"," Garantía solidaria / grupal",20000,1440,0.24890000000000001," Mensual",null,null,null,null,"El grupo debe ser maximo de 20 personas. La tasa de interés es la efectiva anual.","FINCA","https://finca.ec/","","","",""]
[null,"0990077185001","Cooperativas de Ahorro y Crédito","FINCA","FINCA Comunal 2","Crédito a corto plazo dirigido a un grupo de al menos 5 participantes, quienes deben ser microempresarios con negocios individuales. Con ventas menores a $ 5 000.","  Emprendedores: negocios con menos de un año,  Microempresa: Ventas < = USD 100 mil","Ser mayor de edad y tener un negocio de minimo un año"," Capital de Trabajo",null," Copia de cédula o RUC,  Planilla de servicios básicos"," Garantía solidaria / grupal",20000,1440,0.2823," Mensual",null,null,null,null,"El grupo debe ser maximo de 20 personas. La tasa de interés es la efectiva anual.","FINCA","https://finca.ec/","","","",""]
[null,"0990077185001","Cooperativas de Ahorro y Crédito","FINCA","FINCA Comunal 3","Crédito a corto plazo dirigido a un grupo de al menos 5 participantes, quienes deben ser microempresarios con negocios individuales. Con ventas menores a $100 000.","  Emprendedores: negocios con menos de un año,  Microempresa: Ventas < = USD 100 mil","Ser mayor de edad y tener un negocio de minimo un año"," Capital de Trabajo",null," Copia de cédula o RUC,  Planilla de servicios básicos"," Garantía solidaria / grupal",20000,1440,0.2205," Mensual",null,null,null,null,"El grupo debe ser maximo de 20 personas. La tasa de interés es la efectiva anual.","FINCA","https://finca.ec/","","","",""]
[null,"0990077185001","Cooperativas de Ahorro y Crédito","FINCA","FINCA Individual 1","Crédito a corto o mediano plazo otorgado a un microempresario con ventas menores a $100 000","  Emprendedores: negocios con menos de un año,  Microempresa: Ventas < = USD 100 mil","Edad minima 21 años, negocio funcionando minimo un año"," Activos Fijos,  Capital de Trabajo",null," Copia de cédula o RUC,  Planilla de servicios básicos"," Personal,   Prendaria,  Hipotecaria",40000,1440,0.2205," Mensual",null,null,5,null,"La tasa de interés es la efectiva anual.El crédito es aprobado en 5 días.","FINCA","https://finca.ec/","","","",""]
[null,"0990077185001","Cooperativas de Ahorro y Crédito","FINCA","FINCA Individual 2","Crédito a corto o mediano plazo otorgado a un microempresario con ventas menores a $20 000","  Emprendedores: negocios con menos de un año,  Microempresa: Ventas < = USD 100 mil","Edad minima 21 años, negocio funcionando minimo un año"," Activos Fijos,  Capital de Trabajo",null," Copia de cédula o RUC,  Planilla de servicios básicos"," Personal,   Prendaria,  Hipotecaria",40000,1440,0.24890000000000001," Mensual",null,null,5,null,"La tasa de interés es la efectiva anual.El crédito es aprobado en 5 días.","FINCA","https://finca.ec/","","","",""]
[null,"0990077185001","Cooperativas de Ahorro y Crédito","FINCA","FINCA Individual 3","Crédito a corto o mediano plazo otorgado a un microempresario con ventas menores a $5 000","  Emprendedores: negocios con menos de un año,  Microempresa: Ventas < = USD 100 mil","Edad minima 21 años, negocio funcionando minimo un año"," Activos Fijos,  Capital de Trabajo",null," Copia de cédula o RUC,  Planilla de servicios básicos"," Personal,   Prendaria,  Hipotecaria",40000,1440,0.2823," Mensual",null,null,5,null,"La tasa de interés es la efectiva anual.El crédito es aprobado en 5 días.","FINCA","https://finca.ec/","","","",""]
[null,"0190155722001","Cooperativas de Ahorro y Crédito","JARDIN AZUAYO","Microcrédito 1","Crédito para socios que mantengan una cuenta de ahorros en la Cooperativa. "," Microempresa: Ventas < = USD 100 mil","Para quienes son socios, mínimo a partir de un mes y con un ahorro promedio de un mes.  El socio debe mantener en la cuenta una base de ahorros igual al 5% de monto a solicitar."," Financiamiento en general",null," Solicitud de crédito,  Otros"," No especificada",100000,2520,0.12770000000000001," Mensual,  Bimensual,  Trimestral,  Semestral,  Anual",null,null,null,null,"Los montos dependen de la capacidad de pago. Requisitos: ser socios y tener cuenta de ahorro en la Cooperativa. No se especifica el tipo de garantìa ni los otros requisitos para acceder al crédito.","JARDIN AZUAYO","https://www.jardinazuayo.fin.ec/","","","",""]
[null,"0190155722001","Cooperativas de Ahorro y Crédito","JARDIN AZUAYO","Microcrédito 2","Crédito que no requiere de ahorro previo."," Microempresa: Ventas < = USD 100 mil","No requiere ahorro previo"," Financiamiento en general",null," Solicitud de crédito,  Otros"," No especificada",100000,2520,0.1525," Mensual,  Bimensual,  Trimestral,  Semestral,  Anual",null,null,null,null,"Los montos dependen de la capacidad de pago. Requisitos: ser socios y tener cuenta de ahorro en la Cooperativa. No se especifica el tipo de garantìa ni los otros requisitos para acceder al crédito.","JARDIN AZUAYO","https://www.jardinazuayo.fin.ec/","","","",""]
[null,"0190115798001","Cooperativas de Ahorro y Crédito","JEP","CrediPymes","Dirigido a personas naturales o jurídicas que desean financiar diversas actividades productivas y/o comercio a una menor escala, con ingresos por ventas que están directamente relacionados con la actividad productiva y/o de comercialización de bienes y servicios."," Pequeñas Empresas: Ventas < = USD 1 millón, 4 Medianas Empresas: Ventas < = USD 5 millones","Personas naturales o jurídicas"," Financiamiento en general",null," Copia de cédula o RUC,  Planilla de servicios básicos,  Balances"," No especificada",1000000,1440,0.107," Mensual,  Bimensual,  Trimestral,  Semestral,  Anual,   Otro",null,null,null,null,"Pago puede ser cuatrimestral.","JEP","https://www.jep.coop/","","","",""]
[null,"0190115798001","Cooperativas de Ahorro y Crédito","JEP","MicroJEP Acum. Ampliada AAA","Financiar actividades productivas, de comercialización o de servicio cuya fuente principal de pago constituyen las ventas del producto o ingresos generados por dichas actividades."," Microempresa: Ventas < = USD 100 mil","Personas naturales o jurídicas"," Financiamiento en general",null," Copia de cédula o RUC,  Planilla de servicios básicos,  Justificar ingresos"," No especificada",100000,1440,0.159," Mensual,  Bimensual,  Trimestral,  Semestral,  Anual,   Otro",null,null,null,null,"Pago puede ser cuatrimestral.","JEP","https://www.jep.coop/","","","",""]
[null,"0190115798001","Cooperativas de Ahorro y Crédito","JEP","MicroJEP AAA","Financiar actividades productivas, de comercialización o de servicio cuya fuente principal de pago constituyen las ventas del producto o ingresos generados por dichas actividades."," Microempresa: Ventas < = USD 100 mil","Personas naturales o jurídicas"," Financiamiento en general",null," Copia de cédula o RUC,  Planilla de servicios básicos,  Justificar ingresos"," No especificada",100000,1440,0.159," Mensual,  Bimensual,  Trimestral,  Semestral,  Anual,   Otro",null,null,null,null,"Pago puede ser cuatrimestral.","JEP","https://www.jep.coop/","","","",""]
[null,"0190115798001","Cooperativas de Ahorro y Crédito","JEP","MicroJEP AA","Financiar actividades productivas, de comercialización o de servicio cuya fuente principal de pago constituyen las ventas del producto o ingresos generados por dichas actividades."," Microempresa: Ventas < = USD 100 mil,  Microempresa: Ventas < = USD 100 mil","Personas naturales o jurídicas"," Financiamiento en general",null," Copia de cédula o RUC,  Planilla de servicios básicos,  Justificar ingresos"," No especificada",100000,1440,0.17499999999999999," Mensual,  Bimensual,  Trimestral,  Semestral,  Anual,   Otro",null,null,null,null,"Pago puede ser cuatrimestral.","JEP","https://www.jep.coop/","","","",""]
[null,"0190115798001","Cooperativas de Ahorro y Crédito","JEP","MicroJEP A","Financiar actividades productivas, de comercialización o de servicio cuya fuente principal de pago constituyen las ventas del producto o ingresos generados por dichas actividades."," Microempresa: Ventas < = USD 100 mil","Personas naturales o jurídicas"," Financiamiento en general",null," Copia de cédula o RUC,  Planilla de servicios básicos,  Justificar ingresos"," No especificada",100000,1440,0.18," Mensual,  Bimensual,  Trimestral,  Semestral,  Anual,   Otro",null,null,null,null,"Pago puede ser cuatrimestral.","JEP","https://www.jep.coop/","","","",""]
[null,"0190115798001","Cooperativas de Ahorro y Crédito","JEP","MicroJEP (Analista sin información, analista y rechazo)","Financiar actividades productivas, de comercialización o de servicio cuya fuente principal de pago constituyen las ventas del producto o ingresos generados por dichas actividades."," Microempresa: Ventas < = USD 100 mil","Personas naturales o jurídicas"," Financiamiento en general",null," Copia de cédula o RUC,  Planilla de servicios básicos,  Justificar ingresos"," No especificada",100000,1440,0.2," Mensual,  Bimensual,  Trimestral,  Semestral,  Anual,   Otro",null,null,null,null,"Pago puede ser cuatrimestral.","JEP","https://www.jep.coop/","","","",""]
[null,"1891710255001","Cooperativas de Ahorro y Crédito","KULLKI WASI","Credi Efectivo Productivo (Microcrédito Acum. Ampliada)","Crédito entregado de manera inmediata en base al certificado y monto del depósito a plazo fijo que el socio mantiene en la cooperativa, este crédito puede ser entregado como consumo o microcrédito según el destino del mismo."," Microempresa: Ventas < = USD 100 mil","Microempresas con ventas anuales <= USD 100 mil."," Financiamiento en general",null," Copia de cédula o RUC,  Planilla de servicios básicos,  Certificado de votación"," No especificada",25000,2880,0.20899999999999999," Mensual",null,null,null,null,"","KULLKI WASI","https://www.kullkiwasi.com.ec/","","","",""]
[null,"1891710255001","Cooperativas de Ahorro y Crédito","KULLKI WASI","Credi Efectivo Productivo (Microcrédito Acum. Simple)","Crédito entregado de manera inmediata en base al certificado y monto del depósito a plazo fijo que el socio mantiene en la cooperativa, este crédito puede ser entregado como consumo o microcrédito según el destino del mismo."," Microempresa: Ventas < = USD 100 mil","Microempresas con ventas anuales <= USD 20 mil."," Financiamiento en general",null," Copia de cédula o RUC,  Planilla de servicios básicos,  Certificado de votación"," No especificada",25000,2880,0.224," Mensual",null,null,null,null,"","KULLKI WASI","https://www.kullkiwasi.com.ec/","","","",""]
[null,"1891710255001","Cooperativas de Ahorro y Crédito","KULLKI WASI","Microcrédito Automotriz Acum. Ampliada","Para solventar necesidades de adquisición de vehículos de trabajo con un financiamiento de hasta el 80% en la adquisición de vehículos nuevos o seminuevos y sin base."," Microempresa: Ventas < = USD 100 mil","Microempresas con ventas <= USD 100 mil"," Activos Fijos",null," Copia de cédula o RUC,  Planilla de servicios básicos"," No especificada",100000,2880,0.18," Mensual",null,null,null,null,"","KULLKI WASI","https://www.kullkiwasi.com.ec/","","","",""]
[null,"1891710255001","Cooperativas de Ahorro y Crédito","KULLKI WASI","Credi Efectivo Productivo (Microcrédito Minorista)","Crédito entregado de manera inmediata en base al certificado y monto del depósito a plazo fijo que el socio mantiene en la cooperativa, este crédito puede ser entregado como consumo o microcrédito según el destino del mismo."," Microempresa: Ventas < = USD 100 mil","Microempresas con ventas anuales <= USD 5 mil."," Financiamiento en general",null," Copia de cédula o RUC,  Planilla de servicios básicos,  Copia de cédula o RUC"," No especificada",25000,2880,0.23749999999999999," Mensual",null,null,null,null,"","KULLKI WASI","https://www.kullkiwasi.com.ec/","","","",""]
[null,"1791847644001","Cooperativas de Ahorro y Crédito","LUZ DEL VALLE","Crédito CONAFIPS 1","Crédito dirigido a microempresarios, con el objetivo de apoyar el crecimiento y reactivación de la economía."," Microempresa: Ventas < = USD 100 mil","Microempresario A, AA y AAA "," Activos Fijos,  Capital de Trabajo",null," Copia de cédula o RUC,  Certificado de votación,  Planilla de servicios básicos,  Justificar ingresos"," No especificada",10000,1440,0.155," Mensual",null,null,null,null,"Tasa de interés nominal","LUZ DEL VALLE","http://www.markacreativaec.com/CoopLDV/creditos/","","","",""]
[null,"1791847644001","Cooperativas de Ahorro y Crédito","LUZ DEL VALLE","Crédito CONAFIPS 2","Crédito dirigido a microempresarios, con el objetivo de apoyar el crecimiento y reactivación de la economía."," Microempresa: Ventas < = USD 100 mil","Microempresario A, AA y AAA "," Activos Fijos,  Capital de Trabajo",null," Copia de cédula o RUC,  Certificado de votación,  Planilla de servicios básicos,  Justificar ingresos,  Declaraciones de Impuestos"," No especificada",20000,1800,0.153," Mensual",null,null,null,null,"Tasa de interés nominal","LUZ DEL VALLE","http://www.markacreativaec.com/CoopLDV/creditos/","","","",""]
[null,"1791847644001","Cooperativas de Ahorro y Crédito","LUZ DEL VALLE","Crédito Productivo","Se otorga a personas naturales o jurídicas obligadas a llevar contabilidad, y que mantienen al día las obligaciones societarias, laborales y financieras."," Pequeñas Empresas: Ventas < = USD 1 millón, 4 Medianas Empresas: Ventas < = USD 5 millones","Personas naturales o jurídicas"," Financiamiento en general",null," Copia de cédula o RUC,  Certificado de votación,  Planilla de servicios básicos,  Declaraciones de Impuestos,  Estados financieros"," No especificada",90000,1080,0.107," Mensual",null,null,null,null,"Tasa de interés nominal","LUZ DEL VALLE","http://www.markacreativaec.com/CoopLDV/creditos/","","","",""]
[null,"1791847644001","Cooperativas de Ahorro y Crédito","LUZ DEL VALLE","Microcrédito","Crédito otorgado a los socios. El uso de los recursos pueden ser utilizados en capital de trabajo, compra de activos del negocio, compra de vehículo de trabajo, entre otros."," Microempresa: Ventas < = USD 100 mil","Personas naturales o jurídicas"," Activos Fijos,  Capital de Trabajo",null," Copia de cédula o RUC,  Certificado de votación,  Planilla de servicios básicos,  Declaraciones de Impuestos,  Justificar patrimonio"," No especificada",60000,2880,0.20300000000000001," Mensual",null,null,null,null,"Tasa de interés promedio","LUZ DEL VALLE","http://www.markacreativaec.com/CoopLDV/creditos/","","","",""]
[null,"1791379470001","Cooperativas de Ahorro y Crédito","MAQUITA CUSHUNCHIC","Microcrédito","Crédito rápido y sin encaje "," Microempresa: Ventas < = USD 100 mil","Actividad con más de dos años de estabilidad, sin problemas en el buro de crédito. "," Activos Fijos,  Capital de Trabajo,  Financiamiento de pasivos (deudas)","1.       Ampliar capacidad instalada, 4.       Mejoramiento de procesos, 8.       Innovación o Adaptación tecnológica"," Solicitud de crédito,  Copia de cédula o RUC,  Planilla de servicios básicos,  Declaraciones de Impuestos,  Reporte de Buró,  Justificar ingresos,  Justificar patrimonio"," Hipotecaria,  Sin garante,  Personal",60000,2880,0.15," Mensual",null,null,2," Un alto porcentaje del proceso es en línea","Requisitos adicionales: en caso de tener presentar copias de contratos de arrendamiento y de la matrícula del vehículoEl crédito es aprobado en 2 días. Un alto porcentaje del proceso es en línea","MAQUITA CUSHUNCHIC","https://www.maquita.fin.ec/",": Mireya González ","Jefe de Negocios","0983415394 – 0995003614 – 5001312 ext.:142"," mgonzalez@maquita.fin.ec"]
[null,"0690074761001","Cooperativas de Ahorro y Crédito","MINGA","Microcrédito Acum. Simple","Créditos otorgados a personas naturales quienes destinan sus recursos a actividades productivas, es decir dedicadas a financiar actividades en pequeña escala, de producción, Comercialización o servicios, cuya fuente principal de pago lo constituye el producto de las ventas o ingresos generados por dichas actividades."," Microempresa: Ventas < = USD 100 mil","Microempresas con ventas <= USD 20 mil"," Financiamiento en general",null," Copia de cédula o RUC,  Planilla de servicios básicos,  Justificar ingresos"," No especificada",20000,1620,0.223," Mensual,   Otro",null,null,null,null,"Pago puede ser semanal.","MINGA","https://coopminga.com/","","","",""]
[null,"0690074761001","Cooperativas de Ahorro y Crédito","MINGA","Microcrédito Minorista","Créditos otorgados a personas naturales quienes destinan sus recursos a actividades productivas, es decir dedicadas a financiar actividades en pequeña escala, de producción, Comercialización o servicios, cuya fuente principal de pago lo constituye el producto de las ventas o ingresos generados por dichas actividades."," Microempresa: Ventas < = USD 100 mil","Microempresas con ventas <= USD 5 mil"," Financiamiento en general",null," Copia de cédula o RUC,  Planilla de servicios básicos,  Justificar ingresos"," No especificada",5000,1620,0.25," Mensual,   Otro",null,null,null,null,"Pago puede ser semanal.","MINGA","https://coopminga.com/","","","",""]
[null,"1091712284001","Cooperativas de Ahorro y Crédito","MUJERES UNIDAS","CACMUEMPRENDE Ampliado","Microcrédito para estudiantes, egresados de la Universidad o Instituto "," Microempresa: Ventas < = USD 100 mil","Estudiante o egresado de la Universidad. Mercado objetivo: Actividades agrícolas, pecuarias, comercio, servicios, turismo comunitario, artesanías"," Financiamiento en general",null," Copia de cédula o RUC,  Certificado de votación,  Planilla de servicios básicos,  Declaraciones de Impuestos"," Personal,  Hipotecaria,   Prendaria",180000,2880,0.21679999999999999," Mensual",null,null,null,null,"Requisitos adicionales: Croquis del domicilio. Plan de negocio. Copia de matricula del vehículo. Certificado de matricula en la universidad o de ser egresado. ","MUJERES UNIDAS","https://www.cacmu.fin.ec/web/inicio/","","","",""]
[null,"1091712284001","Cooperativas de Ahorro y Crédito","MUJERES UNIDAS","CACMUEMPRENDE Minorista","Microcrédito para estudiantes, egresados de la Universidad o Instituto "," Microempresa: Ventas < = USD 100 mil","Estudiante o egresado de la Universidad. Mercado objetivo: Actividades agrícolas, pecuarias, comercio, servicios, turismo comunitario, artesanías"," Financiamiento en general",null," Copia de cédula o RUC,  Certificado de votación,  Planilla de servicios básicos,  Declaraciones de Impuestos"," Personal,  Hipotecaria,   Prendaria",180000,2880,0.2823," Mensual",null,0.08,null,null,"Requisitos adicionales: Croquis del domicilio. Plan de negocio. Copia de matricula del vehículo. Certificado de matricula en la universidad o de ser egresado. El encaje es de 8 %.","MUJERES UNIDAS","https://www.cacmu.fin.ec/web/inicio/","","","",""]
[null,"1091712284001","Cooperativas de Ahorro y Crédito","MUJERES UNIDAS","CACMUEMPRENDE Simple","Microcrédito para estudiantes, egresados de la Universidad o Instituto "," Microempresa: Ventas < = USD 100 mil","Estudiante o egresado de la Universidad. Mercado objetivo: Actividades agrícolas, pecuarias, comercio, servicios, turismo comunitario, artesanías"," Financiamiento en general",null," Copia de cédula o RUC,  Certificado de votación,  Planilla de servicios básicos,  Declaraciones de Impuestos"," Personal,  Hipotecaria,   Prendaria",180000,2880,0.24890000000000001," Mensual",null,0.08,null,null,"Requisitos adicionales: Croquis del domicilio. Plan de negocio. Copia de matricula del vehículo. Certificado de matricula en la universidad o de ser egresado. El encaje es de 8 %.","MUJERES UNIDAS","https://www.cacmu.fin.ec/web/inicio/","","","",""]
[null,"1091712284001","Cooperativas de Ahorro y Crédito","MUJERES UNIDAS","CONVENIO  MIGRANTES IAF","Es Crédito destinado  para actividades  producctivas de gupos migrantes   venezolanos colombianos  o  grupos vulnerables en  Ecuador  "," Microempresa: Ventas < = USD 100 mil","Mercado objetivo: Actividades agrícolas, pecuarias, comercio, servicios, turismo comunitario, artesanías"," Financiamiento en general",null," Copia de cédula o RUC,  Certificado de votación,  Planilla de servicios básicos,  Declaraciones de Impuestos"," Personal,  Hipotecaria,   Prendaria,  Quirografaria,   Autoliquidable",3000,1080,0.17299999999999999," Mensual",null,null,null,null,"Requisitos adicionales: Croquis del domicilio y negocio (en caso de tener). Copia de matricula del vehículo (en caso de tener). ","MUJERES UNIDAS","https://www.cacmu.fin.ec/web/inicio/","","","",""]
[null,"1091712284001","Cooperativas de Ahorro y Crédito","MUJERES UNIDAS","Crédito Comercial","Microcrédito destinado a segmento comercial para capital de trabajo e inversión."," Pequeñas Empresas: Ventas < = USD 1 millón, 4 Medianas Empresas: Ventas < = USD 5 millones","Mercado objetivo: Actividades agrícolas, pecuarias, comercio, servicios, turismo comunitario, artesanías"," Capital de Trabajo,  Otro",null," Copia de cédula o RUC,  Certificado de votación,  Estatutos,  Balances,  Declaraciones de Impuestos,  Planilla de servicios básicos"," Personal,  Hipotecaria,   Prendaria,  Quirografaria,   Autoliquidable",250000,2880,0.1123," Mensual",null,0.08,null,null,"Requisitos adicionales: Croquis del negocio. Copia de matricula del vehículo (en caso de tener). Detalle de inversión. Certificado de gravámenes Registro de la propiedad y mercantilEl encaje es de 8 %.","MUJERES UNIDAS","https://www.cacmu.fin.ec/web/inicio/","","","",""]
[null,"1091712284001","Cooperativas de Ahorro y Crédito","MUJERES UNIDAS","Finanzas Populares 1","Microcrédito destinado al sector productivo agrícola, pecuario, Comercial, de servicios, turismo comunitario y de artesanías; para cubrir necesidades de capital de trabajo e inversión y/o inversión en animales mayores / menores. "," Microempresa: Ventas < = USD 100 mil,  Microempresa: Ventas < = USD 100 mil","Mercado objetivo: Actividades agrícolas, pecuarias, comercio, servicios, turismo comunitario, artesanías"," Capital de Trabajo,  Otro",null," Copia de cédula o RUC,  Certificado de votación,  Planilla de servicios básicos,  Declaraciones de Impuestos"," Personal,  Hipotecaria,   Prendaria,  Garantía solidaria / grupal",10000,2880,0.17269999999999999," Mensual",null,null,null,null,"Requisitos adicionales: Croquis del domicilio. Plan de inversión.  Matricula de vehiculo. encuesta Yapu para créditos agricolas. La garantia depende del monto: hasta $10 000 con impuesto predial sin garante. Hasta $15 000 un garante con pago de impueto predial. Hasta $20 000 garante y titular con impuesto predial. A partir de $20 0001 garantía hipotecaria","MUJERES UNIDAS","https://www.cacmu.fin.ec/web/inicio/","","","",""]
[null,"1091712284001","Cooperativas de Ahorro y Crédito","MUJERES UNIDAS","Finanzas Populares 2","Microcrédito destinado al sector productivo agrícola, pecuario, Comercial, de servicios, turismo comunitario y de artesanías; para cubrir necesidades de capital de trabajo e inversión y/o inversión en animales mayores / menores. "," Microempresa: Ventas < = USD 100 mil","Mercado objetivo: Actividades agrícolas, pecuarias, comercio, servicios, turismo comunitario, artesanías"," Capital de Trabajo,  Otro",null," Copia de cédula o RUC,  Certificado de votación,  Planilla de servicios básicos,  Declaraciones de Impuestos"," Personal,  Hipotecaria,   Prendaria,  Garantía solidaria / grupal",20000,2880,0.16700000000000001," Mensual",null,null,null,null,"Requisitos adicionales: Croquis del domicilio. Plan de inversión.  Matricula de vehiculo. encuesta Yapu para créditos agricolas. La garantia depende del monto: hasta $10 000 con impuesto predial sin garante. Hasta $15 000 un garante con pago de impueto predial. Hasta $20 000 garante y titular con impuesto predial. A partir de $20 0001 garantía hipotecaria","MUJERES UNIDAS","https://www.cacmu.fin.ec/web/inicio/","","","",""]
[null,"1091712284001","Cooperativas de Ahorro y Crédito","MUJERES UNIDAS","Finanzas Populares 3","Microcrédito destinado al sector productivo agrícola, pecuario, Comercial, de servicios, turismo comunitario y de artesanías; para cubrir necesidades de capital de trabajo e inversión y/o inversión en animales mayores / menores. "," Microempresa: Ventas < = USD 100 mil","Mercado objetivo: Actividades agrícolas, pecuarias, comercio, servicios, turismo comunitario, artesanías"," Capital de Trabajo,  Otro",null," Copia de cédula o RUC,  Certificado de votación,  Planilla de servicios básicos,  Declaraciones de Impuestos"," Personal,  Hipotecaria,   Prendaria,  Garantía solidaria / grupal",50000,2880,0.16120000000000001," Mensual",null,null,null,null,"Requisitos adicionales: Croquis del domicilio. Plan de inversión.  Matricula de vehiculo. encuesta Yapu para créditos agricolas. La garantia depende del monto: hasta $10 000 con impuesto predial sin garante. Hasta $15 000 un garante con pago de impueto predial. Hasta $20 000 garante y titular con impuesto predial. A partir de $20 0001 garantía hipotecaria","MUJERES UNIDAS","https://www.cacmu.fin.ec/web/inicio/","","","",""]
[null,"1091712284001","Cooperativas de Ahorro y Crédito","MUJERES UNIDAS","MICRO FINCA Minorista","Microcrédito destinado para todos los segmentos de Créditos."," Microempresa: Ventas < = USD 100 mil","Mercado objetivo: Actividades agrícolas, pecuarias, comercio, servicios, turismo comunitario, artesanías"," Capital de Trabajo,  Otro",null," Copia de cédula o RUC,  Certificado de votación,  Planilla de servicios básicos,  Declaraciones de Impuestos"," Personal,  Hipotecaria",2100,1080,0.2823," Mensual",null,0.08,null,null,"Requisitos adicionales: Croquis del domicilio.Detalle de la inversión. Copia de matricula del vehículo. Visa de refugiado.El encaje es de 8 %.","MUJERES UNIDAS","https://www.cacmu.fin.ec/web/inicio/","","","",""]
[null,"1091712284001","Cooperativas de Ahorro y Crédito","MUJERES UNIDAS","MICRO FINCA Simple","Microcrédito destinado para todos los segmentos de Créditos."," Microempresa: Ventas < = USD 100 mil","Mercado objetivo: Actividades agrícolas, pecuarias, comercio, servicios, turismo comunitario, artesanías"," Capital de Trabajo,  Otro",null," Copia de cédula o RUC,  Certificado de votación,  Planilla de servicios básicos,  Declaraciones de Impuestos"," Personal,  Hipotecaria",2100,1080,0.24890000000000001," Mensual",null,0.08,null,null,"Requisitos adicionales: Croquis del domicilio.Detalle de la inversión. Copia de matricula del vehículo. Visa de refugiado.El encaje es de 8 %.","MUJERES UNIDAS","https://www.cacmu.fin.ec/web/inicio/","","","",""]
[null,"1091712284001","Cooperativas de Ahorro y Crédito","MUJERES UNIDAS","MICRO MISION ESCALABRINIANA","Crédito con fondos de Congregación De Hermanas Misioneras De San Carlos Borromeo Scalabriniana, destinado según convenio a extranjeros y ecuatorianos en situación de vulnerabilidad, dedicados a actividades agrícola, pecuarias, comercio, servicios, turismo comunitario y artesanías"," Microempresa: Ventas < = USD 100 mil","Mercado objetivo: Actividades agrícolas, pecuarias, comercio, servicios, turismo comunitario, artesanías"," Financiamiento en general,  Otro",null," Copia de cédula o RUC,  Certificado de votación,  Planilla de servicios básicos,  Declaraciones de Impuestos"," Personal,   Autoliquidable,  Garantía solidaria / grupal",3000,1440,0.16," Mensual",null,null,null,null,"Garantia grupal. Requisito adicional: detalle de la inversión","MUJERES UNIDAS","https://www.cacmu.fin.ec/web/inicio/","","","",""]
[null,"1091712284001","Cooperativas de Ahorro y Crédito","MUJERES UNIDAS","MICRO SOBERANIA ALIMENTARIA Minorista","Microcrédito destinado a autoconsumo y Comercialización."," Microempresa: Ventas < = USD 100 mil","Mercado objetivo: Actividades agrícolas, pecuarias, comercio, servicios, turismo comunitario, artesanías"," Financiamiento en general,  Otro",null," Copia de cédula o RUC,  Certificado de votación,  Planilla de servicios básicos,  Declaraciones de Impuestos"," Personal,  Hipotecaria",2100,1080,0.2823," Mensual",null,0.08,null,null,"Requisitos adicionales: Croquis del domicilio.Detalle de la inversión. Copia de matricula del vehículo. Visa de refugiado.El encaje es de 8 %.","MUJERES UNIDAS","https://www.cacmu.fin.ec/web/inicio/","","","",""]
[null,"1091712284001","Cooperativas de Ahorro y Crédito","MUJERES UNIDAS","MICRO SOBERANIA ALIMENTARIA Simple","Microcrédito destinado a autoconsumo y Comercialización."," Microempresa: Ventas < = USD 100 mil","Mercado objetivo: Actividades agrícolas, pecuarias, comercio, servicios, turismo comunitario, artesanías"," Financiamiento en general,  Otro",null," Copia de cédula o RUC,  Certificado de votación,  Planilla de servicios básicos,  Declaraciones de Impuestos"," Personal,  Hipotecaria",2100,1080,0.24890000000000001," Mensual",null,0.08,null,null,"Requisitos adicionales: Croquis del domicilio.Detalle de la inversión. Copia de matricula del vehículo. Visa de refugiado.El encaje es de 8 %.","MUJERES UNIDAS","https://www.cacmu.fin.ec/web/inicio/","","","",""]
[null,"1091712284001","Cooperativas de Ahorro y Crédito","MUJERES UNIDAS","MICRO TECNOLÓGICO (SECTORES VULNERABLES KIVA) Minorista","Microcrédito destinado a la compra de productos tecnológicos (sectores vulnersables) en los sectores de comercio, servicios, turismo comunitario, artesanías, agroindustrial y consumo."," Microempresa: Ventas < = USD 100 mil","Mercado objetivo: Actividades agrícolas, pecuarias, comercio, servicios, turismo comunitario, artesanías"," Activos Fijos",null," Copia de cédula o RUC,  Certificado de votación,  Planilla de servicios básicos,  Declaraciones de Impuestos"," Personal,  Hipotecaria",2100,1080,0.2823," Mensual",null,0.08,null,null,"Requisitos adicionales: Croquis del domicilio.Detalle de la inversión. Copia de matricula del vehículo. Visa de refugiado. Cubre también inversión animales mayores o  Inversión animales menores. Consumo.El encaje es de 8 %.","MUJERES UNIDAS","https://www.cacmu.fin.ec/web/inicio/","","","",""]
[null,"1091712284001","Cooperativas de Ahorro y Crédito","MUJERES UNIDAS","MICRO TECNOLÓGICO (SECTORES VULNERABLES KIVA) Simple","Microcrédito destinado a la compra de productos tecnológicos (sectores vulnersables) en los sectores de comercio, servicios, turismo comunitario, artesanías, agroindustrial y consumo."," Microempresa: Ventas < = USD 100 mil","Mercado objetivo: Actividades agrícolas, pecuarias, comercio, servicios, turismo comunitario, artesanías"," Activos Fijos",null," Copia de cédula o RUC,  Certificado de votación,  Planilla de servicios básicos,  Declaraciones de Impuestos"," Personal,  Hipotecaria",2100,1080,0.24890000000000001," Mensual",null,0.08,null,null,"Requisitos adicionales: Croquis del domicilio.Detalle de la inversión. Copia de matricula del vehículo. Visa de refugiado.El encaje es de 8 %.","MUJERES UNIDAS","https://www.cacmu.fin.ec/web/inicio/","","","",""]
[null,"1091712284001","Cooperativas de Ahorro y Crédito","MUJERES UNIDAS","MicroCrédito Ampliado","Microcrédito destinado al sector productivo agrícola, pecuario, Comercial, de servicios, turismo comunitario y de artesanías; para cubrir necesidades de capital de trabajo e inversión y/o inversión en animales mayores / menores. "," Microempresa: Ventas < = USD 100 mil","Mercado objetivo: Actividades agrícolas, pecuarias, comercio, servicios, turismo comunitario, artesanías"," Capital de Trabajo,  Otro",null," Copia de cédula o RUC,  Certificado de votación,  Planilla de servicios básicos,  Declaraciones de Impuestos"," Personal,  Hipotecaria,   Prendaria,  Garantía solidaria / grupal",180000,2880,0.21679999999999999," Mensual",null,null,null,null,"Requisitos adicionales: Croquis del domicilio. Plan de inversión.  Matricula de vehiculo. encuesta Yapu para créditos agricolas. La garantia depende del monto: hasta $10 000 con impuesto predial sin garante. Hasta $15 000 un garante con pago de impueto predial. Hasta $20 000 garante y titular con impuesto predial. A partir de $20 0001 garantía hipotecaria","MUJERES UNIDAS","https://www.cacmu.fin.ec/web/inicio/","","","",""]
[null,"1091712284001","Cooperativas de Ahorro y Crédito","MUJERES UNIDAS","MicroCrédito Minorista","Microcrédito destinado al sector productivo agrícola, pecuario, Comercial, de servicios, turismo comunitario y de artesanías; para cubrir necesidades de capital de trabajo e inversión y/o inversión en animales mayores / menores. "," Microempresa: Ventas < = USD 100 mil","Mercado objetivo: Actividades agrícolas, pecuarias, comercio, servicios, turismo comunitario, artesanías"," Capital de Trabajo,  Otro",null," Copia de cédula o RUC,  Certificado de votación,  Planilla de servicios básicos,  Declaraciones de Impuestos"," Personal,  Hipotecaria,   Prendaria,  Garantía solidaria / grupal",180000,2880,0.27829999999999999," Mensual",null,null,null,null,"Requisitos adicionales: Croquis del domicilio. Plan de inversión.  Matricula de vehiculo. encuesta Yapu para créditos agricolas. La garantia depende del monto: hasta $10 000 con impuesto predial sin garante. Hasta $15 000 un garante con pago de impueto predial. Hasta $20 000 garante y titular con impuesto predial. A partir de $20 0001 garantía hipotecaria","MUJERES UNIDAS","https://www.cacmu.fin.ec/web/inicio/","","","",""]
[null,"1091712284001","Cooperativas de Ahorro y Crédito","MUJERES UNIDAS","MicroCrédito Simple","Microcrédito destinado al sector productivo agrícola, pecuario, comercial, de servicios, turismo comunitario y de artesanías; para cubrir necesidades de capital de trabajo e inversión y/o inversión en animales mayores / menores. "," Microempresa: Ventas < = USD 100 mil","Mercado objetivo: Actividades agrícolas, pecuarias, comercio, servicios, turismo comunitario, artesanías"," Capital de Trabajo,  Otro",null," Copia de cédula o RUC,  Certificado de votación,  Planilla de servicios básicos,  Declaraciones de Impuestos"," Personal,  Hipotecaria,   Prendaria,  Garantía solidaria / grupal",180000,2880,0.24110000000000001," Mensual",null,null,null,null,"Requisitos adicionales: Croquis del domicilio. Plan de inversión.  Matricula de vehiculo. encuesta Yapu para créditos agricolas. La garantia depende del monto: hasta $10 000 con impuesto predial sin garante. Hasta $15 000 un garante con pago de impueto predial. Hasta $20 000 garante y titular con impuesto predial. A partir de $20 0001 garantía hipotecaria","MUJERES UNIDAS","https://www.cacmu.fin.ec/web/inicio/","","","",""]
[null,"1890141877001","Cooperativas de Ahorro y Crédito","MUSHUC RUNA","Comercial Productivo PYMES","Otorgados a personas naturales obligadas a llevar contabilidad o a personas jurídicas que registren ventas anuales superiores a $ 100.000 hasta $ 1’000.000"," Pequeñas Empresas: Ventas < = USD 1 millón, 4 Medianas Empresas: Ventas < = USD 5 millones","Personas naturales obligadas a llevar contabilidad o personas jurídicas"," Financiamiento en general",null," Copia de cédula o RUC,  Declaraciones de Impuestos,  Balances"," Personal",500000,4320,0.10299999999999999," Mensual",null,null,null,null,"","MUSHUC RUNA","https://mushucruna.fin.ec/","","","",""]
[null,"1890141877001","Cooperativas de Ahorro y Crédito","MUSHUC RUNA","MicroCrédito Acum. Ampliada","Crédito destinado para financiar actividades de producción."," Microempresa: Ventas < = USD 100 mil","Ventas <= USD 100 mil."," Financiamiento en general",null," Copia de cédula o RUC,  Escrituras de propiedades"," Personal",200000,3600,0.18," Mensual",null,null,null,null,"","MUSHUC RUNA","https://mushucruna.fin.ec/","","","",""]
[null,"1890141877001","Cooperativas de Ahorro y Crédito","MUSHUC RUNA","MicroCrédito Acum. Simple","Crédito destinado para financiar actividades de producción."," Microempresa: Ventas < = USD 100 mil","Ventas <= USD 20 mil."," Financiamiento en general",null," Copia de cédula o RUC,  Escrituras de propiedades"," Personal",200000,3600,0.21," Mensual",null,null,null,null,"","MUSHUC RUNA","https://mushucruna.fin.ec/","","","",""]
[null,"1890141877001","Cooperativas de Ahorro y Crédito","MUSHUC RUNA","MicroCrédito Minorista","Crédito destinado para financiar actividades de producción."," Microempresa: Ventas < = USD 100 mil","Ventas <= USD 5 mil."," Financiamiento en general",null," Copia de cédula o RUC,  Escrituras de propiedades"," Personal",200000,3600,0.22," Mensual",null,null,null,null,"","MUSHUC RUNA","https://mushucruna.fin.ec/","","","",""]
[null,"1890001323001","Cooperativas de Ahorro y Crédito","OSCUS","AUTOSCUS 1","Para solventar necesidades de adquisición de vehículos de trabajo. Se podrá financiar todo tipo de vehículos nuevos y usados hasta tres años. Financia hasta el 80% del valor del vehículo."," Pequeñas Empresas: Ventas < = USD 1 millón, 4 Medianas Empresas: Ventas < = USD 5 millones","Persona natural o jurídica"," Activos Fijos",null," Solicitud de crédito,  Copia de cédula o RUC,  Certificado de votación,  Planilla de servicios básicos,  Justificar patrimonio,  Justificar ingresos,  Declaraciones de Impuestos,  Estados financieros"," Hipotecaria,   Prendaria",260000,2160,0.10199999999999999," Mensual",null,null,null,null,"","OSCUS","https://www.oscus.coop/","","","",""]
[null,"1890001323001","Cooperativas de Ahorro y Crédito","OSCUS","AUTOSCUS 2","Para solventar necesidades de adquisición de vehículos de trabajo. Se podrá financiar todo tipo de vehículos nuevos y usados hasta tres años. Financia hasta el 80% del valor del vehículo."," Microempresa: Ventas < = USD 100 mil","Persona natural o jurídica"," Activos Fijos",null," Solicitud de crédito,  Copia de cédula o RUC,  Certificado de votación,  Planilla de servicios básicos,  Justificar patrimonio,  Justificar ingresos"," Hipotecaria,   Prendaria",260000,2160,0.17599999999999999," Mensual",null,null,null,null,"","OSCUS","https://www.oscus.coop/","","","",""]
[null,"1890001323001","Cooperativas de Ahorro y Crédito","OSCUS","Credi Oscus 1","Financiamiento para diversas actividades productivas, de comercialización o prestación de servicios a pequeña, mediana y gran escala."," Pequeñas Empresas: Ventas < = USD 1 millón, 4 Medianas Empresas: Ventas < = USD 5 millones","Persona natural o jurídica"," Financiamiento en general",null," Solicitud de crédito,  Copia de cédula o RUC,  Certificado de votación,  Planilla de servicios básicos,  Justificar ingresos,  Justificar patrimonio,  Estados financieros,  Declaraciones de Impuestos"," Hipotecaria,   Prendaria",150000,1800,0.10199999999999999," Mensual",null,null,null,null,"","OSCUS","https://www.oscus.coop/","","","",""]
[null,"1890001323001","Cooperativas de Ahorro y Crédito","OSCUS","Credi Oscus 2","Financiamiento para diversas actividades productivas, de comercialización o prestación de servicios a pequeña, mediana y gran escala."," Microempresa: Ventas < = USD 100 mil","Persona natural o jurídica"," Financiamiento en general",null," Solicitud de crédito,  Copia de cédula o RUC,  Certificado de votación,  Planilla de servicios básicos,  Justificar ingresos,  Justificar patrimonio"," Hipotecaria,   Prendaria",150000,1800,0.17599999999999999," Mensual",null,null,null,null,"","OSCUS","https://www.oscus.coop/","","","",""]
[null,"1890001323001","Cooperativas de Ahorro y Crédito","OSCUS","Facilito 1","Financiamiento inmediato"," Pequeñas Empresas: Ventas < = USD 1 millón, 4 Medianas Empresas: Ventas < = USD 5 millones","Persona natural o jurídica"," Financiamiento en general",null," Solicitud de crédito,  Copia de cédula o RUC,  Certificado de votación,  Planilla de servicios básicos,  Escrituras de propiedades,  Declaraciones de Impuestos,  Justificar ingresos"," Sin garante",10000,1080,0.10199999999999999," Mensual",null,null,null,null,"","OSCUS","https://www.oscus.coop/","","","",""]
[null,"1890001323001","Cooperativas de Ahorro y Crédito","OSCUS","Facilito 2","Financiamiento inmediato "," Microempresa: Ventas < = USD 100 mil","Persona natural o jurídica"," Financiamiento en general",null," Solicitud de crédito,  Copia de cédula o RUC,  Certificado de votación,  Planilla de servicios básicos,  Declaraciones de Impuestos,  Justificar ingresos"," Sin garante",10000,1080,0.17599999999999999," Mensual",null,null,null,null,"","OSCUS","https://www.oscus.coop/","","","",""]
[null,"1890001323001","Cooperativas de Ahorro y Crédito","OSCUS","Menor a la inverión","Financiamos adquisición de bienes, servicios, actividad productiva o comercialización. Crédito inmediato en relación del Certificado de Depósito a Plazo."," Microempresa: Ventas < = USD 100 mil,  Pequeñas Empresas: Ventas < = USD 1 millón, 4 Medianas Empresas: Ventas < = USD 5 millones","Persona natural"," Financiamiento en general",null," Solicitud de crédito,  Copia de cédula o RUC,  Certificado de votación,  Planilla de servicios básicos"," Sin garante",150000,1800,0.17599999999999999," Mensual",null,null,1,null,"Se necesita el certificado de depósito a plazo original.El crédito es aprobado en 1 días.","OSCUS","https://www.oscus.coop/","","","",""]
[null,"1890001323001","Cooperativas de Ahorro y Crédito","OSCUS","Menor al ahorro","Financiamos adquisición de bienes, servicios, actividad productiva o comercialización. Crédito inmediato sobre el saldo en la cuenta de ahorros."," Microempresa: Ventas < = USD 100 mil,  Pequeñas Empresas: Ventas < = USD 1 millón, 4 Medianas Empresas: Ventas < = USD 5 millones","Persona natural"," Financiamiento en general",null," Solicitud de crédito,  Copia de cédula o RUC,  Certificado de votación,  Planilla de servicios básicos"," Sin garante",150000,1800,0.17599999999999999," Mensual",null,null,1,null,"Tener una cuenta en la cooperativa.El crédito es aprobado en 1 días.","OSCUS","https://www.oscus.coop/","","","",""]
[null,"1890001323001","Cooperativas de Ahorro y Crédito","OSCUS","Sobregiro","Destinada a satisfacer las necesidades de financiamiento de los Socios de manera inmediata, ágil, segura y de fácil aplicación."," Microempresa: Ventas < = USD 100 mil,  Pequeñas Empresas: Ventas < = USD 1 millón, 4 Medianas Empresas: Ventas < = USD 5 millones","Persona natural"," Financiamiento en general",null," Copia de cédula o RUC,  Certificado de votación,  Planilla de servicios básicos"," Sin garante",8000,720,0.17599999999999999," Mensual",null,null,null,null,"","OSCUS","https://www.oscus.coop/","","","",""]
[null,"0490001883001","Cooperativas de Ahorro y Crédito","PABLO MUÑOZ VEGA","Crédito Institucional MiPymes","Son otorgados a personas naturales o jurídicas para el financiamiento de actividades de producción y comercialización, con ingresos por ventas u otros conceptos redituables anuales, directamente relacionados con la actividad productiva y/o de comercialización y cuya fuente de pago provenga de dicha actividad."," Pequeñas Empresas: Ventas < = USD 1 millón","Persona natural o jurídica"," Activos Fijos,  Capital de Trabajo",null," Solicitud de crédito,  Copia de cédula o RUC,  Certificado de votación,  Planilla de servicios básicos,  Declaraciones de Impuestos,  Otros,  Facturas"," No especificada",100000,2160,0.1067," Mensual",null,null,null,null,"Requisito adicionales de acuerdo a la actividad económica. Empleados Formales: Certificado de trabajo o mecanizado del IESS, ultimo rol de pagos o impresión del rol y certificado de la pagina web de la organización.\nEmpleados Informales: Certificado de trabajo en el que se incluya el ingreso percibido, tiempo de trabajo y cargo. Adjuntar copia de cédula de quien emite el certificado.\nPensionistas: Último rol de pagos y en caso de recibir el deposito en la cooperativa copia de libreta o estado de cuenta.\nComerciantes, Servicios o Producción Formales: Copia o impresión de RUC, RIMPE o Patente, y las tres ultimas declaraciones del IVA.\nComerciantes, Servicios o Producción Informales: Copia de los documentos (facturas, guías de movilización, notas de venta entre otros) que acrediten el movimiento y permita determinar el flujo.\nTransportistas: Copia de RUC o RIMPE, certificado de ser socio activo de la operadora de transporte y copia de la matricula del vehículo como propietario.\nComercio Producción y Crianza de Animales: Documento que abalice la existencia y el movimiento del negocio, certificado de Agrocalidad o CONEFA.\nAgricultura: Original o copia de facturas de compra de insumos o certificado comercial de la casa agrícola.\nArriendos: Copia simple de contrato, copia de pago de impuesto predial y fotografías del inmueble arrendado.\nProfesionales de la Construcción: Copia de RUC y tres ultimas declaraciones del IVA o copia de contratos de obra legalizados o copia de facturas de prestación de servicios. La tasa de interés es la efectiva.","PABLO MUÑOZ VEGA","https://www.cpmv.fin.ec/","","","",""]
[null,"0490001883001","Cooperativas de Ahorro y Crédito","PABLO MUÑOZ VEGA","Micro. Ampliado","Crédito SIN GARANTE a una tasa de interés desde el 14% anual."," Microempresa: Ventas < = USD 100 mil","Persona natural o jurídica"," Activos Fijos,  Capital de Trabajo",null," Solicitud de crédito,  Copia de cédula o RUC,  Certificado de votación,  Planilla de servicios básicos,  Declaraciones de Impuestos,  Otros,  Facturas"," No especificada",30000,2520,0.2," Mensual",null,null,null,null,"Requisito adicionales de acuerdo a la actividad económica. Empleados Formales: Certificado de trabajo o mecanizado del IESS, ultimo rol de pagos o impresión del rol y certificado de la pagina web de la organización.\nEmpleados Informales: Certificado de trabajo en el que se incluya el ingreso percibido, tiempo de trabajo y cargo. Adjuntar copia de cédula de quien emite el certificado.\nPensionistas: Último rol de pagos y en caso de recibir el deposito en la cooperativa copia de libreta o estado de cuenta.\nComerciantes, Servicios o Producción Formales: Copia o impresión de RUC, RIMPE o Patente, y las tres ultimas declaraciones del IVA.\nComerciantes, Servicios o Producción Informales: Copia de los documentos (facturas, guías de movilización, notas de venta entre otros) que acrediten el movimiento y permita determinar el flujo.\nTransportistas: Copia de RUC o RIMPE, certificado de ser socio activo de la operadora de transporte y copia de la matricula del vehículo como propietario.\nComercio Producción y Crianza de Animales: Documento que abalice la existencia y el movimiento del negocio, certificado de Agrocalidad o CONEFA.\nAgricultura: Original o copia de facturas de compra de insumos o certificado comercial de la casa agrícola.\nArriendos: Copia simple de contrato, copia de pago de impuesto predial y fotografías del inmueble arrendado.\nProfesionales de la Construcción: Copia de RUC y tres ultimas declaraciones del IVA o copia de contratos de obra legalizados o copia de facturas de prestación de servicios. La tasa de interés es la efectiva.","PABLO MUÑOZ VEGA","https://www.cpmv.fin.ec/","","","",""]
[null,"0490001883001","Cooperativas de Ahorro y Crédito","PABLO MUÑOZ VEGA","Micro. Minorista","Crédito SIN GARANTE a una tasa de interés desde el 14% anual."," Microempresa: Ventas < = USD 100 mil","Microempresas con ventas <= USD 5 mil"," Activos Fijos,  Capital de Trabajo",null," Solicitud de crédito,  Copia de cédula o RUC,  Certificado de votación,  Planilla de servicios básicos,  Declaraciones de Impuestos,  Otros,  Facturas"," No especificada",5000,1440,0.17499999999999999," Mensual",null,null,null,null,"Requisito adicionales de acuerdo a la actividad económica. Empleados Formales: Certificado de trabajo o mecanizado del IESS, ultimo rol de pagos o impresión del rol y certificado de la pagina web de la organización.\nEmpleados Informales: Certificado de trabajo en el que se incluya el ingreso percibido, tiempo de trabajo y cargo. Adjuntar copia de cédula de quien emite el certificado.\nPensionistas: Último rol de pagos y en caso de recibir el deposito en la cooperativa copia de libreta o estado de cuenta.\nComerciantes, Servicios o Producción Formales: Copia o impresión de RUC, RIMPE o Patente, y las tres ultimas declaraciones del IVA.\nComerciantes, Servicios o Producción Informales: Copia de los documentos (facturas, guías de movilización, notas de venta entre otros) que acrediten el movimiento y permita determinar el flujo.\nTransportistas: Copia de RUC o RIMPE, certificado de ser socio activo de la operadora de transporte y copia de la matricula del vehículo como propietario.\nComercio Producción y Crianza de Animales: Documento que abalice la existencia y el movimiento del negocio, certificado de Agrocalidad o CONEFA.\nAgricultura: Original o copia de facturas de compra de insumos o certificado comercial de la casa agrícola.\nArriendos: Copia simple de contrato, copia de pago de impuesto predial y fotografías del inmueble arrendado.\nProfesionales de la Construcción: Copia de RUC y tres ultimas declaraciones del IVA o copia de contratos de obra legalizados o copia de facturas de prestación de servicios. La tasa de interés es la efectiva.","PABLO MUÑOZ VEGA","https://www.cpmv.fin.ec/","","","",""]
[null,"0490001883001","Cooperativas de Ahorro y Crédito","PABLO MUÑOZ VEGA","Micro. Simple","Crédito SIN GARANTE a una tasa de interés desde el 14% anual."," Microempresa: Ventas < = USD 100 mil","Microempresas con ventas <= USD 20 mil"," Activos Fijos,  Capital de Trabajo",null," Solicitud de crédito,  Copia de cédula o RUC,  Certificado de votación,  Planilla de servicios básicos,  Declaraciones de Impuestos,  Otros,  Facturas"," No especificada",10000,2160,0.19500000000000001," Mensual",null,null,null,null,"Requisito adicionales de acuerdo a la actividad económica. Empleados Formales: Certificado de trabajo o mecanizado del IESS, ultimo rol de pagos o impresión del rol y certificado de la pagina web de la organización.\nEmpleados Informales: Certificado de trabajo en el que se incluya el ingreso percibido, tiempo de trabajo y cargo. Adjuntar copia de cédula de quien emite el certificado.\nPensionistas: Último rol de pagos y en caso de recibir el deposito en la cooperativa copia de libreta o estado de cuenta.\nComerciantes, Servicios o Producción Formales: Copia o impresión de RUC, RIMPE o Patente, y las tres ultimas declaraciones del IVA.\nComerciantes, Servicios o Producción Informales: Copia de los documentos (facturas, guías de movilización, notas de venta entre otros) que acrediten el movimiento y permita determinar el flujo.\nTransportistas: Copia de RUC o RIMPE, certificado de ser socio activo de la operadora de transporte y copia de la matricula del vehículo como propietario.\nComercio Producción y Crianza de Animales: Documento que abalice la existencia y el movimiento del negocio, certificado de Agrocalidad o CONEFA.\nAgricultura: Original o copia de facturas de compra de insumos o certificado comercial de la casa agrícola.\nArriendos: Copia simple de contrato, copia de pago de impuesto predial y fotografías del inmueble arrendado.\nProfesionales de la Construcción: Copia de RUC y tres ultimas declaraciones del IVA o copia de contratos de obra legalizados o copia de facturas de prestación de servicios. La tasa de interés es la efectiva.","PABLO MUÑOZ VEGA","https://www.cpmv.fin.ec/","","","",""]
[null,"1790892670001","Cooperativas de Ahorro y Crédito","PEDRO MONCAYO","Microcrédito Minorista","Microcrédito orientado a impulsar y desarrollar a pequeños y medianos emprendedores, con tasas preferenciales y competitivas en el sector."," Microempresa: Ventas < = USD 100 mil","Solicitantes de crédito que registren ventas anuales iguales o inferiores a USD 5,000.00."," Financiamiento en general",null," Copia de cédula o RUC,  Certificado de votación,  Planilla de servicios básicos,  Justificar ingresos"," No especificada",1000,360,0.23," Mensual",null,null,null,null,"","PEDRO MONCAYO","https://copedromoncayo.fin.ec/web20/","","","",""]
[null,"1790892670001","Cooperativas de Ahorro y Crédito","PEDRO MONCAYO","Microcrédito Acum. Simple","Microcrédito orientado a impulsar y desarrollar a pequeños y medianos emprendedores, con tasas preferenciales y competitivas en el sector."," Microempresa: Ventas < = USD 100 mil","Solicitantes de crédito que registren ventas anuales iguales o inferiores a USD 20,000.00."," Financiamiento en general",null," Copia de cédula o RUC,  Certificado de votación,  Planilla de servicios básicos,  Justificar ingresos"," No especificada",10000,1440,0.23," Mensual",null,null,null,null,"","PEDRO MONCAYO","https://copedromoncayo.fin.ec/web20/","","","",""]
[null,"1790892670001","Cooperativas de Ahorro y Crédito","PEDRO MONCAYO","Microcrédito Acum. Ampliada","Microcrédito orientado a impulsar y desarrollar a pequeños y medianos emprendedores, con tasas preferenciales y competitivas en el sector."," Microempresa: Ventas < = USD 100 mil","Solicitantes de crédito que registren ventas anuales iguales o inferiores a USD 100,000.00."," Financiamiento en general",null," Copia de cédula o RUC,  Certificado de votación,  Planilla de servicios básicos,  Justificar ingresos"," No especificada",25000,2160,0.221," Mensual",null,null,null,null,"","PEDRO MONCAYO","https://copedromoncayo.fin.ec/web20/","","","",""]
[null,"1091720902001","Cooperativas de Ahorro y Crédito","PILAHUIN TIO","Microcrédito","Financiamiento en pequeña escala de capital para impulsar el desarrollo de proyectos productivos (Capital de trabajo, emprendimientos, comercios, artesanos, industrias, agricultura y ganadería, otras actividades) de los pequeños, medianos y grandes empresarios en los distintos sectores de la economía mejorando esencialmente la calidad de vida de las personas."," Microempresa: Ventas < = USD 100 mil,  Pequeñas Empresas: Ventas < = USD 1 millón, 4 Medianas Empresas: Ventas < = USD 5 millones","Persona natural o jurídica"," Capital de Trabajo",null," Copia de cédula o RUC,  Certificado de votación,  Escrituras de propiedades,  Declaraciones de Impuestos,  Planilla de servicios básicos"," Sin garante,  Personal,   Prendaria,  Hipotecaria",300000,2160,0.22," Mensual",null,null,1,null,"El crédito es aprobado en 1 días.","PILAHUIN TIO","https://www.pilahuintio.ec/","","","",""]
[null,"1790866084001","Cooperativas de Ahorro y Crédito","POLICIA NACIONAL","Crédito empresarial 1","Utilízalo para: financiar el crecimiento de tu empresa.","4 Medianas Empresas: Ventas < = USD 5 millones","Debe tener RUC"," Capital de Trabajo",null," Copia de cédula o RUC,  Certificado de votación,  Declaraciones de Impuestos,  Reporte de Buró"," No especificada",7000000,2160,9.4700000000000006E-2," De acuerdo al ciclo del negocio",null,null,null,null,"","POLICIA NACIONAL","https://www.cpn.fin.ec/","","","",""]
[null,"1790866084001","Cooperativas de Ahorro y Crédito","POLICIA NACIONAL","Crédito empresarial 2","Utilízalo para: financiar el crecimiento de tu empresa.","4 Medianas Empresas: Ventas < = USD 5 millones","Debe tener RUC"," Financiamiento en general",null," Copia de cédula o RUC,  Certificado de votación,  Declaraciones de Impuestos,  Reporte de Buró"," No especificada",7000000,2880,9.4700000000000006E-2," De acuerdo al ciclo del negocio",null,null,null,null,"","POLICIA NACIONAL","https://www.cpn.fin.ec/","","","",""]
[null,"1790866084001","Cooperativas de Ahorro y Crédito","POLICIA NACIONAL","Crédito PYME 1","Utilízalo para: Invertir en el futuro de tu negocio y mejorar tus productos y servicios. ."," Pequeñas Empresas: Ventas < = USD 1 millón","Ser persona natural o jurídica del segmento PYMES."," Otro",null," Copia de cédula o RUC,  Certificado de votación,  Declaraciones de Impuestos,  Reporte de Buró"," No especificada",5000000,2880,0.1072," De acuerdo al ciclo del negocio",null,null,null,null,"Destinado para capital de inversión","POLICIA NACIONAL","https://www.cpn.fin.ec/","","","",""]
[null,"1790866084001","Cooperativas de Ahorro y Crédito","POLICIA NACIONAL","Crédito PYME 2","Utilízalo para: Invertir en el futuro de tu negocio y mejorar tus productos y servicios. ."," Pequeñas Empresas: Ventas < = USD 1 millón","Ser persona natural o jurídica del segmento PYMES."," Capital de Trabajo",null," Copia de cédula o RUC,  Certificado de votación,  Declaraciones de Impuestos,  Reporte de Buró"," No especificada",5000000,2160,0.1072," De acuerdo al ciclo del negocio",null,null,null,null,"","POLICIA NACIONAL","https://www.cpn.fin.ec/","","","",""]
[null,"1790866084001","Cooperativas de Ahorro y Crédito","POLICIA NACIONAL","Microcrédito 1","Puedes utilizarlo para mejorar o ampliar tu negocio a través de la adquisición de activos o invertir en capital de trabajo."," Microempresa: Ventas < = USD 100 mil","Socio de la CPN, con minimo un año de experiencia en su actividad económica"," Activos Fijos",null," Copia de cédula o RUC,  Declaraciones de Impuestos,  Escrituras de propiedades,  Justificar ingresos"," No especificada",100000,3600,0.185," Mensual",null,0.05,null,null,"El encaje es de 5 %.","POLICIA NACIONAL","https://www.cpn.fin.ec/","","","",""]
[null,"1790866084001","Cooperativas de Ahorro y Crédito","POLICIA NACIONAL","Microcrédito 2","Puedes utilizarlo para mejorar o ampliar tu negocio a través de la adquisición de activos o invertir en capital de trabajo."," Microempresa: Ventas < = USD 100 mil","Socio de la CPN, con minimo un año de experiencia en su actividad económica"," Capital de Trabajo",null," Copia de cédula o RUC,  Declaraciones de Impuestos,  Escrituras de propiedades,  Justificar ingresos"," No especificada",100000,1800,0.185," Mensual",null,null,null,null,"Requisitos adicionales: Plan de negocio","POLICIA NACIONAL","https://www.cpn.fin.ec/","","","",""]
[null,"1791280156001","Cooperativas de Ahorro y Crédito","PREVISION AHORRO Y DESARROLLO COOPAD LTDA.","Microcrédito","Crédito dirigido a adquisición de bienes, servicios, materia prima, para financiamiento de actividades a pequeña escala de comercialización, producción o servicios."," Microempresa: Ventas < = USD 100 mil","Personas mayores de edad sean naturales o jurídicas cuya fuente de pago sea sus ventas o ingresos por su actividad económica es decir productores, comerciantes, industriales o con empresas de servicios."," Capital de Trabajo",null," Copia de cédula o RUC,  Certificado de votación,  Planilla de servicios básicos,  Declaraciones de Impuestos,  Justificar patrimonio,  Facturas"," No especificada",20000,1800,0.223," Mensual",null,null,null,null,"","PREVISION AHORRO Y DESARROLLO COOPAD LTDA.","https://www.coopad.fin.ec/","","","",""]
[null,"1791269225001","Cooperativas de Ahorro y Crédito","PROCREDIT","Crédito en linea 1","Crédito para persona jurídica o persona natural con un negocio que declara ventas anuales menores a $100.000."," Microempresa: Ventas < = USD 100 mil","El negocio debe tener al menos 1 año con RUC o RISE. Un patrimonio mayor o igual a $80.000, No tener atrasos registrados en la Central de Riesgo en los últimos 12 meses.\nEstar al día en obligaciones tributarias. Tener una ganancia disponible de mínimo $1.000 mensuales."," Activos Fijos",null," Copia de cédula o RUC,  Reporte de Buró,  Declaraciones de Impuestos,  Justificar ingresos,  Justificar patrimonio"," Hipotecaria",50000,1800,0.14000000000000001," Mensual",null,null,null," Todo el proceso es en línea"," Todo el proceso es en línea","PROCREDIT","https://www.bancoprocredit.com.ec/tarjeta-banco-procredit-ecuador/","","","",""]
[null,"1791269225001","Cooperativas de Ahorro y Crédito","PROCREDIT","Crédito en linea 2","Crédito para persona jurídica o persona natural con un negocio que declara ventas anuales menores a $100.000."," Microempresa: Ventas < = USD 100 mil","El negocio debe tener al menos 1 año con RUC o RISE. Un patrimonio mayor o igual a $80.000, No tener atrasos registrados en la Central de Riesgo en los últimos 12 meses.\nEstar al día en obligaciones tributarias. Tener una ganancia disponible de mínimo $1.000 mensuales."," Activos Fijos",null," Copia de cédula o RUC,  Reporte de Buró,  Declaraciones de Impuestos,  Justificar ingresos,  Justificar patrimonio"," Otro",50000,1800,0.16," Mensual",null,null,null," Todo el proceso es en línea","Garantia CFN: La Corporación Financiera Nacional B.P. es una banca de desarrollo de Ecuador, institución financiera pública, cuya misión consiste en impulsar el desarrollo de los sectores productivos y estratégicos, a través de múltiples servicios financieros y no financieros alineados a las políticas públicas.   Todo el proceso es en línea","PROCREDIT","https://www.bancoprocredit.com.ec/tarjeta-banco-procredit-ecuador/","","","",""]
[null,"1791269225001","Cooperativas de Ahorro y Crédito","PROCREDIT","Crédito en linea 3","Crédito para persona jurídica o persona natural con un negocio que declara ventas anuales menores a $100.000."," Microempresa: Ventas < = USD 100 mil","El negocio debe tener al menos 1 año con RUC o RISE. Un patrimonio mayor o igual a $80.000, No tener atrasos registrados en la Central de Riesgo en los últimos 12 meses.\nEstar al día en obligaciones tributarias. Tener una ganancia disponible de mínimo $1.000 mensuales."," Activos Fijos,  Capital de Trabajo",null," Copia de cédula o RUC,  Reporte de Buró,  Declaraciones de Impuestos,  Justificar ingresos,  Justificar patrimonio"," Personal",20000,1800,0.17," Mensual",null,null,null," Todo el proceso es en línea"," Todo el proceso es en línea","PROCREDIT","https://www.bancoprocredit.com.ec/tarjeta-banco-procredit-ecuador/","","","",""]
[null,"1791269225001","Cooperativas de Ahorro y Crédito","PROCREDIT","Crédito en linea 4","Crédito para persona jurídica o persona natural con un negocio que declara ventas anuales menores a $100.000."," Microempresa: Ventas < = USD 100 mil","El negocio debe tener al menos 1 año con RUC o RISE. Un patrimonio mayor o igual a $80.000, No tener atrasos registrados en la Central de Riesgo en los últimos 12 meses.\nEstar al día en obligaciones tributarias. Tener una ganancia disponible de mínimo $1.000 mensuales."," Capital de Trabajo",null," Copia de cédula o RUC,  Reporte de Buró,  Declaraciones de Impuestos,  Justificar ingresos,  Justificar patrimonio"," Hipotecaria",50000,1080,0.14000000000000001," Mensual",null,null,null," Todo el proceso es en línea"," Todo el proceso es en línea","PROCREDIT","https://www.bancoprocredit.com.ec/tarjeta-banco-procredit-ecuador/","","","",""]
[null,"1791269225001","Cooperativas de Ahorro y Crédito","PROCREDIT","Crédito en linea 5","Crédito para persona jurídica o persona natural con un negocio que declara ventas anuales menores a $100.000."," Microempresa: Ventas < = USD 100 mil","El negocio debe tener al menos 1 año con RUC o RISE. Un patrimonio mayor o igual a $80.000, No tener atrasos registrados en la Central de Riesgo en los últimos 12 meses.\nEstar al día en obligaciones tributarias. Tener una ganancia disponible de mínimo $1.000 mensuales."," Capital de Trabajo",null," Copia de cédula o RUC,  Reporte de Buró,  Declaraciones de Impuestos,  Justificar ingresos,  Justificar patrimonio"," Otro",50000,1080,0.16," Mensual",null,null,null," Todo el proceso es en línea","Garantia CFN: La Corporación Financiera Nacional B.P. es una banca de desarrollo de Ecuador, institución financiera pública, cuya misión consiste en impulsar el desarrollo de los sectores productivos y estratégicos, a través de múltiples servicios financieros y no financieros alineados a las políticas públicas. Todo el proceso es en línea","PROCREDIT","https://www.bancoprocredit.com.ec/tarjeta-banco-procredit-ecuador/","","","",""]
[null,"0690045389001","Cooperativas de Ahorro y Crédito","RIOBAMBA","Créditos Comerciales o Productivos","Créditos para actividades productivas cuyo nivel de ventas superen los $ 100.000 anuales; están dirigidos a financiar proyectos de inversión, activos fijo, capital de trabajo, etc., a plazos flexibles de acuerdo al monto solicitado."," Pequeñas Empresas: Ventas < = USD 1 millón, 4 Medianas Empresas: Ventas < = USD 5 millones","Personas naturales o jurídicas, que llevan contabilidad"," Activos Fijos,  Capital de Trabajo",null," Copia de cédula o RUC,  Planilla de servicios básicos,  Declaraciones de Impuestos,  Foto del socio,  Declaraciones de Impuestos"," Hipotecaria,  Quirografaria",150000,3960,0.1," Mensual",null,null,null,null,"Requisitos adicionales: Perfil de inversión (mayor a $50.000). En caso de tener bienes, copia de predio(s), y matrícula del vehículo. Escritura del inmueble, certificado de gravamen del Registro de Propiedad, impuesto al predio, cédula y papeleta de votación de dueño(s) del inmueble (crédito hipotecario).\n","RIOBAMBA","https://www.cooprio.fin.ec/info/index.php/es/","","","",""]
[null,"0690045389001","Cooperativas de Ahorro y Crédito","RIOBAMBA","Microcrédito","Financiamiento a actividades de producción y/o comercialización en pequeña escala. Puede ser destinado para cualquier necesidad del socio."," Microempresa: Ventas < = USD 100 mil","Personas naturales o jurídicas"," Financiamiento en general",null," Copia de cédula o RUC,  Planilla de servicios básicos,  Declaraciones de Impuestos,  Foto del socio,  Escrituras de propiedades,  Certificado de votación"," Personal,  Hipotecaria",200000,4320,0.17," Mensual",null,null,2,null,"Requisitos adicionales: Apertura de cuenta de ahorros. Copia de la escritura del bien a hipotecar y certificado de gravámenes actualizados, copia de la cédula de los dueños del Predio  (en caso de ser hipotecario). El crédito es aprobado en 2 días.","RIOBAMBA","https://www.cooprio.fin.ec/info/index.php/es/","","","",""]
[null,"1890003628001","Cooperativas de Ahorro y Crédito","SAN FRANCISCO","Microcrédito Acum. Ampliada","Financiamiento a actividades de producción y/o comercialización en pequeña escala."," Microempresa: Ventas < = USD 100 mil","Ser mayor de 21 años, RUC activo mínimo 1 año. Microempresas con ventas <= USD 100 mil"," Financiamiento en general",null," Copia de cédula o RUC,  Planilla de servicios básicos,  Justificar ingresos"," No especificada",30000,2880,0.185," Mensual",null,null,null,null,"Tasa de interés efectiva","SAN FRANCISCO","https://www.coac-sanfra.com/","","","",""]
[null,"1890003628001","Cooperativas de Ahorro y Crédito","SAN FRANCISCO","Microcrédito Acum. Simple","Financiamiento a actividades de producción y/o comercialización en pequeña escala."," Microempresa: Ventas < = USD 100 mil","Ser mayor de 21 años, RUC activo mínimo 1 año. Microempresas con ventas <= USD 20 mil"," Financiamiento en general",null," Copia de cédula o RUC,  Planilla de servicios básicos,  Justificar ingresos"," No especificada",30000,2880,0.19," Mensual",null,null,null,null,"Tasa de interés efectiva","SAN FRANCISCO","https://www.coac-sanfra.com/","","","",""]
[null,"1890003628001","Cooperativas de Ahorro y Crédito","SAN FRANCISCO","Microcrédito Minorista","Financiamiento a actividades de producción y/o comercialización en pequeña escala."," Microempresa: Ventas < = USD 100 mil","Ser mayor de 21 años, RUC activo mínimo 1 año. Microempresas con ventas <= USD 5 mil"," Financiamiento en general",null," Copia de cédula o RUC,  Planilla de servicios básicos,  Justificar ingresos"," No especificada",30000,2880,0.24," Mensual",null,null,null,null,"Tasa de interés efectiva","SAN FRANCISCO","https://www.coac-sanfra.com/","","","",""]
[null,"1790045668001","Cooperativas de Ahorro y Crédito","SAN FRANCISCO DE ASIS","Micro BanEcuador Acum. Ampliada","Créditos destinados a microempresarios cuyo nivel de ventas anuales sea inferior a $ 100.000 y deseen acceder a financiamiento para compra de activos fijos y capital de trabajo"," Microempresa: Ventas < = USD 100 mil","Microempresas con ventas <= USD 100 mil"," Activos Fijos",null," Solicitud de crédito,  Copia de cédula o RUC"," No especificada",50000,1800,0.19570000000000001," Mensual",null,null,null,null,"Los requisitos son para precalificar para el crédito, no se especifican otros requisitos","SAN FRANCISCO DE ASIS","https://www.asis.fin.ec/","","","",""]
[null,"1790045668001","Cooperativas de Ahorro y Crédito","SAN FRANCISCO DE ASIS","Micro BanEcuador Acum. Ampliada 1","Créditos destinados a microempresarios cuyo nivel de ventas anuales sea inferior a $ 100.000 y deseen acceder a financiamiento para compra de activos fijos y capital de trabajo"," Microempresa: Ventas < = USD 100 mil","Microempresas con ventas <= USD 100 mil"," Capital de Trabajo",null," Solicitud de crédito,  Copia de cédula o RUC"," No especificada",50000,1080,0.19570000000000001," Mensual",null,null,null,null,"Los requisitos son para precalificar para el crédito, no se especifican otros requisitos","SAN FRANCISCO DE ASIS","https://www.asis.fin.ec/","","","",""]
[null,"1790045668001","Cooperativas de Ahorro y Crédito","SAN FRANCISCO DE ASIS","Micro BanEcuador Acum. Simple","Créditos destinados a microempresarios cuyo nivel de ventas anuales sea inferior a $ 100.000 y deseen acceder a financiamiento para compra de activos fijos y capital de trabajo"," Microempresa: Ventas < = USD 100 mil","Microempresas con ventas <= USD 20 mil"," Activos Fijos",null," Solicitud de crédito,  Copia de cédula o RUC"," No especificada",50000,1800,0.21870000000000001," Mensual",null,null,null,null,"Los requisitos son para precalificar para el crédito, no se especifican otros requisitos","SAN FRANCISCO DE ASIS","https://www.asis.fin.ec/","","","",""]
[null,"1790045668001","Cooperativas de Ahorro y Crédito","SAN FRANCISCO DE ASIS","Micro BanEcuador Acum. Simple 1","Créditos destinados a microempresarios cuyo nivel de ventas anuales sea inferior a $ 100.000 y deseen acceder a financiamiento para compra de activos fijos y capital de trabajo"," Microempresa: Ventas < = USD 100 mil","Microempresas con ventas <= USD 20 mil"," Capital de Trabajo",null," Solicitud de crédito,  Copia de cédula o RUC"," No especificada",50000,1080,0.21870000000000001," Mensual",null,null,null,null,"Los requisitos son para precalificar para el crédito, no se especifican otros requisitos","SAN FRANCISCO DE ASIS","https://www.asis.fin.ec/","","","",""]
[null,"1790045668001","Cooperativas de Ahorro y Crédito","SAN FRANCISCO DE ASIS","Micro BanEcuador Minorista","Créditos destinados a microempresarios cuyo nivel de ventas anuales sea inferior a $ 100.000 y deseen acceder a financiamiento para compra de activos fijos y capital de trabajo"," Microempresa: Ventas < = USD 100 mil","Microempresas con ventas <= USD 5 mil"," Activos Fijos",null," Solicitud de crédito,  Copia de cédula o RUC"," No especificada",50000,1800,0.24479999999999999," Mensual",null,null,null,null,"Los requisitos son para precalificar para el crédito, no se especifican otros requisitos","SAN FRANCISCO DE ASIS","https://www.asis.fin.ec/","","","",""]
[null,"1790045668001","Cooperativas de Ahorro y Crédito","SAN FRANCISCO DE ASIS","Micro BanEcuador Minorista 1","Créditos destinados a microempresarios cuyo nivel de ventas anuales sea inferior a $ 100.000 y deseen acceder a financiamiento para compra de activos fijos y capital de trabajo"," Microempresa: Ventas < = USD 100 mil","Microempresas con ventas <= USD 5 mil"," Capital de Trabajo",null," Solicitud de crédito,  Copia de cédula o RUC"," No especificada",50000,1080,0.24479999999999999," Mensual",null,null,null,null,"Los requisitos son para precalificar para el crédito, no se especifican otros requisitos","SAN FRANCISCO DE ASIS","https://www.asis.fin.ec/","","","",""]
[null,"1790045668001","Cooperativas de Ahorro y Crédito","SAN FRANCISCO DE ASIS","Micro Crédito Inversión Acum. Ampliada","Créditos destinados a microempresarios cuyo nivel de ventas anuales sea inferior a $ 100.000 y deseen acceder a financiamiento para compra de activos fijos y capital de trabajo"," Microempresa: Ventas < = USD 100 mil","Microempresas con ventas <= USD 100 mil"," Activos Fijos,  Capital de Trabajo",null," Solicitud de crédito,  Copia de cédula o RUC"," No especificada",50000,2880,0.18," Mensual",null,null,null,null,"Los requisitos son para precalificar para el crédito, no se especifican otros requisitos","SAN FRANCISCO DE ASIS","https://www.asis.fin.ec/","","","",""]
[null,"1790045668001","Cooperativas de Ahorro y Crédito","SAN FRANCISCO DE ASIS","Micro Crédito Inversión Acum. Simple","Créditos destinados a microempresarios cuyo nivel de ventas anuales sea inferior a $ 100.000 y deseen acceder a financiamiento para compra de activos fijos y capital de trabajo"," Microempresa: Ventas < = USD 100 mil","Microempresas con ventas <= USD 20 mil"," Activos Fijos,  Capital de Trabajo",null," Solicitud de crédito,  Copia de cédula o RUC"," No especificada",50000,2880,0.185," Mensual",null,null,null,null,"Los requisitos son para precalificar para el crédito, no se especifican otros requisitos","SAN FRANCISCO DE ASIS","https://www.asis.fin.ec/","","","",""]
[null,"1790045668001","Cooperativas de Ahorro y Crédito","SAN FRANCISCO DE ASIS","Micro Crédito Inversión Minorista","Créditos destinados a microempresarios cuyo nivel de ventas anuales sea inferior a $ 100.000 y deseen acceder a financiamiento para compra de activos fijos y capital de trabajo"," Microempresa: Ventas < = USD 100 mil","Microempresas con ventas <= USD 5 mil"," Activos Fijos,  Capital de Trabajo",null," Solicitud de crédito,  Copia de cédula o RUC"," No especificada",50000,2880,0.19," Mensual",null,null,null,null,"Los requisitos son para precalificar para el crédito, no se especifican otros requisitos","SAN FRANCISCO DE ASIS","https://www.asis.fin.ec/","","","",""]
[null,"1790045668001","Cooperativas de Ahorro y Crédito","SAN FRANCISCO DE ASIS","Micro Familiar","Créditos destinados a microempresarios cuyo nivel de ventas anuales sea inferior a $ 100.000 y deseen acceder a financiamiento para compra de activos fijos y capital de trabajo"," Microempresa: Ventas < = USD 100 mil","Persona natural o jurídica"," Activos Fijos,  Capital de Trabajo",null," Solicitud de crédito,  Copia de cédula o RUC"," No especificada",50000,2880,0.16059999999999999," Mensual",null,null,null,null,"Los requisitos son para precalificar para el crédito, no se especifican otros requisitos","SAN FRANCISCO DE ASIS","https://www.asis.fin.ec/","","","",""]
[null,"0290003288001","Cooperativas de Ahorro y Crédito","SAN JOSE ","Microcrédito Acum. Ampliada 1","Es el otorgado a una persona natural o jurídica con un nivel de ventas anuales inferior o igual a USD 100,000.00, o a un grupo de prestatarios con garantía solidaria, destinado a financiar actividades de producción y/o comercialización en pequeña escala, cuya fuente principal de pago la constituye el producto de las ventas o ingresos generados por dichas actividades, verificados adecuadamente por las entidades del Sistema Financiero Nacional."," Microempresa: Ventas < = USD 100 mil","Solicitantes de crédito que registren ventas anuales iguales o inferiores a USD 100,000.00."," Activos Fijos,  Capital de Trabajo",null," Foto del socio,  Copia de cédula o RUC,  Certificado de votación,  Planilla de servicios básicos,  Justificar ingresos,  Justificar patrimonio,  Declaraciones de Impuestos,  Otros"," Hipotecaria",100000,7920,0.18," Mensual",null,null,null,null,"Requisitos adicionales: Ser socio activo. Informe del asesor jurídico. Avaluo del bien por el perito avaluador. Instrumentación de la hipoteca a favor de la cooperativa. Certificado de no afectación por obras futuras ","SAN JOSE ","https://coopsanjose.fin.ec/","","","",""]
[null,"0290003288001","Cooperativas de Ahorro y Crédito","SAN JOSE ","Microcrédito Acum. Ampliada 2","Es el otorgado a una persona natural o jurídica con un nivel de ventas anuales inferior o igual a USD 100,000.00, o a un grupo de prestatarios con garantía solidaria, destinado a financiar actividades de producción y/o comercialización en pequeña escala, cuya fuente principal de pago la constituye el producto de las ventas o ingresos generados por dichas actividades, verificados adecuadamente por las entidades del Sistema Financiero Nacional."," Microempresa: Ventas < = USD 100 mil","Solicitantes de crédito que registren ventas anuales iguales o inferiores a USD 100,000.00."," Activos Fijos,  Capital de Trabajo",null," Foto del socio,  Copia de cédula o RUC,  Certificado de votación,  Planilla de servicios básicos,  Justificar ingresos,  Justificar patrimonio,  Otros"," Quirografaria",70000,7560,0.18," Mensual",null,null,null,null,"Requisitos adicionales: Ser socio activo. Copias de cédulas y certificados de votación de garantes","SAN JOSE ","https://coopsanjose.fin.ec/","","","",""]
[null,"0290003288001","Cooperativas de Ahorro y Crédito","SAN JOSE ","Microcrédito Acum. Simple 1","Es el otorgado a una persona natural o jurídica con un nivel de ventas anuales inferior o igual a USD 100,000.00, o a un grupo de prestatarios con garantía solidaria, destinado a financiar actividades de producción y/o comercialización en pequeña escala, cuya fuente principal de pago la constituye el producto de las ventas o ingresos generados por dichas actividades, verificados adecuadamente por las entidades del Sistema Financiero Nacional."," Microempresa: Ventas < = USD 100 mil","Solicitantes de crédito que registren ventas anuales iguales o inferiores a USD 20,000.00."," Activos Fijos,  Capital de Trabajo",null," Foto del socio,  Copia de cédula o RUC,  Certificado de votación,  Planilla de servicios básicos,  Justificar ingresos,  Justificar patrimonio,  Declaraciones de Impuestos,  Otros"," Hipotecaria",100000,7920,0.18," Mensual",null,null,null,null,"Requisitos adicionales: Ser socio activo. Informe del asesor jurídico. Avaluo del bien por el perito avaluador. Instrumentación de la hipoteca a favor de la cooperativa. Certificado de no afectación por obras futuras ","SAN JOSE ","https://coopsanjose.fin.ec/","","","",""]
[null,"0290003288001","Cooperativas de Ahorro y Crédito","SAN JOSE ","Microcrédito Acum. Simple 2","Es el otorgado a una persona natural o jurídica con un nivel de ventas anuales inferior o igual a USD 100,000.00, o a un grupo de prestatarios con garantía solidaria, destinado a financiar actividades de producción y/o comercialización en pequeña escala, cuya fuente principal de pago la constituye el producto de las ventas o ingresos generados por dichas actividades, verificados adecuadamente por las entidades del Sistema Financiero Nacional."," Microempresa: Ventas < = USD 100 mil","Solicitantes de crédito que registren ventas anuales iguales o inferiores a USD 20,000.00."," Activos Fijos,  Capital de Trabajo",null," Foto del socio,  Copia de cédula o RUC,  Certificado de votación,  Planilla de servicios básicos,  Justificar ingresos,  Justificar patrimonio,  Otros"," Quirografaria",70000,7560,0.18," Mensual",null,null,null,null,"Requisitos adicionales: Ser socio activo. Copias de cédulas y certificados de votación de garantes","SAN JOSE ","https://coopsanjose.fin.ec/","","","",""]
[null,"0290003288001","Cooperativas de Ahorro y Crédito","SAN JOSE ","Microcrédito Minorista 1","Es el otorgado a una persona natural o jurídica con un nivel de ventas anuales inferior o igual a USD 100,000.00, o a un grupo de prestatarios con garantía solidaria, destinado a financiar actividades de producción y/o comercialización en pequeña escala, cuya fuente principal de pago la constituye el producto de las ventas o ingresos generados por dichas actividades, verificados adecuadamente por las entidades del Sistema Financiero Nacional."," Microempresa: Ventas < = USD 100 mil","Solicitantes de crédito que registren ventas anuales iguales o inferiores a USD 5,000.00."," Activos Fijos,  Capital de Trabajo",null," Foto del socio,  Copia de cédula o RUC,  Certificado de votación,  Planilla de servicios básicos,  Justificar ingresos,  Justificar patrimonio,  Declaraciones de Impuestos,  Otros"," Hipotecaria",100000,7200,0.18," Mensual",null,null,null,null,"Requisitos adicionales: Ser socio activo. Informe del asesor jurídico. Avaluo del bien por el perito avaluador. Instrumentación de la hipoteca a favor de la cooperativa. Certificado de no afectación por obras futuras ","SAN JOSE ","https://coopsanjose.fin.ec/","","","",""]
[null,"0290003288001","Cooperativas de Ahorro y Crédito","SAN JOSE ","Microcrédito Minorista 2","Es el otorgado a una persona natural o jurídica con un nivel de ventas anuales inferior o igual a USD 100,000.00, o a un grupo de prestatarios con garantía solidaria, destinado a financiar actividades de producción y/o comercialización en pequeña escala, cuya fuente principal de pago la constituye el producto de las ventas o ingresos generados por dichas actividades, verificados adecuadamente por las entidades del Sistema Financiero Nacional."," Microempresa: Ventas < = USD 100 mil","Solicitantes de crédito que registren ventas anuales iguales o inferiores a USD 5,000.00."," Activos Fijos,  Capital de Trabajo",null," Foto del socio,  Copia de cédula o RUC,  Certificado de votación,  Planilla de servicios básicos,  Justificar ingresos,  Justificar patrimonio,  Otros"," Quirografaria",70000,7560,0.18," Mensual",null,null,null,null,"Requisitos adicionales: Ser socio activo. Copias de cédulas y certificados de votación de garantes","SAN JOSE ","https://coopsanjose.fin.ec/","","","",""]
[null,"1791268628001","Cooperativas de Ahorro y Crédito","TEXTIL 14 DE MARZO","Microcrédito Acum. Ampliada","Crédito otorgado a la microempresa, personas con actividades económicas independientes de producción, comercio o servicios con ventas menores a $100.000 dólares al año, siendo su principal fuente de pago las ventas de dichas actividades."," Microempresa: Ventas < = USD 100 mil","Microempresas con ventas <= USD 100 mil"," Capital de Trabajo",null," Solicitud de crédito,  Copia de cédula o RUC,  Certificado de votación,  Planilla de servicios básicos,  Declaraciones de Impuestos,  Facturas,  Justificar patrimonio"," Quirografaria,  Hipotecaria",50000,2520,0.20499999999999999," Mensual",null,null,3,null,"Requisitos adicionales: Copia de matrícula de vehículo. Todas las operaciones se firmara titular y conyugueEl crédito es aprobado en 3 días.","TEXTIL 14 DE MARZO","https://www.14demarzo.fin.ec/","Cristian Larco","",998400468,"clarco@14demarzo.fin.ec"]
[null,"1791268628001","Cooperativas de Ahorro y Crédito","TEXTIL 14 DE MARZO","Microcrédito Minorista 1","Crédito otorgado a la microempresa, personas con actividades económicas independientes de producción, comercio o servicios con ventas menores a $100.000 dólares al año, siendo su principal fuente de pago las ventas de dichas actividades."," Microempresa: Ventas < = USD 100 mil","Persona natural. Edad minima 18 años. Negocio aperturado minimo 1 año, que pueda sustentar ingresos."," Capital de Trabajo",null," Solicitud de crédito,  Copia de cédula o RUC,  Certificado de votación,  Planilla de servicios básicos,  Declaraciones de Impuestos,  Facturas,  Justificar patrimonio"," Quirografaria,  Hipotecaria",1000,365,0.25," Mensual",null,null,3,null,"Requisitos adicionales: Copia de matrícula de vehículo. Todas las operaciones se firmara titular y conyugueEl crédito es aprobado en 3 días.","TEXTIL 14 DE MARZO","https://www.14demarzo.fin.ec/","Cristian Larco","",998400468,"clarco@14demarzo.fin.ec"]
[null,"1791268628001","Cooperativas de Ahorro y Crédito","TEXTIL 14 DE MARZO","Microcrédito Minorista 2","Crédito otorgado a la microempresa, personas con actividades económicas independientes de producción, comercio o servicios con ventas menores a $100.000 dólares al año, siendo su principal fuente de pago las ventas de dichas actividades."," Microempresa: Ventas < = USD 100 mil","Microempresas con ventas <= USD 5 mil"," Capital de Trabajo",null," Solicitud de crédito,  Copia de cédula o RUC,  Certificado de votación,  Planilla de servicios básicos,  Declaraciones de Impuestos,  Facturas,  Justificar patrimonio"," Quirografaria,  Hipotecaria",10000,1200,0.22," Mensual",null,null,3,null,"Requisitos adicionales: Copia de matrícula de vehículo. Todas las operaciones se firmara titular y conyugueEl crédito es aprobado en 3 días.","TEXTIL 14 DE MARZO","https://www.14demarzo.fin.ec/","Cristian Larco","",998400468,"clarco@14demarzo.fin.ec"]
[null,"0490002669001","Cooperativas de Ahorro y Crédito","TULCAN LTDA","Credi Productivo","Microcrédito agrícola ganadero","  Emprendedores: negocios con menos de un año,  Microempresa: Ventas < = USD 100 mil","Pertenecer al sector agropecuario"," Financiamiento en general",null," Solicitud de crédito,  Copia de cédula o RUC,  Certificado de votación,  Planilla de servicios básicos,  Declaraciones de Impuestos,  Justificar ingresos"," Hipotecaria,  Con garante",100000,2520,0.18590000000000001," Mensual",60,null,null,null,"Requisitos adicionales: Copia de matrícula de vehículo y licencia de conducir. En caso de crédito hipotecarios se debe presentar también: Escrituro de propiedades. Certificado del Registro de la Propiedad actualizado. Certificado de no estar afectado por el plan regulador. Promesa notariada de compra – venta del inmueble, en caso de no hipotecar el bien a adquirir. Presupuesto de obra y cronograma de trabajo (en construcción de vivienda)","TULCAN LTDA","https://www.cooptulcan.fin.ec/","","","",""]
[null,"0490002669001","Cooperativas de Ahorro y Crédito","TULCAN LTDA","Ecocredit","Crédito está orientado al sector Agropecuario con soluciones climáticas como riego por goteo, invernaderos, huertos familiares etc.","  Emprendedores: negocios con menos de un año,  Microempresa: Ventas < = USD 100 mil","Pertenecer al sector agropecuario"," Financiamiento en general",null," Solicitud de crédito,  Copia de cédula o RUC,  Certificado de votación,  Planilla de servicios básicos,  Declaraciones de Impuestos,  Justificar ingresos"," Hipotecaria,  Personal",50000,2520,0.17499999999999999," Mensual",60,null,null,null,"Requisitos adicionales: Copia de matrícula de vehículo y licencia de conducir. Impresión de la evaluación de adaptación a cambio climático YAPU. En caso de crédito hipotecarios se debe presentar también: Escrituro de propiedades. Certificado del Registro de la Propiedad actualizado. Certificado de no estar afectado por el plan regulador. Promesa notariada de compra – venta del inmueble, en caso de no hipotecar el bien a adquirir. Presupuesto de obra y cronograma de trabajo (en construcción de vivienda)","TULCAN LTDA","https://www.cooptulcan.fin.ec/","","","",""]
[null,"0490002669001","Cooperativas de Ahorro y Crédito","TULCAN LTDA","Mi negocio","Microcrédito para capital de trabajo y activos fijos.","  Emprendedores: negocios con menos de un año,  Microempresa: Ventas < = USD 100 mil","Personas naturales o jurídicas"," Activos Fijos,  Capital de Trabajo",null," Solicitud de crédito,  Copia de cédula o RUC,  Certificado de votación,  Planilla de servicios básicos,  Declaraciones de Impuestos,  Justificar ingresos"," No especificada",30000,2160,0.17499999999999999," Mensual",null,null,null,null,"Requisitos adicionales: Copia de matrícula de vehículo y licencia de conducir. En caso de crédito hipotecarios se debe presentar también: Escrituro de propiedades. Certificado del Registro de la Propiedad actualizado. Certificado de no estar afectado por el plan regulador. Promesa notariada de compra – venta del inmueble, en caso de no hipotecar el bien a adquirir. Presupuesto de obra y cronograma de trabajo (en construcción de vivienda)","TULCAN LTDA","https://www.cooptulcan.fin.ec/","","","",""]
[null,"0490002669001","Cooperativas de Ahorro y Crédito","TULCAN LTDA","Mi taxi","Microcrédito para la compra de taxi.","  Emprendedores: negocios con menos de un año,  Microempresa: Ventas < = USD 100 mil","Personas naturales o jurídicas"," Activos Fijos",null," Solicitud de crédito,  Copia de cédula o RUC,  Certificado de votación,  Justificar ingresos,  Declaraciones de Impuestos,  Planilla de servicios básicos","  Prendaria,  Hipotecaria",30000,2160,0.17," Mensual",60,null,null,null,"Requisito adicional: Proforma del vehículo a comprar y licencia de conducir. ","TULCAN LTDA","https://www.cooptulcan.fin.ec/","","","",""]
[null,"0490002669001","Cooperativas de Ahorro y Crédito","TULCAN LTDA","Mi vehículo trabajador","Microcrédito para vehículos de trabajo nuevos"," Microempresa: Ventas < = USD 100 mil","Personas naturales o jurídicas"," Activos Fijos",null," Solicitud de crédito,  Copia de cédula o RUC,  Certificado de votación,  Justificar ingresos,  Declaraciones de Impuestos,  Planilla de servicios básicos","  Prendaria,  Hipotecaria",60000,2160,0.17499999999999999," Mensual",60,null,null,null,"Requisito adicional: Proforma del vehículo a comprar y licencia de conducir. ","TULCAN LTDA","https://www.cooptulcan.fin.ec/","","","",""]
[null,"0490002669001","Cooperativas de Ahorro y Crédito","TULCAN LTDA","Micro Consumo","Créditos dirigidos a microempresarios directos y/o bajo convenio."," Microempresa: Ventas < = USD 100 mil","Grupos organizados y asociaciones."," Activos Fijos",null," Solicitud de crédito,  Copia de cédula o RUC,  Certificado de votación,  Planilla de servicios básicos,  Declaraciones de Impuestos,  Justificar ingresos"," No especificada",60000,2520,0.15," Mensual",null,null,null,null,"Requisitos adicionales: Copia de matrícula de vehículo y licencia de conducir. En caso de crédito hipotecarios se debe presentar también: Escrituro de propiedades. Certificado del Registro de la Propiedad actualizado. Certificado de no estar afectado por el plan regulador. Promesa notariada de compra – venta del inmueble, en caso de no hipotecar el bien a adquirir. Presupuesto de obra y cronograma de trabajo (en construcción de vivienda)","TULCAN LTDA","https://www.cooptulcan.fin.ec/","","","",""]
[null,"0490002669001","Cooperativas de Ahorro y Crédito","TULCAN LTDA","Micro Crece 1","Actividad productiva en pequeña escala."," Microempresa: Ventas < = USD 100 mil","Personas naturales o jurídicas"," Financiamiento en general",null," Solicitud de crédito,  Copia de cédula o RUC,  Certificado de votación,  Planilla de servicios básicos,  Declaraciones de Impuestos,  Justificar ingresos"," Personal",30000,2160,0.19900000000000001," Mensual",60,null,null,null,"Requisitos adicionales: Copia de matrícula de vehículo y licencia de conducir. En caso de crédito hipotecarios se debe presentar también: Escrituro de propiedades. Certificado del Registro de la Propiedad actualizado. Certificado de no estar afectado por el plan regulador. Promesa notariada de compra – venta del inmueble, en caso de no hipotecar el bien a adquirir. Presupuesto de obra y cronograma de trabajo (en construcción de vivienda). Otros destinos del crédito: Materia Prima. Productos para Comercialización. Insumos. Mantenimiento de Equipo y Máquinas. Adecuaciones del Negocio. Maquinaria y Equipos.","TULCAN LTDA","https://www.cooptulcan.fin.ec/","","","",""]
[null,"0490002669001","Cooperativas de Ahorro y Crédito","TULCAN LTDA","Micro Crece 2","Actividad productiva en pequeña escala de personas naturales o jurídicas."," Microempresa: Ventas < = USD 100 mil","Personas naturales o jurídicas"," Financiamiento en general",null," Solicitud de crédito,  Copia de cédula o RUC,  Certificado de votación,  Planilla de servicios básicos,  Declaraciones de Impuestos,  Justificar ingresos"," Hipotecaria",55000,2160,0.19900000000000001," Mensual",60,null,null,null,"Requisitos adicionales: Copia de matrícula de vehículo y licencia de conducir. En caso de crédito hipotecarios se debe presentar también: Escrituro de propiedades. Certificado del Registro de la Propiedad actualizado. Certificado de no estar afectado por el plan regulador. Promesa notariada de compra – venta del inmueble, en caso de no hipotecar el bien a adquirir. Presupuesto de obra y cronograma de trabajo (en construcción de vivienda). Otros destinos del crédito: Materia Prima. Productos para Comercialización. Insumos. Mantenimiento de Equipo y Máquinas. Adecuaciones del Negocio. Maquinaria y Equipos.","TULCAN LTDA","https://www.cooptulcan.fin.ec/","","","",""]
[null,"0490002669001","Cooperativas de Ahorro y Crédito","TULCAN LTDA","Micro Productivo","Destinado a la reactivación del negocio","  Emprendedores: negocios con menos de un año,  Microempresa: Ventas < = USD 100 mil","Personas naturales o jurídicas"," Activos Fijos,  Capital de Trabajo",null," Solicitud de crédito,  Copia de cédula o RUC,  Certificado de votación,  Justificar ingresos,  Planilla de servicios básicos,  Declaraciones de Impuestos,  Escrituras de propiedades"," Hipotecaria,  Personal,  Sin garante",20000,1800,0.19900000000000001," Mensual",90,null,null,null,"Requisitos adicionales: Copia de matrícula de vehículo y licencia de conducir. En caso de crédito hipotecarios se debe presentar también: Escrituro de propiedades. Certificado del Registro de la Propiedad actualizado. Certificado de no estar afectado por el plan regulador. Promesa notariada de compra – venta del inmueble, en caso de no hipotecar el bien a adquirir. Presupuesto de obra y cronograma de trabajo (en construcción de vivienda)","TULCAN LTDA","https://www.cooptulcan.fin.ec/","","","",""]
[null,"0591711164001","Cooperativas de Ahorro y Crédito","VIRGEN DEL CISNE","Micro Emprendedora","Crédito para la mujer emprendedora que desea activar la economía del país con sus actividades productivas o de comercio.","  Emprendedores: negocios con menos de un año,  Microempresa: Ventas < = USD 100 mil","Tener experiencia del negocio o trabajo por lo menos 6 meses"," Financiamiento en general",null," Solicitud de crédito,  Copia de cédula o RUC,  Certificado de votación,  Planilla de servicios básicos,  Justificar ingresos,  Foto del socio"," No especificada",3000,720,0.1399," Mensual,  Bimensual,  Trimestral,  Semestral",null,null,null,null,"Requisitos adicionales:  Proforma o justificativo del destino de crédito (firmada por el socio)","VIRGEN DEL CISNE","https://www.virgendelcisne.fin.ec/","Byron Cofre","Jefe Comercial","(03) 2252 536 ext 23",""]
[null,"0591711164001","Cooperativas de Ahorro y Crédito","VIRGEN DEL CISNE","Microcrédito Agricola y ganadero 1","Crédito destinado paro actividades agropecuarias, adquisición de activos fijos y  capital de trabajo.","  Emprendedores: negocios con menos de un año,  Microempresa: Ventas < = USD 100 mil","Pertenecer al sector agrícola y ganadero"," Activos Fijos,  Capital de Trabajo",null," Solicitud de crédito,  Copia de cédula o RUC,  Certificado de votación,  Planilla de servicios básicos,  Foto del socio,  Escrituras de propiedades,  Declaraciones de Impuestos"," Sin garante",10000,1440,0.16500000000000001," Mensual,  Bimensual,  Trimestral,  Semestral",null,null,null,null,"Requisitos adicionales: Justificativo de la adquisición que va a realizar(proforma o fotografías). Formulario de inteligencia agrícola de ser el caso. Datos para la transferencia interbancaria","VIRGEN DEL CISNE","https://www.virgendelcisne.fin.ec/","Byron Cofre","Jefe Comercial","(03) 2252 536 ext 23",""]
[null,"0591711164001","Cooperativas de Ahorro y Crédito","VIRGEN DEL CISNE","Microcrédito Agricola y ganadero 2","Crédito destinado paro actividades agropecuarias, adquisición de activos fijos y  capital de trabajo.","  Emprendedores: negocios con menos de un año,  Microempresa: Ventas < = USD 100 mil","Pertenecer al sector agrícola y ganadero"," Activos Fijos,  Capital de Trabajo",null," Solicitud de crédito,  Copia de cédula o RUC,  Certificado de votación,  Planilla de servicios básicos,  Foto del socio,  Escrituras de propiedades,  Declaraciones de Impuestos"," Con garante",20000,1440,0.16500000000000001," Mensual,  Bimensual,  Trimestral,  Semestral",null,null,null,null,"Requisitos adicionales: Justificativo de la adquisición que va a realizar(proforma o fotografías). Formulario de inteligencia agrícola de ser el caso. Datos para la transferencia interbancaria","VIRGEN DEL CISNE","https://www.virgendelcisne.fin.ec/","Byron Cofre","Jefe Comercial","(03) 2252 536 ext 23",""]
[null,"0591711164001","Cooperativas de Ahorro y Crédito","VIRGEN DEL CISNE","Microcrédito Virgen del Cisne Acum. Ampliada 1","Crédito destinado para cubrir todos los requerimientos financieros de actividades productivas, comercialización o servicio.","  Emprendedores: negocios con menos de un año,  Microempresa: Ventas < = USD 100 mil","Microempresas con ventas <= USD 100 mil"," Financiamiento en general",null," Solicitud de crédito,  Copia de cédula o RUC,  Certificado de votación,  Justificar ingresos,  Escrituras de propiedades,  Declaraciones de Impuestos,  Foto del socio"," Sin garante",15000,3000,0.17," Mensual,  Bimensual,  Trimestral,  Semestral",null,null,null,null,"Requisitos adicionales:  Proforma o justificativo del destino de crédito (firmada por el socio)","VIRGEN DEL CISNE","https://www.virgendelcisne.fin.ec/","Byron Cofre","Jefe Comercial","(03) 2252 536 ext 23",""]
[null,"0591711164001","Cooperativas de Ahorro y Crédito","VIRGEN DEL CISNE","Microcrédito Virgen del Cisne Acum. Ampliada 2","Crédito destinado para cubrir todos los requerimientos financieros de actividades productivas, comercialización o servicio.","  Emprendedores: negocios con menos de un año,  Microempresa: Ventas < = USD 100 mil","Microempresas con ventas <= USD 100 mil"," Financiamiento en general",null," Solicitud de crédito,  Copia de cédula o RUC,  Certificado de votación,  Justificar ingresos,  Escrituras de propiedades,  Declaraciones de Impuestos,  Foto del socio"," Con garante",50000,3000,0.17," Mensual,  Bimensual,  Trimestral,  Semestral",null,null,null,null,"Requisitos adicionales:  Proforma o justificativo del destino de crédito (firmada por el socio). Se requiere 1 garantes para montos de hasta $30 000 y 2 garantes para montos de hasta $50 000","VIRGEN DEL CISNE","https://www.virgendelcisne.fin.ec/","Byron Cofre","Jefe Comercial","(03) 2252 536 ext 23",""]
[null,"0591711164001","Cooperativas de Ahorro y Crédito","VIRGEN DEL CISNE","Microcrédito Virgen del Cisne Acum. Ampliada 3","Crédito destinado para cubrir todos los requerimientos financieros de actividades productivas, comercialización o servicio.","  Emprendedores: negocios con menos de un año,  Microempresa: Ventas < = USD 100 mil","Microempresas con ventas <= USD 100 mil"," Financiamiento en general",null," Solicitud de crédito,  Copia de cédula o RUC,  Certificado de votación,  Justificar ingresos,  Escrituras de propiedades,  Declaraciones de Impuestos,  Foto del socio"," Hipotecaria",60000,3000,0.17," Mensual,  Bimensual,  Trimestral,  Semestral",null,null,null,null,"Requisitos adicionales:  Proforma o justificativo del destino de crédito (firmada por el socio).","VIRGEN DEL CISNE","https://www.virgendelcisne.fin.ec/","Byron Cofre","Jefe Comercial","(03) 2252 536 ext 23",""]
[null,"0591711164001","Cooperativas de Ahorro y Crédito","VIRGEN DEL CISNE","Microcrédito Virgen del Cisne Acum. Simple 1","Crédito destinado para cubrir todos los requerimientos financieros de actividades productivas, comercialización o servicio.","  Emprendedores: negocios con menos de un año,  Microempresa: Ventas < = USD 100 mil","Microempresas con ventas <= USD 20 mil"," Financiamiento en general",null," Solicitud de crédito,  Copia de cédula o RUC,  Certificado de votación,  Justificar ingresos,  Escrituras de propiedades,  Declaraciones de Impuestos,  Foto del socio"," Sin garante",15000,3000,0.18," Mensual,  Bimensual,  Trimestral,  Semestral",null,null,null,null,"Requisitos adicionales:  Proforma o justificativo del destino de crédito (firmada por el socio)","VIRGEN DEL CISNE","https://www.virgendelcisne.fin.ec/","Byron Cofre","Jefe Comercial","(03) 2252 536 ext 23",""]
[null,"0591711164001","Cooperativas de Ahorro y Crédito","VIRGEN DEL CISNE","Microcrédito Virgen del Cisne Acum. Simple 2","Crédito destinado para cubrir todos los requerimientos financieros de actividades productivas, comercialización o servicio.","  Emprendedores: negocios con menos de un año,  Microempresa: Ventas < = USD 100 mil","Microempresas con ventas <= USD 20 mil"," Financiamiento en general",null," Solicitud de crédito,  Copia de cédula o RUC,  Certificado de votación,  Justificar ingresos,  Escrituras de propiedades,  Declaraciones de Impuestos,  Foto del socio"," Con garante",50000,3000,0.18," Mensual,  Bimensual,  Trimestral,  Semestral",null,null,null,null,"Requisitos adicionales:  Proforma o justificativo del destino de crédito (firmada por el socio). Se requiere 1 garantes para montos de hasta $30 000 y 2 garantes para montos de hasta $50 000","VIRGEN DEL CISNE","https://www.virgendelcisne.fin.ec/","Byron Cofre","Jefe Comercial","(03) 2252 536 ext 23",""]
[null,"0591711164001","Cooperativas de Ahorro y Crédito","VIRGEN DEL CISNE","Microcrédito Virgen del Cisne Acum. Simple 3","Crédito destinado para cubrir todos los requerimientos financieros de actividades productivas, comercialización o servicio.","  Emprendedores: negocios con menos de un año,  Microempresa: Ventas < = USD 100 mil","Microempresas con ventas <= USD 20 mil"," Financiamiento en general",null," Solicitud de crédito,  Copia de cédula o RUC,  Certificado de votación,  Justificar ingresos,  Escrituras de propiedades,  Declaraciones de Impuestos,  Foto del socio"," Hipotecaria",60000,3000,0.18," Mensual,  Bimensual,  Trimestral,  Semestral",null,null,null,null,"Requisitos adicionales:  Proforma o justificativo del destino de crédito (firmada por el socio)","VIRGEN DEL CISNE","https://www.virgendelcisne.fin.ec/","Byron Cofre","Jefe Comercial","(03) 2252 536 ext 23",""]
[null,"0591711164001","Cooperativas de Ahorro y Crédito","VIRGEN DEL CISNE","Microcrédito Virgen del Cisne Minorista 1","Crédito destinado para cubrir todos los requerimientos financieros de actividades productivas, comercialización o servicio.","  Emprendedores: negocios con menos de un año,  Microempresa: Ventas < = USD 100 mil","Microempresas con ventas <= USD 5 mil"," Financiamiento en general",null," Solicitud de crédito,  Copia de cédula o RUC,  Certificado de votación,  Justificar ingresos,  Escrituras de propiedades,  Declaraciones de Impuestos,  Foto del socio"," Sin garante",15000,3000,0.19," Mensual,  Bimensual,  Trimestral,  Semestral",null,null,null,null,"Requisitos adicionales:  Proforma o justificativo del destino de crédito (firmada por el socio)","VIRGEN DEL CISNE","https://www.virgendelcisne.fin.ec/","Byron Cofre","Jefe Comercial","(03) 2252 536 ext 23",""]
[null,"0591711164001","Cooperativas de Ahorro y Crédito","VIRGEN DEL CISNE","Microcrédito Virgen del Cisne Minorista 2","Crédito destinado para cubrir todos los requerimientos financieros de actividades productivas, comercialización o servicio.","  Emprendedores: negocios con menos de un año,  Microempresa: Ventas < = USD 100 mil","Microempresas con ventas <= USD 5 mil"," Financiamiento en general",null," Solicitud de crédito,  Copia de cédula o RUC,  Certificado de votación,  Justificar ingresos,  Escrituras de propiedades,  Declaraciones de Impuestos,  Foto del socio"," Con garante",50000,3000,0.19," Mensual,  Bimensual,  Trimestral,  Semestral",null,null,null,null,"Requisitos adicionales:  Proforma o justificativo del destino de crédito (firmada por el socio). Se requiere 1 garantes para montos de hasta $30 000 y 2 garantes para montos de hasta $50 000","VIRGEN DEL CISNE","https://www.virgendelcisne.fin.ec/","Byron Cofre","Jefe Comercial","(03) 2252 536 ext 23",""]
[null,"0591711164001","Cooperativas de Ahorro y Crédito","VIRGEN DEL CISNE","Microcrédito Virgen del Cisne Minorista 3","Crédito destinado para cubrir todos los requerimientos financieros de actividades productivas, comercialización o servicio.","  Emprendedores: negocios con menos de un año,  Microempresa: Ventas < = USD 100 mil","Microempresas con ventas <= USD 5 mil"," Financiamiento en general",null," Solicitud de crédito,  Copia de cédula o RUC,  Certificado de votación,  Justificar ingresos,  Escrituras de propiedades,  Declaraciones de Impuestos,  Foto del socio"," Hipotecaria",60000,3000,0.19," Mensual,  Bimensual,  Trimestral,  Semestral",null,null,null,null,"Requisitos adicionales:  Proforma o justificativo del destino de crédito (firmada por el socio)","VIRGEN DEL CISNE","https://www.virgendelcisne.fin.ec/","Byron Cofre","Jefe Comercial","(03) 2252 536 ext 23",""]
[null,"0591711164001","Cooperativas de Ahorro y Crédito","VIRGEN DEL CISNE","Microcrédito Productivo","Crédito destinado poro la adquisición de activos fijos o capital de trabajo que fomente lo producción agropecuario y artesanal. ","  Emprendedores: negocios con menos de un año,  Microempresa: Ventas < = USD 100 mil","Persona natural o jurídica"," Activos Fijos,  Capital de Trabajo",null," Solicitud de crédito,  Copia de cédula o RUC,  Certificado de votación,  Justificar ingresos,  Escrituras de propiedades,  Declaraciones de Impuestos"," No especificada",10000,1260,0.14000000000000001," Mensual,  Bimensual,  Trimestral,  Semestral",null,null,null,null,"Requisitos adicionales:  Proforma o justificativo del destino de crédito (firmada por el socio)","VIRGEN DEL CISNE","https://www.virgendelcisne.fin.ec/","Byron Cofre","Jefe Comercial","(03) 2252 536 ext 23",""]

{"sheet":"Matriz_Fondos de Capital","index":13,"n_rows":11,"n_cols":18,"rows_kept":11,"cut":false,"hidden":true,"merged":[[0,1,0,17]]}
[null,"Matriz de Fondos de Capital"]
[]
[null,"Fondos de Capital","Tipo de Fondo","Descripción del Fondo","Nombre Fondo / Programa","Sectores Priorizados","Fase de Inversión","Enfoque de impacto de los proyectos a financiar","Ticket mínimo (USD)","Ticket máximo (USD)","Requisitos","Link para aplicación y bases para postulación","Nombre persona de contacto","Cargo persona de contacto","Teléfonos de contacto","Correo electrónico","WEB","Dirección"]
[null,"STARTUPS VENTURES - \"STARTUPS\"","Inversionistas Ángeles","El fideicomiso \"STARTUPS\" es un fondo de inversión con un capital de 300.000 USD, que busca impulsar el desarrollo y crecimiento de emprendimientos nacientes en el Ecuador.","FONDO \"STARTUPS\"","Emprendimientos que hayan generado sus primeras ventas y estén siendo aceptados por el mercado.","Etapa temprana, Primeras ventas","Emprendimientos Innovadores",null,75000,"1. Generar ventas de por lo menos $30.000 anual.\n2. Producto/servicio ya disponible en el mercado. (No en etapa de prototipo).\n3. Haber superado la etapa de búsqueda/necesidad de capital semilla.\n4. Aportar directamente a uno o varios Objetivos de Desarrollo Sostenible.\n5. Valor agregado definido frente a su competencia.\n6. Debe ser escalable.\n7. Debe estar en la capacidad de triplicar en 5 años el valor actual de su empresa.\n8. Debe contar con una valoración actual de su negocio para presentar sus propuestas al club de inversionistas","https://startupsventures.com/aplicacion/","Kevin Eduardo Reinoso","Coordinador y analista de inversiones","(593) 99 648529 / 0996486529","kreinoso@startupsventures.com","https://startupsventures.com/","Av. 6 de Diciembre N31-1104 y Whymper. Edificio Torres Tenerife. Primer piso"]
[null,"STARTUPS VENTURES - \"GROWTH VENTURES\"","Inversionistas Ángeles, Capital de Riesgo","El fideicomiso \"GROWTH VENTURES\" es un fondo de inversión con un capital de 1 000.000 USD, busca impulsar el crecimiento e internacionalización de PYMES en el Ecuador.","FONDO \"GROWTH VENTURES\"","Pymes que hayan logrado ventas por más de 1 millón de USD y tengan productos validados a nivel nacional y definidos los mercados internacionales a los que se quieren llegar.","Empresas en marcha, Crecimiento y escalabilidad","Pymes Innovadoras",null,250000,"1. Facturar más de 1 millón de USD en ventas anual.\n2. Tener el producto/servicio validado a nivel nacional.\n3. Tener definido su comprador, canales de distribución y oportunidades de crecimiento en su mercado actual.\n4. Tener claro los mercados internacionales en donde va a empezar/reforzar su comercialización.\n5. Aportar directamente a uno o varios Objetivos de Desarrollo Sostenible.\n6. Debe tener valor agregado definido frente a su competencia.\n7. Debe poder ser escalable.\n8. Debe estar en la capacidad de triplicar en 5 años el valor actual de su empresa.\n9. Deben contar con una valoración actual de su negocio para presentar sus propuestas al club de inversionistas.","https://startupsventures.com/aplicacion-growth/","Kevin Eduardo Reinoso","Coordinador y analista de inversiones","(593) 99 648529 / 0996486529","kreinoso@startupsventures.com","https://startupsventures.com/","Av. 6 de Diciembre N31-1104 y Whymper. Edificio Torres Tenerife. Primer piso"]
[null,"CREAS ECUADOR","Capital de Riesgo","Primer fondo de inversión de impacto ecuatoriano. Busca invertir en empresas que tengan un impacto social o ambiental positivo en el país.\n\nEl Fondo de Inversión de Impacto CREAS ECUADOR nace con un objetivo: apoyar el cumplimiento de la agenda de la ONU 2030 sobre el Desarrollo Sostenible, con sus 17 Objetivos de Desarrollo Sostenible para dejar un mejor planeta a generaciones futuras. ",null,"Emprendimientos o empresas pequeñas (con ventas de hasta USD 1 millón) que tengan por enfoque el resolver un problema ambiental o social.\n\nEl monto de inversión deberá representar hasta un máximo del 49% del valor total del capital accionario de la Empresa.","Empresas en marcha, Crecimiento y escalabilidad","Impacto ambiental, Impacto social",50000,200000,"1. La Empresa deberá ser una Persona Jurídica, catalogada como Sociedad Anónima S.A. o Sociedad por Acciones Simplificada S.A.S.\n2. En caso de que la inversión sea en una compañía extranjera, esta deberá estar constituida al amparo de la ley vigente en su país de procedencia.\n3. Deberá estar dispuesta a abrir capital accionario para inversión de capital.\n4. Deberá poder demostrar un impacto positivo ambiental y/o social escalable en el país, y comprometerse a medir de manera trimestral dicho impacto.\n5. Deberá tener y proveer información financiera confiable y que pueda ser respaldada y verificada por CREAS ECUADOR.\n6. Deberá estar al día en sus obligaciones: Tributarias, Seguridad Social, laboral, ambiental (si aplica), etc. \n7. En caso de las compañías extranjeras deberán cumplir con las obligaciones según la legislación vigente en su país de constitución.","https://creasecuador.com/files/INFORMACION_SOLICITANTE_FIDEICOMISO_CREAS_ECUADOR.xlsx","Corinne Lebrun","General Partner ","(593) 99 488 6178","corinne.lebrun@creasecuador.com","https://creasecuador.com/",0]
[null,"HUMBOLT FAMILY OFFICE","Capital de Riesgo","Ofrecen asesoría y estructuración de inversiones y son un gestor de fondos de Venture Capital",null,"Retail, fintech y tecnologia ","Empresas en marcha, Crecimiento y escalabilidad","Empresas innovadoras",250000,2000000,"Las empresas deben evidenciar cierto nivel de madurez, con un nivel ventas consolidado y que tenga potencial de crecimiento","tierri@hfo.ec","Thierry Benoit",0,"(593) 99 252 5955","thierry@hfo.ec",0,0]
[null,"BUENTRIP","Capital de Riesgo","BuenTrip Ventures es una firma de capital de riesgo que aprovecha su posición como uno de los principales constructores de ecosistemas en América Latina para identificar, asesorar e invertir en nuevas empresas basadas en software que están transformando la economía de la región.","BUENTRIP VENTURES","FinTech, Logística, infraestructura de comercio electrónico, Plataformas, HealthTech y EdTech","Etapa temprana, Primeras ventas, Empresas en marcha, Crecimiento y escalabilidad","Innovación tecnológica",50000,500000,"1. Los emprendedores cuentan con una solución innovadora que es difícil de replicar.\n\n2. Tienen un equipo de fundadores dedicado a tiempo completo y que demuestra fortaleza en diferentes habilidades de negocio (tecnología, gestión comercial, expertise en el segmento de mercado).\n\n3. Han comprobado que el mercado para su solución les permitirá crecer rápidamente y que existe demanda para su solución.\n\n4. Los founders se comprometen con BuenTrip Ventures a ceder 5% de participación accionaria de la startup. Este porcentaje deberá corresponder a una empresa constituida en EEUU.","https://www.buentrip.vc/","Fernando Rivera","Managing Partner","(593) 99 141 9044","info@buentriphub.com","https://www.buentriphub.com/"]
[null,"IMPAQTO","Inversionistas Ángeles, Capital de Riesgo","IMPAQTO Capital  es un fondo que utiliza capital flexible para impulsar el crecimiento de startups de impacto de etapa temprana cuyas necesidades de financiamiento no están siendo servidas por el mercado, y así abordar la brecha en el acceso a capital del “missing middle”.","IMPAQTO Capital","Agroindustria y Alimentos, Salud y Bienestar, Educación, Empleo Formal y Desarrollo Económico y Cleantech. \n\nAdemás, el fondo aplica la perspectiva de género para promover la equidad en todos los pasos de la inversión.","Etapa temprana, Primeras ventas, Empresas en marcha, Crecimiento y escalabilidad","Impacto social, Impacto ambiental",50000,200000,"Demostrar que son empresas en edad temprana que generan impacto.","https://www.impaqtocapital.com/","Daniela Peralvo","Directora","(593) 94 306216 ","danielaperalvo@gmail.com\njustin@impaqto.net","https://www.impaqtocapital.com/","Avenida República de El Salvador 406 y Moscú"]
[null,"CONQUITO","Capital Semilla","FONQUITO es el Fondo  creado con el objetivo de inyectar recursos en el aparato productivo, mediante la adjudicación de capital semilla a emprendimientos con potencial de crecimiento.\n\nEl Programa FONQUITO realiza varias convocatorias en el transcurso del año.","FONQUITO","Innovación gastronómica: alimentos frescos, procesados y bebidas, Confecciones, textiles y calzado, Salud, bienestar y belleza, Agricultura y ambiente, Cultura, deportes y turismo, Educación, Finanzas, Tecnología, Economía Circular.\n\nLa priorización se define en función de cada convocatoria.","Prototipo, Puesta en marcha","Impacto social, Impacto ambiental, generación de empleo",3000,25000,"1. Propuestas de emprendimiento productivo con enfoque social y/o ambiental que resuelvan una problemática de mercado y que permitan a su vez generar un impacto social, cultural y/o ambiental identificada en la comunidad donde se desarrolla la organización, asociación o el colectivo.\n\n2. Los emprendedores deben tene RUC o RIMPE, los emprendedores deben estar docimiliados en el pais, y constar en el Registro Nacional de Emprendedores. Los proyectos y/o emprendimientos deberán ser ejecutados en el DMQ, sin que pueda limitar su alcance a nivel nacional o internacional.","https://fonquito.ec/","Verónica Juna ","Responsable de Emprendimiento","(593) 2 6055550","vjuna@conquito.org.ec","https://conquito.org.ec/","Maldonado Oe1-172 y Jaime del Castillo, Quito - Ecuador"]
[null,"SENESCYT","Capital Semilla, Capital de Riesgo","El Programa BANCO DE IDEAS apoya a emprendimientos y empresas innovadoras, mediante convocatorias que pretenden identificar los mejores proyectos que acceden a financiamiento de capital semilla o capital de riesgo.","Banco de Ideas","Depende de las convocatorias pero deben ser proyectos con un potencial innovador.","Idea, Prototipo, Puesta en marcha","Impacto social, Impacto ambiental",null,50000,"1. Registrar el proyecto en el banco de ideas.\n2. Aplicar a las convocatorias\n3. Si el proyecto tiene un factor innovador y una calificación favorable, recibirá capital y asesoramiento presencial.","http://www.bancodeideas.gob.ec/site/index","Gabriel Bermeo",0,"(593) 992680759 / 2 250 5660","gbermeo@senescyt.gob.ec","http://www.bancodeideas.gob.ec/","Whymper E7-37 y Alpallana Quito - Ecuador"]

{"sheet":"Matriz_Incubadoras","index":14,"n_rows":17,"n_cols":15,"rows_kept":17,"cut":false,"hidden":true,"merged":[[0,1,0,14]]}
[null,"Matriz de Incubadoras"]
[]
[null,"Razón Social ","Tipo de servicio","Descripción del centro de incubación","Programa Incubación / Aceleración","Sectores Priorizados","Perfil o requisitos  de los proyectos","Descripción de los servicios","Link para aplicación y bases para postulación","Nombre persona de contacto","Cargo persona de contacto","Teléfonos de contacto","Correo electrónico","WEB","Dirección"]
[null,"Ministerio de Producción, Comercio Exterior, Inversiones y Pesca","Incubadora","Es el resultado de la articulación público privada, entre el Ministerio de Producción, Comercio Exterior, Inversiones y Pesca y empresas nacionales especializadas en gestión y desarrollo de emprendimientos y competencias conductuales corporativas para emprendedores\n\nEl programa busca promover una actividad productiva nueva e innovadora, como parte sustancial de la reactivación económica del país.","MIPRO: Programa de apoyo al Emprendedor","Cosméticos, Alimentos y Bebidas, Artesanías, Artículos de bazar, Servicios para la Industria (incluye software)","Proyectos productivos, con valor agregado y que estén orientados a mercados de exportación.","Herramientas para un correcto desarrollo de la idea del emprendimiento.\n10 talleres de capacitación a emprendedores que se encuentran en proceso de desarrollar su idea de negocio, emprendimientos que sean rentables, sostenibles y con proyección de crecimiento.\nTrabaja con emprendedores que inician su emprendimiento o aún no han conseguido conectar con el mercado, de manera efectiva. \nApoya a emprendimientos que ya se encuentran en etapa de comercialización y que necesitan expandirse o crecer.\nOfrecen espacios de coworking","https://sites.google.com/view/apoyoemprendimiento/programas/programa-de-apoyo-al-emprendedor?authuser=0\n\nhttps://ecuadoremprendedor.ec/","Alexander Vinueza",null,"(593) 986732147\n(593) 2 394 8760","glopezl@producción.gob.ec","https://www.produccion.gob.ec/","Plataforma Gubernamental Financiera. Amazonas entre Unión Nacional de Periodistas y Alfonso Pereira"]
[null,"WORKINGUP","Incubadora","Workingup es una incubadora de empresas y un espacio de coworking que potencia a los emprendedores ecuatorianos","WORKINGUP","Cualquier sector","De cualquier sector con potencial de crecimiento y aceleración.","Incubación de empresas\nConstrucción de plan de negocios\nDefinición de propuesta de valor\nDefinición de hoja de ruta\nAsesoría en opciones de financiamiento\nOfrecen espacios de coworking","https://workingup.com.ec/servicios/","Andrés Vásconez","General Manager","(593) 992701953 / 25152502","avasconez@workingup.com.ec","https://workingup.com.ec/","San Ignacio N27-127 y González Suárez"]
[null,"KRUGER LABS","Aceleradora, Capital de Riesgo","KrugerLabs es la aceleradora de negocios digitales de Kruger que busca ampliar el ecosistema emprendedor digital y facilitar el financiamiento para startups de Latinoamérica. ","KRUGER LABS: Aceleración de Startups","Fintech, Retail, Insure Tech, Blockchain, VR/AR, Cybersecurity, entre otros","Modelos de negocio innovadores en growth stage que tengan un prototipo validado en el mercado y se encuentren experimentando primeros niveles de ventas.","Valoración certificada\nApertura de cartera\nPresentación a fondos\nMentoría de arquitectura\nAcceso a la nube de servicios\nEntrevista con expertos en la industria\nHoras de asesoría legal y contable\nWorkshop de innovación\nExposición a potenciales inversores\nOfrecen espacios de coworking","https://www.krugerlabs.com/aplicacion/"," Ernesto Kruger","CEO fundador","(593) 99 823 2323","ernesto@krugercorporation.com","http://www.krugerlabs.com/","Edificio K+, Arizaga Luque N34-206"]
[null,"BUENTRIP","Aceleradora, Capital de Riesgo","Aceleran el crecimiento de startups de base tecnológica brindando espacios para desarrollar sus proyectos, acompañamiento de mentores de altísimo nivel, acceso a fuentes de inversión y visibilidad dentro del ecosistema.","BuenTrip Hub","FinTech, Logística, infraestructura de comercio electrónico, Plataformas, HealthTech y EdTech","Ser una startup de software B2B.\n\n Tener un producto funcional y en validación temprana.\n\nTener un equipo a tiempo completo\n\nTener una visión regional o global.","Al terminar el progrrama BuenTrip Ventures invertirá $50,000.00 en tu startup.\nHabrás perfeccionado tu pitch de inversión y toolkit con herramientas para levantar capital. \nPodrás presentar en nuestro Demo Day frente a fondos de venture capital e inversionistas ángeles activos de la región. \nPasarás a formar parte de la comunidad de Alumni BuenTrip y podrás apoyarte en otros founders. \nRecibirás guía de cómo constituirte en EEUU y tener la estructura apropiada para levantar capital.\nHabrás ampliado tu red con más de 20 mentores. \nTendrás acceso a una librería de recursos para que sigas aprendiendo. \nTendrás acceso a todos los perks de BuenTrip, incluyendo perks de AWS, Microsoft, Hubspot y otros. \nPodrás ser considerado para que BuenTrip Ventures haga una inversión adicional en tu startup de hasta $150,000. \nPasarás a formar parte del portafolio de BuenTrip Ventures, donde compartirás con sus 35+ founders oportunidades y conocimiento.\nOfrecen espacios de coworking","https://www.buentriphub.com/elprograma","Fernando Rivera","Managing Partner","(593) 99 141 9044","info@buentriphub.com","https://www.buentriphub.com/"]
[null,"IMPAQTO","Aceleradora, Capital de Riesgo","IMPAQTO Lab es nuestra aceleradora para emprendimientos de triple impacto ubicados en América Latina. Contamos con el aval de Google for Startups.","IMPAQTO Lab","Cualquier sector","Startups con Impacto social o ambiental","Programa virtual intensivo de 15 semanas, en el cual los emprendedores\nasisten a sesiones regulares de capacitación, conexión y aprendizaje lideradas por Google Experts y facilitadores internacionales. \nReciben apoyo y acompañamiento personalizado desde nuestra red de más de 60 mentores de alto nivel de América Latina, EE. UU. y Europa.\nSe conectan con inversionistas de impacto y otros actores del ecosistema de emprendimiento social regional.\nAcceden a beneficios exclusivos de nuestra red de aliados, como Google, Amazon Web Services, Hubspot, IBM y Trust Law.\nForman parte de una comunidad potente de egresados (alumni) a nivel regional.\nSe realizan convocatorias dos veces al año para seleccionar a nuevos emprendimientos para IMPAQTO Lab.\nOfrecen espacios de coworking","https://www.impaqto.net/lab","Daniela Peralvo","Directora","(593) 94 306216 ","danielaperalvo@gmail.com\njustin@impaqto.net","https://www.impaqtocapital.com/","Avenida República de El Salvador 406 y Moscú"]
[null,"ENDEAVOR ECUADOR","Aceleradora, Capital de Riesgo","ScaleUp impulsa a las principales y más relevantes verticales tecnológicas, para conjuntamente potenciar la transformación digital, el desarrollo económico y el ecosistema de emprendimiento en el Ecuador.","ENDEAVOR: ScaleUp","Empresas tecnológicas o habilitadas por tecnología.","Demostrar un crecimiento financiero y operacional acelerado en el último año\nMercados en crecimiento\nCapaz de innovar y diferenciar de los competidores\nModelo de negocio escalable","6 meses de acompañamiento\nEquity free\nMetodología de aceleración enfocado: acceso a capital, crecimento, escalamiento\nMentorías con ejecutivos de alto nivel\nAsesorías con el equipo Endeavor\nDemo Day con los fondos más importantes de LATAM\nTalleres estratégicos\nConexiones directas con corporaciones\nEcosistemas de emprendedores y networking","https://endeavor.org.ec/scaleup/","María Fernanda Dávalos","Managing Director",0,"info.ecuador@endeavor.org","https://endeavor.org.ec/","Edificio Metropolitan, Av. Naciones Unidas 70507, Quito 170102"]
[null,"Ministerio de Turismo","Incubadora","Emprende Turismo es una iniciativa que apoya, capacita y acompaña en cada una de las etapas para el desarrollo de los emprendimientos turísticos.","MINTUR: Emprende Turismo  Idea - Proyecto:","Alojamiento, Servicio de alimentos y bebidas, Transportación, cuando se dedica principalmente al turismo, Operación, Intermediación, agencias de servicios turísticos y organizadoras de eventos y congresos, Hipódromos y parques de atracciones estables, Tecnología aplicada a las actividades turísticas","Iniciativas de negocios turísticos innovadores en fase de ideación, exploración, gestación, prototipado, y/o producto mínimo viable.\n\nDiferenciación respecto al existente en el mercado ecuatoriano, o que sustituyan a un servicio con otro de mejor calidad.\n\nSatisfacer necesidades del turista actual y potencial, garantizando el efectivo  ejercicio de los derechos de las personas, las comunidades, los pueblos, las nacionalidades y de la naturaleza. ","Proceso de incubación para 60 emprendimientos seleccionados quienes recibirán:\n\n13 Sesiones de capacitación y acompañamiento \n2 Sesiones de mentoría para fortalecimiento empresarial.\nElaboración de un video promocional para los 3 ganadores de la convocatoria Emprende Turismo 2022. \nOtros premios de las organizaciones aliadas a la convocatoria Emprende Turismo 2022 y que serán publicadas en la página de la institución. ","https://servicios.turismo.gob.ec/emprende-2022","Rosi Prado de Holguin",null,"(593) 3999333","fomentoturistico2020@gmail.com","https://servicios.turismo.gob.ec/emprende-2022","Av. Gran Colombia y Briceño"]
[null,"Ministerio de Turismo","Incubadora","Emprende Turismo es una iniciativa que apoya, capacita y acompaña en cada una de las etapas para el desarrollo de los emprendimientos turísticos.","MINTUR: Emprende Turismo  Puesta en Marcha","Alojamiento, Servicio de alimentos y bebidas, Transportación, cuando se dedica principalmente al turismo, Operación, Intermediación, agencias de servicios turísticos y organizadoras de eventos y congresos, Hipódromos y parques de atracciones estables, Tecnología aplicada a las actividades turísticas","MIPYMES innovadores, que resuelvan problemáticas del sector turístico, que hayan superado su etapa de gestación, generado sus primeras ventas y se encuentren en etapa de comercialización o expansión y deberán tener hasta 36 meses de operación.\n\nDiferenciación respecto al existente en el mercado ecuatoriano, o que sustituyan a un servicio con otro de mejor calidad.\n\nSatisfacer necesidades del turista actual y potencial, garantizando el efectivo ejercicio de los derechos de las personas, las comunidades, los pueblos, las nacionalidades y de la naturaleza.","PROCESO DE ACELERACIÓN para 60 emprendimientos seleccionados \nquienes recibirán:\n\n13 Sesiones de capacitación y acompañamiento \n2 Sesiones de mentoría para fortalecimiento empresarial.\nElaboración de un video promocional para los 10 ganadores de la convocatoria Emprende Turismo 2022 en la categoría En Marcha.\nOtros premios de las organizaciones aliadas a la convocatoria Emprende Turismo 2022 y que serán publicadas en la página de la institución. ","https://servicios.turismo.gob.ec/emprende-2022","Rosi Prado de Holguin",null,"(593) 3999333","fomentoturistico2020@gmail.com","https://servicios.turismo.gob.ec/emprende-2022","Av. Gran Colombia y Briceño"]
[null,"Ministerio de Turismo","Incubadora","Emprende Turismo es una iniciativa que apoya, capacita y acompaña en cada una de las etapas para el desarrollo de los emprendimientos turísticos.","MINTUR: Emprende Turismo  Consolidación","Alojamiento, Servicio de alimentos y bebidas, Transportación, cuando se dedica principalmente al turismo, Operación, Intermediación, agencias de servicios turísticos y organizadoras de eventos y congresos, Hipódromos y parques de atracciones estables, Tecnología aplicada a las actividades turísticas"," MIPYMES turísticas que presenten proyectos turísticos innovadores para expandir su mercado objetivo y que tengan más de 36 meses en el mercado.\n\nDiferenciación respecto al existente en el mercado ecuatoriano, o que sustituyan a un servicio con otro de mejor calidad.\n\nSatisfacer necesidades del turista actual y potencial, garantizando el efectivo ejercicio de los derechos de las personas, las comunidades, los pueblos, las nacionalidades y de la naturaleza.","Proceso de GESTIÓN DE INNOVACIÓN para 60 emprendimientos seleccionados quienes recibirán:\n\n13 Sesiones de capacitación y acompañamiento \n2 Sesiones de mentoría para fortalecimiento empresarial.\nElaboración de un video promocional para los 10 ganadores de la convocatoria Emprende Turismo 2022 categoría Consolidación.\nFortalecimiento de la gestión comercial de la empresa.\nOtros premios de las instituciones aliadas que serán publicadas en la página de la institución. ","https://servicios.turismo.gob.ec/emprende-2022","Rosi Prado de Holguin",null,"(593) 3999333","fomentoturistico2020@gmail.com","https://servicios.turismo.gob.ec/emprende-2022","Av. Gran Colombia y Briceño"]
[null,"CONQUITO","Incubadora","Empretec es un programa internacional de la Organización de Naciones Unidas, que ha sido concebido y diseñado para identificar, formar y apoyar a emprendedores, el mismo que se encuentra administrado por la Secretaría de la UNCTAD (Conferencia de las Naciones Unidas para el Comercio y Desarrollo) en Ginebra (Suiza).\n\nConsiste en un Taller de formación intensivo. En Ecuador, CONQUITO es la entidad contraparte.","CONQUITO: EMPRETEC"," Emprendedores que se encuentran en una etapa inicial de generación de ideas.\n Emprendedores que estén en una etapa avanzada de puesta en marcha.\nEmpresarios y personas que busquen mejorar su capacidad emprendedora","El programa comienza enfocándose en el emprendedor individualmente, sobre la base de un formulario de inscripción y de entrevistas focalizadas, previas a la realización del Taller.\n\nEl taller se desarrolla durante 6 jornadas intensivas. Resulta muy importante para el éxito del Taller que los participantes puedan concentrarse en las prácticas y reflexiones a que los lleva esta capacitación.","Durante el Taller se trabajan diversos módulos tendientes a que el participante logre:\n\nIdentificar o mejorar sus oportunidades empresariales.\nEntender su propio comportamiento en relación con la asunción de riesgos calculados.\nApreciar la importancia de los comportamientos de persistencia y cumplimiento.\nEntender la relación existente entre la calidad y la eficiencia, \nAprender a buscar información.\nEvaluar su planeamiento actual y sus capacidades para la solución de problemas.\nAumentar su capacidad de persuasión.\nPlanificar estrategias de negocios efectivas y sacar provecho de las iniciativas.\nAdaptarse a cambios rápidos y a las incertidumbres del mercado","https://conquito.org.ec/emprendimiento-e-innovacion/","Verónica Juna ","Responsable de Emprendimiento","(593) 2 6055550","vjuna@conquito.org.ec","https://conquito.org.ec/","Maldonado Oe1-172 y Jaime del Castillo, Quito - Ecuador"]
[null,"CONQUITO","Incubadora","Desarrolla actividades que permiten fortalecer e incentivar el emprendimiento de los ciudadanos del Distrito Metropolitano de Quito, a través de talleres técnicos para la puesta en marcha y fortalecimiento de emprendimientos, basado en herramientas útiles, prácticas y necesarias para su desarrollo.","CONQUITO: Talleres para el desarrollo de Emprendimientos","Emprendedores","Emprendedores del DMQ que se registren a través de las redes sociales de CONQUITO.","Ideación\nEl taller de ideación está diseñado con el objetivo de brindar a los usuarios, una herramienta sencilla y práctica para introducir a la persona emprendedora al mundo del emprendimiento y principalmente fomentar la creatividad  para la generación de ideas de negocios.\n\nModelo de negocios\nEl Modelo de Negocios es una herramienta que permite a una empresa o persona definir la forma en la que crea, entrega y captura valor para el cliente. Utiliza el Modelo de Negocio Canvas, con el objetivo de visualizar de manera gráfica su idea de negocio, a través de actividades teórico-prácticas que les permitirán estructurar sobre un lienzo los aspectos estratégicos que definen un modelo de negocio.","https://conquito.org.ec/servicios-emprendimiento/","Verónica Juna ","Responsable de Emprendimiento","(593) 2 6055550","vjuna@conquito.org.ec","https://conquito.org.ec/","Maldonado Oe1-172 y Jaime del Castillo, Quito - Ecuador"]
[null,"BIOLEGAL","Aceleradora","Es una aceleradora que apoya a empresas con potencial de crecimiento a través de asistencia técnica, legal, financiera y en la búsqueda de acceso a financiamiento","BIOLEGAL","Emprendimiento de cualquier sector, pero en función del enfoque de posibles financiadores hay interés en energía renovable, tratamiento de aguas, agro industria, educación, entre otros.","Empresas que tengan un prototipo o PMV, que cuenten con al menos 1 año en operación, con clientes identificados y un modelo de negocio establecido y con potencial de crecimiento.","Asesoría técnica, legal, financiera y apoyo para acceder a fuentes de financiamiento e inversión","https://www.bio-legal.com/","Juan Ramon Garcia","Gerente General","(593) 24521394\n(593) 984254986\n(593) 995639443","info@bio-legal.com\nalejandra.villacis@bio-legal.net","https://www.bio-legal.com/","Nayón, calle Quito E6-02 y Luis Cordero"]
[null,"FUNDACIÓN IPC","Incubadora","Proporcionan mentoría, asesoría legal, técnica y apoyo ante entidades públicas para el acceso a financiamiento.","FUNDACIÓN IPC","Trabajan con todos los sectores. Han apoyado proyectos de tecnología, agrícolas, restaurantes, entre otros.","Emprendimientos en etapa de idea, prototipado o puesta en marcha","Asesoría técnica, legal, financiera y apoyo para acceder a fuentes de financiamiento e inversión","https://ipc.org.ec/","Michelle Silva","Coordinadora de Mentorías","(593) 99 3420176 / 2 292 3600","academico@ifpo.es","https://ipc.org.ec/","AV. Eloy Alfaro N35-144 y Portugal (a 100 metros al norte de la iglesia de Fátima) "]
[null,"INSTITUTO DE INVESTIGACION GEOLOGICO Y ENERGETICO","Incubadora","Apoya a emprendimientos relacionados con proyectos geológicos y energéticos, en la fase de preincubación ","INSTITUTO DE INVESTIGACION GEOLOGICO Y ENERGETICO","Geología y Energía","Emprendimientos en etapa de idea, prototipado o puesta en marcha.\n\nEl emprendedor debe contactarse a través del correo electrónico para postular con su proyecto y un comité evalúa si está alineado con los objetivos del Instituto.","Asesoría técnica, legal, financiera y orientación para postular a fondos internacionales.\nEn las instalaciones de coworking los proyectos aceptados pueden utilizar las instalaciones y equipos para el prototipado.","laboratorio.incubacion@geoenergia.gob.ec","CARLOS ANDRES CAMPANA DIAZ",null,"(593) 990757778 / 22976100","laboratorio.incubacion@geoenergia.gob.ec","https://www.geoenergia.gob.ec/portafolio-de-servicios/","Las Malvas E15-142 (INIGEMM-IIGE), Los Perales (ec170503)"]

{"sheet":"Matriz_Crowdfunding","index":15,"n_rows":5,"n_cols":15,"rows_kept":5,"cut":false,"hidden":true,"merged":[[0,1,0,14]]}
[null,"Matriz de Crowdfunding"]
[]
[null,"Crowdfunding","Tipo de Fondo","Descripción de la Plataforma","Tipos de proyectos que se publican","Beneficios de la plataforma","Comisiones ","Restricciones","Link de la Plataforma","Nombre persona de contacto","Cargo persona de contacto","Teléfonos de contacto","Correo electrónico","WEB","Dirección"]
[null,"HAZVACA CROWDFUNDING DEL ECUADOR S.A.","Crowdfunding","Hazvaca Crowdfunding del Ecuador es una plataforma de financiamiento colectivo,  legalmente constituida en Ecuador. ","Arte y Música\nDeportes\nEmprendimientos\nEstudios\nEventos \nProyectos Sociales\nSalud","Editar su campaña a medida que la misma avanza que permite modificar la estrategia de promoción.\nRevisar el perfil de las personas que han realizado aportes\nObtener una base de datos con los correos electrónicos de la comunidad que te apoyó. \nManejar de forma ordenada la entrega de incentivos. \nComunicar a través de video, foto o texto con los aportantes.\nRecibir comentarios de la comunidad que apoya.\nCompartir las campaña en la principales redes sociales.  \nAsesoría gratuita para configurar las campañas de manera que pueda tener mayores probabilidades de éxito. \nAsesoría para configurar las recompensas de manera que pueda atraer los aportes de una gran audiencia.\nSistema de mensajería interna que te permite resolver dudas al instante.","Vacas Públicas\n\nSi tu vaca o campaña logra reunir entre  $0 - $10K = 15%\nSi tu vaca o campaña logra reunir entre $10K – $20K = 14%\nSi tu vaca o campaña logra reunir entre $20K – $30K = 13%\nSi tu vaca o campaña logra reunir más de $30K = 12%\nSi logras conseguir tu meta te hacemos un descuento de 3 puntos porcentuales a los valores antes descritos.\n\nVacas Privadas\n\n 4% del valor reunido en el evento + 0,30 cvos. por transacción","1. No  permite la inclusión de incentivos  por valores totales superiores a USD 1000.\n2. El creador de un proyecto no podrá ofrecer en su proyecto como incentivo ningún tipo de bebida alcohólica, drogas, medicinas, estupefacientes, esquemas de apuestas, loterías, rifas, armas de fuego, vaporizadores, pipas, dividendos, ganancias futuras, comisiones o acciones de empresas.\n3. HAZVACA en ningún caso será responsable de dichas donaciones o el destino que estas pudieran tener. El beneficiario de las donaciones será el único responsable en destinar las donaciones para el objeto previsto de acuerdo a lo establecido en proyecto publicado en el portal web.\n4. El Usuario se obliga a no crear eventos que promocionen la violencia, estupefacientes, terrorismo, contenido de adultos, trata de blancas y/o cualquier actividad que atente a lo moral y los valores universales. \n5. HAZVACA se reserva el derecho de rechazar y eliminar cualquier vaca, campaña o causa que estime atente contra los principios, valores y moral de la compañía. ","https://www.hazvaca.com/","Emmanuel Lepoutre","CEO fundador","(593) 997536619 / 22896025   ","emmanuel@hazvaca.com","https://www.hazvaca.com/","DENTRO DEL CLUB JACARANDA, Lote No 25"]
[null,"GreenCrowds","Crowdfunding","Greencrowds es una estrategia de financiamiento colaborativo del Programa de Pequeñas Donaciones (PPD/FMAM/PNUD) por su compromiso con la conservación. \n\nTrabaja para generar redes de colaboración y financiación para iniciativas comprometidas con la conservación de la naturaleza y los Objetivos de Desarrollo Sostenibles (ODS)","Aquellos relacionados con: \n\nConservación de la naturaleza, Poner fin a la pobreza, Seguridad alimentaria, Garantizar una vida sana, Educación inclusiva, Igualdad entre los géneros, Disponibilidad de agua y saneamiento, Energía asequible, segura, sostenible y moderna para todos, Crecimiento económico sostenido, inclusivo y sostenible, Construir infraestructura resiliente, \nReducir la desigualdad en y entre los países, Asentamientos humanos sean inclusivos, seguros, resilientes y sostenibles, Consumo y producción sostenibles, Cambio climático y sus efectos, \nConservación de los océanos, Uso sostenible de los ecosistemas terrestres, Sociedades pacíficas e inclusivas para el desarrollo sostenible\nAlianza mundial para el desarrollo sostenible.","Asesoría personalizada\nComparten una guía con el paso a paso, para que estructuren bien las campañas, Asisten en el proceso comunicacional, y brindan acceso a redes de aliados estratégicos.\nGreenCrowds ofrece un servicio de crowdfunding para el Programa de Pequeñas Donaciones del GEF-PNUD. \nLos usuarios registrados recaudan dinero de “contribuidores” que proporcionan apoyo financiero para ayudar a las campañas de los usuarios. \nEmplean metodologías y seguridad tecnológica, como encriptación, copia de seguridad de datos, protección por contraseña y otras medidas razonables para ayudar a proteger la información personal.\nUtiliza servicios seguros como Stripe y PayPal.","Las campañas se quedan con el monto obtenido, sin tener en cuenta si han logrado alcanzar el objetivo marcado o no. De ese monto levantado, GreenCrowds, descuenta el 5% se haya cumplido o no la meta. \n\nTodas las contribuciones a las campañas se agrupan en cuentas bancarias de la Alianza para el Emprendimiento y la Innovación (CEIE) en Ecuador y se transfieren directamente a las cuentas bancarias del Autor de la campaña propuesta por individuales o asociaciones comunitarias de Ecuador. \n\nLa transferencia se realizará una vez haya finalizado el periodo de la campaña.\n\nLa campaña acepta pagar una tasa inicial de $150 por la asistencia técnica en relación a su campaña publicada en la plataforma de GreenCrowds.","1. Contenido o donaciones que suplanten la identidad de otra persona, entidad u organización.\n2. Contenido impreciso, falso y/o engañoso.\n3. Contenido o fondos que procedan de la infracción de la regulación de marcas, secretos comerciales, patentes, derechos de autor o cualquier otro derecho de propiedad de cualquier otra persona, entidad o acuerdo contractual.\n4. Contenido abusivo, racista, de acoso, difamatorio, amenazante, profano, explícitamente sexual, con enlaces a contenido para adultos, excesivamente violento, vulgar, obsceno o contrario a los principios y valores de las Naciones Unidas.\n5. Fondos que provienen de fuentes ilegales.\n6. Contenido que involucre pirámides financieras, mensajes en cadena, spam, publicidad no solicitada o no autorizada, lotería, juegos de azar, sorteos y otros contenidos similares.\n7. Uso de malware, virus o cualquier tipo de código o acción potencialmente perjudicial que pudiera interferir con las operaciones de los Servicios.\n8. Contenido que promueva cualquier servicio o producto ilegal.\n9. Contenido que promueva o respalde conductas criminales.","www.greencrowds.org",null,null,"(593) 2 3824 240 ext. 3102 / 0999 102535","info@greencrowds.org","www.greencrowds.org","Centro Corporativo Ekopark. Vía Nayón y Av. Simón Bolívar"]

{"sheet":"Matriz_Normativa de Apoyo","index":16,"n_rows":10,"n_cols":8,"rows_kept":10,"cut":false,"hidden":true,"merged":[[0,1,0,7],[1,1,1,7]]}
[null,"Normativa legal de apoyo al emprendedor y a la MIPYMES"]
[null,"Objetivo: Identificar la normativa legal de apoyo al emprendedor, micro, pequeño y mediano empresario, que permita identificar los beneficios legales, laborales e incentivos tributarios para ofrecer lineamientos generales sobre los incentivos para los diferentes tipos de negocio de este grupo de beneficiarios."]
[]
[null,"Normativa","Artículos","Beneficiarios","Consideraciones Generales","Beneficios Tributarios ","Beneficios Laborales ","Beneficios Empresariales"]
[null,"LEY ORGÁNICA DE EMPRENDIMIENTO E INNOVACIÓN ","Artículos 3, 6, 12-17, 19, 24-27,30, 32, 44, 46 y Disposiciones Reformatorias Octava y Novena","Emprendedor","1.\tDefine lo que se entiende por emprendimiento e innovación:\n\nEmprendimiento: Es un proyecto con antigüedad menor a cinco años que requiere recursos para cubrir una necesidad o aprovechar una oportunidad y que necesita ser organizado y desarrollado, tiene riesgos y su finalidad es generar utilidad, empleo y desarrollo. \n\nInnovación: Es el proceso creativo mediante el cual se genera un nuevo producto, diseño, proceso, servicio, método u organización, o añade valor a los existentes.\n \n2. Crea el Consejo Nacional para el Emprendimiento e Innovación – CONEIN, como organismo permanente estratégico para promover y fomentar el emprendimiento, la innovación y la competitividad sistémica del país.\n\n3. Se crea el Registro Nacional de Emprendimiento RNE para que puedan registrarse los emprendimientos realizados por personas personas naturales o jurídicas, con antigüedad menor a cinco años contados desde el año 2020, que tenga menos de 49 trabajadores y ventas menores a US$ 1.000.000, con el fin de beneficiarse de los incentivos previstos en esta normativa.\n\n4. Promueve la cultura emprendedora implementando nuevas modalidades societarias y de financiamiento para fortalecer el ecosistema emprendedor, como:\n\n- Las sociedades por acciones simplificadas\n- Fondos Colaborativos o Crowdfunding\n- Sociedades de beneficio e interés colectivo\n\n",null,"Posibilidad de celebrar contratos de trabajo especiales de jornada completa o parcial, cuya duración será de un año, dentro del cual se podrá acordar un período de prueba de hasta noventa (90) días en la primera contratación y podrán ser renovado de común acuerdo por las partes hasta por el plazo en el cual este vigente la certificación del RNE. Se regula este tipo de contratación en el Acuerdo No. MDT-2020-222 (DIRECTRICES QUE REGULEN EL CONTRATO DE EMPRENDIMIENTO) emitido por el Ministerio de Trabajo.","1. Acceso a una Guía Nacional de Emprendimiento, con información de aspectos macro económicos, de mercados internacionales, legales, tributarios, sectoriales, laborales, societarios y financieros del ecosistema emprendedor, además de un directorio de las oficinas comerciales del Ecuador en el mundo, con información para exportar productos y servicios.\n\n2. Promoción de bienes y servicios nacional e internacional por el Ministerio encargado del comercio exterior.\n\n3. Facilitación de instalación e infraestructura para emprendedores en espacios de propiedad estatal.\n\n4. Concesión de liquidez al establecerse que las facturas emitidas por emprendedores inscritos a otras sociedades, deben de ser pagadas con un plazo máximo de 30 días, y partir del día 31 pueden generar intereses por el saldo impago, a la tasa activa legal establecida por el Banco Central del Ecuador. Para facturas emitidas a entidades públicas sujetas al sistema de gestión financiera de la Administración Central, el plazo para el pago será de 90 días contados desde que se genere el Comprobante Único de Registro -CUR- o después de suscrita el acta de entrega-recepción, para entidades no sujetas a dicho sistema.\n\n5. Priorización de emprendimientos en frontera, los cuales se regularán bajo el régimen de atención preferencial.\n\n6. Capacitaciones dirigidas por la Secretaría Técnica de Capacitación y Formación Profesional y Servicio Ecuatoriano de Capacitación Profesional en asistencia técnica con la finalidad de fortalecer conocimientos, mejora capacidades productivas y fomentar la innovación.\n\n7.\tAcceso a los servicios financieros, créditos públicos y a los fondos de inversión públicos, que se detallarán en la Guía Nacional de Emprendimiento. \n\n8.\tInversión Estatal y Privada, la cual se podría entregar como “Capital semilla” o “Capital Riesgo”, o \"Inversión Angel\", según las siguientes definiciones:\n\nCapital semilla \nSe otorgará a proyectos de emprendimiento que no hayan superado todavía los veinticuatro (24) meses de vida. \n-Puede ser entregado mediante recursos no reembolsables, aporte de capital, notas convertibles en acciones, compra de acciones o participaciones y otros derechos de acuerdo al esquema societario y legal del emprendedor; \n-Se otorgará a proyectos de emprendimiento que no hayan superado todavía los veinticuatro (24) meses de vida.\n-La realización de inversiones o donaciones con recursos públicos no modificará la naturaleza jurídica de los actores beneficiarios del financiamiento, aun cuando la participación de los fondos de capital semilla sea superior al 50% del monto total invertido o de las acciones o participaciones del mismo; sin embargo, si como resultado del programa o proyecto se pone en marcha un emprendimiento innovador que produjera ganancias económicas, el Estado participará entre el 5% y el 10% de la titularidad y beneficios económicos de dicho emprendimiento. \n-Si es una inversión pública requerirá de la emisión de un análisis de viabilidad del proyecto por parte de la entidad que realizare la inversión.\n\nCapital de Riesgo \n-No constituye endeudamiento bancario tradicional. \n-La realización de inversiones o donaciones con recursos públicos no modificará la naturaleza jurídica de los actores beneficiarios del financiamiento, aun cuando la participación de los fondos de capital de riesgo sea superior al 50% del monto total invertido o de las acciones o participaciones del mismo; sin embargo, la inversión requerirá de la emisión de un análisis de viabilidad del proyecto por parte de la entidad que realizare la inversión. \n-Si la inversión proviene del sector privado, podrá estar compuesto por recursos que mayoritariamente sean inversiones de capital, pero también se podrán realizar préstamos en condiciones libremente pactadas, con o sin interés, y reembolsables en función de condiciones de equilibrio o rentabilidad.\n\nInversión Ángel \n-Se considera al aporte de capital y/o conocimientos técnicos por parte de personas naturales, jurídicas o fideicomisos, a emprendedores.\nLa inversión ángel puede ser como:\n-Capital semilla: Emprendedores que quieran poner en marcha un proyecto empresarial \n-Capital de inicio: Empresas que se encuentran en el inicio de su actividad.\n-Capital de desarrollo: Investigadores que se encuentren en el proceso de desarrollo de un prototipo de producto o servicio con beneficio comercial.\n-La inversión realizada no podrá superar el 49% del capital societario a favor del inversionista y el control de la sociedad debe mantenerse en manos del emprendedor fundador.  \n\n9.\tLos emprendedores podrán proponer como garantía para las operaciones de crédito de emprendimientos sus activos intangibles, debiendo ser valorados por compañías especializadas en valoración de activos intangibles.\n\n10. Facultad de todo emprendedor, que sea una persona jurídica bajo control de una Superintendencia, y que tuviere obligaciones incumplidas con terceros no relacionados, de acogerse al procedimiento administrativo de concurso de acreedores, para facilitar un acuerdo con los mismos, a fin de reestructurar el emprendimiento, con el fin de poder aplicar la protección financiera concursal y buscar una salida financiera y comercial para su operación, pudiendo acordar con acreedores modificar sus acreencias por capitales de inversión."]
[null,"CÓDIGO ORGÁNICO DE LA PRODUCCIÓN, COMERCIO E INVERSIONES","Artículos 10, 53, 55, dos artículos agregados a continuación del 55, 56","MIPYMES","1. Define  a las MIPYMES:\nMIPYMES: Toda persona natural o jurídica que, como una unidad productiva, ejerce una actividad de producción, comercio y/o servicios, y que cumple con el número de trabajadores y valor bruto de las ventas anuales, señalados para cada categoría previstas en su reglamento.\n\n2. Se crea el Registro Único de las MIPYMES que permite identificar y categorizar a las empresas.\n\n","1. Los emprendimientos turísticos de MIPYMES, de turismo comunitario y/o asociativo, tendrán una exoneración de impuesto a la renta por 20 años. \n\n*Si bien este incentivo están en la norma, al no existir norma de regulación podrían las administraciones tributarias no aplicarla.\n\n2. Quienes estuvieren autorizados por la Autoridad Nacional de turismo podrán ingresar al país mercancías para el turismo con suspensión total o parcial del pago de los derechos e impuestos a la importación y recargos, con excepción de la depreciación normal originada por el uso que se haya hecho de las mismas, para ser reexportadas en un plazo determinado sin experimentar modificación alguna, conforme lo estipula el reglamento.\n\n","Promueve el trabajo productivo digno a través de la creación del Salario Digno que debe ser pagado son sociedades y personas naturales obligadas a llevar contabilidad.","1.  El Estado constituirá fondos de capital de riesgo con el aporte de recursos públicos para financiar las diferentes etapas del proceso de innovación, desde los ámbitos de la investigación y conocimiento, y productivo. Las inversiones y asignaciones de dichos fondos de capital de riesgo serán efectuadas en proyectos de investigación, incubación y productivos específicos, preferentemente de carácter innovador, que deberán ser temporales y previamente pactadas.\n\n2. Oblicación del Estado de pactar arbitraje nacional o internacional para resolver disputas generadas a través de contratos de inversión.\n\n3. Las instituciones públicas estarán obligadas a aplicar el principio de inclusión de MIPYMES en sus adquisiciones.\n\n"]
[null,"REGLAMENTO DE INVERSIONES DEL CÓDIGO ORGÁNICO DE LA PRODUCCIÓN, COMERCIO E INVERSIONES","Art. 106","MIPYMES","•\tMicro empresa: Es aquella unidad productiva que tiene entre 1 a 9 trabajadores y un valor de ventas o ingresos brutos anuales iguales o menores de trescientos mil (US $300.000,00) dólares de los Estados Unidos de América;\n\n•\tPequeña empresa: Es aquella unidad de producción que tiene de 10 a 49 trabajadores y un valor de ventas o ingresos brutos anuales entre trescientos mil uno (US $300.001.00) y un millón (US $ 1.000.000,00) de dólares de los Estados Unidos de América; y,\n\n•\tMediana empresa: Es aquella unidad de producción que tiene de 50 a 199 trabajadores y un valor de ventas o ingresos brutos anuales entre un millón uno (USD 1.000.001,00) y cinco millones (USD 5.000.000,00) de dólares de los Estados Unidos de América."]
[null,"CÓDIGO ORGÁNICO DE LA ECONOMÍA SOCIAL DE LOS CONOCIMIENTOS, CREATIVIDAD E INNOVACIÓN","Artículos del 604 al 627","Emprendedor, MIPYMES","Los proyectos que consten dentro del Registro Nacional de Emprendimiento -RNE- se sujeterían a los incentivos de este Código, siempre que realicen actividades en las siguientes áreas:\n\n- el fortalecimiento del talento humano, \n- la investigación responsable y \n- la innovación social.","Los incentivos tributarios vigentes para el talento humano son:\n\n1. Deducción del 100% adicional para el cálculo de la base imponible del impuesto a la renta, de los gastos realizados por concepto de sueldos de los tutores designados para la formación dual, por parte de los sujetos debidamente acreditados por las autoridades competentes registradas ante la Secretaría de Educación Superior, Ciencia, Tecnología e Innovación, como entidades receptoras según el caso. El monto máximo de deducción adicional será hasta el valor correspondiente a tres coma cinco remuneraciones básicas unificadas por cada tutor.\n\nLos incentivos tributarios vigentes para la investigación responsable son:\n\n1. Los sujetos pasivos que reinviertan sus utilidades, en el Ecuador, en proyectos o programas de investigación científica responsable o de desarrollo tecnológico acreditados por la Secretaría de Educación Superior, Ciencia, Tecnología e Innovación tendrán una reducción porcentual del 10% en programas o proyectos calificados como prioritarios por los entes rectores y, del 8% en el resto de programas y proyectos.\n\n2. Exoneración de tributos al comercio exterior en la importación de equipos e insumos a ser utilizados en el desarrollo de programas, proyectos y actividades de investigación científica. Las categorías de bienes exonerados serán determinados por la Secretaría de Educación Superior, Ciencia, Tecnología e Innovación.\n\nLos incentivos tributarios vigentes para la innovación social son:\n\n1. Exoneración de tributos al comercio exterior en la importación de equipos e insumos a ser utilizados en el desarrollo de emprendimientos innovadores en espacios de innovación acreditados.\n\n\n\n","1. Se establecerá un procedimiento abreviado para el otorgamiento de autorizaciones laborales y migratorias para las personas extranjeras no radicadas en el país, que deseen realizar actividades laborales, científicas y de movilidad académica, que cuenten con título profesional, de al menos maestría, o su equivalente, y experiencia relevante en áreas del conocimiento. Las personas residentes en el extranjero podrán participar en los concursos de méritos y oposición para el ingreso a la carrera del investigador científico y del profesor investigador universitario, desde el país de residencia. ","Los incentivos para el talento humano son:\n1.\tLíneas de crédito preferente para el fortalecimiento del talento humano. \n2.El Ministerio Sectorial encargado de la Cultura, formulará programas de financiamiento para el desarrollo y promoción artística y cultural. \n3. Quienes se conviertan en proveedores del Estado y realicen gastos destinados a formación de cuarto nivel de su personal ecuatoriano o sean entidades receptoras en programas académicos de formación dual, contraten becarios de programas públicos de becas por al menos un año o realicen pasantías de educación superior, recibirán puntajes adicionales en los procesos de contratación establecidos en la Ley Orgánica del Sistema Nacional de Contratación Pública.\n\nLos incentivos para la investigación responsable son:\n1. Se crearán y gestionarán programas o proyectos de financiamiento para la ejecución de proyectos de investigación responsable y desarrollo tecnológico, de conformidad con las necesidades y planificación nacional. Estos fondos no son de carácter reembolsable.\n2. Las instituciones públicas encargadas de regular las tarifas de los servicios de telecomunicaciones, establecerán en los espacios de generación de conocimiento tarifas preferenciales para los actores del Sistema que desarrollen actividades en dichos espacios.\n3. Se crea un Programa Nacional de Reconocimientos a la Investigación Científica Responsable, a través de premios, distinciones, y otros reconocimientos el cual tendrá por objetivo incentivar la investigación y desarrollo tecnológico vinculados al incremento de la productividad, la diversificación productiva y la satisfacción de necesidades.\n\nLos incentivos para la innovación social son:\n1. \tEl Estado creará programas de financiamiento de capital semilla y capital de riesgo para el desarrollo de la innovación social. Si como resultado del programa o proyecto para el fomento de la innovación social se pone en marcha un emprendimiento innovador que produjera ganancias económicas, el Estado participará entre el 5% y el 10% de la titularidad y beneficios económicos de dicho emprendimiento.\n2. Acreditación de los actores del Sistema Nacional de Ciencia, Tecnología, Innovación y Saberes Ancestrales para la emisión de valores negociables en el mercado de valores.\n3. Los actores del Sistema Nacional de Ciencia, Tecnología, Innovación y Saberes Ancestrales que realicen actividades de innovación social, para la constitución o aumento de capital de compañías anónimas, podrán hacerlo mediante la suscripción pública de acciones a través de oferta pública en el mercado de valores.\n4. Registro sanitario simplificado para nuevos productos.\n5. Los emprendimientos que hayan nacido de un espacio de innovación acreditado y que sean proveedores del Estado recibirán puntajes adicionales en los procesos de contratación pública."]
[null,"LEY DE RÉGIMEN TRIBUTARIO INTERNO","Artículo 10, numeral 24, segúndo artículo Innumerado a continuación del Art. 37.3, Artículo 76","MIPYMES",null,"Beneficios para MIPYMES:\n\n1. Las sociedades que tengan la condición de micro y pequeñas empresas tendrá una rebaja de 3 puntos porcentuales en la tarifa de impuesto a la renta (aplicarían tarifa del 22% y no del 25%).\n\n2. Los sujetos pasivos que adquieran bienes o servicios a organizaciones de la economía popular y solidaria -incluidos los artesanos que sean parte de dicha forma de organización económica- que se encuentren dentro de los rangos para ser consideradas como microempresas, podrán aplicar una deducción adicional de hasta 10% respecto del valor de tales bienes o servicios, para determinar su Impuesto a la Renta.\n\n3. Existen consideraciones especiales para micro y pequeñas empresas respecto al impuesto a los consumos especiales, como exoneradas en ciertos productos o rebajas en las tarifas, si se cumplieren ciertas condiciones.\n"]
[null,"LEY DE RÉGIMEN TRIBUTARIO INTERNO","Capítulo V\nRÉGIMEN SIMPLIFICADO PARA EMPRENDEDORES Y NEGOCIOS POPULARES - RIMPE \nArtículos 97.1 - 97.9","Emprendedor",null,"Beneficios para Emprendedores:\n\n1. Se establece el régimen RIMPE, para el pago del impuesto a la renta, a los emprendedores y negocios populares, el cual es un régimen simplificado y especial, considerando lo siguiente:\n\n- Se sujetan al RIMPE los sujetos pasivos personas naturales y jurídicas con ingresos brutos anuales superiores a cero y hasta US$ 300.000,00 al 31 de diciembre del año anterior. Dentro de este régimen, constituyen negocios populares aquellos sujetos pasivos, personas naturales, con ingresos brutos existentes de hasta US$ 20.000,00 en el ejercicio económico del año inmediatamente anterior.\n\n- No podrían sujetarse a este régimen, quienes realicen actividades previstas en el artículo 97.4 de la Ley de Régimen Tributario Interno, como: servicios profesionales, mandatos y representaciones, transporte, actividades agropecuarias, comercializadora de combustibles, relación de dependencia, quienes perciban exclusivamente rentas de capital, financiero, economía popular y solidaria.\n\n2. Los sujetos pasivos dentro del régimen RIMPE pagarán el Impuesto a la Renta sobre los ingresos y no sobre la utilidad que perciban, una tarifa que va del 0 al 2%.\n\n3. Realizan declaraciones semestrales de IVA y de retenciones de impuestos.\n"]

{"sheet":"Observaciones","index":17,"n_rows":8,"n_cols":3,"rows_kept":8,"cut":false,"hidden":true,"merged":[]}
[]
[null,"Observaciones"]
[]
[null,1,"Verificar que los espacios en blanco sean la excepción, tratar de tener alguna definición, caso contrario se indicará que No hay Definición. Por ejemplo ver Periodo de amortizacion"]
[null,2,"En los campos que permiten selección múltiple asegurarse que no existan SELECCIONES REPETIDAS"]
[null,3,"Caso de Banecuador faltan muchas definiciones"]
[null,4,"El nombre de los productos no puede repetirse para una misma institución hay que ponerle un nombre que los diferencie de lo contrario suma las tasas de interés"]
[null,5,"Llenar todos los campos de la matriz de Normativa"]